Workbook

Sheet Avaliação de Tarifas
A3: REGULAR
A4: SUBGRUPO | B4: MODALIDADE | C4: MODALIDADE REH | D4: CLASSE | E4: SUBCLASSE | F4: DETALHE | G4: POSTO | H4: TARIFAS DE APLICAÇÃO | K4: BASE ECONÔMICA | O4: SUBGRUPO | P4: MODALIDADE | Q4: CLASSE | R4: SUBCLASSE | S4: POSTO | T4: TARIFAS DE APLICAÇÃO | W4: BASE ECONÔMICA
H5: TUSD | J5: TE | K5: TUSD | M5: TE | T5: TUSD | V5: TE | W5: TUSD | Y5: TE
H6: R$/kW | I6: R$/MWh | J6: R$/MWh | K6: R$/kW | L6: R$/MWh | M6: R$/MWh | T6: R$/kW | U6: R$/MWh | V6: R$/MWh | W6: R$/kW | X6: R$/MWh | Y6: R$/MWh
A7: B1 | B7: Branca | C7: Branca | D7: Residencial | E7: Residencial | F7: Não se aplica | G7: Ponta | H7: =IFERROR(ROUND((AVERAGEIFS(DADOS_MercadoBase[Tar_PTUSD],DADOS_MercadoBase[TipoMercado],$A$3,DADOS_MercadoBase[Subgrupo],$A7,DADOS_MercadoBase[Modalidade],$B7,DADOS_MercadoBase[Classe],$D7,DADOS_MercadoBase[Subclasse],$E7,DADOS_MercadoBase[Detalhe],$F7,DADOS_MercadoBase[Posto],$G7)),2),0) -> 0 | I7: =IFERROR(ROUND((AVERAGEIFS(DADOS_MercadoBase[Tar_ETUSD],DADOS_MercadoBase[TipoMercado],$A$3,DADOS_MercadoBase[Subgrupo],$A7,DADOS_MercadoBase[Modalidade],$B7,DADOS_MercadoBase[Classe],$D7,DADOS_MercadoBase[Subclasse],$E7,DADOS_MercadoBase[Detalhe],$F7,DADOS_MercadoBase[Posto],$G7)),2),0) -> 1323.58 | J7: =IFERROR(ROUND((AVERAGEIFS(DADOS_MercadoBase[Tar_ETE],DADOS_MercadoBase[TipoMercado],$A$3,DADOS_MercadoBase[Subgrupo],$A7,DADOS_MercadoBase[Modalidade],$B7,DADOS_MercadoBase[Classe],$D7,DADOS_MercadoBase[Subclasse],$E7,DADOS_MercadoBase[Detalhe],$F7,DADOS_MercadoBase[Posto],$G7)),2),0) -> 423.28 | K7: =IFERROR(ROUND((AVERAGEIFS(DADOS_MercadoBase[TUSD/KW],DADOS_MercadoBase[TipoMercado],$A$3,DADOS_MercadoBase[Subgrupo],$A7,DADOS_MercadoBase[Modalidade],$B7,DADOS_MercadoBase[Classe],$D7,DADOS_MercadoBase[Subclasse],$E7,DADOS_MercadoBase[Detalhe],$F7,DADOS_MercadoBase[Posto],$G7)),2),0) -> 0 | L7: =IFERROR(ROUND((AVERAGEIFS(DADOS_MercadoBase[TUSD/MWh],DADOS_MercadoBase[TipoMercado],$A$3,DADOS_MercadoBase[Subgrupo],$A7,DADOS_MercadoBase[Modalidade],$B7,DADOS_MercadoBase[Classe],$D7,DADOS_MercadoBase[Subclasse],$E7,DADOS_MercadoBase[Detalhe],$F7,DADOS_MercadoBase[Posto],$G7)),2),0) -> 1413.47 | M7: =IFERROR(ROUND((AVERAGEIFS(DADOS_MercadoBase[TE],DADOS_MercadoBase[TipoMercado],$A$3,DADOS_MercadoBase[Subgrupo],$A7,DADOS_MercadoBase[Modalidade],$B7,DADOS_MercadoBase[Classe],$D7,DADOS_MercadoBase[Subclasse],$E7,DADOS_MercadoBase[Detalhe],$F7,DADOS_MercadoBase[Posto],$G7)),2),0) -> 422.71 | O7: B1 | P7: BRANCA | Q7: RESIDENCIAL | R7: RESIDENCIAL | S7: P | T7: 0 | U7: 1323.58 | V7: 423.28 | W7: 0 | X7: 1413.47 | Y7: 422.71
A8: B1 | B8: Branca | C8: Branca | D8: Residencial | E8: Residencial | F8: Não se aplica | G8: Intermediário | H8: =IFERROR(ROUND((AVERAGEIFS(DADOS_MercadoBase[Tar_PTUSD],DADOS_MercadoBase[TipoMercado],$A$3,DADOS_MercadoBase[Subgrupo],$A8,DADOS_MercadoBase[Modalidade],$B8,DADOS_MercadoBase[Classe],$D8,DADOS_MercadoBase[Subclasse],$E8,DADOS_MercadoBase[Detalhe],$F8,DADOS_MercadoBase[Posto],$G8)),2),0) -> 0 | I8: =IFERROR(ROUND((AVERAGEIFS(DADOS_MercadoBase[Tar_ETUSD],DADOS_MercadoBase[TipoMercado],$A$3,DADOS_MercadoBase[Subgrupo],$A8,DADOS_MercadoBase[Modalidade],$B8,DADOS_MercadoBase[Classe],$D8,DADOS_MercadoBase[Subclasse],$E8,DADOS_MercadoBase[Detalhe],$F8,DADOS_MercadoBase[Posto],$G8)),2),0) -> 838.44 | J8: =IFERROR(ROUND((AVERAGEIFS(DADOS_MercadoBase[Tar_ETE],DADOS_MercadoBase[TipoMercado],$A$3,DADOS_MercadoBase[Subgrupo],$A8,DADOS_MercadoBase[Modalidade],$B8,DADOS_MercadoBase[Classe],$D8,DADOS_MercadoBase[Subclasse],$E8,DADOS_MercadoBase[Detalhe],$F8,DADOS_MercadoBase[Posto],$G8)),2),0) -> 258.24 | K8: =IFERROR(ROUND((AVERAGEIFS(DADOS_MercadoBase[TUSD/KW],DADOS_MercadoBase[TipoMercado],$A$3,DADOS_MercadoBase[Subgrupo],$A8,DADOS_MercadoBase[Modalidade],$B8,DADOS_MercadoBase[Classe],$D8,DADOS_MercadoBase[Subclasse],$E8,DADOS_MercadoBase[Detalhe],$F8,DADOS_MercadoBase[Posto],$G8)),2),0) -> 0 | L8: =IFERROR(ROUND((AVERAGEIFS(DADOS_MercadoBase[TUSD/MWh],DADOS_MercadoBase[TipoMercado],$A$3,DADOS_MercadoBase[Subgrupo],$A8,DADOS_MercadoBase[Modalidade],$B8,DADOS_MercadoBase[Classe],$D8,DADOS_MercadoBase[Subclasse],$E8,DADOS_MercadoBase[Detalhe],$F8,DADOS_MercadoBase[Posto],$G8)),2),0) -> 892.15 | M8: =IFERROR(ROUND((AVERAGEIFS(DADOS_MercadoBase[TE],DADOS_MercadoBase[TipoMercado],$A$3,DADOS_MercadoBase[Subgrupo],$A8,DADOS_MercadoBase[Modalidade],$B8,DADOS_MercadoBase[Classe],$D8,DADOS_MercadoBase[Subclasse],$E8,DADOS_MercadoBase[Detalhe],$F8,DADOS_MercadoBase[Posto],$G8)),2),0) -> 254.3 | S8: INT | T8: 0 | U8: 838.44 | V8: 258.24 | W8: 0 | X8: 892.15 | Y8: 254.3
A9: B1 | B9: Branca | C9: Branca | D9: Residencial | E9: Residencial | F9: Não se aplica | G9: Fora ponta | H9: =IFERROR(ROUND((AVERAGEIFS(DADOS_MercadoBase[Tar_PTUSD],DADOS_MercadoBase[TipoMercado],$A$3,DADOS_MercadoBase[Subgrupo],$A9,DADOS_MercadoBase[Modalidade],$B9,DADOS_MercadoBase[Classe],$D9,DADOS_MercadoBase[Subclasse],$E9,DADOS_MercadoBase[Detalhe],$F9,DADOS_MercadoBase[Posto],$G9)),2),0) -> 0 | I9: =IFERROR(ROUND((AVERAGEIFS(DADOS_MercadoBase[Tar_ETUSD],DADOS_MercadoBase[TipoMercado],$A$3,DADOS_MercadoBase[Subgrupo],$A9,DADOS_MercadoBase[Modalidade],$B9,DADOS_MercadoBase[Classe],$D9,DADOS_MercadoBase[Subclasse],$E9,DADOS_MercadoBase[Detalhe],$F9,DADOS_MercadoBase[Posto],$G9)),2),0) -> 353.3 | J9: =IFERROR(ROUND((AVERAGEIFS(DADOS_MercadoBase[Tar_ETE],DADOS_MercadoBase[TipoMercado],$A$3,DADOS_MercadoBase[Subgrupo],$A9,DADOS_MercadoBase[Modalidade],$B9,DADOS_MercadoBase[Classe],$D9,DADOS_MercadoBase[Subclasse],$E9,DADOS_MercadoBase[Detalhe],$F9,DADOS_MercadoBase[Posto],$G9)),2),0) -> 258.24 | K9: =IFERROR(ROUND((AVERAGEIFS(DADOS_MercadoBase[TUSD/KW],DADOS_MercadoBase[TipoMercado],$A$3,DADOS_MercadoBase[Subgrupo],$A9,DADOS_MercadoBase[Modalidade],$B9,DADOS_MercadoBase[Classe],$D9,DADOS_MercadoBase[Subclasse],$E9,DADOS_MercadoBase[Detalhe],$F9,DADOS_MercadoBase[Posto],$G9)),2),0) -> 0 | L9: =IFERROR(ROUND((AVERAGEIFS(DADOS_MercadoBase[TUSD/MWh],DADOS_MercadoBase[TipoMercado],$A$3,DADOS_MercadoBase[Subgrupo],$A9,DADOS_MercadoBase[Modalidade],$B9,DADOS_MercadoBase[Classe],$D9,DADOS_MercadoBase[Subclasse],$E9,DADOS_MercadoBase[Detalhe],$F9,DADOS_MercadoBase[Posto],$G9)),2),0) -> 370.83 | M9: =IFERROR(ROUND((AVERAGEIFS(DADOS_MercadoBase[TE],DADOS_MercadoBase[TipoMercado],$A$3,DADOS_MercadoBase[Subgrupo],$A9,DADOS_MercadoBase[Modalidade],$B9,DADOS_MercadoBase[Classe],$D9,DADOS_MercadoBase[Subclasse],$E9,DADOS_MercadoBase[Detalhe],$F9,DADOS_MercadoBase[Posto],$G9)),2),0) -> 254.3 | S9: FP | T9: 0 | U9: 353.3 | V9: 258.24 | W9: 0 | X9: 370.83 | Y9: 254.3
A10: B1 | B10: Pré-Pagamento | C10: Pré-Pagamento | D10: Residencial | E10: Residencial | F10: Não se aplica | G10: Não se aplica | H10: =IFERROR(ROUND((AVERAGEIFS(DADOS_MercadoBase[Tar_PTUSD],DADOS_MercadoBase[TipoMercado],$A$3,DADOS_MercadoBase[Subgrupo],$A10,DADOS_MercadoBase[Modalidade],$B10,DADOS_MercadoBase[Classe],$D10,DADOS_MercadoBase[Subclasse],$E10,DADOS_MercadoBase[Detalhe],$F10,DADOS_MercadoBase[Posto],$G10)),2),0) -> 0 | I10: =IFERROR(ROUND((AVERAGEIFS(DADOS_MercadoBase[Tar_ETUSD],DADOS_MercadoBase[TipoMercado],$A$3,DADOS_MercadoBase[Subgrupo],$A10,DADOS_MercadoBase[Modalidade],$B10,DADOS_MercadoBase[Classe],$D10,DADOS_MercadoBase[Subclasse],$E10,DADOS_MercadoBase[Detalhe],$F10,DADOS_MercadoBase[Posto],$G10)),2),0) -> 0 | J10: =IFERROR(ROUND((AVERAGEIFS(DADOS_MercadoBase[Tar_ETE],DADOS_MercadoBase[TipoMercado],$A$3,DADOS_MercadoBase[Subgrupo],$A10,DADOS_MercadoBase[Modalidade],$B10,DADOS_MercadoBase[Classe],$D10,DADOS_MercadoBase[Subclasse],$E10,DADOS_MercadoBase[Detalhe],$F10,DADOS_MercadoBase[Posto],$G10)),2),0) -> 0 | K10: =IFERROR(ROUND((AVERAGEIFS(DADOS_MercadoBase[TUSD/KW],DADOS_MercadoBase[TipoMercado],$A$3,DADOS_MercadoBase[Subgrupo],$A10,DADOS_MercadoBase[Modalidade],$B10,DADOS_MercadoBase[Classe],$D10,DADOS_MercadoBase[Subclasse],$E10,DADOS_MercadoBase[Detalhe],$F10,DADOS_MercadoBase[Posto],$G10)),2),0) -> 0 | L10: =IFERROR(ROUND((AVERAGEIFS(DADOS_MercadoBase[TUSD/MWh],DADOS_MercadoBase[TipoMercado],$A$3,DADOS_MercadoBase[Subgrupo],$A10,DADOS_MercadoBase[Modalidade],$B10,DADOS_MercadoBase[Classe],$D10,DADOS_MercadoBase[Subclasse],$E10,DADOS_MercadoBase[Detalhe],$F10,DADOS_MercadoBase[Posto],$G10)),2),0) -> 0 | M10: =IFERROR(ROUND((AVERAGEIFS(DADOS_MercadoBase[TE],DADOS_MercadoBase[TipoMercado],$A$3,DADOS_MercadoBase[Subgrupo],$A10,DADOS_MercadoBase[Modalidade],$B10,DADOS_MercadoBase[Classe],$D10,DADOS_MercadoBase[Subclasse],$E10,DADOS_MercadoBase[Detalhe],$F10,DADOS_MercadoBase[Posto],$G10)),2),0) -> 0 | P10: PRÉ-PAGAMENTO | Q10: RESIDENCIAL | R10: RESIDENCIAL | S10: NA | T10: 0 | U10: 489.75 | V10: 271.99 | W10: 0 | X10: 517.45 | Y10: 268.33
A11: B1 | B11: Convencional | C11: Convencional | D11: Residencial | E11: Residencial | F11: Não se aplica | G11: Não se aplica | H11: =IFERROR(ROUND((AVERAGEIFS(DADOS_MercadoBase[Tar_PTUSD],DADOS_MercadoBase[TipoMercado],$A$3,DADOS_MercadoBase[Subgrupo],$A11,DADOS_MercadoBase[Modalidade],$B11,DADOS_MercadoBase[Classe],$D11,DADOS_MercadoBase[Subclasse],$E11,DADOS_MercadoBase[Detalhe],$F11,DADOS_MercadoBase[Posto],$G11)),2),0) -> 0 | I11: =IFERROR(ROUND((AVERAGEIFS(DADOS_MercadoBase[Tar_ETUSD],DADOS_MercadoBase[TipoMercado],$A$3,DADOS_MercadoBase[Subgrupo],$A11,DADOS_MercadoBase[Modalidade],$B11,DADOS_MercadoBase[Classe],$D11,DADOS_MercadoBase[Subclasse],$E11,DADOS_MercadoBase[Detalhe],$F11,DADOS_MercadoBase[Posto],$G11)),2),0) -> 489.75 | J11: =IFERROR(ROUND((AVERAGEIFS(DADOS_MercadoBase[Tar_ETE],DADOS_MercadoBase[TipoMercado],$A$3,DADOS_MercadoBase[Subgrupo],$A11,DADOS_MercadoBase[Modalidade],$B11,DADOS_MercadoBase[Classe],$D11,DADOS_MercadoBase[Subclasse],$E11,DADOS_MercadoBase[Detalhe],$F11,DADOS_MercadoBase[Posto],$G11)),2),0) -> 271.99 | K11: =IFERROR(ROUND((AVERAGEIFS(DADOS_MercadoBase[TUSD/KW],DADOS_MercadoBase[TipoMercado],$A$3,DADOS_MercadoBase[Subgrupo],$A11,DADOS_MercadoBase[Modalidade],$B11,DADOS_MercadoBase[Classe],$D11,DADOS_MercadoBase[Subclasse],$E11,DADOS_MercadoBase[Detalhe],$F11,DADOS_MercadoBase[Posto],$G11)),2),0) -> 0 | L11: =IFERROR(ROUND((AVERAGEIFS(DADOS_MercadoBase[TUSD/MWh],DADOS_MercadoBase[TipoMercado],$A$3,DADOS_MercadoBase[Subgrupo],$A11,DADOS_MercadoBase[Modalidade],$B11,DADOS_MercadoBase[Classe],$D11,DADOS_MercadoBase[Subclasse],$E11,DADOS_MercadoBase[Detalhe],$F11,DADOS_MercadoBase[Posto],$G11)),2),0) -> 517.45 | M11: =IFERROR(ROUND((AVERAGEIFS(DADOS_MercadoBase[TE],DADOS_MercadoBase[TipoMercado],$A$3,DADOS_MercadoBase[Subgrupo],$A11,DADOS_MercadoBase[Modalidade],$B11,DADOS_MercadoBase[Classe],$D11,DADOS_MercadoBase[Subclasse],$E11,DADOS_MercadoBase[Detalhe],$F11,DADOS_MercadoBase[Posto],$G11)),2),0) -> 268.33 | P11: CONVENCIONAL | Q11: RESIDENCIAL | R11: RESIDENCIAL | S11: NA | T11: 0 | U11: 489.75 | V11: 271.99 | W11: 0 | X11: 517.45 | Y11: 268.33
A12: B1 | B12: Pré-Pagamento | C12: Pré-Pagamento | D12: Residencial | E12: Baixa Renda | F12: Não se aplica | G12: Não se aplica | H12: =IFERROR(ROUND((AVERAGEIFS(DADOS_MercadoBase[Tar_PTUSD],DADOS_MercadoBase[TipoMercado],$A$3,DADOS_MercadoBase[Subgrupo],$A12,DADOS_MercadoBase[Modalidade],$B12,DADOS_MercadoBase[Classe],$D12,DADOS_MercadoBase[Subclasse],$E12,DADOS_MercadoBase[Detalhe],$F12,DADOS_MercadoBase[Posto],$G12)),2),0) -> 0 | I12: =IFERROR(ROUND((AVERAGEIFS(DADOS_MercadoBase[Tar_ETUSD],DADOS_MercadoBase[TipoMercado],$A$3,DADOS_MercadoBase[Subgrupo],$A12,DADOS_MercadoBase[Modalidade],$B12,DADOS_MercadoBase[Classe],$D12,DADOS_MercadoBase[Subclasse],$E12,DADOS_MercadoBase[Detalhe],$F12,DADOS_MercadoBase[Posto],$G12)),2),0) -> 0 | J12: =IFERROR(ROUND((AVERAGEIFS(DADOS_MercadoBase[Tar_ETE],DADOS_MercadoBase[TipoMercado],$A$3,DADOS_MercadoBase[Subgrupo],$A12,DADOS_MercadoBase[Modalidade],$B12,DADOS_MercadoBase[Classe],$D12,DADOS_MercadoBase[Subclasse],$E12,DADOS_MercadoBase[Detalhe],$F12,DADOS_MercadoBase[Posto],$G12)),2),0) -> 0 | K12: =IFERROR(ROUND((AVERAGEIFS(DADOS_MercadoBase[TUSD/KW],DADOS_MercadoBase[TipoMercado],$A$3,DADOS_MercadoBase[Subgrupo],$A12,DADOS_MercadoBase[Modalidade],$B12,DADOS_MercadoBase[Classe],$D12,DADOS_MercadoBase[Subclasse],$E12,DADOS_MercadoBase[Detalhe],$F12,DADOS_MercadoBase[Posto],$G12)),2),0) -> 0 | L12: =IFERROR(ROUND((AVERAGEIFS(DADOS_MercadoBase[TUSD/MWh],DADOS_MercadoBase[TipoMercado],$A$3,DADOS_MercadoBase[Subgrupo],$A12,DADOS_MercadoBase[Modalidade],$B12,DADOS_MercadoBase[Classe],$D12,DADOS_MercadoBase[Subclasse],$E12,DADOS_MercadoBase[Detalhe],$F12,DADOS_MercadoBase[Posto],$G12)),2),0) -> 0 | M12: =IFERROR(ROUND((AVERAGEIFS(DADOS_MercadoBase[TE],DADOS_MercadoBase[TipoMercado],$A$3,DADOS_MercadoBase[Subgrupo],$A12,DADOS_MercadoBase[Modalidade],$B12,DADOS_MercadoBase[Classe],$D12,DADOS_MercadoBase[Subclasse],$E12,DADOS_MercadoBase[Detalhe],$F12,DADOS_MercadoBase[Posto],$G12)),2),0) -> 0 | P12: PRÉ-PAGAMENTO | Q12: RESIDENCIAL | R12: BAIXA RENDA | S12: NA | T12: 0 | U12: 432.47 | V12: 271.99 | W12: 0 | X12: 461.99 | Y12: 268.33
A13: B1 | B13: Convencional | D13: Residencial | E13: Residencial baixa renda – faixa 01 | F13: Não se aplica | G13: Não se aplica | H13: =IFERROR((AVERAGEIFS(DADOS_MercadoBase[Tar_PTUSD],DADOS_MercadoBase[TipoMercado],$A$3,DADOS_MercadoBase[Subgrupo],$A13,DADOS_MercadoBase[Modalidade],$B13,DADOS_MercadoBase[Classe],$D13,DADOS_MercadoBase[Subclasse],$E13,DADOS_MercadoBase[Detalhe],$F13,DADOS_MercadoBase[Posto],$G13))/ROUND((Mercado!$L$26-CAPA!$C$16)/30+1,0),0) -> 0 | I13: =IFERROR(ROUND((AVERAGEIFS(DADOS_MercadoBase[Tar_ETUSD],DADOS_MercadoBase[TipoMercado],$A$3,DADOS_MercadoBase[Subgrupo],$A13,DADOS_MercadoBase[Modalidade],$B13,DADOS_MercadoBase[Classe],$D13,DADOS_MercadoBase[Subclasse],$E13,DADOS_MercadoBase[Detalhe],$F13,DADOS_MercadoBase[Posto],$G13))/0.35,2),0) -> 432.46 | J13: =IFERROR(ROUND((AVERAGEIFS(DADOS_MercadoBase[Tar_ETE],DADOS_MercadoBase[TipoMercado],$A$3,DADOS_MercadoBase[Subgrupo],$A13,DADOS_MercadoBase[Modalidade],$B13,DADOS_MercadoBase[Classe],$D13,DADOS_MercadoBase[Subclasse],$E13,DADOS_MercadoBase[Detalhe],$F13,DADOS_MercadoBase[Posto],$G13))/0.35,2),1) -> 272 | K13: =IFERROR(AVERAGEIFS(DADOS_MercadoBase[TUSD/KW],DADOS_MercadoBase[TipoMercado],$A$3,DADOS_MercadoBase[Subgrupo],$A13,DADOS_MercadoBase[Modalidade],$B13,DADOS_MercadoBase[Classe],$D13,DADOS_MercadoBase[Subclasse],$E13,DADOS_MercadoBase[Detalhe],$F13,DADOS_MercadoBase[Posto],$G13),0) -> 0 | L13: =IFERROR(AVERAGEIFS(DADOS_MercadoBase[TUSD/MWh],DADOS_MercadoBase[TipoMercado],$A$3,DADOS_MercadoBase[Subgrupo],$A13,DADOS_MercadoBase[Modalidade],$B13,DADOS_MercadoBase[Classe],$D13,DADOS_MercadoBase[Subclasse],$E13,DADOS_MercadoBase[Detalhe],$F13,DADOS_MercadoBase[Posto],$G13),0) -> 461.99 | M13: =IFERROR(AVERAGEIFS(DADOS_MercadoBase[TE],DADOS_MercadoBase[TipoMercado],$A$3,DADOS_MercadoBase[Subgrupo],$A13,DADOS_MercadoBase[Modalidade],$B13,DADOS_MercadoBase[Classe],$D13,DADOS_MercadoBase[Subclasse],$E13,DADOS_MercadoBase[Detalhe],$F13,DADOS_MercadoBase[Posto],$G13),0) -> 268.33 | P13: CONVENCIONAL | Q13: RESIDENCIAL | R13: BAIXA RENDA | S13: NA | T13: 0 | U13: 432.47 | V13: 271.99 | W13: 0 | X13: 461.99 | Y13: 268.33
A14: B1 | B14: Convencional | D14: Residencial | E14: Residencial baixa renda – faixa 02 | F14: Não se aplica | G14: Não se aplica | H14: =IFERROR((AVERAGEIFS(DADOS_MercadoBase[Tar_PTUSD],DADOS_MercadoBase[TipoMercado],$A$3,DADOS_MercadoBase[Subgrupo],$A14,DADOS_MercadoBase[Modalidade],$B14,DADOS_MercadoBase[Classe],$D14,DADOS_MercadoBase[Subclasse],$E14,DADOS_MercadoBase[Detalhe],$F14,DADOS_MercadoBase[Posto],$G14))/ROUND((Mercado!$L$26-CAPA!$C$16)/30+1,0),0) -> 0 | I14: =IFERROR(ROUND((AVERAGEIFS(DADOS_MercadoBase[Tar_ETUSD],DADOS_MercadoBase[TipoMercado],$A$3,DADOS_MercadoBase[Subgrupo],$A14,DADOS_MercadoBase[Modalidade],$B14,DADOS_MercadoBase[Classe],$D14,DADOS_MercadoBase[Subclasse],$E14,DADOS_MercadoBase[Detalhe],$F14,DADOS_MercadoBase[Posto],$G14))/0.6,2),0) -> 432.47 | J14: =ROUND((AVERAGEIFS(DADOS_MercadoBase[Tar_ETE],DADOS_MercadoBase[TipoMercado],$A$3,DADOS_MercadoBase[Subgrupo],$A14,DADOS_MercadoBase[Modalidade],$B14,DADOS_MercadoBase[Classe],$D14,DADOS_MercadoBase[Subclasse],$E14,DADOS_MercadoBase[Detalhe],$F14,DADOS_MercadoBase[Posto],$G14))/0.6,2) -> 271.98 | K14: =IFERROR((AVERAGEIFS(DADOS_MercadoBase[TUSD/KW],DADOS_MercadoBase[TipoMercado],$A$3,DADOS_MercadoBase[Subgrupo],$A14,DADOS_MercadoBase[Modalidade],$B14,DADOS_MercadoBase[Classe],$D14,DADOS_MercadoBase[Subclasse],$E14,DADOS_MercadoBase[Detalhe],$F14,DADOS_MercadoBase[Posto],$G14)),0) -> 0 | L14: =IFERROR(AVERAGEIFS(DADOS_MercadoBase[TUSD/MWh],DADOS_MercadoBase[TipoMercado],$A$3,DADOS_MercadoBase[Subgrupo],$A14,DADOS_MercadoBase[Modalidade],$B14,DADOS_MercadoBase[Classe],$D14,DADOS_MercadoBase[Subclasse],$E14,DADOS_MercadoBase[Detalhe],$F14,DADOS_MercadoBase[Posto],$G14),0) -> 461.99 | M14: =IFERROR(AVERAGEIFS(DADOS_MercadoBase[TE],DADOS_MercadoBase[TipoMercado],$A$3,DADOS_MercadoBase[Subgrupo],$A14,DADOS_MercadoBase[Modalidade],$B14,DADOS_MercadoBase[Classe],$D14,DADOS_MercadoBase[Subclasse],$E14,DADOS_MercadoBase[Detalhe],$F14,DADOS_MercadoBase[Posto],$G14),0) -> 268.33 | O14: B2 | P14: BRANCA | Q14: RURAL | R14: NÃO SE APLICA | S14: P | T14: 0 | U14: 1190.72 | V14: 397.89 | W14: 0 | X14: 1271.24 | Y14: 397.35
A15: B1 | B15: Convencional | D15: Residencial | E15: Residencial baixa renda – faixa 03 | F15: Não se aplica | G15: Não se aplica | H15: =IFERROR((AVERAGEIFS(DADOS_MercadoBase[Tar_PTUSD],DADOS_MercadoBase[TipoMercado],$A$3,DADOS_MercadoBase[Subgrupo],$A15,DADOS_MercadoBase[Modalidade],$B15,DADOS_MercadoBase[Classe],$D15,DADOS_MercadoBase[Subclasse],$E15,DADOS_MercadoBase[Detalhe],$F15,DADOS_MercadoBase[Posto],$G15))/ROUND((Mercado!$L$26-CAPA!$C$16)/30+1,0),0) -> 0 | I15: =ROUND((AVERAGEIFS(DADOS_MercadoBase[Tar_ETUSD],DADOS_MercadoBase[TipoMercado],$A$3,DADOS_MercadoBase[Subgrupo],$A15,DADOS_MercadoBase[Modalidade],$B15,DADOS_MercadoBase[Classe],$D15,DADOS_MercadoBase[Subclasse],$E15,DADOS_MercadoBase[Detalhe],$F15,DADOS_MercadoBase[Posto],$G15))/0.9,2) -> 432.47 | J15: =ROUND((AVERAGEIFS(DADOS_MercadoBase[Tar_ETE],DADOS_MercadoBase[TipoMercado],$A$3,DADOS_MercadoBase[Subgrupo],$A15,DADOS_MercadoBase[Modalidade],$B15,DADOS_MercadoBase[Classe],$D15,DADOS_MercadoBase[Subclasse],$E15,DADOS_MercadoBase[Detalhe],$F15,DADOS_MercadoBase[Posto],$G15))/0.9,2) -> 271.99 | K15: =IFERROR(AVERAGEIFS(DADOS_MercadoBase[TUSD/KW],DADOS_MercadoBase[TipoMercado],$A$3,DADOS_MercadoBase[Subgrupo],$A15,DADOS_MercadoBase[Modalidade],$B15,DADOS_MercadoBase[Classe],$D15,DADOS_MercadoBase[Subclasse],$E15,DADOS_MercadoBase[Detalhe],$F15,DADOS_MercadoBase[Posto],$G15),0) -> 0 | L15: =IFERROR(AVERAGEIFS(DADOS_MercadoBase[TUSD/MWh],DADOS_MercadoBase[TipoMercado],$A$3,DADOS_MercadoBase[Subgrupo],$A15,DADOS_MercadoBase[Modalidade],$B15,DADOS_MercadoBase[Classe],$D15,DADOS_MercadoBase[Subclasse],$E15,DADOS_MercadoBase[Detalhe],$F15,DADOS_MercadoBase[Posto],$G15),0) -> 461.99 | M15: =IFERROR(AVERAGEIFS(DADOS_MercadoBase[TE],DADOS_MercadoBase[TipoMercado],$A$3,DADOS_MercadoBase[Subgrupo],$A15,DADOS_MercadoBase[Modalidade],$B15,DADOS_MercadoBase[Classe],$D15,DADOS_MercadoBase[Subclasse],$E15,DADOS_MercadoBase[Detalhe],$F15,DADOS_MercadoBase[Posto],$G15),0) -> 268.33 | S15: INT | T15: 0 | U15: 756.07 | V15: 242.74 | W15: 0 | X15: 804.17 | Y15: 239.04
A16: B1 | B16: Convencional | D16: Residencial | E16: Residencial baixa renda – faixa 04 | F16: Não se aplica | G16: Não se aplica | H16: =IFERROR((AVERAGEIFS(DADOS_MercadoBase[Tar_PTUSD],DADOS_MercadoBase[TipoMercado],$A$3,DADOS_MercadoBase[Subgrupo],$A16,DADOS_MercadoBase[Modalidade],$B16,DADOS_MercadoBase[Classe],$D16,DADOS_MercadoBase[Subclasse],$E16,DADOS_MercadoBase[Detalhe],$F16,DADOS_MercadoBase[Posto],$G16))/ROUND((Mercado!$L$26-CAPA!$C$16)/30+1,0),0) -> 0 | I16: =ROUND((AVERAGEIFS(DADOS_MercadoBase[Tar_ETUSD],DADOS_MercadoBase[TipoMercado],$A$3,DADOS_MercadoBase[Subgrupo],$A16,DADOS_MercadoBase[Modalidade],$B16,DADOS_MercadoBase[Classe],$D16,DADOS_MercadoBase[Subclasse],$E16,DADOS_MercadoBase[Detalhe],$F16,DADOS_MercadoBase[Posto],$G16)),2) -> 432.47 | J16: =ROUND((AVERAGEIFS(DADOS_MercadoBase[Tar_ETE],DADOS_MercadoBase[TipoMercado],$A$3,DADOS_MercadoBase[Subgrupo],$A16,DADOS_MercadoBase[Modalidade],$B16,DADOS_MercadoBase[Classe],$D16,DADOS_MercadoBase[Subclasse],$E16,DADOS_MercadoBase[Detalhe],$F16,DADOS_MercadoBase[Posto],$G16)),2) -> 271.99 | K16: =IFERROR(AVERAGEIFS(DADOS_MercadoBase[TUSD/KW],DADOS_MercadoBase[TipoMercado],$A$3,DADOS_MercadoBase[Subgrupo],$A16,DADOS_MercadoBase[Modalidade],$B16,DADOS_MercadoBase[Classe],$D16,DADOS_MercadoBase[Subclasse],$E16,DADOS_MercadoBase[Detalhe],$F16,DADOS_MercadoBase[Posto],$G16),0) -> 0 | L16: =IFERROR(AVERAGEIFS(DADOS_MercadoBase[TUSD/MWh],DADOS_MercadoBase[TipoMercado],$A$3,DADOS_MercadoBase[Subgrupo],$A16,DADOS_MercadoBase[Modalidade],$B16,DADOS_MercadoBase[Classe],$D16,DADOS_MercadoBase[Subclasse],$E16,DADOS_MercadoBase[Detalhe],$F16,DADOS_MercadoBase[Posto],$G16),0) -> 461.99 | M16: =IFERROR(AVERAGEIFS(DADOS_MercadoBase[TE],DADOS_MercadoBase[TipoMercado],$A$3,DADOS_MercadoBase[Subgrupo],$A16,DADOS_MercadoBase[Modalidade],$B16,DADOS_MercadoBase[Classe],$D16,DADOS_MercadoBase[Subclasse],$E16,DADOS_MercadoBase[Detalhe],$F16,DADOS_MercadoBase[Posto],$G16),0) -> 268.33 | S16: FP | T16: 0 | U16: 321.42 | V16: 242.74 | W16: 0 | X16: 337.09 | Y16: 239.04
A17: B2 | B17: Branca | C17: Branca | D17: Rural | E17: Não se aplica | F17: Não se aplica | G17: Ponta | H17: =IFERROR(ROUND((AVERAGEIFS(DADOS_MercadoBase[Tar_PTUSD],DADOS_MercadoBase[TipoMercado],$A$3,DADOS_MercadoBase[Subgrupo],$A17,DADOS_MercadoBase[Modalidade],$B17,DADOS_MercadoBase[Classe],$D17,DADOS_MercadoBase[Subclasse],$E17,DADOS_MercadoBase[Detalhe],$F17,DADOS_MercadoBase[Posto],$G17)),2),0) -> 0 | I17: =IFERROR(ROUND((AVERAGEIFS(DADOS_MercadoBase[Tar_ETUSD],DADOS_MercadoBase[TipoMercado],$A$3,DADOS_MercadoBase[Subgrupo],$A17,DADOS_MercadoBase[Modalidade],$B17,DADOS_MercadoBase[Classe],$D17,DADOS_MercadoBase[Subclasse],$E17,DADOS_MercadoBase[Detalhe],$F17,DADOS_MercadoBase[Posto],$G17)),2),0) -> 1190.72 | J17: =IFERROR(ROUND((AVERAGEIFS(DADOS_MercadoBase[Tar_ETE],DADOS_MercadoBase[TipoMercado],$A$3,DADOS_MercadoBase[Subgrupo],$A17,DADOS_MercadoBase[Modalidade],$B17,DADOS_MercadoBase[Classe],$D17,DADOS_MercadoBase[Subclasse],$E17,DADOS_MercadoBase[Detalhe],$F17,DADOS_MercadoBase[Posto],$G17)),2),0) -> 397.89 | K17: =IFERROR(ROUND((AVERAGEIFS(DADOS_MercadoBase[TUSD/KW],DADOS_MercadoBase[TipoMercado],$A$3,DADOS_MercadoBase[Subgrupo],$A17,DADOS_MercadoBase[Modalidade],$B17,DADOS_MercadoBase[Classe],$D17,DADOS_MercadoBase[Subclasse],$E17,DADOS_MercadoBase[Detalhe],$F17,DADOS_MercadoBase[Posto],$G17)),2),0) -> 0 | L17: =IFERROR(ROUND((AVERAGEIFS(DADOS_MercadoBase[TUSD/MWh],DADOS_MercadoBase[TipoMercado],$A$3,DADOS_MercadoBase[Subgrupo],$A17,DADOS_MercadoBase[Modalidade],$B17,DADOS_MercadoBase[Classe],$D17,DADOS_MercadoBase[Subclasse],$E17,DADOS_MercadoBase[Detalhe],$F17,DADOS_MercadoBase[Posto],$G17)),2),0) -> 1271.24 | M17: =IFERROR(ROUND((AVERAGEIFS(DADOS_MercadoBase[TE],DADOS_MercadoBase[TipoMercado],$A$3,DADOS_MercadoBase[Subgrupo],$A17,DADOS_MercadoBase[Modalidade],$B17,DADOS_MercadoBase[Classe],$D17,DADOS_MercadoBase[Subclasse],$E17,DADOS_MercadoBase[Detalhe],$F17,DADOS_MercadoBase[Posto],$G17)),2),0) -> 397.35 | P17: PRÉ-PAGAMENTO | Q17: RURAL | R17: NÃO SE APLICA | S17: NA | T17: 0 | U17: 460.36 | V17: 255.67 | W17: 0 | X17: 486.4 | Y17: 252.23
A18: B2 | B18: Branca | C18: Branca | D18: Rural | E18: Não se aplica | F18: Não se aplica | G18: Intermediário | H18: =IFERROR(ROUND((AVERAGEIFS(DADOS_MercadoBase[Tar_PTUSD],DADOS_MercadoBase[TipoMercado],$A$3,DADOS_MercadoBase[Subgrupo],$A18,DADOS_MercadoBase[Modalidade],$B18,DADOS_MercadoBase[Classe],$D18,DADOS_MercadoBase[Subclasse],$E18,DADOS_MercadoBase[Detalhe],$F18,DADOS_MercadoBase[Posto],$G18)),2),0) -> 0 | I18: =IFERROR(ROUND((AVERAGEIFS(DADOS_MercadoBase[Tar_ETUSD],DADOS_MercadoBase[TipoMercado],$A$3,DADOS_MercadoBase[Subgrupo],$A18,DADOS_MercadoBase[Modalidade],$B18,DADOS_MercadoBase[Classe],$D18,DADOS_MercadoBase[Subclasse],$E18,DADOS_MercadoBase[Detalhe],$F18,DADOS_MercadoBase[Posto],$G18)),2),0) -> 756.07 | J18: =IFERROR(ROUND((AVERAGEIFS(DADOS_MercadoBase[Tar_ETE],DADOS_MercadoBase[TipoMercado],$A$3,DADOS_MercadoBase[Subgrupo],$A18,DADOS_MercadoBase[Modalidade],$B18,DADOS_MercadoBase[Classe],$D18,DADOS_MercadoBase[Subclasse],$E18,DADOS_MercadoBase[Detalhe],$F18,DADOS_MercadoBase[Posto],$G18)),2),0) -> 242.74 | K18: =IFERROR(ROUND((AVERAGEIFS(DADOS_MercadoBase[TUSD/KW],DADOS_MercadoBase[TipoMercado],$A$3,DADOS_MercadoBase[Subgrupo],$A18,DADOS_MercadoBase[Modalidade],$B18,DADOS_MercadoBase[Classe],$D18,DADOS_MercadoBase[Subclasse],$E18,DADOS_MercadoBase[Detalhe],$F18,DADOS_MercadoBase[Posto],$G18)),2),0) -> 0 | L18: =IFERROR(ROUND((AVERAGEIFS(DADOS_MercadoBase[TUSD/MWh],DADOS_MercadoBase[TipoMercado],$A$3,DADOS_MercadoBase[Subgrupo],$A18,DADOS_MercadoBase[Modalidade],$B18,DADOS_MercadoBase[Classe],$D18,DADOS_MercadoBase[Subclasse],$E18,DADOS_MercadoBase[Detalhe],$F18,DADOS_MercadoBase[Posto],$G18)),2),0) -> 804.17 | M18: =IFERROR(ROUND((AVERAGEIFS(DADOS_MercadoBase[TE],DADOS_MercadoBase[TipoMercado],$A$3,DADOS_MercadoBase[Subgrupo],$A18,DADOS_MercadoBase[Modalidade],$B18,DADOS_MercadoBase[Classe],$D18,DADOS_MercadoBase[Subclasse],$E18,DADOS_MercadoBase[Detalhe],$F18,DADOS_MercadoBase[Posto],$G18)),2),0) -> 239.04 | P18: CONVENCIONAL | Q18: RURAL | R18: NÃO SE APLICA | S18: NA | T18: 0 | U18: 460.36 | V18: 255.67 | W18: 0 | X18: 486.4 | Y18: 252.23
A19: B2 | B19: Branca | C19: Branca | D19: Rural | E19: Não se aplica | F19: Não se aplica | G19: Fora ponta | H19: =IFERROR(ROUND((AVERAGEIFS(DADOS_MercadoBase[Tar_PTUSD],DADOS_MercadoBase[TipoMercado],$A$3,DADOS_MercadoBase[Subgrupo],$A19,DADOS_MercadoBase[Modalidade],$B19,DADOS_MercadoBase[Classe],$D19,DADOS_MercadoBase[Subclasse],$E19,DADOS_MercadoBase[Detalhe],$F19,DADOS_MercadoBase[Posto],$G19)),2),0) -> 0 | I19: =IFERROR(ROUND((AVERAGEIFS(DADOS_MercadoBase[Tar_ETUSD],DADOS_MercadoBase[TipoMercado],$A$3,DADOS_MercadoBase[Subgrupo],$A19,DADOS_MercadoBase[Modalidade],$B19,DADOS_MercadoBase[Classe],$D19,DADOS_MercadoBase[Subclasse],$E19,DADOS_MercadoBase[Detalhe],$F19,DADOS_MercadoBase[Posto],$G19)),2),0) -> 321.42 | J19: =IFERROR(ROUND((AVERAGEIFS(DADOS_MercadoBase[Tar_ETE],DADOS_MercadoBase[TipoMercado],$A$3,DADOS_MercadoBase[Subgrupo],$A19,DADOS_MercadoBase[Modalidade],$B19,DADOS_MercadoBase[Classe],$D19,DADOS_MercadoBase[Subclasse],$E19,DADOS_MercadoBase[Detalhe],$F19,DADOS_MercadoBase[Posto],$G19)),2),0) -> 242.74 | K19: =IFERROR(ROUND((AVERAGEIFS(DADOS_MercadoBase[TUSD/KW],DADOS_MercadoBase[TipoMercado],$A$3,DADOS_MercadoBase[Subgrupo],$A19,DADOS_MercadoBase[Modalidade],$B19,DADOS_MercadoBase[Classe],$D19,DADOS_MercadoBase[Subclasse],$E19,DADOS_MercadoBase[Detalhe],$F19,DADOS_MercadoBase[Posto],$G19)),2),0) -> 0 | L19: =IFERROR(ROUND((AVERAGEIFS(DADOS_MercadoBase[TUSD/MWh],DADOS_MercadoBase[TipoMercado],$A$3,DADOS_MercadoBase[Subgrupo],$A19,DADOS_MercadoBase[Modalidade],$B19,DADOS_MercadoBase[Classe],$D19,DADOS_MercadoBase[Subclasse],$E19,DADOS_MercadoBase[Detalhe],$F19,DADOS_MercadoBase[Posto],$G19)),2),0) -> 337.09 | M19: =IFERROR(ROUND((AVERAGEIFS(DADOS_MercadoBase[TE],DADOS_MercadoBase[TipoMercado],$A$3,DADOS_MercadoBase[Subgrupo],$A19,DADOS_MercadoBase[Modalidade],$B19,DADOS_MercadoBase[Classe],$D19,DADOS_MercadoBase[Subclasse],$E19,DADOS_MercadoBase[Detalhe],$F19,DADOS_MercadoBase[Posto],$G19)),2),0) -> 239.04 | P19: BRANCA | Q19: RURAL | R19: COOPERATIVA DE ELETRIFICAÇÃO RURAL | S19: P | T19: 0 | U19: 1190.72 | V19: 397.89 | W19: 0 | X19: 1271.24 | Y19: 397.35
A20: B2 | B20: Pré-Pagamento | C20: Pré-Pagamento | D20: Rural | E20: Não se aplica | F20: Não se aplica | G20: Não se aplica | H20: =IFERROR(ROUND((AVERAGEIFS(DADOS_MercadoBase[Tar_PTUSD],DADOS_MercadoBase[TipoMercado],$A$3,DADOS_MercadoBase[Subgrupo],$A20,DADOS_MercadoBase[Modalidade],$B20,DADOS_MercadoBase[Classe],$D20,DADOS_MercadoBase[Subclasse],$E20,DADOS_MercadoBase[Detalhe],$F20,DADOS_MercadoBase[Posto],$G20)),2),0) -> 0 | I20: =IFERROR(ROUND((AVERAGEIFS(DADOS_MercadoBase[Tar_ETUSD],DADOS_MercadoBase[TipoMercado],$A$3,DADOS_MercadoBase[Subgrupo],$A20,DADOS_MercadoBase[Modalidade],$B20,DADOS_MercadoBase[Classe],$D20,DADOS_MercadoBase[Subclasse],$E20,DADOS_MercadoBase[Detalhe],$F20,DADOS_MercadoBase[Posto],$G20)),2),0) -> 0 | J20: =IFERROR(ROUND((AVERAGEIFS(DADOS_MercadoBase[Tar_ETE],DADOS_MercadoBase[TipoMercado],$A$3,DADOS_MercadoBase[Subgrupo],$A20,DADOS_MercadoBase[Modalidade],$B20,DADOS_MercadoBase[Classe],$D20,DADOS_MercadoBase[Subclasse],$E20,DADOS_MercadoBase[Detalhe],$F20,DADOS_MercadoBase[Posto],$G20)),2),0) -> 0 | K20: =IFERROR(ROUND((AVERAGEIFS(DADOS_MercadoBase[TUSD/KW],DADOS_MercadoBase[TipoMercado],$A$3,DADOS_MercadoBase[Subgrupo],$A20,DADOS_MercadoBase[Modalidade],$B20,DADOS_MercadoBase[Classe],$D20,DADOS_MercadoBase[Subclasse],$E20,DADOS_MercadoBase[Detalhe],$F20,DADOS_MercadoBase[Posto],$G20)),2),0) -> 0 | L20: =IFERROR(ROUND((AVERAGEIFS(DADOS_MercadoBase[TUSD/MWh],DADOS_MercadoBase[TipoMercado],$A$3,DADOS_MercadoBase[Subgrupo],$A20,DADOS_MercadoBase[Modalidade],$B20,DADOS_MercadoBase[Classe],$D20,DADOS_MercadoBase[Subclasse],$E20,DADOS_MercadoBase[Detalhe],$F20,DADOS_MercadoBase[Posto],$G20)),2),0) -> 0 | M20: =IFERROR(ROUND((AVERAGEIFS(DADOS_MercadoBase[TE],DADOS_MercadoBase[TipoMercado],$A$3,DADOS_MercadoBase[Subgrupo],$A20,DADOS_MercadoBase[Modalidade],$B20,DADOS_MercadoBase[Classe],$D20,DADOS_MercadoBase[Subclasse],$E20,DADOS_MercadoBase[Detalhe],$F20,DADOS_MercadoBase[Posto],$G20)),2),0) -> 0 | S20: INT | T20: 0 | U20: 756.07 | V20: 242.74 | W20: 0 | X20: 804.17 | Y20: 239.04
A21: B2 | B21: Convencional | C21: Convencional | D21: Rural | E21: Não se aplica | F21: Não se aplica | G21: Não se aplica | H21: =IFERROR(ROUND((AVERAGEIFS(DADOS_MercadoBase[Tar_PTUSD],DADOS_MercadoBase[TipoMercado],$A$3,DADOS_MercadoBase[Subgrupo],$A21,DADOS_MercadoBase[Modalidade],$B21,DADOS_MercadoBase[Classe],$D21,DADOS_MercadoBase[Subclasse],$E21,DADOS_MercadoBase[Detalhe],$F21,DADOS_MercadoBase[Posto],$G21)),2),0) -> 0 | I21: =IFERROR(ROUND((AVERAGEIFS(DADOS_MercadoBase[Tar_ETUSD],DADOS_MercadoBase[TipoMercado],$A$3,DADOS_MercadoBase[Subgrupo],$A21,DADOS_MercadoBase[Modalidade],$B21,DADOS_MercadoBase[Classe],$D21,DADOS_MercadoBase[Subclasse],$E21,DADOS_MercadoBase[Detalhe],$F21,DADOS_MercadoBase[Posto],$G21)),2),0) -> 460.36 | J21: =IFERROR(ROUND((AVERAGEIFS(DADOS_MercadoBase[Tar_ETE],DADOS_MercadoBase[TipoMercado],$A$3,DADOS_MercadoBase[Subgrupo],$A21,DADOS_MercadoBase[Modalidade],$B21,DADOS_MercadoBase[Classe],$D21,DADOS_MercadoBase[Subclasse],$E21,DADOS_MercadoBase[Detalhe],$F21,DADOS_MercadoBase[Posto],$G21)),2),0) -> 255.67 | K21: =IFERROR(ROUND((AVERAGEIFS(DADOS_MercadoBase[TUSD/KW],DADOS_MercadoBase[TipoMercado],$A$3,DADOS_MercadoBase[Subgrupo],$A21,DADOS_MercadoBase[Modalidade],$B21,DADOS_MercadoBase[Classe],$D21,DADOS_MercadoBase[Subclasse],$E21,DADOS_MercadoBase[Detalhe],$F21,DADOS_MercadoBase[Posto],$G21)),2),0) -> 0 | L21: =IFERROR(ROUND((AVERAGEIFS(DADOS_MercadoBase[TUSD/MWh],DADOS_MercadoBase[TipoMercado],$A$3,DADOS_MercadoBase[Subgrupo],$A21,DADOS_MercadoBase[Modalidade],$B21,DADOS_MercadoBase[Classe],$D21,DADOS_MercadoBase[Subclasse],$E21,DADOS_MercadoBase[Detalhe],$F21,DADOS_MercadoBase[Posto],$G21)),2),0) -> 517.45 | M21: =IFERROR(ROUND((AVERAGEIFS(DADOS_MercadoBase[TE],DADOS_MercadoBase[TipoMercado],$A$3,DADOS_MercadoBase[Subgrupo],$A21,DADOS_MercadoBase[Modalidade],$B21,DADOS_MercadoBase[Classe],$D21,DADOS_MercadoBase[Subclasse],$E21,DADOS_MercadoBase[Detalhe],$F21,DADOS_MercadoBase[Posto],$G21)),2),0) -> 268.33 | S21: FP | T21: 0 | U21: 321.42 | V21: 242.74 | W21: 0 | X21: 337.09 | Y21: 239.04
A22: B2 | B22: Convencional | C22: Convencional | D22: Rural | E22: Agropecuária rural | F22: IRRIG./AQUIC. PR | G22: Não se aplica | H22: =IFERROR(ROUND((AVERAGEIFS(DADOS_MercadoBase[Tar_PTUSD],DADOS_MercadoBase[TipoMercado],$A$3,DADOS_MercadoBase[Subgrupo],$A22,DADOS_MercadoBase[Modalidade],$B22,DADOS_MercadoBase[Classe],$D22,DADOS_MercadoBase[Subclasse],$E22,DADOS_MercadoBase[Detalhe],$F22,DADOS_MercadoBase[Posto],$G22)),2),0) -> 0 | I22: =IFERROR(ROUND((AVERAGEIFS(DADOS_MercadoBase[Tar_ETUSD],DADOS_MercadoBase[TipoMercado],$A$3,DADOS_MercadoBase[Subgrupo],$A22,DADOS_MercadoBase[Modalidade],$B22,DADOS_MercadoBase[Classe],$D22,DADOS_MercadoBase[Subclasse],$E22,DADOS_MercadoBase[Detalhe],$F22,DADOS_MercadoBase[Posto],$G22)),2),0) -> 460.36 | J22: =IFERROR(ROUND((AVERAGEIFS(DADOS_MercadoBase[Tar_ETE],DADOS_MercadoBase[TipoMercado],$A$3,DADOS_MercadoBase[Subgrupo],$A22,DADOS_MercadoBase[Modalidade],$B22,DADOS_MercadoBase[Classe],$D22,DADOS_MercadoBase[Subclasse],$E22,DADOS_MercadoBase[Detalhe],$F22,DADOS_MercadoBase[Posto],$G22)),2),0) -> 255.67 | K22: =IFERROR(ROUND((AVERAGEIFS(DADOS_MercadoBase[TUSD/KW],DADOS_MercadoBase[TipoMercado],$A$3,DADOS_MercadoBase[Subgrupo],$A22,DADOS_MercadoBase[Modalidade],$B22,DADOS_MercadoBase[Classe],$D22,DADOS_MercadoBase[Subclasse],$E22,DADOS_MercadoBase[Detalhe],$F22,DADOS_MercadoBase[Posto],$G22)),2),0) -> 0 | L22: =IFERROR(ROUND((AVERAGEIFS(DADOS_MercadoBase[TUSD/MWh],DADOS_MercadoBase[TipoMercado],$A$3,DADOS_MercadoBase[Subgrupo],$A22,DADOS_MercadoBase[Modalidade],$B22,DADOS_MercadoBase[Classe],$D22,DADOS_MercadoBase[Subclasse],$E22,DADOS_MercadoBase[Detalhe],$F22,DADOS_MercadoBase[Posto],$G22)),2),0) -> 517.45 | M22: =IFERROR(ROUND((AVERAGEIFS(DADOS_MercadoBase[TE],DADOS_MercadoBase[TipoMercado],$A$3,DADOS_MercadoBase[Subgrupo],$A22,DADOS_MercadoBase[Modalidade],$B22,DADOS_MercadoBase[Classe],$D22,DADOS_MercadoBase[Subclasse],$E22,DADOS_MercadoBase[Detalhe],$F22,DADOS_MercadoBase[Posto],$G22)),2),0) -> 268.33 | P22: PRÉ-PAGAMENTO | Q22: RURAL | R22: COOPERATIVA DE ELETRIFICAÇÃO RURAL | S22: NA | T22: 0 | U22: 460.36 | V22: 255.67 | W22: 0 | X22: 486.4 | Y22: 252.23
A23: B2 | B23: Convencional | C23: Convencional | D23: Rural | E23: Agropecuária rural | F23: IRRIG./AQUIC. | G23: Não se aplica | H23: =IFERROR(ROUND((AVERAGEIFS(DADOS_MercadoBase[Tar_PTUSD],DADOS_MercadoBase[TipoMercado],$A$3,DADOS_MercadoBase[Subgrupo],$A23,DADOS_MercadoBase[Modalidade],$B23,DADOS_MercadoBase[Classe],$D23,DADOS_MercadoBase[Subclasse],$E23,DADOS_MercadoBase[Detalhe],$F23,DADOS_MercadoBase[Posto],$G23)),2),0) -> 0 | I23: =IFERROR(ROUND((AVERAGEIFS(DADOS_MercadoBase[Tar_ETUSD],DADOS_MercadoBase[TipoMercado],$A$3,DADOS_MercadoBase[Subgrupo],$A23,DADOS_MercadoBase[Modalidade],$B23,DADOS_MercadoBase[Classe],$D23,DADOS_MercadoBase[Subclasse],$E23,DADOS_MercadoBase[Detalhe],$F23,DADOS_MercadoBase[Posto],$G23)),2),0) -> 460.36 | J23: =IFERROR(ROUND((AVERAGEIFS(DADOS_MercadoBase[Tar_ETE],DADOS_MercadoBase[TipoMercado],$A$3,DADOS_MercadoBase[Subgrupo],$A23,DADOS_MercadoBase[Modalidade],$B23,DADOS_MercadoBase[Classe],$D23,DADOS_MercadoBase[Subclasse],$E23,DADOS_MercadoBase[Detalhe],$F23,DADOS_MercadoBase[Posto],$G23)),2),0) -> 255.67 | K23: =IFERROR(ROUND((AVERAGEIFS(DADOS_MercadoBase[TUSD/KW],DADOS_MercadoBase[TipoMercado],$A$3,DADOS_MercadoBase[Subgrupo],$A23,DADOS_MercadoBase[Modalidade],$B23,DADOS_MercadoBase[Classe],$D23,DADOS_MercadoBase[Subclasse],$E23,DADOS_MercadoBase[Detalhe],$F23,DADOS_MercadoBase[Posto],$G23)),2),0) -> 0 | L23: =IFERROR(ROUND((AVERAGEIFS(DADOS_MercadoBase[TUSD/MWh],DADOS_MercadoBase[TipoMercado],$A$3,DADOS_MercadoBase[Subgrupo],$A23,DADOS_MercadoBase[Modalidade],$B23,DADOS_MercadoBase[Classe],$D23,DADOS_MercadoBase[Subclasse],$E23,DADOS_MercadoBase[Detalhe],$F23,DADOS_MercadoBase[Posto],$G23)),2),0) -> 517.45 | M23: =IFERROR(ROUND((AVERAGEIFS(DADOS_MercadoBase[TE],DADOS_MercadoBase[TipoMercado],$A$3,DADOS_MercadoBase[Subgrupo],$A23,DADOS_MercadoBase[Modalidade],$B23,DADOS_MercadoBase[Classe],$D23,DADOS_MercadoBase[Subclasse],$E23,DADOS_MercadoBase[Detalhe],$F23,DADOS_MercadoBase[Posto],$G23)),2),0) -> 268.33 | P23: CONVENCIONAL | Q23: RURAL | R23: COOPERATIVA DE ELETRIFICAÇÃO RURAL | S23: NA | T23: 0 | U23: 460.36 | V23: 255.67 | W23: 0 | X23: 486.4 | Y23: 252.23
A24: B2 | B24: Convencional | C24: Convencional | D24: Rural | E24: Aquicultura | F24: IRRIG./AQUIC. | G24: Não se aplica | H24: =IFERROR(ROUND((AVERAGEIFS(DADOS_MercadoBase[Tar_PTUSD],DADOS_MercadoBase[TipoMercado],$A$3,DADOS_MercadoBase[Subgrupo],$A24,DADOS_MercadoBase[Modalidade],$B24,DADOS_MercadoBase[Classe],$D24,DADOS_MercadoBase[Subclasse],$E24,DADOS_MercadoBase[Detalhe],$F24,DADOS_MercadoBase[Posto],$G24)),2),0) -> 0 | I24: =IFERROR(ROUND((AVERAGEIFS(DADOS_MercadoBase[Tar_ETUSD],DADOS_MercadoBase[TipoMercado],$A$3,DADOS_MercadoBase[Subgrupo],$A24,DADOS_MercadoBase[Modalidade],$B24,DADOS_MercadoBase[Classe],$D24,DADOS_MercadoBase[Subclasse],$E24,DADOS_MercadoBase[Detalhe],$F24,DADOS_MercadoBase[Posto],$G24)),2),0) -> 460.36 | J24: =IFERROR(ROUND((AVERAGEIFS(DADOS_MercadoBase[Tar_ETE],DADOS_MercadoBase[TipoMercado],$A$3,DADOS_MercadoBase[Subgrupo],$A24,DADOS_MercadoBase[Modalidade],$B24,DADOS_MercadoBase[Classe],$D24,DADOS_MercadoBase[Subclasse],$E24,DADOS_MercadoBase[Detalhe],$F24,DADOS_MercadoBase[Posto],$G24)),2),0) -> 255.67 | K24: =IFERROR(ROUND((AVERAGEIFS(DADOS_MercadoBase[TUSD/KW],DADOS_MercadoBase[TipoMercado],$A$3,DADOS_MercadoBase[Subgrupo],$A24,DADOS_MercadoBase[Modalidade],$B24,DADOS_MercadoBase[Classe],$D24,DADOS_MercadoBase[Subclasse],$E24,DADOS_MercadoBase[Detalhe],$F24,DADOS_MercadoBase[Posto],$G24)),2),0) -> 0 | L24: =IFERROR(ROUND((AVERAGEIFS(DADOS_MercadoBase[TUSD/MWh],DADOS_MercadoBase[TipoMercado],$A$3,DADOS_MercadoBase[Subgrupo],$A24,DADOS_MercadoBase[Modalidade],$B24,DADOS_MercadoBase[Classe],$D24,DADOS_MercadoBase[Subclasse],$E24,DADOS_MercadoBase[Detalhe],$F24,DADOS_MercadoBase[Posto],$G24)),2),0) -> 517.45 | M24: =IFERROR(ROUND((AVERAGEIFS(DADOS_MercadoBase[TE],DADOS_MercadoBase[TipoMercado],$A$3,DADOS_MercadoBase[Subgrupo],$A24,DADOS_MercadoBase[Modalidade],$B24,DADOS_MercadoBase[Classe],$D24,DADOS_MercadoBase[Subclasse],$E24,DADOS_MercadoBase[Detalhe],$F24,DADOS_MercadoBase[Posto],$G24)),2),0) -> 268.33 | P24: BRANCA | Q24: RURAL | R24: SERVIÇO PÚBLICO DE IRRIGAÇÃO RURAL | S24: P | T24: 0 | U24: 1165.39 | V24: 389.42 | W24: 0 | X24: 1244.19 | Y24: 388.9
A25: B2 | B25: Branca | C25: Branca | D25: Rural | E25: Serviço público de irrigação rural | F25: Não se aplica | G25: Ponta | H25: =IFERROR(ROUND((AVERAGEIFS(DADOS_MercadoBase[Tar_PTUSD],DADOS_MercadoBase[TipoMercado],$A$3,DADOS_MercadoBase[Subgrupo],$A25,DADOS_MercadoBase[Modalidade],$B25,DADOS_MercadoBase[Classe],$D25,DADOS_MercadoBase[Subclasse],$E25,DADOS_MercadoBase[Detalhe],$F25,DADOS_MercadoBase[Posto],$G25)),2),0) -> 0 | I25: =IFERROR(ROUND((AVERAGEIFS(DADOS_MercadoBase[Tar_ETUSD],DADOS_MercadoBase[TipoMercado],$A$3,DADOS_MercadoBase[Subgrupo],$A25,DADOS_MercadoBase[Modalidade],$B25,DADOS_MercadoBase[Classe],$D25,DADOS_MercadoBase[Subclasse],$E25,DADOS_MercadoBase[Detalhe],$F25,DADOS_MercadoBase[Posto],$G25)),2),0) -> 0 | J25: =IFERROR(ROUND((AVERAGEIFS(DADOS_MercadoBase[Tar_ETE],DADOS_MercadoBase[TipoMercado],$A$3,DADOS_MercadoBase[Subgrupo],$A25,DADOS_MercadoBase[Modalidade],$B25,DADOS_MercadoBase[Classe],$D25,DADOS_MercadoBase[Subclasse],$E25,DADOS_MercadoBase[Detalhe],$F25,DADOS_MercadoBase[Posto],$G25)),2),0) -> 0 | K25: =IFERROR(ROUND((AVERAGEIFS(DADOS_MercadoBase[TUSD/KW],DADOS_MercadoBase[TipoMercado],$A$3,DADOS_MercadoBase[Subgrupo],$A25,DADOS_MercadoBase[Modalidade],$B25,DADOS_MercadoBase[Classe],$D25,DADOS_MercadoBase[Subclasse],$E25,DADOS_MercadoBase[Detalhe],$F25,DADOS_MercadoBase[Posto],$G25)),2),0) -> 0 | L25: =IFERROR(ROUND((AVERAGEIFS(DADOS_MercadoBase[TUSD/MWh],DADOS_MercadoBase[TipoMercado],$A$3,DADOS_MercadoBase[Subgrupo],$A25,DADOS_MercadoBase[Modalidade],$B25,DADOS_MercadoBase[Classe],$D25,DADOS_MercadoBase[Subclasse],$E25,DADOS_MercadoBase[Detalhe],$F25,DADOS_MercadoBase[Posto],$G25)),2),0) -> 0 | M25: =IFERROR(ROUND((AVERAGEIFS(DADOS_MercadoBase[TE],DADOS_MercadoBase[TipoMercado],$A$3,DADOS_MercadoBase[Subgrupo],$A25,DADOS_MercadoBase[Modalidade],$B25,DADOS_MercadoBase[Classe],$D25,DADOS_MercadoBase[Subclasse],$E25,DADOS_MercadoBase[Detalhe],$F25,DADOS_MercadoBase[Posto],$G25)),2),0) -> 0 | S25: INT | T25: 0 | U25: 739.98 | V25: 237.58 | W25: 0 | X25: 787.06 | Y25: 233.95
A26: B2 | B26: Branca | C26: Branca | D26: Rural | E26: Serviço público de irrigação rural | F26: Não se aplica | G26: Inermediário | H26: =IFERROR(ROUND((AVERAGEIFS(DADOS_MercadoBase[Tar_PTUSD],DADOS_MercadoBase[TipoMercado],$A$3,DADOS_MercadoBase[Subgrupo],$A26,DADOS_MercadoBase[Modalidade],$B26,DADOS_MercadoBase[Classe],$D26,DADOS_MercadoBase[Subclasse],$E26,DADOS_MercadoBase[Detalhe],$F26,DADOS_MercadoBase[Posto],$G26)),2),0) -> 0 | I26: =IFERROR(ROUND((AVERAGEIFS(DADOS_MercadoBase[Tar_ETUSD],DADOS_MercadoBase[TipoMercado],$A$3,DADOS_MercadoBase[Subgrupo],$A26,DADOS_MercadoBase[Modalidade],$B26,DADOS_MercadoBase[Classe],$D26,DADOS_MercadoBase[Subclasse],$E26,DADOS_MercadoBase[Detalhe],$F26,DADOS_MercadoBase[Posto],$G26)),2),0) -> 0 | J26: =IFERROR(ROUND((AVERAGEIFS(DADOS_MercadoBase[Tar_ETE],DADOS_MercadoBase[TipoMercado],$A$3,DADOS_MercadoBase[Subgrupo],$A26,DADOS_MercadoBase[Modalidade],$B26,DADOS_MercadoBase[Classe],$D26,DADOS_MercadoBase[Subclasse],$E26,DADOS_MercadoBase[Detalhe],$F26,DADOS_MercadoBase[Posto],$G26)),2),0) -> 0 | K26: =IFERROR(ROUND((AVERAGEIFS(DADOS_MercadoBase[TUSD/KW],DADOS_MercadoBase[TipoMercado],$A$3,DADOS_MercadoBase[Subgrupo],$A26,DADOS_MercadoBase[Modalidade],$B26,DADOS_MercadoBase[Classe],$D26,DADOS_MercadoBase[Subclasse],$E26,DADOS_MercadoBase[Detalhe],$F26,DADOS_MercadoBase[Posto],$G26)),2),0) -> 0 | L26: =IFERROR(ROUND((AVERAGEIFS(DADOS_MercadoBase[TUSD/MWh],DADOS_MercadoBase[TipoMercado],$A$3,DADOS_MercadoBase[Subgrupo],$A26,DADOS_MercadoBase[Modalidade],$B26,DADOS_MercadoBase[Classe],$D26,DADOS_MercadoBase[Subclasse],$E26,DADOS_MercadoBase[Detalhe],$F26,DADOS_MercadoBase[Posto],$G26)),2),0) -> 0 | M26: =IFERROR(ROUND((AVERAGEIFS(DADOS_MercadoBase[TE],DADOS_MercadoBase[TipoMercado],$A$3,DADOS_MercadoBase[Subgrupo],$A26,DADOS_MercadoBase[Modalidade],$B26,DADOS_MercadoBase[Classe],$D26,DADOS_MercadoBase[Subclasse],$E26,DADOS_MercadoBase[Detalhe],$F26,DADOS_MercadoBase[Posto],$G26)),2),0) -> 0 | S26: FP | T26: 0 | U26: 314.58 | V26: 237.58 | W26: 0 | X26: 329.92 | Y26: 233.95
A27: B2 | B27: Branca | C27: Branca | D27: Rural | E27: Serviço público de irrigação rural | F27: Não se aplica | G27: Fora ponta | H27: =IFERROR(ROUND((AVERAGEIFS(DADOS_MercadoBase[Tar_PTUSD],DADOS_MercadoBase[TipoMercado],$A$3,DADOS_MercadoBase[Subgrupo],$A27,DADOS_MercadoBase[Modalidade],$B27,DADOS_MercadoBase[Classe],$D27,DADOS_MercadoBase[Subclasse],$E27,DADOS_MercadoBase[Detalhe],$F27,DADOS_MercadoBase[Posto],$G27)),2),0) -> 0 | I27: =IFERROR(ROUND((AVERAGEIFS(DADOS_MercadoBase[Tar_ETUSD],DADOS_MercadoBase[TipoMercado],$A$3,DADOS_MercadoBase[Subgrupo],$A27,DADOS_MercadoBase[Modalidade],$B27,DADOS_MercadoBase[Classe],$D27,DADOS_MercadoBase[Subclasse],$E27,DADOS_MercadoBase[Detalhe],$F27,DADOS_MercadoBase[Posto],$G27)),2),0) -> 0 | J27: =IFERROR(ROUND((AVERAGEIFS(DADOS_MercadoBase[Tar_ETE],DADOS_MercadoBase[TipoMercado],$A$3,DADOS_MercadoBase[Subgrupo],$A27,DADOS_MercadoBase[Modalidade],$B27,DADOS_MercadoBase[Classe],$D27,DADOS_MercadoBase[Subclasse],$E27,DADOS_MercadoBase[Detalhe],$F27,DADOS_MercadoBase[Posto],$G27)),2),0) -> 0 | K27: =IFERROR(ROUND((AVERAGEIFS(DADOS_MercadoBase[TUSD/KW],DADOS_MercadoBase[TipoMercado],$A$3,DADOS_MercadoBase[Subgrupo],$A27,DADOS_MercadoBase[Modalidade],$B27,DADOS_MercadoBase[Classe],$D27,DADOS_MercadoBase[Subclasse],$E27,DADOS_MercadoBase[Detalhe],$F27,DADOS_MercadoBase[Posto],$G27)),2),0) -> 0 | L27: =IFERROR(ROUND((AVERAGEIFS(DADOS_MercadoBase[TUSD/MWh],DADOS_MercadoBase[TipoMercado],$A$3,DADOS_MercadoBase[Subgrupo],$A27,DADOS_MercadoBase[Modalidade],$B27,DADOS_MercadoBase[Classe],$D27,DADOS_MercadoBase[Subclasse],$E27,DADOS_MercadoBase[Detalhe],$F27,DADOS_MercadoBase[Posto],$G27)),2),0) -> 0 | M27: =IFERROR(ROUND((AVERAGEIFS(DADOS_MercadoBase[TE],DADOS_MercadoBase[TipoMercado],$A$3,DADOS_MercadoBase[Subgrupo],$A27,DADOS_MercadoBase[Modalidade],$B27,DADOS_MercadoBase[Classe],$D27,DADOS_MercadoBase[Subclasse],$E27,DADOS_MercadoBase[Detalhe],$F27,DADOS_MercadoBase[Posto],$G27)),2),0) -> 0 | P27: PRÉ-PAGAMENTO | Q27: RURAL | R27: SERVIÇO PÚBLICO DE IRRIGAÇÃO RURAL | S27: NA | T27: 0 | U27: 450.57 | V27: 250.23 | W27: 0 | X27: 476.05 | Y27: 246.86
A28: B2 | B28: Pré-Pagamento | C28: Pré-Pagamento | D28: Rural | E28: Serviço público de irrigação rural | F28: Não se aplica | G28: Não se aplica | H28: =IFERROR(ROUND((AVERAGEIFS(DADOS_MercadoBase[Tar_PTUSD],DADOS_MercadoBase[TipoMercado],$A$3,DADOS_MercadoBase[Subgrupo],$A28,DADOS_MercadoBase[Modalidade],$B28,DADOS_MercadoBase[Classe],$D28,DADOS_MercadoBase[Subclasse],$E28,DADOS_MercadoBase[Detalhe],$F28,DADOS_MercadoBase[Posto],$G28)),2),0) -> 0 | I28: =IFERROR(ROUND((AVERAGEIFS(DADOS_MercadoBase[Tar_ETUSD],DADOS_MercadoBase[TipoMercado],$A$3,DADOS_MercadoBase[Subgrupo],$A28,DADOS_MercadoBase[Modalidade],$B28,DADOS_MercadoBase[Classe],$D28,DADOS_MercadoBase[Subclasse],$E28,DADOS_MercadoBase[Detalhe],$F28,DADOS_MercadoBase[Posto],$G28)),2),0) -> 0 | J28: =IFERROR(ROUND((AVERAGEIFS(DADOS_MercadoBase[Tar_ETE],DADOS_MercadoBase[TipoMercado],$A$3,DADOS_MercadoBase[Subgrupo],$A28,DADOS_MercadoBase[Modalidade],$B28,DADOS_MercadoBase[Classe],$D28,DADOS_MercadoBase[Subclasse],$E28,DADOS_MercadoBase[Detalhe],$F28,DADOS_MercadoBase[Posto],$G28)),2),0) -> 0 | K28: =IFERROR(ROUND((AVERAGEIFS(DADOS_MercadoBase[TUSD/KW],DADOS_MercadoBase[TipoMercado],$A$3,DADOS_MercadoBase[Subgrupo],$A28,DADOS_MercadoBase[Modalidade],$B28,DADOS_MercadoBase[Classe],$D28,DADOS_MercadoBase[Subclasse],$E28,DADOS_MercadoBase[Detalhe],$F28,DADOS_MercadoBase[Posto],$G28)),2),0) -> 0 | L28: =IFERROR(ROUND((AVERAGEIFS(DADOS_MercadoBase[TUSD/MWh],DADOS_MercadoBase[TipoMercado],$A$3,DADOS_MercadoBase[Subgrupo],$A28,DADOS_MercadoBase[Modalidade],$B28,DADOS_MercadoBase[Classe],$D28,DADOS_MercadoBase[Subclasse],$E28,DADOS_MercadoBase[Detalhe],$F28,DADOS_MercadoBase[Posto],$G28)),2),0) -> 0 | M28: =IFERROR(ROUND((AVERAGEIFS(DADOS_MercadoBase[TE],DADOS_MercadoBase[TipoMercado],$A$3,DADOS_MercadoBase[Subgrupo],$A28,DADOS_MercadoBase[Modalidade],$B28,DADOS_MercadoBase[Classe],$D28,DADOS_MercadoBase[Subclasse],$E28,DADOS_MercadoBase[Detalhe],$F28,DADOS_MercadoBase[Posto],$G28)),2),0) -> 0 | P28: CONVENCIONAL | Q28: RURAL | R28: SERVIÇO PÚBLICO DE IRRIGAÇÃO RURAL | S28: NA | T28: 0 | U28: 450.57 | V28: 250.23 | W28: 0 | X28: 476.05 | Y28: 246.86
A29: B2 | B29: Convencional | C29: Convencional | D29: Rural | E29: Serviço público de irrigação rural | F29: Não se aplica | G29: Não se aplica | H29: =IFERROR(ROUND((AVERAGEIFS(DADOS_MercadoBase[Tar_PTUSD],DADOS_MercadoBase[TipoMercado],$A$3,DADOS_MercadoBase[Subgrupo],$A29,DADOS_MercadoBase[Modalidade],$B29,DADOS_MercadoBase[Classe],$D29,DADOS_MercadoBase[Subclasse],$E29,DADOS_MercadoBase[Detalhe],$F29,DADOS_MercadoBase[Posto],$G29)),2),0) -> 0 | I29: =IFERROR(ROUND((AVERAGEIFS(DADOS_MercadoBase[Tar_ETUSD],DADOS_MercadoBase[TipoMercado],$A$3,DADOS_MercadoBase[Subgrupo],$A29,DADOS_MercadoBase[Modalidade],$B29,DADOS_MercadoBase[Classe],$D29,DADOS_MercadoBase[Subclasse],$E29,DADOS_MercadoBase[Detalhe],$F29,DADOS_MercadoBase[Posto],$G29)),2),0) -> 0 | J29: =IFERROR(ROUND((AVERAGEIFS(DADOS_MercadoBase[Tar_ETE],DADOS_MercadoBase[TipoMercado],$A$3,DADOS_MercadoBase[Subgrupo],$A29,DADOS_MercadoBase[Modalidade],$B29,DADOS_MercadoBase[Classe],$D29,DADOS_MercadoBase[Subclasse],$E29,DADOS_MercadoBase[Detalhe],$F29,DADOS_MercadoBase[Posto],$G29)),2),0) -> 0 | K29: =IFERROR(ROUND((AVERAGEIFS(DADOS_MercadoBase[TUSD/KW],DADOS_MercadoBase[TipoMercado],$A$3,DADOS_MercadoBase[Subgrupo],$A29,DADOS_MercadoBase[Modalidade],$B29,DADOS_MercadoBase[Classe],$D29,DADOS_MercadoBase[Subclasse],$E29,DADOS_MercadoBase[Detalhe],$F29,DADOS_MercadoBase[Posto],$G29)),2),0) -> 0 | L29: =IFERROR(ROUND((AVERAGEIFS(DADOS_MercadoBase[TUSD/MWh],DADOS_MercadoBase[TipoMercado],$A$3,DADOS_MercadoBase[Subgrupo],$A29,DADOS_MercadoBase[Modalidade],$B29,DADOS_MercadoBase[Classe],$D29,DADOS_MercadoBase[Subclasse],$E29,DADOS_MercadoBase[Detalhe],$F29,DADOS_MercadoBase[Posto],$G29)),2),0) -> 0 | M29: =IFERROR(ROUND((AVERAGEIFS(DADOS_MercadoBase[TE],DADOS_MercadoBase[TipoMercado],$A$3,DADOS_MercadoBase[Subgrupo],$A29,DADOS_MercadoBase[Modalidade],$B29,DADOS_MercadoBase[Classe],$D29,DADOS_MercadoBase[Subclasse],$E29,DADOS_MercadoBase[Detalhe],$F29,DADOS_MercadoBase[Posto],$G29)),2),0) -> 0 | O29: B3 | P29: BRANCA | Q29: NA | R29: NA | S29: P | T29: 0 | U29: 1399.38 | V29: 423.28 | W29: 0 | X29: 1494.93 | Y29: 422.71
A30: B2 | B30: Convencional | C30: Convencional | D30: Rural | E30: Serviço público de irrigação rural | F30: IRRIG./AQUIC. | G30: Não se aplica | H30: =IFERROR(ROUND((AVERAGEIFS(DADOS_MercadoBase[Tar_PTUSD],DADOS_MercadoBase[TipoMercado],$A$3,DADOS_MercadoBase[Subgrupo],$A30,DADOS_MercadoBase[Modalidade],$B30,DADOS_MercadoBase[Classe],$D30,DADOS_MercadoBase[Subclasse],$E30,DADOS_MercadoBase[Detalhe],$F30,DADOS_MercadoBase[Posto],$G30)),2),0) -> 0 | I30: =IFERROR(ROUND((AVERAGEIFS(DADOS_MercadoBase[Tar_ETUSD],DADOS_MercadoBase[TipoMercado],$A$3,DADOS_MercadoBase[Subgrupo],$A30,DADOS_MercadoBase[Modalidade],$B30,DADOS_MercadoBase[Classe],$D30,DADOS_MercadoBase[Subclasse],$E30,DADOS_MercadoBase[Detalhe],$F30,DADOS_MercadoBase[Posto],$G30)),2),0) -> 0 | J30: =IFERROR(ROUND((AVERAGEIFS(DADOS_MercadoBase[Tar_ETE],DADOS_MercadoBase[TipoMercado],$A$3,DADOS_MercadoBase[Subgrupo],$A30,DADOS_MercadoBase[Modalidade],$B30,DADOS_MercadoBase[Classe],$D30,DADOS_MercadoBase[Subclasse],$E30,DADOS_MercadoBase[Detalhe],$F30,DADOS_MercadoBase[Posto],$G30)),2),0) -> 0 | K30: =IFERROR(ROUND((AVERAGEIFS(DADOS_MercadoBase[TUSD/KW],DADOS_MercadoBase[TipoMercado],$A$3,DADOS_MercadoBase[Subgrupo],$A30,DADOS_MercadoBase[Modalidade],$B30,DADOS_MercadoBase[Classe],$D30,DADOS_MercadoBase[Subclasse],$E30,DADOS_MercadoBase[Detalhe],$F30,DADOS_MercadoBase[Posto],$G30)),2),0) -> 0 | L30: =IFERROR(ROUND((AVERAGEIFS(DADOS_MercadoBase[TUSD/MWh],DADOS_MercadoBase[TipoMercado],$A$3,DADOS_MercadoBase[Subgrupo],$A30,DADOS_MercadoBase[Modalidade],$B30,DADOS_MercadoBase[Classe],$D30,DADOS_MercadoBase[Subclasse],$E30,DADOS_MercadoBase[Detalhe],$F30,DADOS_MercadoBase[Posto],$G30)),2),0) -> 0 | M30: =IFERROR(ROUND((AVERAGEIFS(DADOS_MercadoBase[TE],DADOS_MercadoBase[TipoMercado],$A$3,DADOS_MercadoBase[Subgrupo],$A30,DADOS_MercadoBase[Modalidade],$B30,DADOS_MercadoBase[Classe],$D30,DADOS_MercadoBase[Subclasse],$E30,DADOS_MercadoBase[Detalhe],$F30,DADOS_MercadoBase[Posto],$G30)),2),0) -> 0 | S30: INT | T30: 0 | U30: 883.92 | V30: 258.24 | W30: 0 | X30: 941.03 | Y30: 254.3
A31: B3 | B31: Branca | C31: Branca | D31: Não se aplica | E31: Não se aplica | F31: Não se aplica | G31: Ponta | H31: =IFERROR(ROUND((AVERAGEIFS(DADOS_MercadoBase[Tar_PTUSD],DADOS_MercadoBase[TipoMercado],$A$3,DADOS_MercadoBase[Subgrupo],$A31,DADOS_MercadoBase[Modalidade],$B31,DADOS_MercadoBase[Classe],$D31,DADOS_MercadoBase[Subclasse],$E31,DADOS_MercadoBase[Detalhe],$F31,DADOS_MercadoBase[Posto],$G31)),2),0) -> 0 | I31: =IFERROR(ROUND((AVERAGEIFS(DADOS_MercadoBase[Tar_ETUSD],DADOS_MercadoBase[TipoMercado],$A$3,DADOS_MercadoBase[Subgrupo],$A31,DADOS_MercadoBase[Modalidade],$B31,DADOS_MercadoBase[Classe],$D31,DADOS_MercadoBase[Subclasse],$E31,DADOS_MercadoBase[Detalhe],$F31,DADOS_MercadoBase[Posto],$G31)),2),0) -> 0 | J31: =IFERROR(ROUND((AVERAGEIFS(DADOS_MercadoBase[Tar_ETE],DADOS_MercadoBase[TipoMercado],$A$3,DADOS_MercadoBase[Subgrupo],$A31,DADOS_MercadoBase[Modalidade],$B31,DADOS_MercadoBase[Classe],$D31,DADOS_MercadoBase[Subclasse],$E31,DADOS_MercadoBase[Detalhe],$F31,DADOS_MercadoBase[Posto],$G31)),2),0) -> 0 | K31: =IFERROR(ROUND((AVERAGEIFS(DADOS_MercadoBase[TUSD/KW],DADOS_MercadoBase[TipoMercado],$A$3,DADOS_MercadoBase[Subgrupo],$A31,DADOS_MercadoBase[Modalidade],$B31,DADOS_MercadoBase[Classe],$D31,DADOS_MercadoBase[Subclasse],$E31,DADOS_MercadoBase[Detalhe],$F31,DADOS_MercadoBase[Posto],$G31)),2),0) -> 0 | L31: =IFERROR(ROUND((AVERAGEIFS(DADOS_MercadoBase[TUSD/MWh],DADOS_MercadoBase[TipoMercado],$A$3,DADOS_MercadoBase[Subgrupo],$A31,DADOS_MercadoBase[Modalidade],$B31,DADOS_MercadoBase[Classe],$D31,DADOS_MercadoBase[Subclasse],$E31,DADOS_MercadoBase[Detalhe],$F31,DADOS_MercadoBase[Posto],$G31)),2),0) -> 0 | M31: =IFERROR(ROUND((AVERAGEIFS(DADOS_MercadoBase[TE],DADOS_MercadoBase[TipoMercado],$A$3,DADOS_MercadoBase[Subgrupo],$A31,DADOS_MercadoBase[Modalidade],$B31,DADOS_MercadoBase[Classe],$D31,DADOS_MercadoBase[Subclasse],$E31,DADOS_MercadoBase[Detalhe],$F31,DADOS_MercadoBase[Posto],$G31)),2),0) -> 0 | S31: FP | T31: 0 | U31: 368.46 | V31: 258.24 | W31: 0 | X31: 387.12 | Y31: 254.3
A32: B3 | B32: Branca | C32: Branca | D32: Não se aplica | E32: Não se aplica | F32: Não se aplica | G32: Inermediário | H32: =IFERROR(ROUND((AVERAGEIFS(DADOS_MercadoBase[Tar_PTUSD],DADOS_MercadoBase[TipoMercado],$A$3,DADOS_MercadoBase[Subgrupo],$A32,DADOS_MercadoBase[Modalidade],$B32,DADOS_MercadoBase[Classe],$D32,DADOS_MercadoBase[Subclasse],$E32,DADOS_MercadoBase[Detalhe],$F32,DADOS_MercadoBase[Posto],$G32)),2),0) -> 0 | I32: =IFERROR(ROUND((AVERAGEIFS(DADOS_MercadoBase[Tar_ETUSD],DADOS_MercadoBase[TipoMercado],$A$3,DADOS_MercadoBase[Subgrupo],$A32,DADOS_MercadoBase[Modalidade],$B32,DADOS_MercadoBase[Classe],$D32,DADOS_MercadoBase[Subclasse],$E32,DADOS_MercadoBase[Detalhe],$F32,DADOS_MercadoBase[Posto],$G32)),2),0) -> 0 | J32: =IFERROR(ROUND((AVERAGEIFS(DADOS_MercadoBase[Tar_ETE],DADOS_MercadoBase[TipoMercado],$A$3,DADOS_MercadoBase[Subgrupo],$A32,DADOS_MercadoBase[Modalidade],$B32,DADOS_MercadoBase[Classe],$D32,DADOS_MercadoBase[Subclasse],$E32,DADOS_MercadoBase[Detalhe],$F32,DADOS_MercadoBase[Posto],$G32)),2),0) -> 0 | K32: =IFERROR(ROUND((AVERAGEIFS(DADOS_MercadoBase[TUSD/KW],DADOS_MercadoBase[TipoMercado],$A$3,DADOS_MercadoBase[Subgrupo],$A32,DADOS_MercadoBase[Modalidade],$B32,DADOS_MercadoBase[Classe],$D32,DADOS_MercadoBase[Subclasse],$E32,DADOS_MercadoBase[Detalhe],$F32,DADOS_MercadoBase[Posto],$G32)),2),0) -> 0 | L32: =IFERROR(ROUND((AVERAGEIFS(DADOS_MercadoBase[TUSD/MWh],DADOS_MercadoBase[TipoMercado],$A$3,DADOS_MercadoBase[Subgrupo],$A32,DADOS_MercadoBase[Modalidade],$B32,DADOS_MercadoBase[Classe],$D32,DADOS_MercadoBase[Subclasse],$E32,DADOS_MercadoBase[Detalhe],$F32,DADOS_MercadoBase[Posto],$G32)),2),0) -> 0 | M32: =IFERROR(ROUND((AVERAGEIFS(DADOS_MercadoBase[TE],DADOS_MercadoBase[TipoMercado],$A$3,DADOS_MercadoBase[Subgrupo],$A32,DADOS_MercadoBase[Modalidade],$B32,DADOS_MercadoBase[Classe],$D32,DADOS_MercadoBase[Subclasse],$E32,DADOS_MercadoBase[Detalhe],$F32,DADOS_MercadoBase[Posto],$G32)),2),0) -> 0 | P32: PRÉ-PAGAMENTO | Q32: NA | R32: NA | S32: NA | T32: 0 | U32: 489.75 | V32: 271.99 | W32: 0 | X32: 517.45 | Y32: 268.33
A33: B3 | B33: Branca | C33: Branca | D33: Não se aplica | E33: Não se aplica | F33: Não se aplica | G33: Fora ponta | H33: =IFERROR(ROUND((AVERAGEIFS(DADOS_MercadoBase[Tar_PTUSD],DADOS_MercadoBase[TipoMercado],$A$3,DADOS_MercadoBase[Subgrupo],$A33,DADOS_MercadoBase[Modalidade],$B33,DADOS_MercadoBase[Classe],$D33,DADOS_MercadoBase[Subclasse],$E33,DADOS_MercadoBase[Detalhe],$F33,DADOS_MercadoBase[Posto],$G33)),2),0) -> 0 | I33: =IFERROR(ROUND((AVERAGEIFS(DADOS_MercadoBase[Tar_ETUSD],DADOS_MercadoBase[TipoMercado],$A$3,DADOS_MercadoBase[Subgrupo],$A33,DADOS_MercadoBase[Modalidade],$B33,DADOS_MercadoBase[Classe],$D33,DADOS_MercadoBase[Subclasse],$E33,DADOS_MercadoBase[Detalhe],$F33,DADOS_MercadoBase[Posto],$G33)),2),0) -> 0 | J33: =IFERROR(ROUND((AVERAGEIFS(DADOS_MercadoBase[Tar_ETE],DADOS_MercadoBase[TipoMercado],$A$3,DADOS_MercadoBase[Subgrupo],$A33,DADOS_MercadoBase[Modalidade],$B33,DADOS_MercadoBase[Classe],$D33,DADOS_MercadoBase[Subclasse],$E33,DADOS_MercadoBase[Detalhe],$F33,DADOS_MercadoBase[Posto],$G33)),2),0) -> 0 | K33: =IFERROR(ROUND((AVERAGEIFS(DADOS_MercadoBase[TUSD/KW],DADOS_MercadoBase[TipoMercado],$A$3,DADOS_MercadoBase[Subgrupo],$A33,DADOS_MercadoBase[Modalidade],$B33,DADOS_MercadoBase[Classe],$D33,DADOS_MercadoBase[Subclasse],$E33,DADOS_MercadoBase[Detalhe],$F33,DADOS_MercadoBase[Posto],$G33)),2),0) -> 0 | L33: =IFERROR(ROUND((AVERAGEIFS(DADOS_MercadoBase[TUSD/MWh],DADOS_MercadoBase[TipoMercado],$A$3,DADOS_MercadoBase[Subgrupo],$A33,DADOS_MercadoBase[Modalidade],$B33,DADOS_MercadoBase[Classe],$D33,DADOS_MercadoBase[Subclasse],$E33,DADOS_MercadoBase[Detalhe],$F33,DADOS_MercadoBase[Posto],$G33)),2),0) -> 0 | M33: =IFERROR(ROUND((AVERAGEIFS(DADOS_MercadoBase[TE],DADOS_MercadoBase[TipoMercado],$A$3,DADOS_MercadoBase[Subgrupo],$A33,DADOS_MercadoBase[Modalidade],$B33,DADOS_MercadoBase[Classe],$D33,DADOS_MercadoBase[Subclasse],$E33,DADOS_MercadoBase[Detalhe],$F33,DADOS_MercadoBase[Posto],$G33)),2),0) -> 0 | P33: CONVENCIONAL | Q33: NA | R33: NA | S33: NA | T33: 0 | U33: 489.75 | V33: 271.99 | W33: 0 | X33: 517.45 | Y33: 268.33
A34: B3 | B34: Branca | C34: Branca | D34: Comercial | E34: Não se aplica | F34: Não se aplica | G34: Ponta | H34: =IFERROR(ROUND((AVERAGEIFS(DADOS_MercadoBase[Tar_PTUSD],DADOS_MercadoBase[TipoMercado],$A$3,DADOS_MercadoBase[Subgrupo],$A34,DADOS_MercadoBase[Modalidade],$B34,DADOS_MercadoBase[Classe],$D34,DADOS_MercadoBase[Subclasse],$E34,DADOS_MercadoBase[Detalhe],$F34,DADOS_MercadoBase[Posto],$G34)),2),0) -> 0 | I34: =IFERROR(ROUND((AVERAGEIFS(DADOS_MercadoBase[Tar_ETUSD],DADOS_MercadoBase[TipoMercado],$A$3,DADOS_MercadoBase[Subgrupo],$A34,DADOS_MercadoBase[Modalidade],$B34,DADOS_MercadoBase[Classe],$D34,DADOS_MercadoBase[Subclasse],$E34,DADOS_MercadoBase[Detalhe],$F34,DADOS_MercadoBase[Posto],$G34)),2),0) -> 1399.38 | J34: =IFERROR(ROUND((AVERAGEIFS(DADOS_MercadoBase[Tar_ETE],DADOS_MercadoBase[TipoMercado],$A$3,DADOS_MercadoBase[Subgrupo],$A34,DADOS_MercadoBase[Modalidade],$B34,DADOS_MercadoBase[Classe],$D34,DADOS_MercadoBase[Subclasse],$E34,DADOS_MercadoBase[Detalhe],$F34,DADOS_MercadoBase[Posto],$G34)),2),0) -> 423.28 | K34: =IFERROR(ROUND((AVERAGEIFS(DADOS_MercadoBase[TUSD/KW],DADOS_MercadoBase[TipoMercado],$A$3,DADOS_MercadoBase[Subgrupo],$A34,DADOS_MercadoBase[Modalidade],$B34,DADOS_MercadoBase[Classe],$D34,DADOS_MercadoBase[Subclasse],$E34,DADOS_MercadoBase[Detalhe],$F34,DADOS_MercadoBase[Posto],$G34)),2),0) -> 0 | L34: =IFERROR(ROUND((AVERAGEIFS(DADOS_MercadoBase[TUSD/MWh],DADOS_MercadoBase[TipoMercado],$A$3,DADOS_MercadoBase[Subgrupo],$A34,DADOS_MercadoBase[Modalidade],$B34,DADOS_MercadoBase[Classe],$D34,DADOS_MercadoBase[Subclasse],$E34,DADOS_MercadoBase[Detalhe],$F34,DADOS_MercadoBase[Posto],$G34)),2),0) -> 1494.93 | M34: =IFERROR(ROUND((AVERAGEIFS(DADOS_MercadoBase[TE],DADOS_MercadoBase[TipoMercado],$A$3,DADOS_MercadoBase[Subgrupo],$A34,DADOS_MercadoBase[Modalidade],$B34,DADOS_MercadoBase[Classe],$D34,DADOS_MercadoBase[Subclasse],$E34,DADOS_MercadoBase[Detalhe],$F34,DADOS_MercadoBase[Posto],$G34)),2),0) -> 422.71 | O34: B4 | P34: CONVENCIONAL | Q34: ILUMINAÇÃO PÚBLICA | R34: ILUMINAÇÃO PÚBLICA – B4A | S34: NA | T34: 0 | U34: 269.36 | V34: 149.6 | W34: 0 | X34: 284.6 | Y34: 147.58
A35: B3 | B35: Branca | C35: Branca | D35: Comercial | E35: Não se aplica | F35: Não se aplica | G35: Intermediário | H35: =IFERROR(ROUND((AVERAGEIFS(DADOS_MercadoBase[Tar_PTUSD],DADOS_MercadoBase[TipoMercado],$A$3,DADOS_MercadoBase[Subgrupo],$A35,DADOS_MercadoBase[Modalidade],$B35,DADOS_MercadoBase[Classe],$D35,DADOS_MercadoBase[Subclasse],$E35,DADOS_MercadoBase[Detalhe],$F35,DADOS_MercadoBase[Posto],$G35)),2),0) -> 0 | I35: =IFERROR(ROUND((AVERAGEIFS(DADOS_MercadoBase[Tar_ETUSD],DADOS_MercadoBase[TipoMercado],$A$3,DADOS_MercadoBase[Subgrupo],$A35,DADOS_MercadoBase[Modalidade],$B35,DADOS_MercadoBase[Classe],$D35,DADOS_MercadoBase[Subclasse],$E35,DADOS_MercadoBase[Detalhe],$F35,DADOS_MercadoBase[Posto],$G35)),2),0) -> 883.92 | J35: =IFERROR(ROUND((AVERAGEIFS(DADOS_MercadoBase[Tar_ETE],DADOS_MercadoBase[TipoMercado],$A$3,DADOS_MercadoBase[Subgrupo],$A35,DADOS_MercadoBase[Modalidade],$B35,DADOS_MercadoBase[Classe],$D35,DADOS_MercadoBase[Subclasse],$E35,DADOS_MercadoBase[Detalhe],$F35,DADOS_MercadoBase[Posto],$G35)),2),0) -> 258.24 | K35: =IFERROR(ROUND((AVERAGEIFS(DADOS_MercadoBase[TUSD/KW],DADOS_MercadoBase[TipoMercado],$A$3,DADOS_MercadoBase[Subgrupo],$A35,DADOS_MercadoBase[Modalidade],$B35,DADOS_MercadoBase[Classe],$D35,DADOS_MercadoBase[Subclasse],$E35,DADOS_MercadoBase[Detalhe],$F35,DADOS_MercadoBase[Posto],$G35)),2),0) -> 0 | L35: =IFERROR(ROUND((AVERAGEIFS(DADOS_MercadoBase[TUSD/MWh],DADOS_MercadoBase[TipoMercado],$A$3,DADOS_MercadoBase[Subgrupo],$A35,DADOS_MercadoBase[Modalidade],$B35,DADOS_MercadoBase[Classe],$D35,DADOS_MercadoBase[Subclasse],$E35,DADOS_MercadoBase[Detalhe],$F35,DADOS_MercadoBase[Posto],$G35)),2),0) -> 941.03 | M35: =IFERROR(ROUND((AVERAGEIFS(DADOS_MercadoBase[TE],DADOS_MercadoBase[TipoMercado],$A$3,DADOS_MercadoBase[Subgrupo],$A35,DADOS_MercadoBase[Modalidade],$B35,DADOS_MercadoBase[Classe],$D35,DADOS_MercadoBase[Subclasse],$E35,DADOS_MercadoBase[Detalhe],$F35,DADOS_MercadoBase[Posto],$G35)),2),0) -> 254.3 | R35: ILUMINAÇÃO PÚBLICA – B4B | S35: NA | T35: 0 | U35: 293.85 | V35: 163.19 | W35: 0 | X35: 310.47 | Y35: 161
A36: B3 | B36: Branca | C36: Branca | D36: Comercial | E36: Não se aplica | F36: Não se aplica | G36: Fora ponta | H36: =IFERROR(ROUND((AVERAGEIFS(DADOS_MercadoBase[Tar_PTUSD],DADOS_MercadoBase[TipoMercado],$A$3,DADOS_MercadoBase[Subgrupo],$A36,DADOS_MercadoBase[Modalidade],$B36,DADOS_MercadoBase[Classe],$D36,DADOS_MercadoBase[Subclasse],$E36,DADOS_MercadoBase[Detalhe],$F36,DADOS_MercadoBase[Posto],$G36)),2),0) -> 0 | I36: =IFERROR(ROUND((AVERAGEIFS(DADOS_MercadoBase[Tar_ETUSD],DADOS_MercadoBase[TipoMercado],$A$3,DADOS_MercadoBase[Subgrupo],$A36,DADOS_MercadoBase[Modalidade],$B36,DADOS_MercadoBase[Classe],$D36,DADOS_MercadoBase[Subclasse],$E36,DADOS_MercadoBase[Detalhe],$F36,DADOS_MercadoBase[Posto],$G36)),2),0) -> 368.46 | J36: =IFERROR(ROUND((AVERAGEIFS(DADOS_MercadoBase[Tar_ETE],DADOS_MercadoBase[TipoMercado],$A$3,DADOS_MercadoBase[Subgrupo],$A36,DADOS_MercadoBase[Modalidade],$B36,DADOS_MercadoBase[Classe],$D36,DADOS_MercadoBase[Subclasse],$E36,DADOS_MercadoBase[Detalhe],$F36,DADOS_MercadoBase[Posto],$G36)),2),0) -> 258.24 | K36: =IFERROR(ROUND((AVERAGEIFS(DADOS_MercadoBase[TUSD/KW],DADOS_MercadoBase[TipoMercado],$A$3,DADOS_MercadoBase[Subgrupo],$A36,DADOS_MercadoBase[Modalidade],$B36,DADOS_MercadoBase[Classe],$D36,DADOS_MercadoBase[Subclasse],$E36,DADOS_MercadoBase[Detalhe],$F36,DADOS_MercadoBase[Posto],$G36)),2),0) -> 0 | L36: =IFERROR(ROUND((AVERAGEIFS(DADOS_MercadoBase[TUSD/MWh],DADOS_MercadoBase[TipoMercado],$A$3,DADOS_MercadoBase[Subgrupo],$A36,DADOS_MercadoBase[Modalidade],$B36,DADOS_MercadoBase[Classe],$D36,DADOS_MercadoBase[Subclasse],$E36,DADOS_MercadoBase[Detalhe],$F36,DADOS_MercadoBase[Posto],$G36)),2),0) -> 387.12 | M36: =IFERROR(ROUND((AVERAGEIFS(DADOS_MercadoBase[TE],DADOS_MercadoBase[TipoMercado],$A$3,DADOS_MercadoBase[Subgrupo],$A36,DADOS_MercadoBase[Modalidade],$B36,DADOS_MercadoBase[Classe],$D36,DADOS_MercadoBase[Subclasse],$E36,DADOS_MercadoBase[Detalhe],$F36,DADOS_MercadoBase[Posto],$G36)),2),0) -> 254.3 | O36: B | P36: GERAÇÃO | Q36: TIPO 01 | R36: NA | S36: NA | T36: 6.61 | U36: 0 | V36: 0 | W36: 7.23 | X36: 0 | Y36: 0
A37: B3 | B37: Branca | C37: Branca | D37: Industrial | E37: Não se aplica | F37: Não se aplica | G37: Ponta | H37: =IFERROR(ROUND((AVERAGEIFS(DADOS_MercadoBase[Tar_PTUSD],DADOS_MercadoBase[TipoMercado],$A$3,DADOS_MercadoBase[Subgrupo],$A37,DADOS_MercadoBase[Modalidade],$B37,DADOS_MercadoBase[Classe],$D37,DADOS_MercadoBase[Subclasse],$E37,DADOS_MercadoBase[Detalhe],$F37,DADOS_MercadoBase[Posto],$G37)),2),0) -> 0 | I37: =IFERROR(ROUND((AVERAGEIFS(DADOS_MercadoBase[Tar_ETUSD],DADOS_MercadoBase[TipoMercado],$A$3,DADOS_MercadoBase[Subgrupo],$A37,DADOS_MercadoBase[Modalidade],$B37,DADOS_MercadoBase[Classe],$D37,DADOS_MercadoBase[Subclasse],$E37,DADOS_MercadoBase[Detalhe],$F37,DADOS_MercadoBase[Posto],$G37)),2),0) -> 1399.38 | J37: =IFERROR(ROUND((AVERAGEIFS(DADOS_MercadoBase[Tar_ETE],DADOS_MercadoBase[TipoMercado],$A$3,DADOS_MercadoBase[Subgrupo],$A37,DADOS_MercadoBase[Modalidade],$B37,DADOS_MercadoBase[Classe],$D37,DADOS_MercadoBase[Subclasse],$E37,DADOS_MercadoBase[Detalhe],$F37,DADOS_MercadoBase[Posto],$G37)),2),0) -> 423.28 | K37: =IFERROR(ROUND((AVERAGEIFS(DADOS_MercadoBase[TUSD/KW],DADOS_MercadoBase[TipoMercado],$A$3,DADOS_MercadoBase[Subgrupo],$A37,DADOS_MercadoBase[Modalidade],$B37,DADOS_MercadoBase[Classe],$D37,DADOS_MercadoBase[Subclasse],$E37,DADOS_MercadoBase[Detalhe],$F37,DADOS_MercadoBase[Posto],$G37)),2),0) -> 0 | L37: =IFERROR(ROUND((AVERAGEIFS(DADOS_MercadoBase[TUSD/MWh],DADOS_MercadoBase[TipoMercado],$A$3,DADOS_MercadoBase[Subgrupo],$A37,DADOS_MercadoBase[Modalidade],$B37,DADOS_MercadoBase[Classe],$D37,DADOS_MercadoBase[Subclasse],$E37,DADOS_MercadoBase[Detalhe],$F37,DADOS_MercadoBase[Posto],$G37)),2),0) -> 1494.93 | M37: =IFERROR(ROUND((AVERAGEIFS(DADOS_MercadoBase[TE],DADOS_MercadoBase[TipoMercado],$A$3,DADOS_MercadoBase[Subgrupo],$A37,DADOS_MercadoBase[Modalidade],$B37,DADOS_MercadoBase[Classe],$D37,DADOS_MercadoBase[Subclasse],$E37,DADOS_MercadoBase[Detalhe],$F37,DADOS_MercadoBase[Posto],$G37)),2),0) -> 422.71 | Q37: TIPO 02 | R37: NA | S37: NA | T37: 30.08 | U37: 0 | V37: 0 | W37: 32.88 | X37: 0 | Y37: 0
A38: B3 | B38: Branca | C38: Branca | D38: Industrial | E38: Não se aplica | F38: Não se aplica | G38: Intermediário | H38: =IFERROR(ROUND((AVERAGEIFS(DADOS_MercadoBase[Tar_PTUSD],DADOS_MercadoBase[TipoMercado],$A$3,DADOS_MercadoBase[Subgrupo],$A38,DADOS_MercadoBase[Modalidade],$B38,DADOS_MercadoBase[Classe],$D38,DADOS_MercadoBase[Subclasse],$E38,DADOS_MercadoBase[Detalhe],$F38,DADOS_MercadoBase[Posto],$G38)),2),0) -> 0 | I38: =IFERROR(ROUND((AVERAGEIFS(DADOS_MercadoBase[Tar_ETUSD],DADOS_MercadoBase[TipoMercado],$A$3,DADOS_MercadoBase[Subgrupo],$A38,DADOS_MercadoBase[Modalidade],$B38,DADOS_MercadoBase[Classe],$D38,DADOS_MercadoBase[Subclasse],$E38,DADOS_MercadoBase[Detalhe],$F38,DADOS_MercadoBase[Posto],$G38)),2),0) -> 883.92 | J38: =IFERROR(ROUND((AVERAGEIFS(DADOS_MercadoBase[Tar_ETE],DADOS_MercadoBase[TipoMercado],$A$3,DADOS_MercadoBase[Subgrupo],$A38,DADOS_MercadoBase[Modalidade],$B38,DADOS_MercadoBase[Classe],$D38,DADOS_MercadoBase[Subclasse],$E38,DADOS_MercadoBase[Detalhe],$F38,DADOS_MercadoBase[Posto],$G38)),2),0) -> 258.24 | K38: =IFERROR(ROUND((AVERAGEIFS(DADOS_MercadoBase[TUSD/KW],DADOS_MercadoBase[TipoMercado],$A$3,DADOS_MercadoBase[Subgrupo],$A38,DADOS_MercadoBase[Modalidade],$B38,DADOS_MercadoBase[Classe],$D38,DADOS_MercadoBase[Subclasse],$E38,DADOS_MercadoBase[Detalhe],$F38,DADOS_MercadoBase[Posto],$G38)),2),0) -> 0 | L38: =IFERROR(ROUND((AVERAGEIFS(DADOS_MercadoBase[TUSD/MWh],DADOS_MercadoBase[TipoMercado],$A$3,DADOS_MercadoBase[Subgrupo],$A38,DADOS_MercadoBase[Modalidade],$B38,DADOS_MercadoBase[Classe],$D38,DADOS_MercadoBase[Subclasse],$E38,DADOS_MercadoBase[Detalhe],$F38,DADOS_MercadoBase[Posto],$G38)),2),0) -> 941.03 | M38: =IFERROR(ROUND((AVERAGEIFS(DADOS_MercadoBase[TE],DADOS_MercadoBase[TipoMercado],$A$3,DADOS_MercadoBase[Subgrupo],$A38,DADOS_MercadoBase[Modalidade],$B38,DADOS_MercadoBase[Classe],$D38,DADOS_MercadoBase[Subclasse],$E38,DADOS_MercadoBase[Detalhe],$F38,DADOS_MercadoBase[Posto],$G38)),2),0) -> 254.3
A39: B3 | B39: Branca | C39: Branca | D39: Industrial | E39: Não se aplica | F39: Não se aplica | G39: Fora ponta | H39: =IFERROR(ROUND((AVERAGEIFS(DADOS_MercadoBase[Tar_PTUSD],DADOS_MercadoBase[TipoMercado],$A$3,DADOS_MercadoBase[Subgrupo],$A39,DADOS_MercadoBase[Modalidade],$B39,DADOS_MercadoBase[Classe],$D39,DADOS_MercadoBase[Subclasse],$E39,DADOS_MercadoBase[Detalhe],$F39,DADOS_MercadoBase[Posto],$G39)),2),0) -> 0 | I39: =IFERROR(ROUND((AVERAGEIFS(DADOS_MercadoBase[Tar_ETUSD],DADOS_MercadoBase[TipoMercado],$A$3,DADOS_MercadoBase[Subgrupo],$A39,DADOS_MercadoBase[Modalidade],$B39,DADOS_MercadoBase[Classe],$D39,DADOS_MercadoBase[Subclasse],$E39,DADOS_MercadoBase[Detalhe],$F39,DADOS_MercadoBase[Posto],$G39)),2),0) -> 368.46 | J39: =IFERROR(ROUND((AVERAGEIFS(DADOS_MercadoBase[Tar_ETE],DADOS_MercadoBase[TipoMercado],$A$3,DADOS_MercadoBase[Subgrupo],$A39,DADOS_MercadoBase[Modalidade],$B39,DADOS_MercadoBase[Classe],$D39,DADOS_MercadoBase[Subclasse],$E39,DADOS_MercadoBase[Detalhe],$F39,DADOS_MercadoBase[Posto],$G39)),2),0) -> 258.24 | K39: =IFERROR(ROUND((AVERAGEIFS(DADOS_MercadoBase[TUSD/KW],DADOS_MercadoBase[TipoMercado],$A$3,DADOS_MercadoBase[Subgrupo],$A39,DADOS_MercadoBase[Modalidade],$B39,DADOS_MercadoBase[Classe],$D39,DADOS_MercadoBase[Subclasse],$E39,DADOS_MercadoBase[Detalhe],$F39,DADOS_MercadoBase[Posto],$G39)),2),0) -> 0 | L39: =IFERROR(ROUND((AVERAGEIFS(DADOS_MercadoBase[TUSD/MWh],DADOS_MercadoBase[TipoMercado],$A$3,DADOS_MercadoBase[Subgrupo],$A39,DADOS_MercadoBase[Modalidade],$B39,DADOS_MercadoBase[Classe],$D39,DADOS_MercadoBase[Subclasse],$E39,DADOS_MercadoBase[Detalhe],$F39,DADOS_MercadoBase[Posto],$G39)),2),0) -> 387.12 | M39: =IFERROR(ROUND((AVERAGEIFS(DADOS_MercadoBase[TE],DADOS_MercadoBase[TipoMercado],$A$3,DADOS_MercadoBase[Subgrupo],$A39,DADOS_MercadoBase[Modalidade],$B39,DADOS_MercadoBase[Classe],$D39,DADOS_MercadoBase[Subclasse],$E39,DADOS_MercadoBase[Detalhe],$F39,DADOS_MercadoBase[Posto],$G39)),2),0) -> 254.3
A40: B3 | B40: Branca | C40: Branca | D40: Poder público | E40: Não se aplica | F40: Não se aplica | G40: Ponta | H40: =IFERROR(ROUND((AVERAGEIFS(DADOS_MercadoBase[Tar_PTUSD],DADOS_MercadoBase[TipoMercado],$A$3,DADOS_MercadoBase[Subgrupo],$A40,DADOS_MercadoBase[Modalidade],$B40,DADOS_MercadoBase[Classe],$D40,DADOS_MercadoBase[Subclasse],$E40,DADOS_MercadoBase[Detalhe],$F40,DADOS_MercadoBase[Posto],$G40)),2),0) -> 0 | I40: =IFERROR(ROUND((AVERAGEIFS(DADOS_MercadoBase[Tar_ETUSD],DADOS_MercadoBase[TipoMercado],$A$3,DADOS_MercadoBase[Subgrupo],$A40,DADOS_MercadoBase[Modalidade],$B40,DADOS_MercadoBase[Classe],$D40,DADOS_MercadoBase[Subclasse],$E40,DADOS_MercadoBase[Detalhe],$F40,DADOS_MercadoBase[Posto],$G40)),2),0) -> 1399.38 | J40: =IFERROR(ROUND((AVERAGEIFS(DADOS_MercadoBase[Tar_ETE],DADOS_MercadoBase[TipoMercado],$A$3,DADOS_MercadoBase[Subgrupo],$A40,DADOS_MercadoBase[Modalidade],$B40,DADOS_MercadoBase[Classe],$D40,DADOS_MercadoBase[Subclasse],$E40,DADOS_MercadoBase[Detalhe],$F40,DADOS_MercadoBase[Posto],$G40)),2),0) -> 423.28 | K40: =IFERROR(ROUND((AVERAGEIFS(DADOS_MercadoBase[TUSD/KW],DADOS_MercadoBase[TipoMercado],$A$3,DADOS_MercadoBase[Subgrupo],$A40,DADOS_MercadoBase[Modalidade],$B40,DADOS_MercadoBase[Classe],$D40,DADOS_MercadoBase[Subclasse],$E40,DADOS_MercadoBase[Detalhe],$F40,DADOS_MercadoBase[Posto],$G40)),2),0) -> 0 | L40: =IFERROR(ROUND((AVERAGEIFS(DADOS_MercadoBase[TUSD/MWh],DADOS_MercadoBase[TipoMercado],$A$3,DADOS_MercadoBase[Subgrupo],$A40,DADOS_MercadoBase[Modalidade],$B40,DADOS_MercadoBase[Classe],$D40,DADOS_MercadoBase[Subclasse],$E40,DADOS_MercadoBase[Detalhe],$F40,DADOS_MercadoBase[Posto],$G40)),2),0) -> 1494.93 | M40: =IFERROR(ROUND((AVERAGEIFS(DADOS_MercadoBase[TE],DADOS_MercadoBase[TipoMercado],$A$3,DADOS_MercadoBase[Subgrupo],$A40,DADOS_MercadoBase[Modalidade],$B40,DADOS_MercadoBase[Classe],$D40,DADOS_MercadoBase[Subclasse],$E40,DADOS_MercadoBase[Detalhe],$F40,DADOS_MercadoBase[Posto],$G40)),2),0) -> 422.71
A41: B3 | B41: Branca | C41: Branca | D41: Poder público | E41: Não se aplica | F41: Não se aplica | G41: Intermediário | H41: =IFERROR(ROUND((AVERAGEIFS(DADOS_MercadoBase[Tar_PTUSD],DADOS_MercadoBase[TipoMercado],$A$3,DADOS_MercadoBase[Subgrupo],$A41,DADOS_MercadoBase[Modalidade],$B41,DADOS_MercadoBase[Classe],$D41,DADOS_MercadoBase[Subclasse],$E41,DADOS_MercadoBase[Detalhe],$F41,DADOS_MercadoBase[Posto],$G41)),2),0) -> 0 | I41: =IFERROR(ROUND((AVERAGEIFS(DADOS_MercadoBase[Tar_ETUSD],DADOS_MercadoBase[TipoMercado],$A$3,DADOS_MercadoBase[Subgrupo],$A41,DADOS_MercadoBase[Modalidade],$B41,DADOS_MercadoBase[Classe],$D41,DADOS_MercadoBase[Subclasse],$E41,DADOS_MercadoBase[Detalhe],$F41,DADOS_MercadoBase[Posto],$G41)),2),0) -> 883.92 | J41: =IFERROR(ROUND((AVERAGEIFS(DADOS_MercadoBase[Tar_ETE],DADOS_MercadoBase[TipoMercado],$A$3,DADOS_MercadoBase[Subgrupo],$A41,DADOS_MercadoBase[Modalidade],$B41,DADOS_MercadoBase[Classe],$D41,DADOS_MercadoBase[Subclasse],$E41,DADOS_MercadoBase[Detalhe],$F41,DADOS_MercadoBase[Posto],$G41)),2),0) -> 258.24 | K41: =IFERROR(ROUND((AVERAGEIFS(DADOS_MercadoBase[TUSD/KW],DADOS_MercadoBase[TipoMercado],$A$3,DADOS_MercadoBase[Subgrupo],$A41,DADOS_MercadoBase[Modalidade],$B41,DADOS_MercadoBase[Classe],$D41,DADOS_MercadoBase[Subclasse],$E41,DADOS_MercadoBase[Detalhe],$F41,DADOS_MercadoBase[Posto],$G41)),2),0) -> 0 | L41: =IFERROR(ROUND((AVERAGEIFS(DADOS_MercadoBase[TUSD/MWh],DADOS_MercadoBase[TipoMercado],$A$3,DADOS_MercadoBase[Subgrupo],$A41,DADOS_MercadoBase[Modalidade],$B41,DADOS_MercadoBase[Classe],$D41,DADOS_MercadoBase[Subclasse],$E41,DADOS_MercadoBase[Detalhe],$F41,DADOS_MercadoBase[Posto],$G41)),2),0) -> 941.03 | M41: =IFERROR(ROUND((AVERAGEIFS(DADOS_MercadoBase[TE],DADOS_MercadoBase[TipoMercado],$A$3,DADOS_MercadoBase[Subgrupo],$A41,DADOS_MercadoBase[Modalidade],$B41,DADOS_MercadoBase[Classe],$D41,DADOS_MercadoBase[Subclasse],$E41,DADOS_MercadoBase[Detalhe],$F41,DADOS_MercadoBase[Posto],$G41)),2),0) -> 254.3 | P41: =ROUND((Mercado!$L$26-CAPA!$C$16)/30+1,0) -> 11
A42: B3 | B42: Branca | C42: Branca | D42: Poder público | E42: Não se aplica | F42: Não se aplica | G42: Fora ponta | H42: =IFERROR(ROUND((AVERAGEIFS(DADOS_MercadoBase[Tar_PTUSD],DADOS_MercadoBase[TipoMercado],$A$3,DADOS_MercadoBase[Subgrupo],$A42,DADOS_MercadoBase[Modalidade],$B42,DADOS_MercadoBase[Classe],$D42,DADOS_MercadoBase[Subclasse],$E42,DADOS_MercadoBase[Detalhe],$F42,DADOS_MercadoBase[Posto],$G42)),2),0) -> 0 | I42: =IFERROR(ROUND((AVERAGEIFS(DADOS_MercadoBase[Tar_ETUSD],DADOS_MercadoBase[TipoMercado],$A$3,DADOS_MercadoBase[Subgrupo],$A42,DADOS_MercadoBase[Modalidade],$B42,DADOS_MercadoBase[Classe],$D42,DADOS_MercadoBase[Subclasse],$E42,DADOS_MercadoBase[Detalhe],$F42,DADOS_MercadoBase[Posto],$G42)),2),0) -> 368.46 | J42: =IFERROR(ROUND((AVERAGEIFS(DADOS_MercadoBase[Tar_ETE],DADOS_MercadoBase[TipoMercado],$A$3,DADOS_MercadoBase[Subgrupo],$A42,DADOS_MercadoBase[Modalidade],$B42,DADOS_MercadoBase[Classe],$D42,DADOS_MercadoBase[Subclasse],$E42,DADOS_MercadoBase[Detalhe],$F42,DADOS_MercadoBase[Posto],$G42)),2),0) -> 258.24 | K42: =IFERROR(ROUND((AVERAGEIFS(DADOS_MercadoBase[TUSD/KW],DADOS_MercadoBase[TipoMercado],$A$3,DADOS_MercadoBase[Subgrupo],$A42,DADOS_MercadoBase[Modalidade],$B42,DADOS_MercadoBase[Classe],$D42,DADOS_MercadoBase[Subclasse],$E42,DADOS_MercadoBase[Detalhe],$F42,DADOS_MercadoBase[Posto],$G42)),2),0) -> 0 | L42: =IFERROR(ROUND((AVERAGEIFS(DADOS_MercadoBase[TUSD/MWh],DADOS_MercadoBase[TipoMercado],$A$3,DADOS_MercadoBase[Subgrupo],$A42,DADOS_MercadoBase[Modalidade],$B42,DADOS_MercadoBase[Classe],$D42,DADOS_MercadoBase[Subclasse],$E42,DADOS_MercadoBase[Detalhe],$F42,DADOS_MercadoBase[Posto],$G42)),2),0) -> 387.12 | M42: =IFERROR(ROUND((AVERAGEIFS(DADOS_MercadoBase[TE],DADOS_MercadoBase[TipoMercado],$A$3,DADOS_MercadoBase[Subgrupo],$A42,DADOS_MercadoBase[Modalidade],$B42,DADOS_MercadoBase[Classe],$D42,DADOS_MercadoBase[Subclasse],$E42,DADOS_MercadoBase[Detalhe],$F42,DADOS_MercadoBase[Posto],$G42)),2),0) -> 254.3
A43: B3 | B43: Pré-Pagamento | C43: Pré-Pagamento | D43: Não se aplica | E43: Não se aplica | F43: Não se aplica | G43: Não se aplica | H43: =IFERROR(ROUND((AVERAGEIFS(DADOS_MercadoBase[Tar_PTUSD],DADOS_MercadoBase[TipoMercado],$A$3,DADOS_MercadoBase[Subgrupo],$A43,DADOS_MercadoBase[Modalidade],$B43,DADOS_MercadoBase[Classe],$D43,DADOS_MercadoBase[Subclasse],$E43,DADOS_MercadoBase[Detalhe],$F43,DADOS_MercadoBase[Posto],$G43)),2),0) -> 0 | I43: =IFERROR(ROUND((AVERAGEIFS(DADOS_MercadoBase[Tar_ETUSD],DADOS_MercadoBase[TipoMercado],$A$3,DADOS_MercadoBase[Subgrupo],$A43,DADOS_MercadoBase[Modalidade],$B43,DADOS_MercadoBase[Classe],$D43,DADOS_MercadoBase[Subclasse],$E43,DADOS_MercadoBase[Detalhe],$F43,DADOS_MercadoBase[Posto],$G43)),2),0) -> 0 | J43: =IFERROR(ROUND((AVERAGEIFS(DADOS_MercadoBase[Tar_ETE],DADOS_MercadoBase[TipoMercado],$A$3,DADOS_MercadoBase[Subgrupo],$A43,DADOS_MercadoBase[Modalidade],$B43,DADOS_MercadoBase[Classe],$D43,DADOS_MercadoBase[Subclasse],$E43,DADOS_MercadoBase[Detalhe],$F43,DADOS_MercadoBase[Posto],$G43)),2),0) -> 0 | K43: =IFERROR(ROUND((AVERAGEIFS(DADOS_MercadoBase[TUSD/KW],DADOS_MercadoBase[TipoMercado],$A$3,DADOS_MercadoBase[Subgrupo],$A43,DADOS_MercadoBase[Modalidade],$B43,DADOS_MercadoBase[Classe],$D43,DADOS_MercadoBase[Subclasse],$E43,DADOS_MercadoBase[Detalhe],$F43,DADOS_MercadoBase[Posto],$G43)),2),0) -> 0 | L43: =IFERROR(ROUND((AVERAGEIFS(DADOS_MercadoBase[TUSD/MWh],DADOS_MercadoBase[TipoMercado],$A$3,DADOS_MercadoBase[Subgrupo],$A43,DADOS_MercadoBase[Modalidade],$B43,DADOS_MercadoBase[Classe],$D43,DADOS_MercadoBase[Subclasse],$E43,DADOS_MercadoBase[Detalhe],$F43,DADOS_MercadoBase[Posto],$G43)),2),0) -> 0 | M43: =IFERROR(ROUND((AVERAGEIFS(DADOS_MercadoBase[TE],DADOS_MercadoBase[TipoMercado],$A$3,DADOS_MercadoBase[Subgrupo],$A43,DADOS_MercadoBase[Modalidade],$B43,DADOS_MercadoBase[Classe],$D43,DADOS_MercadoBase[Subclasse],$E43,DADOS_MercadoBase[Detalhe],$F43,DADOS_MercadoBase[Posto],$G43)),2),0) -> 0
A44: B3 | B44: Convencional | C44: Convencional | D44: Não se aplica | E44: Não se aplica | F44: Não se aplica | G44: Não se aplica | H44: =IFERROR(ROUND((AVERAGEIFS(DADOS_MercadoBase[Tar_PTUSD],DADOS_MercadoBase[TipoMercado],$A$3,DADOS_MercadoBase[Subgrupo],$A44,DADOS_MercadoBase[Modalidade],$B44,DADOS_MercadoBase[Classe],$D44,DADOS_MercadoBase[Subclasse],$E44,DADOS_MercadoBase[Detalhe],$F44,DADOS_MercadoBase[Posto],$G44)),2),0) -> 0 | I44: =IFERROR(ROUND((AVERAGEIFS(DADOS_MercadoBase[Tar_ETUSD],DADOS_MercadoBase[TipoMercado],$A$3,DADOS_MercadoBase[Subgrupo],$A44,DADOS_MercadoBase[Modalidade],$B44,DADOS_MercadoBase[Classe],$D44,DADOS_MercadoBase[Subclasse],$E44,DADOS_MercadoBase[Detalhe],$F44,DADOS_MercadoBase[Posto],$G44)),2),0) -> 0 | J44: =IFERROR(ROUND((AVERAGEIFS(DADOS_MercadoBase[Tar_ETE],DADOS_MercadoBase[TipoMercado],$A$3,DADOS_MercadoBase[Subgrupo],$A44,DADOS_MercadoBase[Modalidade],$B44,DADOS_MercadoBase[Classe],$D44,DADOS_MercadoBase[Subclasse],$E44,DADOS_MercadoBase[Detalhe],$F44,DADOS_MercadoBase[Posto],$G44)),2),0) -> 0 | K44: =IFERROR(ROUND((AVERAGEIFS(DADOS_MercadoBase[TUSD/KW],DADOS_MercadoBase[TipoMercado],$A$3,DADOS_MercadoBase[Subgrupo],$A44,DADOS_MercadoBase[Modalidade],$B44,DADOS_MercadoBase[Classe],$D44,DADOS_MercadoBase[Subclasse],$E44,DADOS_MercadoBase[Detalhe],$F44,DADOS_MercadoBase[Posto],$G44)),2),0) -> 0 | L44: =IFERROR(ROUND((AVERAGEIFS(DADOS_MercadoBase[TUSD/MWh],DADOS_MercadoBase[TipoMercado],$A$3,DADOS_MercadoBase[Subgrupo],$A44,DADOS_MercadoBase[Modalidade],$B44,DADOS_MercadoBase[Classe],$D44,DADOS_MercadoBase[Subclasse],$E44,DADOS_MercadoBase[Detalhe],$F44,DADOS_MercadoBase[Posto],$G44)),2),0) -> 0 | M44: =IFERROR(ROUND((AVERAGEIFS(DADOS_MercadoBase[TE],DADOS_MercadoBase[TipoMercado],$A$3,DADOS_MercadoBase[Subgrupo],$A44,DADOS_MercadoBase[Modalidade],$B44,DADOS_MercadoBase[Classe],$D44,DADOS_MercadoBase[Subclasse],$E44,DADOS_MercadoBase[Detalhe],$F44,DADOS_MercadoBase[Posto],$G44)),2),0) -> 0
A45: B3 | B45: Convencional | C45: Convencional | D45: Comercial | E45: Não se aplica | F45: Não se aplica | G45: Não se aplica | H45: =IFERROR(ROUND((AVERAGEIFS(DADOS_MercadoBase[Tar_PTUSD],DADOS_MercadoBase[TipoMercado],$A$3,DADOS_MercadoBase[Subgrupo],$A45,DADOS_MercadoBase[Modalidade],$B45,DADOS_MercadoBase[Classe],$D45,DADOS_MercadoBase[Subclasse],$E45,DADOS_MercadoBase[Detalhe],$F45,DADOS_MercadoBase[Posto],$G45)),2),0) -> 0 | I45: =IFERROR(ROUND((AVERAGEIFS(DADOS_MercadoBase[Tar_ETUSD],DADOS_MercadoBase[TipoMercado],$A$3,DADOS_MercadoBase[Subgrupo],$A45,DADOS_MercadoBase[Modalidade],$B45,DADOS_MercadoBase[Classe],$D45,DADOS_MercadoBase[Subclasse],$E45,DADOS_MercadoBase[Detalhe],$F45,DADOS_MercadoBase[Posto],$G45)),2),0) -> 489.75 | J45: =IFERROR(ROUND((AVERAGEIFS(DADOS_MercadoBase[Tar_ETE],DADOS_MercadoBase[TipoMercado],$A$3,DADOS_MercadoBase[Subgrupo],$A45,DADOS_MercadoBase[Modalidade],$B45,DADOS_MercadoBase[Classe],$D45,DADOS_MercadoBase[Subclasse],$E45,DADOS_MercadoBase[Detalhe],$F45,DADOS_MercadoBase[Posto],$G45)),2),0) -> 271.99 | K45: =IFERROR(ROUND((AVERAGEIFS(DADOS_MercadoBase[TUSD/KW],DADOS_MercadoBase[TipoMercado],$A$3,DADOS_MercadoBase[Subgrupo],$A45,DADOS_MercadoBase[Modalidade],$B45,DADOS_MercadoBase[Classe],$D45,DADOS_MercadoBase[Subclasse],$E45,DADOS_MercadoBase[Detalhe],$F45,DADOS_MercadoBase[Posto],$G45)),2),0) -> 0 | L45: =IFERROR(ROUND((AVERAGEIFS(DADOS_MercadoBase[TUSD/MWh],DADOS_MercadoBase[TipoMercado],$A$3,DADOS_MercadoBase[Subgrupo],$A45,DADOS_MercadoBase[Modalidade],$B45,DADOS_MercadoBase[Classe],$D45,DADOS_MercadoBase[Subclasse],$E45,DADOS_MercadoBase[Detalhe],$F45,DADOS_MercadoBase[Posto],$G45)),2),0) -> 517.45 | M45: =IFERROR(ROUND((AVERAGEIFS(DADOS_MercadoBase[TE],DADOS_MercadoBase[TipoMercado],$A$3,DADOS_MercadoBase[Subgrupo],$A45,DADOS_MercadoBase[Modalidade],$B45,DADOS_MercadoBase[Classe],$D45,DADOS_MercadoBase[Subclasse],$E45,DADOS_MercadoBase[Detalhe],$F45,DADOS_MercadoBase[Posto],$G45)),2),0) -> 268.33
A46: B3 | B46: Convencional | C46: Convencional | D46: Consumo próprio | E46: Não se aplica | F46: Não se aplica | G46: Não se aplica | H46: =IFERROR(ROUND((AVERAGEIFS(DADOS_MercadoBase[Tar_PTUSD],DADOS_MercadoBase[TipoMercado],$A$3,DADOS_MercadoBase[Subgrupo],$A46,DADOS_MercadoBase[Modalidade],$B46,DADOS_MercadoBase[Classe],$D46,DADOS_MercadoBase[Subclasse],$E46,DADOS_MercadoBase[Detalhe],$F46,DADOS_MercadoBase[Posto],$G46)),2),0) -> 0 | I46: =IFERROR(ROUND((AVERAGEIFS(DADOS_MercadoBase[Tar_ETUSD],DADOS_MercadoBase[TipoMercado],$A$3,DADOS_MercadoBase[Subgrupo],$A46,DADOS_MercadoBase[Modalidade],$B46,DADOS_MercadoBase[Classe],$D46,DADOS_MercadoBase[Subclasse],$E46,DADOS_MercadoBase[Detalhe],$F46,DADOS_MercadoBase[Posto],$G46)),2),0) -> 489.75 | J46: =IFERROR(ROUND((AVERAGEIFS(DADOS_MercadoBase[Tar_ETE],DADOS_MercadoBase[TipoMercado],$A$3,DADOS_MercadoBase[Subgrupo],$A46,DADOS_MercadoBase[Modalidade],$B46,DADOS_MercadoBase[Classe],$D46,DADOS_MercadoBase[Subclasse],$E46,DADOS_MercadoBase[Detalhe],$F46,DADOS_MercadoBase[Posto],$G46)),2),0) -> 271.99 | K46: =IFERROR(ROUND((AVERAGEIFS(DADOS_MercadoBase[TUSD/KW],DADOS_MercadoBase[TipoMercado],$A$3,DADOS_MercadoBase[Subgrupo],$A46,DADOS_MercadoBase[Modalidade],$B46,DADOS_MercadoBase[Classe],$D46,DADOS_MercadoBase[Subclasse],$E46,DADOS_MercadoBase[Detalhe],$F46,DADOS_MercadoBase[Posto],$G46)),2),0) -> 0 | L46: =IFERROR(ROUND((AVERAGEIFS(DADOS_MercadoBase[TUSD/MWh],DADOS_MercadoBase[TipoMercado],$A$3,DADOS_MercadoBase[Subgrupo],$A46,DADOS_MercadoBase[Modalidade],$B46,DADOS_MercadoBase[Classe],$D46,DADOS_MercadoBase[Subclasse],$E46,DADOS_MercadoBase[Detalhe],$F46,DADOS_MercadoBase[Posto],$G46)),2),0) -> 517.45 | M46: =IFERROR(ROUND((AVERAGEIFS(DADOS_MercadoBase[TE],DADOS_MercadoBase[TipoMercado],$A$3,DADOS_MercadoBase[Subgrupo],$A46,DADOS_MercadoBase[Modalidade],$B46,DADOS_MercadoBase[Classe],$D46,DADOS_MercadoBase[Subclasse],$E46,DADOS_MercadoBase[Detalhe],$F46,DADOS_MercadoBase[Posto],$G46)),2),0) -> 268.33
A47: B3 | B47: Convencional | C47: Convencional | D47: Industrial | E47: Não se aplica | F47: Não se aplica | G47: Não se aplica | H47: =IFERROR(ROUND((AVERAGEIFS(DADOS_MercadoBase[Tar_PTUSD],DADOS_MercadoBase[TipoMercado],$A$3,DADOS_MercadoBase[Subgrupo],$A47,DADOS_MercadoBase[Modalidade],$B47,DADOS_MercadoBase[Classe],$D47,DADOS_MercadoBase[Subclasse],$E47,DADOS_MercadoBase[Detalhe],$F47,DADOS_MercadoBase[Posto],$G47)),2),0) -> 0 | I47: =IFERROR(ROUND((AVERAGEIFS(DADOS_MercadoBase[Tar_ETUSD],DADOS_MercadoBase[TipoMercado],$A$3,DADOS_MercadoBase[Subgrupo],$A47,DADOS_MercadoBase[Modalidade],$B47,DADOS_MercadoBase[Classe],$D47,DADOS_MercadoBase[Subclasse],$E47,DADOS_MercadoBase[Detalhe],$F47,DADOS_MercadoBase[Posto],$G47)),2),0) -> 489.75 | J47: =IFERROR(ROUND((AVERAGEIFS(DADOS_MercadoBase[Tar_ETE],DADOS_MercadoBase[TipoMercado],$A$3,DADOS_MercadoBase[Subgrupo],$A47,DADOS_MercadoBase[Modalidade],$B47,DADOS_MercadoBase[Classe],$D47,DADOS_MercadoBase[Subclasse],$E47,DADOS_MercadoBase[Detalhe],$F47,DADOS_MercadoBase[Posto],$G47)),2),0) -> 271.99 | K47: =IFERROR(ROUND((AVERAGEIFS(DADOS_MercadoBase[TUSD/KW],DADOS_MercadoBase[TipoMercado],$A$3,DADOS_MercadoBase[Subgrupo],$A47,DADOS_MercadoBase[Modalidade],$B47,DADOS_MercadoBase[Classe],$D47,DADOS_MercadoBase[Subclasse],$E47,DADOS_MercadoBase[Detalhe],$F47,DADOS_MercadoBase[Posto],$G47)),2),0) -> 0 | L47: =IFERROR(ROUND((AVERAGEIFS(DADOS_MercadoBase[TUSD/MWh],DADOS_MercadoBase[TipoMercado],$A$3,DADOS_MercadoBase[Subgrupo],$A47,DADOS_MercadoBase[Modalidade],$B47,DADOS_MercadoBase[Classe],$D47,DADOS_MercadoBase[Subclasse],$E47,DADOS_MercadoBase[Detalhe],$F47,DADOS_MercadoBase[Posto],$G47)),2),0) -> 517.45 | M47: =IFERROR(ROUND((AVERAGEIFS(DADOS_MercadoBase[TE],DADOS_MercadoBase[TipoMercado],$A$3,DADOS_MercadoBase[Subgrupo],$A47,DADOS_MercadoBase[Modalidade],$B47,DADOS_MercadoBase[Classe],$D47,DADOS_MercadoBase[Subclasse],$E47,DADOS_MercadoBase[Detalhe],$F47,DADOS_MercadoBase[Posto],$G47)),2),0) -> 268.33
A48: B3 | B48: Convencional | C48: Convencional | D48: Poder público | E48: Não se aplica | F48: Não se aplica | G48: Não se aplica | H48: =IFERROR(ROUND((AVERAGEIFS(DADOS_MercadoBase[Tar_PTUSD],DADOS_MercadoBase[TipoMercado],$A$3,DADOS_MercadoBase[Subgrupo],$A48,DADOS_MercadoBase[Modalidade],$B48,DADOS_MercadoBase[Classe],$D48,DADOS_MercadoBase[Subclasse],$E48,DADOS_MercadoBase[Detalhe],$F48,DADOS_MercadoBase[Posto],$G48)),2),0) -> 0 | I48: =IFERROR(ROUND((AVERAGEIFS(DADOS_MercadoBase[Tar_ETUSD],DADOS_MercadoBase[TipoMercado],$A$3,DADOS_MercadoBase[Subgrupo],$A48,DADOS_MercadoBase[Modalidade],$B48,DADOS_MercadoBase[Classe],$D48,DADOS_MercadoBase[Subclasse],$E48,DADOS_MercadoBase[Detalhe],$F48,DADOS_MercadoBase[Posto],$G48)),2),0) -> 489.75 | J48: =IFERROR(ROUND((AVERAGEIFS(DADOS_MercadoBase[Tar_ETE],DADOS_MercadoBase[TipoMercado],$A$3,DADOS_MercadoBase[Subgrupo],$A48,DADOS_MercadoBase[Modalidade],$B48,DADOS_MercadoBase[Classe],$D48,DADOS_MercadoBase[Subclasse],$E48,DADOS_MercadoBase[Detalhe],$F48,DADOS_MercadoBase[Posto],$G48)),2),0) -> 271.99 | K48: =IFERROR(ROUND((AVERAGEIFS(DADOS_MercadoBase[TUSD/KW],DADOS_MercadoBase[TipoMercado],$A$3,DADOS_MercadoBase[Subgrupo],$A48,DADOS_MercadoBase[Modalidade],$B48,DADOS_MercadoBase[Classe],$D48,DADOS_MercadoBase[Subclasse],$E48,DADOS_MercadoBase[Detalhe],$F48,DADOS_MercadoBase[Posto],$G48)),2),0) -> 0 | L48: =IFERROR(ROUND((AVERAGEIFS(DADOS_MercadoBase[TUSD/MWh],DADOS_MercadoBase[TipoMercado],$A$3,DADOS_MercadoBase[Subgrupo],$A48,DADOS_MercadoBase[Modalidade],$B48,DADOS_MercadoBase[Classe],$D48,DADOS_MercadoBase[Subclasse],$E48,DADOS_MercadoBase[Detalhe],$F48,DADOS_MercadoBase[Posto],$G48)),2),0) -> 517.45 | M48: =IFERROR(ROUND((AVERAGEIFS(DADOS_MercadoBase[TE],DADOS_MercadoBase[TipoMercado],$A$3,DADOS_MercadoBase[Subgrupo],$A48,DADOS_MercadoBase[Modalidade],$B48,DADOS_MercadoBase[Classe],$D48,DADOS_MercadoBase[Subclasse],$E48,DADOS_MercadoBase[Detalhe],$F48,DADOS_MercadoBase[Posto],$G48)),2),0) -> 268.33
A49: B3 | B49: Convencional | D49: Serviço público | E49: Tração elétrica | F49: Não se aplica | G49: Não se aplica | H49: =IFERROR(ROUND((AVERAGEIFS(DADOS_MercadoBase[Tar_PTUSD],DADOS_MercadoBase[TipoMercado],$A$3,DADOS_MercadoBase[Subgrupo],$A49,DADOS_MercadoBase[Modalidade],$B49,DADOS_MercadoBase[Classe],$D49,DADOS_MercadoBase[Subclasse],$E49,DADOS_MercadoBase[Detalhe],$F49,DADOS_MercadoBase[Posto],$G49)),2),0) -> 0 | I49: =IFERROR(ROUND((AVERAGEIFS(DADOS_MercadoBase[Tar_ETUSD],DADOS_MercadoBase[TipoMercado],$A$3,DADOS_MercadoBase[Subgrupo],$A49,DADOS_MercadoBase[Modalidade],$B49,DADOS_MercadoBase[Classe],$D49,DADOS_MercadoBase[Subclasse],$E49,DADOS_MercadoBase[Detalhe],$F49,DADOS_MercadoBase[Posto],$G49)),2),0) -> 0 | J49: =IFERROR(ROUND((AVERAGEIFS(DADOS_MercadoBase[Tar_ETE],DADOS_MercadoBase[TipoMercado],$A$3,DADOS_MercadoBase[Subgrupo],$A49,DADOS_MercadoBase[Modalidade],$B49,DADOS_MercadoBase[Classe],$D49,DADOS_MercadoBase[Subclasse],$E49,DADOS_MercadoBase[Detalhe],$F49,DADOS_MercadoBase[Posto],$G49)),2),0) -> 0 | K49: =IFERROR(ROUND((AVERAGEIFS(DADOS_MercadoBase[TUSD/KW],DADOS_MercadoBase[TipoMercado],$A$3,DADOS_MercadoBase[Subgrupo],$A49,DADOS_MercadoBase[Modalidade],$B49,DADOS_MercadoBase[Classe],$D49,DADOS_MercadoBase[Subclasse],$E49,DADOS_MercadoBase[Detalhe],$F49,DADOS_MercadoBase[Posto],$G49)),2),0) -> 0 | L49: =IFERROR(ROUND((AVERAGEIFS(DADOS_MercadoBase[TUSD/MWh],DADOS_MercadoBase[TipoMercado],$A$3,DADOS_MercadoBase[Subgrupo],$A49,DADOS_MercadoBase[Modalidade],$B49,DADOS_MercadoBase[Classe],$D49,DADOS_MercadoBase[Subclasse],$E49,DADOS_MercadoBase[Detalhe],$F49,DADOS_MercadoBase[Posto],$G49)),2),0) -> 0 | M49: =IFERROR(ROUND((AVERAGEIFS(DADOS_MercadoBase[TE],DADOS_MercadoBase[TipoMercado],$A$3,DADOS_MercadoBase[Subgrupo],$A49,DADOS_MercadoBase[Modalidade],$B49,DADOS_MercadoBase[Classe],$D49,DADOS_MercadoBase[Subclasse],$E49,DADOS_MercadoBase[Detalhe],$F49,DADOS_MercadoBase[Posto],$G49)),2),0) -> 0
A50: B3 | B50: Convencional | D50: Serviço público | E50: Água, esgoto e saneamento | F50: Não se aplica | G50: Não se aplica | H50: =IFERROR(ROUND((AVERAGEIFS(DADOS_MercadoBase[Tar_PTUSD],DADOS_MercadoBase[TipoMercado],$A$3,DADOS_MercadoBase[Subgrupo],$A50,DADOS_MercadoBase[Modalidade],$B50,DADOS_MercadoBase[Classe],$D50,DADOS_MercadoBase[Subclasse],$E50,DADOS_MercadoBase[Detalhe],$F50,DADOS_MercadoBase[Posto],$G50)),2),0) -> 0 | I50: =IFERROR(ROUND((AVERAGEIFS(DADOS_MercadoBase[Tar_ETUSD],DADOS_MercadoBase[TipoMercado],$A$3,DADOS_MercadoBase[Subgrupo],$A50,DADOS_MercadoBase[Modalidade],$B50,DADOS_MercadoBase[Classe],$D50,DADOS_MercadoBase[Subclasse],$E50,DADOS_MercadoBase[Detalhe],$F50,DADOS_MercadoBase[Posto],$G50)),2),0) -> 489.75 | J50: =IFERROR(ROUND((AVERAGEIFS(DADOS_MercadoBase[Tar_ETE],DADOS_MercadoBase[TipoMercado],$A$3,DADOS_MercadoBase[Subgrupo],$A50,DADOS_MercadoBase[Modalidade],$B50,DADOS_MercadoBase[Classe],$D50,DADOS_MercadoBase[Subclasse],$E50,DADOS_MercadoBase[Detalhe],$F50,DADOS_MercadoBase[Posto],$G50)),2),0) -> 271.99 | K50: =IFERROR(ROUND((AVERAGEIFS(DADOS_MercadoBase[TUSD/KW],DADOS_MercadoBase[TipoMercado],$A$3,DADOS_MercadoBase[Subgrupo],$A50,DADOS_MercadoBase[Modalidade],$B50,DADOS_MercadoBase[Classe],$D50,DADOS_MercadoBase[Subclasse],$E50,DADOS_MercadoBase[Detalhe],$F50,DADOS_MercadoBase[Posto],$G50)),2),0) -> 0 | L50: =IFERROR(ROUND((AVERAGEIFS(DADOS_MercadoBase[TUSD/MWh],DADOS_MercadoBase[TipoMercado],$A$3,DADOS_MercadoBase[Subgrupo],$A50,DADOS_MercadoBase[Modalidade],$B50,DADOS_MercadoBase[Classe],$D50,DADOS_MercadoBase[Subclasse],$E50,DADOS_MercadoBase[Detalhe],$F50,DADOS_MercadoBase[Posto],$G50)),2),0) -> 517.45 | M50: =IFERROR(ROUND((AVERAGEIFS(DADOS_MercadoBase[TE],DADOS_MercadoBase[TipoMercado],$A$3,DADOS_MercadoBase[Subgrupo],$A50,DADOS_MercadoBase[Modalidade],$B50,DADOS_MercadoBase[Classe],$D50,DADOS_MercadoBase[Subclasse],$E50,DADOS_MercadoBase[Detalhe],$F50,DADOS_MercadoBase[Posto],$G50)),2),0) -> 268.33
A51: B4 | B51: Convencional | D51: Iluminação pública | E51: Iluminação pública – B4a | F51: Não se aplica | G51: Não se aplica | H51: =IFERROR(ROUND((AVERAGEIFS(DADOS_MercadoBase[Tar_PTUSD],DADOS_MercadoBase[TipoMercado],$A$3,DADOS_MercadoBase[Subgrupo],$A51,DADOS_MercadoBase[Modalidade],$B51,DADOS_MercadoBase[Classe],$D51,DADOS_MercadoBase[Subclasse],$E51,DADOS_MercadoBase[Detalhe],$F51,DADOS_MercadoBase[Posto],$G51)),2),0) -> 0 | I51: =IFERROR(ROUND((AVERAGEIFS(DADOS_MercadoBase[Tar_ETUSD],DADOS_MercadoBase[TipoMercado],$A$3,DADOS_MercadoBase[Subgrupo],$A51,DADOS_MercadoBase[Modalidade],$B51,DADOS_MercadoBase[Classe],$D51,DADOS_MercadoBase[Subclasse],$E51,DADOS_MercadoBase[Detalhe],$F51,DADOS_MercadoBase[Posto],$G51)),2),0) -> 269.36 | J51: =IFERROR(ROUND((AVERAGEIFS(DADOS_MercadoBase[Tar_ETE],DADOS_MercadoBase[TipoMercado],$A$3,DADOS_MercadoBase[Subgrupo],$A51,DADOS_MercadoBase[Modalidade],$B51,DADOS_MercadoBase[Classe],$D51,DADOS_MercadoBase[Subclasse],$E51,DADOS_MercadoBase[Detalhe],$F51,DADOS_MercadoBase[Posto],$G51)),2),0) -> 149.6 | K51: =IFERROR(ROUND((AVERAGEIFS(DADOS_MercadoBase[TUSD/KW],DADOS_MercadoBase[TipoMercado],$A$3,DADOS_MercadoBase[Subgrupo],$A51,DADOS_MercadoBase[Modalidade],$B51,DADOS_MercadoBase[Classe],$D51,DADOS_MercadoBase[Subclasse],$E51,DADOS_MercadoBase[Detalhe],$F51,DADOS_MercadoBase[Posto],$G51)),2),0) -> 0 | L51: =IFERROR(ROUND((AVERAGEIFS(DADOS_MercadoBase[TUSD/MWh],DADOS_MercadoBase[TipoMercado],$A$3,DADOS_MercadoBase[Subgrupo],$A51,DADOS_MercadoBase[Modalidade],$B51,DADOS_MercadoBase[Classe],$D51,DADOS_MercadoBase[Subclasse],$E51,DADOS_MercadoBase[Detalhe],$F51,DADOS_MercadoBase[Posto],$G51)),2),0) -> 284.6 | M51: =IFERROR(ROUND((AVERAGEIFS(DADOS_MercadoBase[TE],DADOS_MercadoBase[TipoMercado],$A$3,DADOS_MercadoBase[Subgrupo],$A51,DADOS_MercadoBase[Modalidade],$B51,DADOS_MercadoBase[Classe],$D51,DADOS_MercadoBase[Subclasse],$E51,DADOS_MercadoBase[Detalhe],$F51,DADOS_MercadoBase[Posto],$G51)),2),0) -> 147.58
A52: B4 | B52: Convencional | D52: Iluminação pública | E52: Iluminação pública – B4b | F52: Não se aplica | G52: Não se aplica | H52: =IFERROR(ROUND((AVERAGEIFS(DADOS_MercadoBase[Tar_PTUSD],DADOS_MercadoBase[TipoMercado],$A$3,DADOS_MercadoBase[Subgrupo],$A52,DADOS_MercadoBase[Modalidade],$B52,DADOS_MercadoBase[Classe],$D52,DADOS_MercadoBase[Subclasse],$E52,DADOS_MercadoBase[Detalhe],$F52,DADOS_MercadoBase[Posto],$G52)),2),0) -> 0 | I52: =IFERROR(ROUND((AVERAGEIFS(DADOS_MercadoBase[Tar_ETUSD],DADOS_MercadoBase[TipoMercado],$A$3,DADOS_MercadoBase[Subgrupo],$A52,DADOS_MercadoBase[Modalidade],$B52,DADOS_MercadoBase[Classe],$D52,DADOS_MercadoBase[Subclasse],$E52,DADOS_MercadoBase[Detalhe],$F52,DADOS_MercadoBase[Posto],$G52)),2),0) -> 0 | J52: =IFERROR(ROUND((AVERAGEIFS(DADOS_MercadoBase[Tar_ETE],DADOS_MercadoBase[TipoMercado],$A$3,DADOS_MercadoBase[Subgrupo],$A52,DADOS_MercadoBase[Modalidade],$B52,DADOS_MercadoBase[Classe],$D52,DADOS_MercadoBase[Subclasse],$E52,DADOS_MercadoBase[Detalhe],$F52,DADOS_MercadoBase[Posto],$G52)),2),0) -> 0 | K52: =IFERROR(ROUND((AVERAGEIFS(DADOS_MercadoBase[TUSD/KW],DADOS_MercadoBase[TipoMercado],$A$3,DADOS_MercadoBase[Subgrupo],$A52,DADOS_MercadoBase[Modalidade],$B52,DADOS_MercadoBase[Classe],$D52,DADOS_MercadoBase[Subclasse],$E52,DADOS_MercadoBase[Detalhe],$F52,DADOS_MercadoBase[Posto],$G52)),2),0) -> 0 | L52: =IFERROR(ROUND((AVERAGEIFS(DADOS_MercadoBase[TUSD/MWh],DADOS_MercadoBase[TipoMercado],$A$3,DADOS_MercadoBase[Subgrupo],$A52,DADOS_MercadoBase[Modalidade],$B52,DADOS_MercadoBase[Classe],$D52,DADOS_MercadoBase[Subclasse],$E52,DADOS_MercadoBase[Detalhe],$F52,DADOS_MercadoBase[Posto],$G52)),2),0) -> 0 | M52: =IFERROR(ROUND((AVERAGEIFS(DADOS_MercadoBase[TE],DADOS_MercadoBase[TipoMercado],$A$3,DADOS_MercadoBase[Subgrupo],$A52,DADOS_MercadoBase[Modalidade],$B52,DADOS_MercadoBase[Classe],$D52,DADOS_MercadoBase[Subclasse],$E52,DADOS_MercadoBase[Detalhe],$F52,DADOS_MercadoBase[Posto],$G52)),2),0) -> 0
A53: B | B53: Geração | D53: TIPO 01 | E53: Não se aplica | F53: Não se aplica | G53: Não se aplica | H53: =IFERROR(ROUND((AVERAGEIFS(DADOS_MercadoBase[Tar_PTUSD],DADOS_MercadoBase[TipoMercado],$A$3,DADOS_MercadoBase[Subgrupo],$A53,DADOS_MercadoBase[Modalidade],$B53,DADOS_MercadoBase[Classe],$D53,DADOS_MercadoBase[Subclasse],$E53,DADOS_MercadoBase[Detalhe],$F53,DADOS_MercadoBase[Posto],$G53)),2),0) -> 0 | I53: =IFERROR(ROUND((AVERAGEIFS(DADOS_MercadoBase[Tar_ETUSD],DADOS_MercadoBase[TipoMercado],$A$3,DADOS_MercadoBase[Subgrupo],$A53,DADOS_MercadoBase[Modalidade],$B53,DADOS_MercadoBase[Classe],$D53,DADOS_MercadoBase[Subclasse],$E53,DADOS_MercadoBase[Detalhe],$F53,DADOS_MercadoBase[Posto],$G53)),2),0) -> 0 | J53: =IFERROR(ROUND((AVERAGEIFS(DADOS_MercadoBase[Tar_ETE],DADOS_MercadoBase[TipoMercado],$A$3,DADOS_MercadoBase[Subgrupo],$A53,DADOS_MercadoBase[Modalidade],$B53,DADOS_MercadoBase[Classe],$D53,DADOS_MercadoBase[Subclasse],$E53,DADOS_MercadoBase[Detalhe],$F53,DADOS_MercadoBase[Posto],$G53)),2),0) -> 0 | K53: =IFERROR(ROUND((AVERAGEIFS(DADOS_MercadoBase[TUSD/KW],DADOS_MercadoBase[TipoMercado],$A$3,DADOS_MercadoBase[Subgrupo],$A53,DADOS_MercadoBase[Modalidade],$B53,DADOS_MercadoBase[Classe],$D53,DADOS_MercadoBase[Subclasse],$E53,DADOS_MercadoBase[Detalhe],$F53,DADOS_MercadoBase[Posto],$G53)),2),0) -> 0 | L53: =IFERROR(ROUND((AVERAGEIFS(DADOS_MercadoBase[TUSD/MWh],DADOS_MercadoBase[TipoMercado],$A$3,DADOS_MercadoBase[Subgrupo],$A53,DADOS_MercadoBase[Modalidade],$B53,DADOS_MercadoBase[Classe],$D53,DADOS_MercadoBase[Subclasse],$E53,DADOS_MercadoBase[Detalhe],$F53,DADOS_MercadoBase[Posto],$G53)),2),0) -> 0 | M53: =IFERROR(ROUND((AVERAGEIFS(DADOS_MercadoBase[TE],DADOS_MercadoBase[TipoMercado],$A$3,DADOS_MercadoBase[Subgrupo],$A53,DADOS_MercadoBase[Modalidade],$B53,DADOS_MercadoBase[Classe],$D53,DADOS_MercadoBase[Subclasse],$E53,DADOS_MercadoBase[Detalhe],$F53,DADOS_MercadoBase[Posto],$G53)),2),0) -> 0
A54: B | B54: Geração | D54: TIPO 02 | E54: Não se aplica | F54: Não se aplica | G54: Não se aplica | H54: =IFERROR(ROUND((AVERAGEIFS(DADOS_MercadoBase[Tar_PTUSD],DADOS_MercadoBase[TipoMercado],$A$3,DADOS_MercadoBase[Subgrupo],$A54,DADOS_MercadoBase[Modalidade],$B54,DADOS_MercadoBase[Classe],$D54,DADOS_MercadoBase[Subclasse],$E54,DADOS_MercadoBase[Detalhe],$F54,DADOS_MercadoBase[Posto],$G54)),2),0) -> 0 | I54: =IFERROR(ROUND((AVERAGEIFS(DADOS_MercadoBase[Tar_ETUSD],DADOS_MercadoBase[TipoMercado],$A$3,DADOS_MercadoBase[Subgrupo],$A54,DADOS_MercadoBase[Modalidade],$B54,DADOS_MercadoBase[Classe],$D54,DADOS_MercadoBase[Subclasse],$E54,DADOS_MercadoBase[Detalhe],$F54,DADOS_MercadoBase[Posto],$G54)),2),0) -> 0 | J54: =IFERROR(ROUND((AVERAGEIFS(DADOS_MercadoBase[Tar_ETE],DADOS_MercadoBase[TipoMercado],$A$3,DADOS_MercadoBase[Subgrupo],$A54,DADOS_MercadoBase[Modalidade],$B54,DADOS_MercadoBase[Classe],$D54,DADOS_MercadoBase[Subclasse],$E54,DADOS_MercadoBase[Detalhe],$F54,DADOS_MercadoBase[Posto],$G54)),2),0) -> 0 | K54: =IFERROR(ROUND((AVERAGEIFS(DADOS_MercadoBase[TUSD/KW],DADOS_MercadoBase[TipoMercado],$A$3,DADOS_MercadoBase[Subgrupo],$A54,DADOS_MercadoBase[Modalidade],$B54,DADOS_MercadoBase[Classe],$D54,DADOS_MercadoBase[Subclasse],$E54,DADOS_MercadoBase[Detalhe],$F54,DADOS_MercadoBase[Posto],$G54)),2),0) -> 0 | L54: =IFERROR(ROUND((AVERAGEIFS(DADOS_MercadoBase[TUSD/MWh],DADOS_MercadoBase[TipoMercado],$A$3,DADOS_MercadoBase[Subgrupo],$A54,DADOS_MercadoBase[Modalidade],$B54,DADOS_MercadoBase[Classe],$D54,DADOS_MercadoBase[Subclasse],$E54,DADOS_MercadoBase[Detalhe],$F54,DADOS_MercadoBase[Posto],$G54)),2),0) -> 0 | M54: =IFERROR(ROUND((AVERAGEIFS(DADOS_MercadoBase[TE],DADOS_MercadoBase[TipoMercado],$A$3,DADOS_MercadoBase[Subgrupo],$A54,DADOS_MercadoBase[Modalidade],$B54,DADOS_MercadoBase[Classe],$D54,DADOS_MercadoBase[Subclasse],$E54,DADOS_MercadoBase[Detalhe],$F54,DADOS_MercadoBase[Posto],$G54)),2),0) -> 0
A57: Geração
A58: SUBGRUPO | B58: MODALIDADE | C58: MODALIDADE REH | D58: CLASSE | E58: SUBCLASSE | F58: DETALHE | G58: POSTO | H58: TARIFAS DE APLICAÇÃO | K58: BASE ECONÔMICA | O58: SUBGRUPO | P58: MODALIDADE | Q58: ACESSANTE | R58: POSTO | S58: TARIFAS DE APLICAÇÃO | V58: BASE ECONÔMICA
H59: TUSD | J59: TE | K59: TUSD | M59: TE | S59: TUSD | U59: TE | V59: TUSD | X59: TE
H60: R$/kW | I60: R$/MWh | J60: R$/MWh | K60: R$/kW | L60: R$/MWh | M60: R$/MWh | S60: R$/kW | T60: R$/MWh | U60: R$/MWh | V60: R$/kW | W60: R$/MWh | X60: R$/MWh
A61: A2 | B61: Azul | C61: Azul | D61: Comercial | E61: Não se aplica | F61: Não se aplica | G61: Ponta | H61: =IFERROR(ROUND((AVERAGEIFS(DADOS_MercadoBase[Tar_PTUSD],DADOS_MercadoBase[TipoMercado],$A$3,DADOS_MercadoBase[OPÇÃO],$A$57,DADOS_MercadoBase[Subgrupo],$A61,DADOS_MercadoBase[Modalidade],$B61,DADOS_MercadoBase[Classe],$D61,DADOS_MercadoBase[Subclasse],$E61,DADOS_MercadoBase[Detalhe],$F61,DADOS_MercadoBase[Posto],$G61)),2),0) -> 0 | I61: =IFERROR(ROUND((AVERAGEIFS(DADOS_MercadoBase[Tar_ETUSD],DADOS_MercadoBase[TipoMercado],$A$3,DADOS_MercadoBase[OPÇÃO],$A$57,DADOS_MercadoBase[Subgrupo],$A61,DADOS_MercadoBase[Modalidade],$B61,DADOS_MercadoBase[Classe],$D61,DADOS_MercadoBase[Subclasse],$E61,DADOS_MercadoBase[Detalhe],$F61,DADOS_MercadoBase[Posto],$G61)),2),0) -> 0 | J61: =IFERROR(ROUND((AVERAGEIFS(DADOS_MercadoBase[Tar_ETE],DADOS_MercadoBase[TipoMercado],$A$3,DADOS_MercadoBase[OPÇÃO],$A$57,DADOS_MercadoBase[Subgrupo],$A61,DADOS_MercadoBase[Modalidade],$B61,DADOS_MercadoBase[Classe],$D61,DADOS_MercadoBase[Subclasse],$E61,DADOS_MercadoBase[Detalhe],$F61,DADOS_MercadoBase[Posto],$G61)),2),0) -> 0 | K61: =IFERROR(ROUND((AVERAGEIFS(DADOS_MercadoBase[TUSD/KW],DADOS_MercadoBase[TipoMercado],$A$3,DADOS_MercadoBase[OPÇÃO],$A$57,DADOS_MercadoBase[Subgrupo],$A61,DADOS_MercadoBase[Modalidade],$B61,DADOS_MercadoBase[Classe],$D61,DADOS_MercadoBase[Subclasse],$E61,DADOS_MercadoBase[Detalhe],$F61,DADOS_MercadoBase[Posto],$G61)),2),0) -> 0 | L61: =IFERROR(ROUND((AVERAGEIFS(DADOS_MercadoBase[TUSD/MWh],DADOS_MercadoBase[TipoMercado],$A$3,DADOS_MercadoBase[OPÇÃO],$A$57,DADOS_MercadoBase[Subgrupo],$A61,DADOS_MercadoBase[Modalidade],$B61,DADOS_MercadoBase[Classe],$D61,DADOS_MercadoBase[Subclasse],$E61,DADOS_MercadoBase[Detalhe],$F61,DADOS_MercadoBase[Posto],$G61)),2),0) -> 0 | M61: =IFERROR(ROUND((AVERAGEIFS(DADOS_MercadoBase[TE],DADOS_MercadoBase[TipoMercado],$A$3,DADOS_MercadoBase[OPÇÃO],$A$57,DADOS_MercadoBase[Subgrupo],$A61,DADOS_MercadoBase[Modalidade],$B61,DADOS_MercadoBase[Classe],$D61,DADOS_MercadoBase[Subclasse],$E61,DADOS_MercadoBase[Detalhe],$F61,DADOS_MercadoBase[Posto],$G61)),2),0) -> 0 | O61: A2 | P61: Azul | Q61: Não se aplica | R61: P | S61: 23.04 | T61: 54.16 | U61: 423.28 | V61: 23.7 | W61: 52.67 | X61: 422.71
A62: A2 | B62: Azul | C62: Azul | D62: Comercial | E62: Não se aplica | F62: Não se aplica | G62: Fora ponta | H62: =IFERROR(ROUND((AVERAGEIFS(DADOS_MercadoBase[Tar_PTUSD],DADOS_MercadoBase[TipoMercado],$A$3,DADOS_MercadoBase[OPÇÃO],$A$57,DADOS_MercadoBase[Subgrupo],$A62,DADOS_MercadoBase[Modalidade],$B62,DADOS_MercadoBase[Classe],$D62,DADOS_MercadoBase[Subclasse],$E62,DADOS_MercadoBase[Detalhe],$F62,DADOS_MercadoBase[Posto],$G62)),2),0) -> 0 | I62: =IFERROR(ROUND((AVERAGEIFS(DADOS_MercadoBase[Tar_ETUSD],DADOS_MercadoBase[TipoMercado],$A$3,DADOS_MercadoBase[OPÇÃO],$A$57,DADOS_MercadoBase[Subgrupo],$A62,DADOS_MercadoBase[Modalidade],$B62,DADOS_MercadoBase[Classe],$D62,DADOS_MercadoBase[Subclasse],$E62,DADOS_MercadoBase[Detalhe],$F62,DADOS_MercadoBase[Posto],$G62)),2),0) -> 0 | J62: =IFERROR(ROUND((AVERAGEIFS(DADOS_MercadoBase[Tar_ETE],DADOS_MercadoBase[TipoMercado],$A$3,DADOS_MercadoBase[OPÇÃO],$A$57,DADOS_MercadoBase[Subgrupo],$A62,DADOS_MercadoBase[Modalidade],$B62,DADOS_MercadoBase[Classe],$D62,DADOS_MercadoBase[Subclasse],$E62,DADOS_MercadoBase[Detalhe],$F62,DADOS_MercadoBase[Posto],$G62)),2),0) -> 0 | K62: =IFERROR(ROUND((AVERAGEIFS(DADOS_MercadoBase[TUSD/KW],DADOS_MercadoBase[TipoMercado],$A$3,DADOS_MercadoBase[OPÇÃO],$A$57,DADOS_MercadoBase[Subgrupo],$A62,DADOS_MercadoBase[Modalidade],$B62,DADOS_MercadoBase[Classe],$D62,DADOS_MercadoBase[Subclasse],$E62,DADOS_MercadoBase[Detalhe],$F62,DADOS_MercadoBase[Posto],$G62)),2),0) -> 0 | L62: =IFERROR(ROUND((AVERAGEIFS(DADOS_MercadoBase[TUSD/MWh],DADOS_MercadoBase[TipoMercado],$A$3,DADOS_MercadoBase[OPÇÃO],$A$57,DADOS_MercadoBase[Subgrupo],$A62,DADOS_MercadoBase[Modalidade],$B62,DADOS_MercadoBase[Classe],$D62,DADOS_MercadoBase[Subclasse],$E62,DADOS_MercadoBase[Detalhe],$F62,DADOS_MercadoBase[Posto],$G62)),2),0) -> 0 | M62: =IFERROR(ROUND((AVERAGEIFS(DADOS_MercadoBase[TE],DADOS_MercadoBase[TipoMercado],$A$3,DADOS_MercadoBase[OPÇÃO],$A$57,DADOS_MercadoBase[Subgrupo],$A62,DADOS_MercadoBase[Modalidade],$B62,DADOS_MercadoBase[Classe],$D62,DADOS_MercadoBase[Subclasse],$E62,DADOS_MercadoBase[Detalhe],$F62,DADOS_MercadoBase[Posto],$G62)),2),0) -> 0 | R62: FP | S62: 9.66 | T62: 54.16 | U62: 258.24 | V62: 9.21 | W62: 52.67 | X62: 254.3
A63: A2 | B63: Azul | C63: Azul | D63: Comercial | E63: Não se aplica | F63: Não se aplica | G63: Não se aplica | H63: =IFERROR(ROUND((AVERAGEIFS(DADOS_MercadoBase[Tar_PTUSD],DADOS_MercadoBase[TipoMercado],$A$3,DADOS_MercadoBase[OPÇÃO],$A$57,DADOS_MercadoBase[Subgrupo],$A63,DADOS_MercadoBase[Modalidade],$B63,DADOS_MercadoBase[Classe],$D63,DADOS_MercadoBase[Subclasse],$E63,DADOS_MercadoBase[Detalhe],$F63,DADOS_MercadoBase[Posto],$G63)),2),0) -> 0 | I63: =IFERROR(ROUND((AVERAGEIFS(DADOS_MercadoBase[Tar_ETUSD],DADOS_MercadoBase[TipoMercado],$A$3,DADOS_MercadoBase[OPÇÃO],$A$57,DADOS_MercadoBase[Subgrupo],$A63,DADOS_MercadoBase[Modalidade],$B63,DADOS_MercadoBase[Classe],$D63,DADOS_MercadoBase[Subclasse],$E63,DADOS_MercadoBase[Detalhe],$F63,DADOS_MercadoBase[Posto],$G63)),2),0) -> 0 | J63: =IFERROR(ROUND((AVERAGEIFS(DADOS_MercadoBase[Tar_ETE],DADOS_MercadoBase[TipoMercado],$A$3,DADOS_MercadoBase[OPÇÃO],$A$57,DADOS_MercadoBase[Subgrupo],$A63,DADOS_MercadoBase[Modalidade],$B63,DADOS_MercadoBase[Classe],$D63,DADOS_MercadoBase[Subclasse],$E63,DADOS_MercadoBase[Detalhe],$F63,DADOS_MercadoBase[Posto],$G63)),2),0) -> 0 | K63: =IFERROR(ROUND((AVERAGEIFS(DADOS_MercadoBase[TUSD/KW],DADOS_MercadoBase[TipoMercado],$A$3,DADOS_MercadoBase[OPÇÃO],$A$57,DADOS_MercadoBase[Subgrupo],$A63,DADOS_MercadoBase[Modalidade],$B63,DADOS_MercadoBase[Classe],$D63,DADOS_MercadoBase[Subclasse],$E63,DADOS_MercadoBase[Detalhe],$F63,DADOS_MercadoBase[Posto],$G63)),2),0) -> 0 | L63: =IFERROR(ROUND((AVERAGEIFS(DADOS_MercadoBase[TUSD/MWh],DADOS_MercadoBase[TipoMercado],$A$3,DADOS_MercadoBase[OPÇÃO],$A$57,DADOS_MercadoBase[Subgrupo],$A63,DADOS_MercadoBase[Modalidade],$B63,DADOS_MercadoBase[Classe],$D63,DADOS_MercadoBase[Subclasse],$E63,DADOS_MercadoBase[Detalhe],$F63,DADOS_MercadoBase[Posto],$G63)),2),0) -> 0 | M63: =IFERROR(ROUND((AVERAGEIFS(DADOS_MercadoBase[TE],DADOS_MercadoBase[TipoMercado],$A$3,DADOS_MercadoBase[OPÇÃO],$A$57,DADOS_MercadoBase[Subgrupo],$A63,DADOS_MercadoBase[Modalidade],$B63,DADOS_MercadoBase[Classe],$D63,DADOS_MercadoBase[Subclasse],$E63,DADOS_MercadoBase[Detalhe],$F63,DADOS_MercadoBase[Posto],$G63)),2),0) -> 0 | P63: Azul APE | Q63: Não se aplica | R63: P | S63: 23.04 | T63: 12.42 | U63: 0 | V63: 23.7 | W63: 12.7 | X63: 0
A64: A2 | B64: Azul | C64: Azul | D64: Industrial | E64: Não se aplica | F64: Não se aplica | G64: Ponta | H64: =IFERROR(ROUND((AVERAGEIFS(DADOS_MercadoBase[Tar_PTUSD],DADOS_MercadoBase[TipoMercado],$A$3,DADOS_MercadoBase[OPÇÃO],$A$57,DADOS_MercadoBase[Subgrupo],$A64,DADOS_MercadoBase[Modalidade],$B64,DADOS_MercadoBase[Classe],$D64,DADOS_MercadoBase[Subclasse],$E64,DADOS_MercadoBase[Detalhe],$F64,DADOS_MercadoBase[Posto],$G64)),2),0) -> 0 | I64: =IFERROR(ROUND((AVERAGEIFS(DADOS_MercadoBase[Tar_ETUSD],DADOS_MercadoBase[TipoMercado],$A$3,DADOS_MercadoBase[OPÇÃO],$A$57,DADOS_MercadoBase[Subgrupo],$A64,DADOS_MercadoBase[Modalidade],$B64,DADOS_MercadoBase[Classe],$D64,DADOS_MercadoBase[Subclasse],$E64,DADOS_MercadoBase[Detalhe],$F64,DADOS_MercadoBase[Posto],$G64)),2),0) -> 0 | J64: =IFERROR(ROUND((AVERAGEIFS(DADOS_MercadoBase[Tar_ETE],DADOS_MercadoBase[TipoMercado],$A$3,DADOS_MercadoBase[OPÇÃO],$A$57,DADOS_MercadoBase[Subgrupo],$A64,DADOS_MercadoBase[Modalidade],$B64,DADOS_MercadoBase[Classe],$D64,DADOS_MercadoBase[Subclasse],$E64,DADOS_MercadoBase[Detalhe],$F64,DADOS_MercadoBase[Posto],$G64)),2),0) -> 0 | K64: =IFERROR(ROUND((AVERAGEIFS(DADOS_MercadoBase[TUSD/KW],DADOS_MercadoBase[TipoMercado],$A$3,DADOS_MercadoBase[OPÇÃO],$A$57,DADOS_MercadoBase[Subgrupo],$A64,DADOS_MercadoBase[Modalidade],$B64,DADOS_MercadoBase[Classe],$D64,DADOS_MercadoBase[Subclasse],$E64,DADOS_MercadoBase[Detalhe],$F64,DADOS_MercadoBase[Posto],$G64)),2),0) -> 0 | L64: =IFERROR(ROUND((AVERAGEIFS(DADOS_MercadoBase[TUSD/MWh],DADOS_MercadoBase[TipoMercado],$A$3,DADOS_MercadoBase[OPÇÃO],$A$57,DADOS_MercadoBase[Subgrupo],$A64,DADOS_MercadoBase[Modalidade],$B64,DADOS_MercadoBase[Classe],$D64,DADOS_MercadoBase[Subclasse],$E64,DADOS_MercadoBase[Detalhe],$F64,DADOS_MercadoBase[Posto],$G64)),2),0) -> 0 | M64: =IFERROR(ROUND((AVERAGEIFS(DADOS_MercadoBase[TE],DADOS_MercadoBase[TipoMercado],$A$3,DADOS_MercadoBase[OPÇÃO],$A$57,DADOS_MercadoBase[Subgrupo],$A64,DADOS_MercadoBase[Modalidade],$B64,DADOS_MercadoBase[Classe],$D64,DADOS_MercadoBase[Subclasse],$E64,DADOS_MercadoBase[Detalhe],$F64,DADOS_MercadoBase[Posto],$G64)),2),0) -> 0 | R64: FP | S64: 9.66 | T64: 12.42 | U64: 0 | V64: 9.21 | W64: 12.7 | X64: 0
A65: A2 | B65: Azul | C65: Azul | D65: Industrial | E65: Não se aplica | F65: Não se aplica | G65: Fora ponta | H65: =IFERROR(ROUND((AVERAGEIFS(DADOS_MercadoBase[Tar_PTUSD],DADOS_MercadoBase[TipoMercado],$A$3,DADOS_MercadoBase[OPÇÃO],$A$57,DADOS_MercadoBase[Subgrupo],$A65,DADOS_MercadoBase[Modalidade],$B65,DADOS_MercadoBase[Classe],$D65,DADOS_MercadoBase[Subclasse],$E65,DADOS_MercadoBase[Detalhe],$F65,DADOS_MercadoBase[Posto],$G65)),2),0) -> 0 | I65: =IFERROR(ROUND((AVERAGEIFS(DADOS_MercadoBase[Tar_ETUSD],DADOS_MercadoBase[TipoMercado],$A$3,DADOS_MercadoBase[OPÇÃO],$A$57,DADOS_MercadoBase[Subgrupo],$A65,DADOS_MercadoBase[Modalidade],$B65,DADOS_MercadoBase[Classe],$D65,DADOS_MercadoBase[Subclasse],$E65,DADOS_MercadoBase[Detalhe],$F65,DADOS_MercadoBase[Posto],$G65)),2),0) -> 0 | J65: =IFERROR(ROUND((AVERAGEIFS(DADOS_MercadoBase[Tar_ETE],DADOS_MercadoBase[TipoMercado],$A$3,DADOS_MercadoBase[OPÇÃO],$A$57,DADOS_MercadoBase[Subgrupo],$A65,DADOS_MercadoBase[Modalidade],$B65,DADOS_MercadoBase[Classe],$D65,DADOS_MercadoBase[Subclasse],$E65,DADOS_MercadoBase[Detalhe],$F65,DADOS_MercadoBase[Posto],$G65)),2),0) -> 0 | K65: =IFERROR(ROUND((AVERAGEIFS(DADOS_MercadoBase[TUSD/KW],DADOS_MercadoBase[TipoMercado],$A$3,DADOS_MercadoBase[OPÇÃO],$A$57,DADOS_MercadoBase[Subgrupo],$A65,DADOS_MercadoBase[Modalidade],$B65,DADOS_MercadoBase[Classe],$D65,DADOS_MercadoBase[Subclasse],$E65,DADOS_MercadoBase[Detalhe],$F65,DADOS_MercadoBase[Posto],$G65)),2),0) -> 0 | L65: =IFERROR(ROUND((AVERAGEIFS(DADOS_MercadoBase[TUSD/MWh],DADOS_MercadoBase[TipoMercado],$A$3,DADOS_MercadoBase[OPÇÃO],$A$57,DADOS_MercadoBase[Subgrupo],$A65,DADOS_MercadoBase[Modalidade],$B65,DADOS_MercadoBase[Classe],$D65,DADOS_MercadoBase[Subclasse],$E65,DADOS_MercadoBase[Detalhe],$F65,DADOS_MercadoBase[Posto],$G65)),2),0) -> 0 | M65: =IFERROR(ROUND((AVERAGEIFS(DADOS_MercadoBase[TE],DADOS_MercadoBase[TipoMercado],$A$3,DADOS_MercadoBase[OPÇÃO],$A$57,DADOS_MercadoBase[Subgrupo],$A65,DADOS_MercadoBase[Modalidade],$B65,DADOS_MercadoBase[Classe],$D65,DADOS_MercadoBase[Subclasse],$E65,DADOS_MercadoBase[Detalhe],$F65,DADOS_MercadoBase[Posto],$G65)),2),0) -> 0 | O65: A3 | P65: Azul | Q65: Não se aplica | R65: P | S65: 35.96 | T65: 228.3 | U65: 423.28 | V65: 37.57 | W65: 231.45 | X65: 422.71
A66: A2 | B66: Azul | C66: Azul | D66: Industrial | E66: Não se aplica | F66: Não se aplica | G66: Não se aplica | H66: =IFERROR(ROUND((AVERAGEIFS(DADOS_MercadoBase[Tar_PTUSD],DADOS_MercadoBase[TipoMercado],$A$3,DADOS_MercadoBase[OPÇÃO],$A$57,DADOS_MercadoBase[Subgrupo],$A66,DADOS_MercadoBase[Modalidade],$B66,DADOS_MercadoBase[Classe],$D66,DADOS_MercadoBase[Subclasse],$E66,DADOS_MercadoBase[Detalhe],$F66,DADOS_MercadoBase[Posto],$G66)),2),0) -> 0 | I66: =IFERROR(ROUND((AVERAGEIFS(DADOS_MercadoBase[Tar_ETUSD],DADOS_MercadoBase[TipoMercado],$A$3,DADOS_MercadoBase[OPÇÃO],$A$57,DADOS_MercadoBase[Subgrupo],$A66,DADOS_MercadoBase[Modalidade],$B66,DADOS_MercadoBase[Classe],$D66,DADOS_MercadoBase[Subclasse],$E66,DADOS_MercadoBase[Detalhe],$F66,DADOS_MercadoBase[Posto],$G66)),2),0) -> 0 | J66: =IFERROR(ROUND((AVERAGEIFS(DADOS_MercadoBase[Tar_ETE],DADOS_MercadoBase[TipoMercado],$A$3,DADOS_MercadoBase[OPÇÃO],$A$57,DADOS_MercadoBase[Subgrupo],$A66,DADOS_MercadoBase[Modalidade],$B66,DADOS_MercadoBase[Classe],$D66,DADOS_MercadoBase[Subclasse],$E66,DADOS_MercadoBase[Detalhe],$F66,DADOS_MercadoBase[Posto],$G66)),2),0) -> 0 | K66: =IFERROR(ROUND((AVERAGEIFS(DADOS_MercadoBase[TUSD/KW],DADOS_MercadoBase[TipoMercado],$A$3,DADOS_MercadoBase[OPÇÃO],$A$57,DADOS_MercadoBase[Subgrupo],$A66,DADOS_MercadoBase[Modalidade],$B66,DADOS_MercadoBase[Classe],$D66,DADOS_MercadoBase[Subclasse],$E66,DADOS_MercadoBase[Detalhe],$F66,DADOS_MercadoBase[Posto],$G66)),2),0) -> 0 | L66: =IFERROR(ROUND((AVERAGEIFS(DADOS_MercadoBase[TUSD/MWh],DADOS_MercadoBase[TipoMercado],$A$3,DADOS_MercadoBase[OPÇÃO],$A$57,DADOS_MercadoBase[Subgrupo],$A66,DADOS_MercadoBase[Modalidade],$B66,DADOS_MercadoBase[Classe],$D66,DADOS_MercadoBase[Subclasse],$E66,DADOS_MercadoBase[Detalhe],$F66,DADOS_MercadoBase[Posto],$G66)),2),0) -> 0 | M66: =IFERROR(ROUND((AVERAGEIFS(DADOS_MercadoBase[TE],DADOS_MercadoBase[TipoMercado],$A$3,DADOS_MercadoBase[OPÇÃO],$A$57,DADOS_MercadoBase[Subgrupo],$A66,DADOS_MercadoBase[Modalidade],$B66,DADOS_MercadoBase[Classe],$D66,DADOS_MercadoBase[Subclasse],$E66,DADOS_MercadoBase[Detalhe],$F66,DADOS_MercadoBase[Posto],$G66)),2),0) -> 0 | R66: FP | S66: 13.83 | T66: 228.3 | U66: 258.24 | V66: 13.85 | W66: 231.45 | X66: 254.3
A67: A2 | B67: Azul | C67: Azul APE | D67: Industrial | E67: Não se aplica | F67: APE | G67: Não se aplica | H67: =IFERROR(ROUND((AVERAGEIFS(DADOS_MercadoBase[Tar_PTUSD],DADOS_MercadoBase[TipoMercado],$A$3,DADOS_MercadoBase[OPÇÃO],$A$57,DADOS_MercadoBase[Subgrupo],$A67,DADOS_MercadoBase[Modalidade],$B67,DADOS_MercadoBase[Classe],$D67,DADOS_MercadoBase[Subclasse],$E67,DADOS_MercadoBase[Detalhe],$F67,DADOS_MercadoBase[Posto],$G67)),2),0) -> 0 | I67: =IFERROR(ROUND((AVERAGEIFS(DADOS_MercadoBase[Tar_ETUSD],DADOS_MercadoBase[TipoMercado],$A$3,DADOS_MercadoBase[OPÇÃO],$A$57,DADOS_MercadoBase[Subgrupo],$A67,DADOS_MercadoBase[Modalidade],$B67,DADOS_MercadoBase[Classe],$D67,DADOS_MercadoBase[Subclasse],$E67,DADOS_MercadoBase[Detalhe],$F67,DADOS_MercadoBase[Posto],$G67)),2),0) -> 0 | J67: =IFERROR(ROUND((AVERAGEIFS(DADOS_MercadoBase[Tar_ETE],DADOS_MercadoBase[TipoMercado],$A$3,DADOS_MercadoBase[OPÇÃO],$A$57,DADOS_MercadoBase[Subgrupo],$A67,DADOS_MercadoBase[Modalidade],$B67,DADOS_MercadoBase[Classe],$D67,DADOS_MercadoBase[Subclasse],$E67,DADOS_MercadoBase[Detalhe],$F67,DADOS_MercadoBase[Posto],$G67)),2),0) -> 0 | K67: =IFERROR(ROUND((AVERAGEIFS(DADOS_MercadoBase[TUSD/KW],DADOS_MercadoBase[TipoMercado],$A$3,DADOS_MercadoBase[OPÇÃO],$A$57,DADOS_MercadoBase[Subgrupo],$A67,DADOS_MercadoBase[Modalidade],$B67,DADOS_MercadoBase[Classe],$D67,DADOS_MercadoBase[Subclasse],$E67,DADOS_MercadoBase[Detalhe],$F67,DADOS_MercadoBase[Posto],$G67)),2),0) -> 0 | L67: =IFERROR(ROUND((AVERAGEIFS(DADOS_MercadoBase[TUSD/MWh],DADOS_MercadoBase[TipoMercado],$A$3,DADOS_MercadoBase[OPÇÃO],$A$57,DADOS_MercadoBase[Subgrupo],$A67,DADOS_MercadoBase[Modalidade],$B67,DADOS_MercadoBase[Classe],$D67,DADOS_MercadoBase[Subclasse],$E67,DADOS_MercadoBase[Detalhe],$F67,DADOS_MercadoBase[Posto],$G67)),2),0) -> 0 | M67: =IFERROR(ROUND((AVERAGEIFS(DADOS_MercadoBase[TE],DADOS_MercadoBase[TipoMercado],$A$3,DADOS_MercadoBase[OPÇÃO],$A$57,DADOS_MercadoBase[Subgrupo],$A67,DADOS_MercadoBase[Modalidade],$B67,DADOS_MercadoBase[Classe],$D67,DADOS_MercadoBase[Subclasse],$E67,DADOS_MercadoBase[Detalhe],$F67,DADOS_MercadoBase[Posto],$G67)),2),0) -> 0 | P67: Azul APE | Q67: Não se aplica | R67: P | S67: 35.96 | T67: 186.56 | U67: 0 | V67: 37.57 | W67: 191.48 | X67: 0
A68: A2 | B68: Azul | C68: Azul APE | D68: Industrial | E68: Não se aplica | F68: APE | G68: Não se aplica | H68: =IFERROR(ROUND((AVERAGEIFS(DADOS_MercadoBase[Tar_PTUSD],DADOS_MercadoBase[TipoMercado],$A$3,DADOS_MercadoBase[OPÇÃO],$A$57,DADOS_MercadoBase[Subgrupo],$A68,DADOS_MercadoBase[Modalidade],$B68,DADOS_MercadoBase[Classe],$D68,DADOS_MercadoBase[Subclasse],$E68,DADOS_MercadoBase[Detalhe],$F68,DADOS_MercadoBase[Posto],$G68)),2),0) -> 0 | I68: =IFERROR(ROUND((AVERAGEIFS(DADOS_MercadoBase[Tar_ETUSD],DADOS_MercadoBase[TipoMercado],$A$3,DADOS_MercadoBase[OPÇÃO],$A$57,DADOS_MercadoBase[Subgrupo],$A68,DADOS_MercadoBase[Modalidade],$B68,DADOS_MercadoBase[Classe],$D68,DADOS_MercadoBase[Subclasse],$E68,DADOS_MercadoBase[Detalhe],$F68,DADOS_MercadoBase[Posto],$G68)),2),0) -> 0 | J68: =IFERROR(ROUND((AVERAGEIFS(DADOS_MercadoBase[Tar_ETE],DADOS_MercadoBase[TipoMercado],$A$3,DADOS_MercadoBase[OPÇÃO],$A$57,DADOS_MercadoBase[Subgrupo],$A68,DADOS_MercadoBase[Modalidade],$B68,DADOS_MercadoBase[Classe],$D68,DADOS_MercadoBase[Subclasse],$E68,DADOS_MercadoBase[Detalhe],$F68,DADOS_MercadoBase[Posto],$G68)),2),0) -> 0 | K68: =IFERROR(ROUND((AVERAGEIFS(DADOS_MercadoBase[TUSD/KW],DADOS_MercadoBase[TipoMercado],$A$3,DADOS_MercadoBase[OPÇÃO],$A$57,DADOS_MercadoBase[Subgrupo],$A68,DADOS_MercadoBase[Modalidade],$B68,DADOS_MercadoBase[Classe],$D68,DADOS_MercadoBase[Subclasse],$E68,DADOS_MercadoBase[Detalhe],$F68,DADOS_MercadoBase[Posto],$G68)),2),0) -> 0 | L68: =IFERROR(ROUND((AVERAGEIFS(DADOS_MercadoBase[TUSD/MWh],DADOS_MercadoBase[TipoMercado],$A$3,DADOS_MercadoBase[OPÇÃO],$A$57,DADOS_MercadoBase[Subgrupo],$A68,DADOS_MercadoBase[Modalidade],$B68,DADOS_MercadoBase[Classe],$D68,DADOS_MercadoBase[Subclasse],$E68,DADOS_MercadoBase[Detalhe],$F68,DADOS_MercadoBase[Posto],$G68)),2),0) -> 0 | M68: =IFERROR(ROUND((AVERAGEIFS(DADOS_MercadoBase[TE],DADOS_MercadoBase[TipoMercado],$A$3,DADOS_MercadoBase[OPÇÃO],$A$57,DADOS_MercadoBase[Subgrupo],$A68,DADOS_MercadoBase[Modalidade],$B68,DADOS_MercadoBase[Classe],$D68,DADOS_MercadoBase[Subclasse],$E68,DADOS_MercadoBase[Detalhe],$F68,DADOS_MercadoBase[Posto],$G68)),2),0) -> 0 | R68: FP | S68: 13.83 | T68: 186.56 | U68: 0 | V68: 13.85 | W68: 191.48 | X68: 0
A69: A2 | B69: Azul | C69: Azul APE | D69: Industrial | E69: Não se aplica | F69: APE | G69: Não se aplica | H69: =IFERROR(ROUND((AVERAGEIFS(DADOS_MercadoBase[Tar_PTUSD],DADOS_MercadoBase[TipoMercado],$A$3,DADOS_MercadoBase[OPÇÃO],$A$57,DADOS_MercadoBase[Subgrupo],$A69,DADOS_MercadoBase[Modalidade],$B69,DADOS_MercadoBase[Classe],$D69,DADOS_MercadoBase[Subclasse],$E69,DADOS_MercadoBase[Detalhe],$F69,DADOS_MercadoBase[Posto],$G69)),2),0) -> 0 | I69: =IFERROR(ROUND((AVERAGEIFS(DADOS_MercadoBase[Tar_ETUSD],DADOS_MercadoBase[TipoMercado],$A$3,DADOS_MercadoBase[OPÇÃO],$A$57,DADOS_MercadoBase[Subgrupo],$A69,DADOS_MercadoBase[Modalidade],$B69,DADOS_MercadoBase[Classe],$D69,DADOS_MercadoBase[Subclasse],$E69,DADOS_MercadoBase[Detalhe],$F69,DADOS_MercadoBase[Posto],$G69)),2),0) -> 0 | J69: =IFERROR(ROUND((AVERAGEIFS(DADOS_MercadoBase[Tar_ETE],DADOS_MercadoBase[TipoMercado],$A$3,DADOS_MercadoBase[OPÇÃO],$A$57,DADOS_MercadoBase[Subgrupo],$A69,DADOS_MercadoBase[Modalidade],$B69,DADOS_MercadoBase[Classe],$D69,DADOS_MercadoBase[Subclasse],$E69,DADOS_MercadoBase[Detalhe],$F69,DADOS_MercadoBase[Posto],$G69)),2),0) -> 0 | K69: =IFERROR(ROUND((AVERAGEIFS(DADOS_MercadoBase[TUSD/KW],DADOS_MercadoBase[TipoMercado],$A$3,DADOS_MercadoBase[OPÇÃO],$A$57,DADOS_MercadoBase[Subgrupo],$A69,DADOS_MercadoBase[Modalidade],$B69,DADOS_MercadoBase[Classe],$D69,DADOS_MercadoBase[Subclasse],$E69,DADOS_MercadoBase[Detalhe],$F69,DADOS_MercadoBase[Posto],$G69)),2),0) -> 0 | L69: =IFERROR(ROUND((AVERAGEIFS(DADOS_MercadoBase[TUSD/MWh],DADOS_MercadoBase[TipoMercado],$A$3,DADOS_MercadoBase[OPÇÃO],$A$57,DADOS_MercadoBase[Subgrupo],$A69,DADOS_MercadoBase[Modalidade],$B69,DADOS_MercadoBase[Classe],$D69,DADOS_MercadoBase[Subclasse],$E69,DADOS_MercadoBase[Detalhe],$F69,DADOS_MercadoBase[Posto],$G69)),2),0) -> 0 | M69: =IFERROR(ROUND((AVERAGEIFS(DADOS_MercadoBase[TE],DADOS_MercadoBase[TipoMercado],$A$3,DADOS_MercadoBase[OPÇÃO],$A$57,DADOS_MercadoBase[Subgrupo],$A69,DADOS_MercadoBase[Modalidade],$B69,DADOS_MercadoBase[Classe],$D69,DADOS_MercadoBase[Subclasse],$E69,DADOS_MercadoBase[Detalhe],$F69,DADOS_MercadoBase[Posto],$G69)),2),0) -> 0 | P69: Geração | Q69: Não se aplica | R69: NA | S69: 17.92 | T69: 0 | U69: 0 | V69: 19.47 | W69: 0 | X69: 0
A70: A2 | B70: Azul | D70: Industrial | E70: Não se aplica | F70: Fonte incentivada | G70: Ponta | H70: =IFERROR(ROUND((AVERAGEIFS(DADOS_MercadoBase[Tar_PTUSD],DADOS_MercadoBase[TipoMercado],$A$3,DADOS_MercadoBase[OPÇÃO],$A$57,DADOS_MercadoBase[Subgrupo],$A70,DADOS_MercadoBase[Modalidade],$B70,DADOS_MercadoBase[Classe],$D70,DADOS_MercadoBase[Subclasse],$E70,DADOS_MercadoBase[Detalhe],$F70,DADOS_MercadoBase[Posto],$G70)),2),0) -> 0 | I70: =IFERROR(ROUND((AVERAGEIFS(DADOS_MercadoBase[Tar_ETUSD],DADOS_MercadoBase[TipoMercado],$A$3,DADOS_MercadoBase[OPÇÃO],$A$57,DADOS_MercadoBase[Subgrupo],$A70,DADOS_MercadoBase[Modalidade],$B70,DADOS_MercadoBase[Classe],$D70,DADOS_MercadoBase[Subclasse],$E70,DADOS_MercadoBase[Detalhe],$F70,DADOS_MercadoBase[Posto],$G70)),2),0) -> 0 | J70: =IFERROR(ROUND((AVERAGEIFS(DADOS_MercadoBase[Tar_ETE],DADOS_MercadoBase[TipoMercado],$A$3,DADOS_MercadoBase[OPÇÃO],$A$57,DADOS_MercadoBase[Subgrupo],$A70,DADOS_MercadoBase[Modalidade],$B70,DADOS_MercadoBase[Classe],$D70,DADOS_MercadoBase[Subclasse],$E70,DADOS_MercadoBase[Detalhe],$F70,DADOS_MercadoBase[Posto],$G70)),2),0) -> 0 | K70: =IFERROR(ROUND((AVERAGEIFS(DADOS_MercadoBase[TUSD/KW],DADOS_MercadoBase[TipoMercado],$A$3,DADOS_MercadoBase[OPÇÃO],$A$57,DADOS_MercadoBase[Subgrupo],$A70,DADOS_MercadoBase[Modalidade],$B70,DADOS_MercadoBase[Classe],$D70,DADOS_MercadoBase[Subclasse],$E70,DADOS_MercadoBase[Detalhe],$F70,DADOS_MercadoBase[Posto],$G70)),2),0) -> 0 | L70: =IFERROR(ROUND((AVERAGEIFS(DADOS_MercadoBase[TUSD/MWh],DADOS_MercadoBase[TipoMercado],$A$3,DADOS_MercadoBase[OPÇÃO],$A$57,DADOS_MercadoBase[Subgrupo],$A70,DADOS_MercadoBase[Modalidade],$B70,DADOS_MercadoBase[Classe],$D70,DADOS_MercadoBase[Subclasse],$E70,DADOS_MercadoBase[Detalhe],$F70,DADOS_MercadoBase[Posto],$G70)),2),0) -> 0 | M70: =IFERROR(ROUND((AVERAGEIFS(DADOS_MercadoBase[TE],DADOS_MercadoBase[TipoMercado],$A$3,DADOS_MercadoBase[OPÇÃO],$A$57,DADOS_MercadoBase[Subgrupo],$A70,DADOS_MercadoBase[Modalidade],$B70,DADOS_MercadoBase[Classe],$D70,DADOS_MercadoBase[Subclasse],$E70,DADOS_MercadoBase[Detalhe],$F70,DADOS_MercadoBase[Posto],$G70)),2),0) -> 0 | O70: A3a | P70: Azul | Q70: Não se aplica | R70: P | S70: 75.01 | T70: 80.32 | U70: 423.28 | V70: 80.43 | W70: 79.23 | X70: 422.71
A71: A2 | B71: Azul | D71: Industrial | E71: Não se aplica | F71: Fonte incentivada | G71: Fora ponta | H71: =IFERROR(ROUND((AVERAGEIFS(DADOS_MercadoBase[Tar_PTUSD],DADOS_MercadoBase[TipoMercado],$A$3,DADOS_MercadoBase[OPÇÃO],$A$57,DADOS_MercadoBase[Subgrupo],$A71,DADOS_MercadoBase[Modalidade],$B71,DADOS_MercadoBase[Classe],$D71,DADOS_MercadoBase[Subclasse],$E71,DADOS_MercadoBase[Detalhe],$F71,DADOS_MercadoBase[Posto],$G71)),2),0) -> 0 | I71: =IFERROR(ROUND((AVERAGEIFS(DADOS_MercadoBase[Tar_ETUSD],DADOS_MercadoBase[TipoMercado],$A$3,DADOS_MercadoBase[OPÇÃO],$A$57,DADOS_MercadoBase[Subgrupo],$A71,DADOS_MercadoBase[Modalidade],$B71,DADOS_MercadoBase[Classe],$D71,DADOS_MercadoBase[Subclasse],$E71,DADOS_MercadoBase[Detalhe],$F71,DADOS_MercadoBase[Posto],$G71)),2),0) -> 0 | J71: =IFERROR(ROUND((AVERAGEIFS(DADOS_MercadoBase[Tar_ETE],DADOS_MercadoBase[TipoMercado],$A$3,DADOS_MercadoBase[OPÇÃO],$A$57,DADOS_MercadoBase[Subgrupo],$A71,DADOS_MercadoBase[Modalidade],$B71,DADOS_MercadoBase[Classe],$D71,DADOS_MercadoBase[Subclasse],$E71,DADOS_MercadoBase[Detalhe],$F71,DADOS_MercadoBase[Posto],$G71)),2),0) -> 0 | K71: =IFERROR(ROUND((AVERAGEIFS(DADOS_MercadoBase[TUSD/KW],DADOS_MercadoBase[TipoMercado],$A$3,DADOS_MercadoBase[OPÇÃO],$A$57,DADOS_MercadoBase[Subgrupo],$A71,DADOS_MercadoBase[Modalidade],$B71,DADOS_MercadoBase[Classe],$D71,DADOS_MercadoBase[Subclasse],$E71,DADOS_MercadoBase[Detalhe],$F71,DADOS_MercadoBase[Posto],$G71)),2),0) -> 0 | L71: =IFERROR(ROUND((AVERAGEIFS(DADOS_MercadoBase[TUSD/MWh],DADOS_MercadoBase[TipoMercado],$A$3,DADOS_MercadoBase[OPÇÃO],$A$57,DADOS_MercadoBase[Subgrupo],$A71,DADOS_MercadoBase[Modalidade],$B71,DADOS_MercadoBase[Classe],$D71,DADOS_MercadoBase[Subclasse],$E71,DADOS_MercadoBase[Detalhe],$F71,DADOS_MercadoBase[Posto],$G71)),2),0) -> 0 | M71: =IFERROR(ROUND((AVERAGEIFS(DADOS_MercadoBase[TE],DADOS_MercadoBase[TipoMercado],$A$3,DADOS_MercadoBase[OPÇÃO],$A$57,DADOS_MercadoBase[Subgrupo],$A71,DADOS_MercadoBase[Modalidade],$B71,DADOS_MercadoBase[Classe],$D71,DADOS_MercadoBase[Subclasse],$E71,DADOS_MercadoBase[Detalhe],$F71,DADOS_MercadoBase[Posto],$G71)),2),0) -> 0 | R71: FP | S71: 38.63 | T71: 80.32 | U71: 258.24 | V71: 40.69 | W71: 79.23 | X71: 254.3
A72: A2 | B72: Azul | D72: Industrial | E72: Não se aplica | F72: Fonte incentivada | G72: Não se aplica | H72: =IFERROR(ROUND((AVERAGEIFS(DADOS_MercadoBase[Tar_PTUSD],DADOS_MercadoBase[TipoMercado],$A$3,DADOS_MercadoBase[OPÇÃO],$A$57,DADOS_MercadoBase[Subgrupo],$A72,DADOS_MercadoBase[Modalidade],$B72,DADOS_MercadoBase[Classe],$D72,DADOS_MercadoBase[Subclasse],$E72,DADOS_MercadoBase[Detalhe],$F72,DADOS_MercadoBase[Posto],$G72)),2),0) -> 0 | I72: =IFERROR(ROUND((AVERAGEIFS(DADOS_MercadoBase[Tar_ETUSD],DADOS_MercadoBase[TipoMercado],$A$3,DADOS_MercadoBase[OPÇÃO],$A$57,DADOS_MercadoBase[Subgrupo],$A72,DADOS_MercadoBase[Modalidade],$B72,DADOS_MercadoBase[Classe],$D72,DADOS_MercadoBase[Subclasse],$E72,DADOS_MercadoBase[Detalhe],$F72,DADOS_MercadoBase[Posto],$G72)),2),0) -> 0 | J72: =IFERROR(ROUND((AVERAGEIFS(DADOS_MercadoBase[Tar_ETE],DADOS_MercadoBase[TipoMercado],$A$3,DADOS_MercadoBase[OPÇÃO],$A$57,DADOS_MercadoBase[Subgrupo],$A72,DADOS_MercadoBase[Modalidade],$B72,DADOS_MercadoBase[Classe],$D72,DADOS_MercadoBase[Subclasse],$E72,DADOS_MercadoBase[Detalhe],$F72,DADOS_MercadoBase[Posto],$G72)),2),0) -> 0 | K72: =IFERROR(ROUND((AVERAGEIFS(DADOS_MercadoBase[TUSD/KW],DADOS_MercadoBase[TipoMercado],$A$3,DADOS_MercadoBase[OPÇÃO],$A$57,DADOS_MercadoBase[Subgrupo],$A72,DADOS_MercadoBase[Modalidade],$B72,DADOS_MercadoBase[Classe],$D72,DADOS_MercadoBase[Subclasse],$E72,DADOS_MercadoBase[Detalhe],$F72,DADOS_MercadoBase[Posto],$G72)),2),0) -> 0 | L72: =IFERROR(ROUND((AVERAGEIFS(DADOS_MercadoBase[TUSD/MWh],DADOS_MercadoBase[TipoMercado],$A$3,DADOS_MercadoBase[OPÇÃO],$A$57,DADOS_MercadoBase[Subgrupo],$A72,DADOS_MercadoBase[Modalidade],$B72,DADOS_MercadoBase[Classe],$D72,DADOS_MercadoBase[Subclasse],$E72,DADOS_MercadoBase[Detalhe],$F72,DADOS_MercadoBase[Posto],$G72)),2),0) -> 0 | M72: =IFERROR(ROUND((AVERAGEIFS(DADOS_MercadoBase[TE],DADOS_MercadoBase[TipoMercado],$A$3,DADOS_MercadoBase[OPÇÃO],$A$57,DADOS_MercadoBase[Subgrupo],$A72,DADOS_MercadoBase[Modalidade],$B72,DADOS_MercadoBase[Classe],$D72,DADOS_MercadoBase[Subclasse],$E72,DADOS_MercadoBase[Detalhe],$F72,DADOS_MercadoBase[Posto],$G72)),2),0) -> 0 | P72: Azul APE | Q72: Não se aplica | R72: P | S72: 75.01 | T72: 29.59 | U72: 0 | V72: 80.43 | W72: 30.29 | X72: 0
A73: A2 | B73: Azul | C73: Azul | D73: Rural | E73: Agropecuária rural | F73: Não se aplica | G73: Ponta | H73: =IFERROR(ROUND((AVERAGEIFS(DADOS_MercadoBase[Tar_PTUSD],DADOS_MercadoBase[TipoMercado],$A$3,DADOS_MercadoBase[OPÇÃO],$A$57,DADOS_MercadoBase[Subgrupo],$A73,DADOS_MercadoBase[Modalidade],$B73,DADOS_MercadoBase[Classe],$D73,DADOS_MercadoBase[Subclasse],$E73,DADOS_MercadoBase[Detalhe],$F73,DADOS_MercadoBase[Posto],$G73)),2),0) -> 0 | I73: =IFERROR(ROUND((AVERAGEIFS(DADOS_MercadoBase[Tar_ETUSD],DADOS_MercadoBase[TipoMercado],$A$3,DADOS_MercadoBase[OPÇÃO],$A$57,DADOS_MercadoBase[Subgrupo],$A73,DADOS_MercadoBase[Modalidade],$B73,DADOS_MercadoBase[Classe],$D73,DADOS_MercadoBase[Subclasse],$E73,DADOS_MercadoBase[Detalhe],$F73,DADOS_MercadoBase[Posto],$G73)),2),0) -> 0 | J73: =IFERROR(ROUND((AVERAGEIFS(DADOS_MercadoBase[Tar_ETE],DADOS_MercadoBase[TipoMercado],$A$3,DADOS_MercadoBase[OPÇÃO],$A$57,DADOS_MercadoBase[Subgrupo],$A73,DADOS_MercadoBase[Modalidade],$B73,DADOS_MercadoBase[Classe],$D73,DADOS_MercadoBase[Subclasse],$E73,DADOS_MercadoBase[Detalhe],$F73,DADOS_MercadoBase[Posto],$G73)),2),0) -> 0 | K73: =IFERROR(ROUND((AVERAGEIFS(DADOS_MercadoBase[TUSD/KW],DADOS_MercadoBase[TipoMercado],$A$3,DADOS_MercadoBase[OPÇÃO],$A$57,DADOS_MercadoBase[Subgrupo],$A73,DADOS_MercadoBase[Modalidade],$B73,DADOS_MercadoBase[Classe],$D73,DADOS_MercadoBase[Subclasse],$E73,DADOS_MercadoBase[Detalhe],$F73,DADOS_MercadoBase[Posto],$G73)),2),0) -> 0 | L73: =IFERROR(ROUND((AVERAGEIFS(DADOS_MercadoBase[TUSD/MWh],DADOS_MercadoBase[TipoMercado],$A$3,DADOS_MercadoBase[OPÇÃO],$A$57,DADOS_MercadoBase[Subgrupo],$A73,DADOS_MercadoBase[Modalidade],$B73,DADOS_MercadoBase[Classe],$D73,DADOS_MercadoBase[Subclasse],$E73,DADOS_MercadoBase[Detalhe],$F73,DADOS_MercadoBase[Posto],$G73)),2),0) -> 0 | M73: =IFERROR(ROUND((AVERAGEIFS(DADOS_MercadoBase[TE],DADOS_MercadoBase[TipoMercado],$A$3,DADOS_MercadoBase[OPÇÃO],$A$57,DADOS_MercadoBase[Subgrupo],$A73,DADOS_MercadoBase[Modalidade],$B73,DADOS_MercadoBase[Classe],$D73,DADOS_MercadoBase[Subclasse],$E73,DADOS_MercadoBase[Detalhe],$F73,DADOS_MercadoBase[Posto],$G73)),2),0) -> 0 | R73: FP | S73: 38.63 | T73: 29.59 | U73: 0 | V73: 40.69 | W73: 30.29 | X73: 0
A74: A2 | B74: Azul | C74: Azul | D74: Rural | E74: Agropecuária rural | F74: Não se aplica | G74: Fora ponta | H74: =IFERROR(ROUND((AVERAGEIFS(DADOS_MercadoBase[Tar_PTUSD],DADOS_MercadoBase[TipoMercado],$A$3,DADOS_MercadoBase[OPÇÃO],$A$57,DADOS_MercadoBase[Subgrupo],$A74,DADOS_MercadoBase[Modalidade],$B74,DADOS_MercadoBase[Classe],$D74,DADOS_MercadoBase[Subclasse],$E74,DADOS_MercadoBase[Detalhe],$F74,DADOS_MercadoBase[Posto],$G74)),2),0) -> 0 | I74: =IFERROR(ROUND((AVERAGEIFS(DADOS_MercadoBase[Tar_ETUSD],DADOS_MercadoBase[TipoMercado],$A$3,DADOS_MercadoBase[OPÇÃO],$A$57,DADOS_MercadoBase[Subgrupo],$A74,DADOS_MercadoBase[Modalidade],$B74,DADOS_MercadoBase[Classe],$D74,DADOS_MercadoBase[Subclasse],$E74,DADOS_MercadoBase[Detalhe],$F74,DADOS_MercadoBase[Posto],$G74)),2),0) -> 0 | J74: =IFERROR(ROUND((AVERAGEIFS(DADOS_MercadoBase[Tar_ETE],DADOS_MercadoBase[TipoMercado],$A$3,DADOS_MercadoBase[OPÇÃO],$A$57,DADOS_MercadoBase[Subgrupo],$A74,DADOS_MercadoBase[Modalidade],$B74,DADOS_MercadoBase[Classe],$D74,DADOS_MercadoBase[Subclasse],$E74,DADOS_MercadoBase[Detalhe],$F74,DADOS_MercadoBase[Posto],$G74)),2),0) -> 0 | K74: =IFERROR(ROUND((AVERAGEIFS(DADOS_MercadoBase[TUSD/KW],DADOS_MercadoBase[TipoMercado],$A$3,DADOS_MercadoBase[OPÇÃO],$A$57,DADOS_MercadoBase[Subgrupo],$A74,DADOS_MercadoBase[Modalidade],$B74,DADOS_MercadoBase[Classe],$D74,DADOS_MercadoBase[Subclasse],$E74,DADOS_MercadoBase[Detalhe],$F74,DADOS_MercadoBase[Posto],$G74)),2),0) -> 0 | L74: =IFERROR(ROUND((AVERAGEIFS(DADOS_MercadoBase[TUSD/MWh],DADOS_MercadoBase[TipoMercado],$A$3,DADOS_MercadoBase[OPÇÃO],$A$57,DADOS_MercadoBase[Subgrupo],$A74,DADOS_MercadoBase[Modalidade],$B74,DADOS_MercadoBase[Classe],$D74,DADOS_MercadoBase[Subclasse],$E74,DADOS_MercadoBase[Detalhe],$F74,DADOS_MercadoBase[Posto],$G74)),2),0) -> 0 | M74: =IFERROR(ROUND((AVERAGEIFS(DADOS_MercadoBase[TE],DADOS_MercadoBase[TipoMercado],$A$3,DADOS_MercadoBase[OPÇÃO],$A$57,DADOS_MercadoBase[Subgrupo],$A74,DADOS_MercadoBase[Modalidade],$B74,DADOS_MercadoBase[Classe],$D74,DADOS_MercadoBase[Subclasse],$E74,DADOS_MercadoBase[Detalhe],$F74,DADOS_MercadoBase[Posto],$G74)),2),0) -> 0 | P74: Verde | Q74: Não se aplica | R74: NA | S74: 38.63 | T74: 0 | U74: 0 | V74: 40.69 | W74: 0 | X74: 0
A75: A2 | B75: Azul | C75: Azul | D75: Rural | E75: Agropecuária rural | F75: IRRIG./AQUIC. PR | G75: Fora ponta | H75: =IFERROR(ROUND((AVERAGEIFS(DADOS_MercadoBase[Tar_PTUSD],DADOS_MercadoBase[TipoMercado],$A$3,DADOS_MercadoBase[OPÇÃO],$A$57,DADOS_MercadoBase[Subgrupo],$A75,DADOS_MercadoBase[Modalidade],$B75,DADOS_MercadoBase[Classe],$D75,DADOS_MercadoBase[Subclasse],$E75,DADOS_MercadoBase[Detalhe],$F75,DADOS_MercadoBase[Posto],$G75)),2),0) -> 0 | I75: =IFERROR(ROUND((AVERAGEIFS(DADOS_MercadoBase[Tar_ETUSD],DADOS_MercadoBase[TipoMercado],$A$3,DADOS_MercadoBase[OPÇÃO],$A$57,DADOS_MercadoBase[Subgrupo],$A75,DADOS_MercadoBase[Modalidade],$B75,DADOS_MercadoBase[Classe],$D75,DADOS_MercadoBase[Subclasse],$E75,DADOS_MercadoBase[Detalhe],$F75,DADOS_MercadoBase[Posto],$G75)),2),0) -> 0 | J75: =IFERROR(ROUND((AVERAGEIFS(DADOS_MercadoBase[Tar_ETE],DADOS_MercadoBase[TipoMercado],$A$3,DADOS_MercadoBase[OPÇÃO],$A$57,DADOS_MercadoBase[Subgrupo],$A75,DADOS_MercadoBase[Modalidade],$B75,DADOS_MercadoBase[Classe],$D75,DADOS_MercadoBase[Subclasse],$E75,DADOS_MercadoBase[Detalhe],$F75,DADOS_MercadoBase[Posto],$G75)),2),0) -> 0 | K75: =IFERROR(ROUND((AVERAGEIFS(DADOS_MercadoBase[TUSD/KW],DADOS_MercadoBase[TipoMercado],$A$3,DADOS_MercadoBase[OPÇÃO],$A$57,DADOS_MercadoBase[Subgrupo],$A75,DADOS_MercadoBase[Modalidade],$B75,DADOS_MercadoBase[Classe],$D75,DADOS_MercadoBase[Subclasse],$E75,DADOS_MercadoBase[Detalhe],$F75,DADOS_MercadoBase[Posto],$G75)),2),0) -> 0 | L75: =IFERROR(ROUND((AVERAGEIFS(DADOS_MercadoBase[TUSD/MWh],DADOS_MercadoBase[TipoMercado],$A$3,DADOS_MercadoBase[OPÇÃO],$A$57,DADOS_MercadoBase[Subgrupo],$A75,DADOS_MercadoBase[Modalidade],$B75,DADOS_MercadoBase[Classe],$D75,DADOS_MercadoBase[Subclasse],$E75,DADOS_MercadoBase[Detalhe],$F75,DADOS_MercadoBase[Posto],$G75)),2),0) -> 0 | M75: =IFERROR(ROUND((AVERAGEIFS(DADOS_MercadoBase[TE],DADOS_MercadoBase[TipoMercado],$A$3,DADOS_MercadoBase[OPÇÃO],$A$57,DADOS_MercadoBase[Subgrupo],$A75,DADOS_MercadoBase[Modalidade],$B75,DADOS_MercadoBase[Classe],$D75,DADOS_MercadoBase[Subclasse],$E75,DADOS_MercadoBase[Detalhe],$F75,DADOS_MercadoBase[Posto],$G75)),2),0) -> 0 | R75: P | S75: 0 | T75: 1901.27 | U75: 423.28 | V75: 0 | W75: 2032.05 | X75: 422.71
A76: A2 | B76: Azul | C76: Azul | D76: Rural | E76: Agropecuária rural | F76: IRRIG./AQUIC. PR | G76: Não se aplica | H76: =IFERROR(ROUND((AVERAGEIFS(DADOS_MercadoBase[Tar_PTUSD],DADOS_MercadoBase[TipoMercado],$A$3,DADOS_MercadoBase[OPÇÃO],$A$57,DADOS_MercadoBase[Subgrupo],$A76,DADOS_MercadoBase[Modalidade],$B76,DADOS_MercadoBase[Classe],$D76,DADOS_MercadoBase[Subclasse],$E76,DADOS_MercadoBase[Detalhe],$F76,DADOS_MercadoBase[Posto],$G76)),2),0) -> 0 | I76: =IFERROR(ROUND((AVERAGEIFS(DADOS_MercadoBase[Tar_ETUSD],DADOS_MercadoBase[TipoMercado],$A$3,DADOS_MercadoBase[OPÇÃO],$A$57,DADOS_MercadoBase[Subgrupo],$A76,DADOS_MercadoBase[Modalidade],$B76,DADOS_MercadoBase[Classe],$D76,DADOS_MercadoBase[Subclasse],$E76,DADOS_MercadoBase[Detalhe],$F76,DADOS_MercadoBase[Posto],$G76)),2),0) -> 0 | J76: =IFERROR(ROUND((AVERAGEIFS(DADOS_MercadoBase[Tar_ETE],DADOS_MercadoBase[TipoMercado],$A$3,DADOS_MercadoBase[OPÇÃO],$A$57,DADOS_MercadoBase[Subgrupo],$A76,DADOS_MercadoBase[Modalidade],$B76,DADOS_MercadoBase[Classe],$D76,DADOS_MercadoBase[Subclasse],$E76,DADOS_MercadoBase[Detalhe],$F76,DADOS_MercadoBase[Posto],$G76)),2),0) -> 0 | K76: =IFERROR(ROUND((AVERAGEIFS(DADOS_MercadoBase[TUSD/KW],DADOS_MercadoBase[TipoMercado],$A$3,DADOS_MercadoBase[OPÇÃO],$A$57,DADOS_MercadoBase[Subgrupo],$A76,DADOS_MercadoBase[Modalidade],$B76,DADOS_MercadoBase[Classe],$D76,DADOS_MercadoBase[Subclasse],$E76,DADOS_MercadoBase[Detalhe],$F76,DADOS_MercadoBase[Posto],$G76)),2),0) -> 0 | L76: =IFERROR(ROUND((AVERAGEIFS(DADOS_MercadoBase[TUSD/MWh],DADOS_MercadoBase[TipoMercado],$A$3,DADOS_MercadoBase[OPÇÃO],$A$57,DADOS_MercadoBase[Subgrupo],$A76,DADOS_MercadoBase[Modalidade],$B76,DADOS_MercadoBase[Classe],$D76,DADOS_MercadoBase[Subclasse],$E76,DADOS_MercadoBase[Detalhe],$F76,DADOS_MercadoBase[Posto],$G76)),2),0) -> 0 | M76: =IFERROR(ROUND((AVERAGEIFS(DADOS_MercadoBase[TE],DADOS_MercadoBase[TipoMercado],$A$3,DADOS_MercadoBase[OPÇÃO],$A$57,DADOS_MercadoBase[Subgrupo],$A76,DADOS_MercadoBase[Modalidade],$B76,DADOS_MercadoBase[Classe],$D76,DADOS_MercadoBase[Subclasse],$E76,DADOS_MercadoBase[Detalhe],$F76,DADOS_MercadoBase[Posto],$G76)),2),0) -> 0 | R76: FP | S76: 0 | T76: 80.32 | U76: 258.24 | V76: 0 | W76: 79.23 | X76: 254.3
A77: A2 | B77: Azul | C77: Azul | D77: Rural | E77: Serviço público de irrigação rural | F77: Não se aplica | G77: Ponta | H77: =IFERROR(ROUND((AVERAGEIFS(DADOS_MercadoBase[Tar_PTUSD],DADOS_MercadoBase[TipoMercado],$A$3,DADOS_MercadoBase[OPÇÃO],$A$57,DADOS_MercadoBase[Subgrupo],$A77,DADOS_MercadoBase[Modalidade],$B77,DADOS_MercadoBase[Classe],$D77,DADOS_MercadoBase[Subclasse],$E77,DADOS_MercadoBase[Detalhe],$F77,DADOS_MercadoBase[Posto],$G77)),2),0) -> 0 | I77: =IFERROR(ROUND((AVERAGEIFS(DADOS_MercadoBase[Tar_ETUSD],DADOS_MercadoBase[TipoMercado],$A$3,DADOS_MercadoBase[OPÇÃO],$A$57,DADOS_MercadoBase[Subgrupo],$A77,DADOS_MercadoBase[Modalidade],$B77,DADOS_MercadoBase[Classe],$D77,DADOS_MercadoBase[Subclasse],$E77,DADOS_MercadoBase[Detalhe],$F77,DADOS_MercadoBase[Posto],$G77)),2),0) -> 0 | J77: =IFERROR(ROUND((AVERAGEIFS(DADOS_MercadoBase[Tar_ETE],DADOS_MercadoBase[TipoMercado],$A$3,DADOS_MercadoBase[OPÇÃO],$A$57,DADOS_MercadoBase[Subgrupo],$A77,DADOS_MercadoBase[Modalidade],$B77,DADOS_MercadoBase[Classe],$D77,DADOS_MercadoBase[Subclasse],$E77,DADOS_MercadoBase[Detalhe],$F77,DADOS_MercadoBase[Posto],$G77)),2),0) -> 0 | K77: =IFERROR(ROUND((AVERAGEIFS(DADOS_MercadoBase[TUSD/KW],DADOS_MercadoBase[TipoMercado],$A$3,DADOS_MercadoBase[OPÇÃO],$A$57,DADOS_MercadoBase[Subgrupo],$A77,DADOS_MercadoBase[Modalidade],$B77,DADOS_MercadoBase[Classe],$D77,DADOS_MercadoBase[Subclasse],$E77,DADOS_MercadoBase[Detalhe],$F77,DADOS_MercadoBase[Posto],$G77)),2),0) -> 0 | L77: =IFERROR(ROUND((AVERAGEIFS(DADOS_MercadoBase[TUSD/MWh],DADOS_MercadoBase[TipoMercado],$A$3,DADOS_MercadoBase[OPÇÃO],$A$57,DADOS_MercadoBase[Subgrupo],$A77,DADOS_MercadoBase[Modalidade],$B77,DADOS_MercadoBase[Classe],$D77,DADOS_MercadoBase[Subclasse],$E77,DADOS_MercadoBase[Detalhe],$F77,DADOS_MercadoBase[Posto],$G77)),2),0) -> 0 | M77: =IFERROR(ROUND((AVERAGEIFS(DADOS_MercadoBase[TE],DADOS_MercadoBase[TipoMercado],$A$3,DADOS_MercadoBase[OPÇÃO],$A$57,DADOS_MercadoBase[Subgrupo],$A77,DADOS_MercadoBase[Modalidade],$B77,DADOS_MercadoBase[Classe],$D77,DADOS_MercadoBase[Subclasse],$E77,DADOS_MercadoBase[Detalhe],$F77,DADOS_MercadoBase[Posto],$G77)),2),0) -> 0 | P77: Verde APE | Q77: Não se aplica | R77: NA | S77: 38.63 | T77: 0 | U77: 0 | V77: 40.69 | W77: 0 | X77: 0
A78: A2 | B78: Azul | C78: Azul | D78: Rural | E78: Serviço público de irrigação rural | F78: Não se aplica | G78: Fora ponta | H78: =IFERROR(ROUND((AVERAGEIFS(DADOS_MercadoBase[Tar_PTUSD],DADOS_MercadoBase[TipoMercado],$A$3,DADOS_MercadoBase[OPÇÃO],$A$57,DADOS_MercadoBase[Subgrupo],$A78,DADOS_MercadoBase[Modalidade],$B78,DADOS_MercadoBase[Classe],$D78,DADOS_MercadoBase[Subclasse],$E78,DADOS_MercadoBase[Detalhe],$F78,DADOS_MercadoBase[Posto],$G78)),2),0) -> 0 | I78: =IFERROR(ROUND((AVERAGEIFS(DADOS_MercadoBase[Tar_ETUSD],DADOS_MercadoBase[TipoMercado],$A$3,DADOS_MercadoBase[OPÇÃO],$A$57,DADOS_MercadoBase[Subgrupo],$A78,DADOS_MercadoBase[Modalidade],$B78,DADOS_MercadoBase[Classe],$D78,DADOS_MercadoBase[Subclasse],$E78,DADOS_MercadoBase[Detalhe],$F78,DADOS_MercadoBase[Posto],$G78)),2),0) -> 0 | J78: =IFERROR(ROUND((AVERAGEIFS(DADOS_MercadoBase[Tar_ETE],DADOS_MercadoBase[TipoMercado],$A$3,DADOS_MercadoBase[OPÇÃO],$A$57,DADOS_MercadoBase[Subgrupo],$A78,DADOS_MercadoBase[Modalidade],$B78,DADOS_MercadoBase[Classe],$D78,DADOS_MercadoBase[Subclasse],$E78,DADOS_MercadoBase[Detalhe],$F78,DADOS_MercadoBase[Posto],$G78)),2),0) -> 0 | K78: =IFERROR(ROUND((AVERAGEIFS(DADOS_MercadoBase[TUSD/KW],DADOS_MercadoBase[TipoMercado],$A$3,DADOS_MercadoBase[OPÇÃO],$A$57,DADOS_MercadoBase[Subgrupo],$A78,DADOS_MercadoBase[Modalidade],$B78,DADOS_MercadoBase[Classe],$D78,DADOS_MercadoBase[Subclasse],$E78,DADOS_MercadoBase[Detalhe],$F78,DADOS_MercadoBase[Posto],$G78)),2),0) -> 0 | L78: =IFERROR(ROUND((AVERAGEIFS(DADOS_MercadoBase[TUSD/MWh],DADOS_MercadoBase[TipoMercado],$A$3,DADOS_MercadoBase[OPÇÃO],$A$57,DADOS_MercadoBase[Subgrupo],$A78,DADOS_MercadoBase[Modalidade],$B78,DADOS_MercadoBase[Classe],$D78,DADOS_MercadoBase[Subclasse],$E78,DADOS_MercadoBase[Detalhe],$F78,DADOS_MercadoBase[Posto],$G78)),2),0) -> 0 | M78: =IFERROR(ROUND((AVERAGEIFS(DADOS_MercadoBase[TE],DADOS_MercadoBase[TipoMercado],$A$3,DADOS_MercadoBase[OPÇÃO],$A$57,DADOS_MercadoBase[Subgrupo],$A78,DADOS_MercadoBase[Modalidade],$B78,DADOS_MercadoBase[Classe],$D78,DADOS_MercadoBase[Subclasse],$E78,DADOS_MercadoBase[Detalhe],$F78,DADOS_MercadoBase[Posto],$G78)),2),0) -> 0 | R78: P | S78: 0 | T78: 1850.53 | U78: 0 | V78: 0 | W78: 1983.11 | X78: 0
A79: A2 | B79: Azul | C79: Azul | D79: Rural | E79: Serviço público de irrigação rural | F79: IRRIG./AQUIC. PR | G79: Fora ponta | H79: =IFERROR(ROUND((AVERAGEIFS(DADOS_MercadoBase[Tar_PTUSD],DADOS_MercadoBase[TipoMercado],$A$3,DADOS_MercadoBase[OPÇÃO],$A$57,DADOS_MercadoBase[Subgrupo],$A79,DADOS_MercadoBase[Modalidade],$B79,DADOS_MercadoBase[Classe],$D79,DADOS_MercadoBase[Subclasse],$E79,DADOS_MercadoBase[Detalhe],$F79,DADOS_MercadoBase[Posto],$G79)),2),0) -> 0 | I79: =IFERROR(ROUND((AVERAGEIFS(DADOS_MercadoBase[Tar_ETUSD],DADOS_MercadoBase[TipoMercado],$A$3,DADOS_MercadoBase[OPÇÃO],$A$57,DADOS_MercadoBase[Subgrupo],$A79,DADOS_MercadoBase[Modalidade],$B79,DADOS_MercadoBase[Classe],$D79,DADOS_MercadoBase[Subclasse],$E79,DADOS_MercadoBase[Detalhe],$F79,DADOS_MercadoBase[Posto],$G79)),2),0) -> 0 | J79: =IFERROR(ROUND((AVERAGEIFS(DADOS_MercadoBase[Tar_ETE],DADOS_MercadoBase[TipoMercado],$A$3,DADOS_MercadoBase[OPÇÃO],$A$57,DADOS_MercadoBase[Subgrupo],$A79,DADOS_MercadoBase[Modalidade],$B79,DADOS_MercadoBase[Classe],$D79,DADOS_MercadoBase[Subclasse],$E79,DADOS_MercadoBase[Detalhe],$F79,DADOS_MercadoBase[Posto],$G79)),2),0) -> 0 | K79: =IFERROR(ROUND((AVERAGEIFS(DADOS_MercadoBase[TUSD/KW],DADOS_MercadoBase[TipoMercado],$A$3,DADOS_MercadoBase[OPÇÃO],$A$57,DADOS_MercadoBase[Subgrupo],$A79,DADOS_MercadoBase[Modalidade],$B79,DADOS_MercadoBase[Classe],$D79,DADOS_MercadoBase[Subclasse],$E79,DADOS_MercadoBase[Detalhe],$F79,DADOS_MercadoBase[Posto],$G79)),2),0) -> 0 | L79: =IFERROR(ROUND((AVERAGEIFS(DADOS_MercadoBase[TUSD/MWh],DADOS_MercadoBase[TipoMercado],$A$3,DADOS_MercadoBase[OPÇÃO],$A$57,DADOS_MercadoBase[Subgrupo],$A79,DADOS_MercadoBase[Modalidade],$B79,DADOS_MercadoBase[Classe],$D79,DADOS_MercadoBase[Subclasse],$E79,DADOS_MercadoBase[Detalhe],$F79,DADOS_MercadoBase[Posto],$G79)),2),0) -> 0 | M79: =IFERROR(ROUND((AVERAGEIFS(DADOS_MercadoBase[TE],DADOS_MercadoBase[TipoMercado],$A$3,DADOS_MercadoBase[OPÇÃO],$A$57,DADOS_MercadoBase[Subgrupo],$A79,DADOS_MercadoBase[Modalidade],$B79,DADOS_MercadoBase[Classe],$D79,DADOS_MercadoBase[Subclasse],$E79,DADOS_MercadoBase[Detalhe],$F79,DADOS_MercadoBase[Posto],$G79)),2),0) -> 0 | R79: FP | S79: 0 | T79: 29.59 | U79: 0 | V79: 0 | W79: 30.29 | X79: 0
A80: A2 | B80: Azul | C80: Azul | D80: Rural | E80: Serviço público de irrigação rural | F80: IRRIG./AQUIC. | G80: Não se aplica | H80: =IFERROR(ROUND((AVERAGEIFS(DADOS_MercadoBase[Tar_PTUSD],DADOS_MercadoBase[TipoMercado],$A$3,DADOS_MercadoBase[OPÇÃO],$A$57,DADOS_MercadoBase[Subgrupo],$A80,DADOS_MercadoBase[Modalidade],$B80,DADOS_MercadoBase[Classe],$D80,DADOS_MercadoBase[Subclasse],$E80,DADOS_MercadoBase[Detalhe],$F80,DADOS_MercadoBase[Posto],$G80)),2),0) -> 0 | I80: =IFERROR(ROUND((AVERAGEIFS(DADOS_MercadoBase[Tar_ETUSD],DADOS_MercadoBase[TipoMercado],$A$3,DADOS_MercadoBase[OPÇÃO],$A$57,DADOS_MercadoBase[Subgrupo],$A80,DADOS_MercadoBase[Modalidade],$B80,DADOS_MercadoBase[Classe],$D80,DADOS_MercadoBase[Subclasse],$E80,DADOS_MercadoBase[Detalhe],$F80,DADOS_MercadoBase[Posto],$G80)),2),0) -> 0 | J80: =IFERROR(ROUND((AVERAGEIFS(DADOS_MercadoBase[Tar_ETE],DADOS_MercadoBase[TipoMercado],$A$3,DADOS_MercadoBase[OPÇÃO],$A$57,DADOS_MercadoBase[Subgrupo],$A80,DADOS_MercadoBase[Modalidade],$B80,DADOS_MercadoBase[Classe],$D80,DADOS_MercadoBase[Subclasse],$E80,DADOS_MercadoBase[Detalhe],$F80,DADOS_MercadoBase[Posto],$G80)),2),0) -> 0 | K80: =IFERROR(ROUND((AVERAGEIFS(DADOS_MercadoBase[TUSD/KW],DADOS_MercadoBase[TipoMercado],$A$3,DADOS_MercadoBase[OPÇÃO],$A$57,DADOS_MercadoBase[Subgrupo],$A80,DADOS_MercadoBase[Modalidade],$B80,DADOS_MercadoBase[Classe],$D80,DADOS_MercadoBase[Subclasse],$E80,DADOS_MercadoBase[Detalhe],$F80,DADOS_MercadoBase[Posto],$G80)),2),0) -> 0 | L80: =IFERROR(ROUND((AVERAGEIFS(DADOS_MercadoBase[TUSD/MWh],DADOS_MercadoBase[TipoMercado],$A$3,DADOS_MercadoBase[OPÇÃO],$A$57,DADOS_MercadoBase[Subgrupo],$A80,DADOS_MercadoBase[Modalidade],$B80,DADOS_MercadoBase[Classe],$D80,DADOS_MercadoBase[Subclasse],$E80,DADOS_MercadoBase[Detalhe],$F80,DADOS_MercadoBase[Posto],$G80)),2),0) -> 0 | M80: =IFERROR(ROUND((AVERAGEIFS(DADOS_MercadoBase[TE],DADOS_MercadoBase[TipoMercado],$A$3,DADOS_MercadoBase[OPÇÃO],$A$57,DADOS_MercadoBase[Subgrupo],$A80,DADOS_MercadoBase[Modalidade],$B80,DADOS_MercadoBase[Classe],$D80,DADOS_MercadoBase[Subclasse],$E80,DADOS_MercadoBase[Detalhe],$F80,DADOS_MercadoBase[Posto],$G80)),2),0) -> 0 | P80: Geração | Q80: Não se aplica | R80: NA | S80: 22.86 | T80: 0 | U80: 0 | V80: 24.98 | W80: 0 | X80: 0
A81: A2 | B81: Azul | C81: Azul | D81: Serviço público | E81: Água, esgoto e saneamento | F81: Não se aplica | G81: Ponta | H81: =IFERROR(ROUND((AVERAGEIFS(DADOS_MercadoBase[Tar_PTUSD],DADOS_MercadoBase[TipoMercado],$A$3,DADOS_MercadoBase[OPÇÃO],$A$57,DADOS_MercadoBase[Subgrupo],$A81,DADOS_MercadoBase[Modalidade],$B81,DADOS_MercadoBase[Classe],$D81,DADOS_MercadoBase[Subclasse],$E81,DADOS_MercadoBase[Detalhe],$F81,DADOS_MercadoBase[Posto],$G81)),2),0) -> 0 | I81: =IFERROR(ROUND((AVERAGEIFS(DADOS_MercadoBase[Tar_ETUSD],DADOS_MercadoBase[TipoMercado],$A$3,DADOS_MercadoBase[OPÇÃO],$A$57,DADOS_MercadoBase[Subgrupo],$A81,DADOS_MercadoBase[Modalidade],$B81,DADOS_MercadoBase[Classe],$D81,DADOS_MercadoBase[Subclasse],$E81,DADOS_MercadoBase[Detalhe],$F81,DADOS_MercadoBase[Posto],$G81)),2),0) -> 0 | J81: =IFERROR(ROUND((AVERAGEIFS(DADOS_MercadoBase[Tar_ETE],DADOS_MercadoBase[TipoMercado],$A$3,DADOS_MercadoBase[OPÇÃO],$A$57,DADOS_MercadoBase[Subgrupo],$A81,DADOS_MercadoBase[Modalidade],$B81,DADOS_MercadoBase[Classe],$D81,DADOS_MercadoBase[Subclasse],$E81,DADOS_MercadoBase[Detalhe],$F81,DADOS_MercadoBase[Posto],$G81)),2),0) -> 0 | K81: =IFERROR(ROUND((AVERAGEIFS(DADOS_MercadoBase[TUSD/KW],DADOS_MercadoBase[TipoMercado],$A$3,DADOS_MercadoBase[OPÇÃO],$A$57,DADOS_MercadoBase[Subgrupo],$A81,DADOS_MercadoBase[Modalidade],$B81,DADOS_MercadoBase[Classe],$D81,DADOS_MercadoBase[Subclasse],$E81,DADOS_MercadoBase[Detalhe],$F81,DADOS_MercadoBase[Posto],$G81)),2),0) -> 0 | L81: =IFERROR(ROUND((AVERAGEIFS(DADOS_MercadoBase[TUSD/MWh],DADOS_MercadoBase[TipoMercado],$A$3,DADOS_MercadoBase[OPÇÃO],$A$57,DADOS_MercadoBase[Subgrupo],$A81,DADOS_MercadoBase[Modalidade],$B81,DADOS_MercadoBase[Classe],$D81,DADOS_MercadoBase[Subclasse],$E81,DADOS_MercadoBase[Detalhe],$F81,DADOS_MercadoBase[Posto],$G81)),2),0) -> 0 | M81: =IFERROR(ROUND((AVERAGEIFS(DADOS_MercadoBase[TE],DADOS_MercadoBase[TipoMercado],$A$3,DADOS_MercadoBase[OPÇÃO],$A$57,DADOS_MercadoBase[Subgrupo],$A81,DADOS_MercadoBase[Modalidade],$B81,DADOS_MercadoBase[Classe],$D81,DADOS_MercadoBase[Subclasse],$E81,DADOS_MercadoBase[Detalhe],$F81,DADOS_MercadoBase[Posto],$G81)),2),0) -> 0 | O81: A4 | P81: Azul | Q81: Não se aplica | R81: P | S81: 75.01 | T81: 80.32 | U81: 423.28 | V81: 80.43 | W81: 79.23 | X81: 422.71
A82: A2 | B82: Azul | C82: Azul | D82: Serviço público | E82: Água, esgoto e saneamento | F82: Não se aplica | G82: Fora ponta | H82: =IFERROR(ROUND((AVERAGEIFS(DADOS_MercadoBase[Tar_PTUSD],DADOS_MercadoBase[TipoMercado],$A$3,DADOS_MercadoBase[OPÇÃO],$A$57,DADOS_MercadoBase[Subgrupo],$A82,DADOS_MercadoBase[Modalidade],$B82,DADOS_MercadoBase[Classe],$D82,DADOS_MercadoBase[Subclasse],$E82,DADOS_MercadoBase[Detalhe],$F82,DADOS_MercadoBase[Posto],$G82)),2),0) -> 0 | I82: =IFERROR(ROUND((AVERAGEIFS(DADOS_MercadoBase[Tar_ETUSD],DADOS_MercadoBase[TipoMercado],$A$3,DADOS_MercadoBase[OPÇÃO],$A$57,DADOS_MercadoBase[Subgrupo],$A82,DADOS_MercadoBase[Modalidade],$B82,DADOS_MercadoBase[Classe],$D82,DADOS_MercadoBase[Subclasse],$E82,DADOS_MercadoBase[Detalhe],$F82,DADOS_MercadoBase[Posto],$G82)),2),0) -> 0 | J82: =IFERROR(ROUND((AVERAGEIFS(DADOS_MercadoBase[Tar_ETE],DADOS_MercadoBase[TipoMercado],$A$3,DADOS_MercadoBase[OPÇÃO],$A$57,DADOS_MercadoBase[Subgrupo],$A82,DADOS_MercadoBase[Modalidade],$B82,DADOS_MercadoBase[Classe],$D82,DADOS_MercadoBase[Subclasse],$E82,DADOS_MercadoBase[Detalhe],$F82,DADOS_MercadoBase[Posto],$G82)),2),0) -> 0 | K82: =IFERROR(ROUND((AVERAGEIFS(DADOS_MercadoBase[TUSD/KW],DADOS_MercadoBase[TipoMercado],$A$3,DADOS_MercadoBase[OPÇÃO],$A$57,DADOS_MercadoBase[Subgrupo],$A82,DADOS_MercadoBase[Modalidade],$B82,DADOS_MercadoBase[Classe],$D82,DADOS_MercadoBase[Subclasse],$E82,DADOS_MercadoBase[Detalhe],$F82,DADOS_MercadoBase[Posto],$G82)),2),0) -> 0 | L82: =IFERROR(ROUND((AVERAGEIFS(DADOS_MercadoBase[TUSD/MWh],DADOS_MercadoBase[TipoMercado],$A$3,DADOS_MercadoBase[OPÇÃO],$A$57,DADOS_MercadoBase[Subgrupo],$A82,DADOS_MercadoBase[Modalidade],$B82,DADOS_MercadoBase[Classe],$D82,DADOS_MercadoBase[Subclasse],$E82,DADOS_MercadoBase[Detalhe],$F82,DADOS_MercadoBase[Posto],$G82)),2),0) -> 0 | M82: =IFERROR(ROUND((AVERAGEIFS(DADOS_MercadoBase[TE],DADOS_MercadoBase[TipoMercado],$A$3,DADOS_MercadoBase[OPÇÃO],$A$57,DADOS_MercadoBase[Subgrupo],$A82,DADOS_MercadoBase[Modalidade],$B82,DADOS_MercadoBase[Classe],$D82,DADOS_MercadoBase[Subclasse],$E82,DADOS_MercadoBase[Detalhe],$F82,DADOS_MercadoBase[Posto],$G82)),2),0) -> 0 | R82: FP | S82: 38.63 | T82: 80.32 | U82: 258.24 | V82: 40.69 | W82: 79.23 | X82: 254.3
A83: A2 | B83: Azul | C83: Azul | D83: Serviço público | E83: Água, esgoto e saneamento | F83: Não se aplica | G83: Não se aplica | H83: =IFERROR(ROUND((AVERAGEIFS(DADOS_MercadoBase[Tar_PTUSD],DADOS_MercadoBase[TipoMercado],$A$3,DADOS_MercadoBase[OPÇÃO],$A$57,DADOS_MercadoBase[Subgrupo],$A83,DADOS_MercadoBase[Modalidade],$B83,DADOS_MercadoBase[Classe],$D83,DADOS_MercadoBase[Subclasse],$E83,DADOS_MercadoBase[Detalhe],$F83,DADOS_MercadoBase[Posto],$G83)),2),0) -> 0 | I83: =IFERROR(ROUND((AVERAGEIFS(DADOS_MercadoBase[Tar_ETUSD],DADOS_MercadoBase[TipoMercado],$A$3,DADOS_MercadoBase[OPÇÃO],$A$57,DADOS_MercadoBase[Subgrupo],$A83,DADOS_MercadoBase[Modalidade],$B83,DADOS_MercadoBase[Classe],$D83,DADOS_MercadoBase[Subclasse],$E83,DADOS_MercadoBase[Detalhe],$F83,DADOS_MercadoBase[Posto],$G83)),2),0) -> 0 | J83: =IFERROR(ROUND((AVERAGEIFS(DADOS_MercadoBase[Tar_ETE],DADOS_MercadoBase[TipoMercado],$A$3,DADOS_MercadoBase[OPÇÃO],$A$57,DADOS_MercadoBase[Subgrupo],$A83,DADOS_MercadoBase[Modalidade],$B83,DADOS_MercadoBase[Classe],$D83,DADOS_MercadoBase[Subclasse],$E83,DADOS_MercadoBase[Detalhe],$F83,DADOS_MercadoBase[Posto],$G83)),2),0) -> 0 | K83: =IFERROR(ROUND((AVERAGEIFS(DADOS_MercadoBase[TUSD/KW],DADOS_MercadoBase[TipoMercado],$A$3,DADOS_MercadoBase[OPÇÃO],$A$57,DADOS_MercadoBase[Subgrupo],$A83,DADOS_MercadoBase[Modalidade],$B83,DADOS_MercadoBase[Classe],$D83,DADOS_MercadoBase[Subclasse],$E83,DADOS_MercadoBase[Detalhe],$F83,DADOS_MercadoBase[Posto],$G83)),2),0) -> 0 | L83: =IFERROR(ROUND((AVERAGEIFS(DADOS_MercadoBase[TUSD/MWh],DADOS_MercadoBase[TipoMercado],$A$3,DADOS_MercadoBase[OPÇÃO],$A$57,DADOS_MercadoBase[Subgrupo],$A83,DADOS_MercadoBase[Modalidade],$B83,DADOS_MercadoBase[Classe],$D83,DADOS_MercadoBase[Subclasse],$E83,DADOS_MercadoBase[Detalhe],$F83,DADOS_MercadoBase[Posto],$G83)),2),0) -> 0 | M83: =IFERROR(ROUND((AVERAGEIFS(DADOS_MercadoBase[TE],DADOS_MercadoBase[TipoMercado],$A$3,DADOS_MercadoBase[OPÇÃO],$A$57,DADOS_MercadoBase[Subgrupo],$A83,DADOS_MercadoBase[Modalidade],$B83,DADOS_MercadoBase[Classe],$D83,DADOS_MercadoBase[Subclasse],$E83,DADOS_MercadoBase[Detalhe],$F83,DADOS_MercadoBase[Posto],$G83)),2),0) -> 0 | P83: Azul APE | Q83: Não se aplica | R83: P | S83: 75.01 | T83: 29.59 | U83: 0 | V83: 80.43 | W83: 30.29 | X83: 0
A84: A2 | B84: Azul | C84: Azul | D84: Serviço público | E84: Tração elétrica | F84: Não se aplica | G84: Ponta | H84: =IFERROR(ROUND((AVERAGEIFS(DADOS_MercadoBase[Tar_PTUSD],DADOS_MercadoBase[TipoMercado],$A$3,DADOS_MercadoBase[OPÇÃO],$A$57,DADOS_MercadoBase[Subgrupo],$A84,DADOS_MercadoBase[Modalidade],$B84,DADOS_MercadoBase[Classe],$D84,DADOS_MercadoBase[Subclasse],$E84,DADOS_MercadoBase[Detalhe],$F84,DADOS_MercadoBase[Posto],$G84)),2),0) -> 0 | I84: =IFERROR(ROUND((AVERAGEIFS(DADOS_MercadoBase[Tar_ETUSD],DADOS_MercadoBase[TipoMercado],$A$3,DADOS_MercadoBase[OPÇÃO],$A$57,DADOS_MercadoBase[Subgrupo],$A84,DADOS_MercadoBase[Modalidade],$B84,DADOS_MercadoBase[Classe],$D84,DADOS_MercadoBase[Subclasse],$E84,DADOS_MercadoBase[Detalhe],$F84,DADOS_MercadoBase[Posto],$G84)),2),0) -> 0 | J84: =IFERROR(ROUND((AVERAGEIFS(DADOS_MercadoBase[Tar_ETE],DADOS_MercadoBase[TipoMercado],$A$3,DADOS_MercadoBase[OPÇÃO],$A$57,DADOS_MercadoBase[Subgrupo],$A84,DADOS_MercadoBase[Modalidade],$B84,DADOS_MercadoBase[Classe],$D84,DADOS_MercadoBase[Subclasse],$E84,DADOS_MercadoBase[Detalhe],$F84,DADOS_MercadoBase[Posto],$G84)),2),0) -> 0 | K84: =IFERROR(ROUND((AVERAGEIFS(DADOS_MercadoBase[TUSD/KW],DADOS_MercadoBase[TipoMercado],$A$3,DADOS_MercadoBase[OPÇÃO],$A$57,DADOS_MercadoBase[Subgrupo],$A84,DADOS_MercadoBase[Modalidade],$B84,DADOS_MercadoBase[Classe],$D84,DADOS_MercadoBase[Subclasse],$E84,DADOS_MercadoBase[Detalhe],$F84,DADOS_MercadoBase[Posto],$G84)),2),0) -> 0 | L84: =IFERROR(ROUND((AVERAGEIFS(DADOS_MercadoBase[TUSD/MWh],DADOS_MercadoBase[TipoMercado],$A$3,DADOS_MercadoBase[OPÇÃO],$A$57,DADOS_MercadoBase[Subgrupo],$A84,DADOS_MercadoBase[Modalidade],$B84,DADOS_MercadoBase[Classe],$D84,DADOS_MercadoBase[Subclasse],$E84,DADOS_MercadoBase[Detalhe],$F84,DADOS_MercadoBase[Posto],$G84)),2),0) -> 0 | M84: =IFERROR(ROUND((AVERAGEIFS(DADOS_MercadoBase[TE],DADOS_MercadoBase[TipoMercado],$A$3,DADOS_MercadoBase[OPÇÃO],$A$57,DADOS_MercadoBase[Subgrupo],$A84,DADOS_MercadoBase[Modalidade],$B84,DADOS_MercadoBase[Classe],$D84,DADOS_MercadoBase[Subclasse],$E84,DADOS_MercadoBase[Detalhe],$F84,DADOS_MercadoBase[Posto],$G84)),2),0) -> 0 | R84: FP | S84: 38.63 | T84: 29.59 | U84: 0 | V84: 40.69 | W84: 30.29 | X84: 0
A85: A2 | B85: Azul | C85: Azul | D85: Serviço público | E85: Tração elétrica | F85: Não se aplica | G85: Fora ponta | H85: =IFERROR(ROUND((AVERAGEIFS(DADOS_MercadoBase[Tar_PTUSD],DADOS_MercadoBase[TipoMercado],$A$3,DADOS_MercadoBase[OPÇÃO],$A$57,DADOS_MercadoBase[Subgrupo],$A85,DADOS_MercadoBase[Modalidade],$B85,DADOS_MercadoBase[Classe],$D85,DADOS_MercadoBase[Subclasse],$E85,DADOS_MercadoBase[Detalhe],$F85,DADOS_MercadoBase[Posto],$G85)),2),0) -> 0 | I85: =IFERROR(ROUND((AVERAGEIFS(DADOS_MercadoBase[Tar_ETUSD],DADOS_MercadoBase[TipoMercado],$A$3,DADOS_MercadoBase[OPÇÃO],$A$57,DADOS_MercadoBase[Subgrupo],$A85,DADOS_MercadoBase[Modalidade],$B85,DADOS_MercadoBase[Classe],$D85,DADOS_MercadoBase[Subclasse],$E85,DADOS_MercadoBase[Detalhe],$F85,DADOS_MercadoBase[Posto],$G85)),2),0) -> 0 | J85: =IFERROR(ROUND((AVERAGEIFS(DADOS_MercadoBase[Tar_ETE],DADOS_MercadoBase[TipoMercado],$A$3,DADOS_MercadoBase[OPÇÃO],$A$57,DADOS_MercadoBase[Subgrupo],$A85,DADOS_MercadoBase[Modalidade],$B85,DADOS_MercadoBase[Classe],$D85,DADOS_MercadoBase[Subclasse],$E85,DADOS_MercadoBase[Detalhe],$F85,DADOS_MercadoBase[Posto],$G85)),2),0) -> 0 | K85: =IFERROR(ROUND((AVERAGEIFS(DADOS_MercadoBase[TUSD/KW],DADOS_MercadoBase[TipoMercado],$A$3,DADOS_MercadoBase[OPÇÃO],$A$57,DADOS_MercadoBase[Subgrupo],$A85,DADOS_MercadoBase[Modalidade],$B85,DADOS_MercadoBase[Classe],$D85,DADOS_MercadoBase[Subclasse],$E85,DADOS_MercadoBase[Detalhe],$F85,DADOS_MercadoBase[Posto],$G85)),2),0) -> 0 | L85: =IFERROR(ROUND((AVERAGEIFS(DADOS_MercadoBase[TUSD/MWh],DADOS_MercadoBase[TipoMercado],$A$3,DADOS_MercadoBase[OPÇÃO],$A$57,DADOS_MercadoBase[Subgrupo],$A85,DADOS_MercadoBase[Modalidade],$B85,DADOS_MercadoBase[Classe],$D85,DADOS_MercadoBase[Subclasse],$E85,DADOS_MercadoBase[Detalhe],$F85,DADOS_MercadoBase[Posto],$G85)),2),0) -> 0 | M85: =IFERROR(ROUND((AVERAGEIFS(DADOS_MercadoBase[TE],DADOS_MercadoBase[TipoMercado],$A$3,DADOS_MercadoBase[OPÇÃO],$A$57,DADOS_MercadoBase[Subgrupo],$A85,DADOS_MercadoBase[Modalidade],$B85,DADOS_MercadoBase[Classe],$D85,DADOS_MercadoBase[Subclasse],$E85,DADOS_MercadoBase[Detalhe],$F85,DADOS_MercadoBase[Posto],$G85)),2),0) -> 0 | P85: Verde | Q85: Não se aplica | R85: NA | S85: 38.63 | T85: 0 | U85: 0 | V85: 40.69 | W85: 0 | X85: 0
A86: A2 | B86: Azul | C86: Azul | D86: Serviço público | E86: Tração elétrica | F86: Não se aplica | G86: Não se aplica | H86: =IFERROR(ROUND((AVERAGEIFS(DADOS_MercadoBase[Tar_PTUSD],DADOS_MercadoBase[TipoMercado],$A$3,DADOS_MercadoBase[OPÇÃO],$A$57,DADOS_MercadoBase[Subgrupo],$A86,DADOS_MercadoBase[Modalidade],$B86,DADOS_MercadoBase[Classe],$D86,DADOS_MercadoBase[Subclasse],$E86,DADOS_MercadoBase[Detalhe],$F86,DADOS_MercadoBase[Posto],$G86)),2),0) -> 0 | I86: =IFERROR(ROUND((AVERAGEIFS(DADOS_MercadoBase[Tar_ETUSD],DADOS_MercadoBase[TipoMercado],$A$3,DADOS_MercadoBase[OPÇÃO],$A$57,DADOS_MercadoBase[Subgrupo],$A86,DADOS_MercadoBase[Modalidade],$B86,DADOS_MercadoBase[Classe],$D86,DADOS_MercadoBase[Subclasse],$E86,DADOS_MercadoBase[Detalhe],$F86,DADOS_MercadoBase[Posto],$G86)),2),0) -> 0 | J86: =IFERROR(ROUND((AVERAGEIFS(DADOS_MercadoBase[Tar_ETE],DADOS_MercadoBase[TipoMercado],$A$3,DADOS_MercadoBase[OPÇÃO],$A$57,DADOS_MercadoBase[Subgrupo],$A86,DADOS_MercadoBase[Modalidade],$B86,DADOS_MercadoBase[Classe],$D86,DADOS_MercadoBase[Subclasse],$E86,DADOS_MercadoBase[Detalhe],$F86,DADOS_MercadoBase[Posto],$G86)),2),0) -> 0 | K86: =IFERROR(ROUND((AVERAGEIFS(DADOS_MercadoBase[TUSD/KW],DADOS_MercadoBase[TipoMercado],$A$3,DADOS_MercadoBase[OPÇÃO],$A$57,DADOS_MercadoBase[Subgrupo],$A86,DADOS_MercadoBase[Modalidade],$B86,DADOS_MercadoBase[Classe],$D86,DADOS_MercadoBase[Subclasse],$E86,DADOS_MercadoBase[Detalhe],$F86,DADOS_MercadoBase[Posto],$G86)),2),0) -> 0 | L86: =IFERROR(ROUND((AVERAGEIFS(DADOS_MercadoBase[TUSD/MWh],DADOS_MercadoBase[TipoMercado],$A$3,DADOS_MercadoBase[OPÇÃO],$A$57,DADOS_MercadoBase[Subgrupo],$A86,DADOS_MercadoBase[Modalidade],$B86,DADOS_MercadoBase[Classe],$D86,DADOS_MercadoBase[Subclasse],$E86,DADOS_MercadoBase[Detalhe],$F86,DADOS_MercadoBase[Posto],$G86)),2),0) -> 0 | M86: =IFERROR(ROUND((AVERAGEIFS(DADOS_MercadoBase[TE],DADOS_MercadoBase[TipoMercado],$A$3,DADOS_MercadoBase[OPÇÃO],$A$57,DADOS_MercadoBase[Subgrupo],$A86,DADOS_MercadoBase[Modalidade],$B86,DADOS_MercadoBase[Classe],$D86,DADOS_MercadoBase[Subclasse],$E86,DADOS_MercadoBase[Detalhe],$F86,DADOS_MercadoBase[Posto],$G86)),2),0) -> 0 | R86: P | S86: 0 | T86: 1901.27 | U86: 423.28 | V86: 0 | W86: 2032.05 | X86: 422.71
A87: A2 | B87: Azul | C87: Azul | D87: Não se aplica | E87: Não se aplica | F87: Não se aplica | G87: Ponta | H87: =IFERROR(ROUND((AVERAGEIFS(DADOS_MercadoBase[Tar_PTUSD],DADOS_MercadoBase[TipoMercado],$A$3,DADOS_MercadoBase[OPÇÃO],$A$57,DADOS_MercadoBase[Subgrupo],$A87,DADOS_MercadoBase[Modalidade],$B87,DADOS_MercadoBase[Classe],$D87,DADOS_MercadoBase[Subclasse],$E87,DADOS_MercadoBase[Detalhe],$F87,DADOS_MercadoBase[Posto],$G87)),2),0) -> 0 | I87: =IFERROR(ROUND((AVERAGEIFS(DADOS_MercadoBase[Tar_ETUSD],DADOS_MercadoBase[TipoMercado],$A$3,DADOS_MercadoBase[OPÇÃO],$A$57,DADOS_MercadoBase[Subgrupo],$A87,DADOS_MercadoBase[Modalidade],$B87,DADOS_MercadoBase[Classe],$D87,DADOS_MercadoBase[Subclasse],$E87,DADOS_MercadoBase[Detalhe],$F87,DADOS_MercadoBase[Posto],$G87)),2),0) -> 0 | J87: =IFERROR(ROUND((AVERAGEIFS(DADOS_MercadoBase[Tar_ETE],DADOS_MercadoBase[TipoMercado],$A$3,DADOS_MercadoBase[OPÇÃO],$A$57,DADOS_MercadoBase[Subgrupo],$A87,DADOS_MercadoBase[Modalidade],$B87,DADOS_MercadoBase[Classe],$D87,DADOS_MercadoBase[Subclasse],$E87,DADOS_MercadoBase[Detalhe],$F87,DADOS_MercadoBase[Posto],$G87)),2),0) -> 0 | K87: =IFERROR(ROUND((AVERAGEIFS(DADOS_MercadoBase[TUSD/KW],DADOS_MercadoBase[TipoMercado],$A$3,DADOS_MercadoBase[OPÇÃO],$A$57,DADOS_MercadoBase[Subgrupo],$A87,DADOS_MercadoBase[Modalidade],$B87,DADOS_MercadoBase[Classe],$D87,DADOS_MercadoBase[Subclasse],$E87,DADOS_MercadoBase[Detalhe],$F87,DADOS_MercadoBase[Posto],$G87)),2),0) -> 0 | L87: =IFERROR(ROUND((AVERAGEIFS(DADOS_MercadoBase[TUSD/MWh],DADOS_MercadoBase[TipoMercado],$A$3,DADOS_MercadoBase[OPÇÃO],$A$57,DADOS_MercadoBase[Subgrupo],$A87,DADOS_MercadoBase[Modalidade],$B87,DADOS_MercadoBase[Classe],$D87,DADOS_MercadoBase[Subclasse],$E87,DADOS_MercadoBase[Detalhe],$F87,DADOS_MercadoBase[Posto],$G87)),2),0) -> 0 | M87: =IFERROR(ROUND((AVERAGEIFS(DADOS_MercadoBase[TE],DADOS_MercadoBase[TipoMercado],$A$3,DADOS_MercadoBase[OPÇÃO],$A$57,DADOS_MercadoBase[Subgrupo],$A87,DADOS_MercadoBase[Modalidade],$B87,DADOS_MercadoBase[Classe],$D87,DADOS_MercadoBase[Subclasse],$E87,DADOS_MercadoBase[Detalhe],$F87,DADOS_MercadoBase[Posto],$G87)),2),0) -> 0 | R87: FP | S87: 0 | T87: 80.32 | U87: 258.24 | V87: 0 | W87: 79.23 | X87: 254.3
A88: A2 | B88: Azul | C88: Azul | D88: Não se aplica | E88: Não se aplica | F88: Não se aplica | G88: Fora ponta | H88: =IFERROR(ROUND((AVERAGEIFS(DADOS_MercadoBase[Tar_PTUSD],DADOS_MercadoBase[TipoMercado],$A$3,DADOS_MercadoBase[OPÇÃO],$A$57,DADOS_MercadoBase[Subgrupo],$A88,DADOS_MercadoBase[Modalidade],$B88,DADOS_MercadoBase[Classe],$D88,DADOS_MercadoBase[Subclasse],$E88,DADOS_MercadoBase[Detalhe],$F88,DADOS_MercadoBase[Posto],$G88)),2),0) -> 0 | I88: =IFERROR(ROUND((AVERAGEIFS(DADOS_MercadoBase[Tar_ETUSD],DADOS_MercadoBase[TipoMercado],$A$3,DADOS_MercadoBase[OPÇÃO],$A$57,DADOS_MercadoBase[Subgrupo],$A88,DADOS_MercadoBase[Modalidade],$B88,DADOS_MercadoBase[Classe],$D88,DADOS_MercadoBase[Subclasse],$E88,DADOS_MercadoBase[Detalhe],$F88,DADOS_MercadoBase[Posto],$G88)),2),0) -> 0 | J88: =IFERROR(ROUND((AVERAGEIFS(DADOS_MercadoBase[Tar_ETE],DADOS_MercadoBase[TipoMercado],$A$3,DADOS_MercadoBase[OPÇÃO],$A$57,DADOS_MercadoBase[Subgrupo],$A88,DADOS_MercadoBase[Modalidade],$B88,DADOS_MercadoBase[Classe],$D88,DADOS_MercadoBase[Subclasse],$E88,DADOS_MercadoBase[Detalhe],$F88,DADOS_MercadoBase[Posto],$G88)),2),0) -> 0 | K88: =IFERROR(ROUND((AVERAGEIFS(DADOS_MercadoBase[TUSD/KW],DADOS_MercadoBase[TipoMercado],$A$3,DADOS_MercadoBase[OPÇÃO],$A$57,DADOS_MercadoBase[Subgrupo],$A88,DADOS_MercadoBase[Modalidade],$B88,DADOS_MercadoBase[Classe],$D88,DADOS_MercadoBase[Subclasse],$E88,DADOS_MercadoBase[Detalhe],$F88,DADOS_MercadoBase[Posto],$G88)),2),0) -> 0 | L88: =IFERROR(ROUND((AVERAGEIFS(DADOS_MercadoBase[TUSD/MWh],DADOS_MercadoBase[TipoMercado],$A$3,DADOS_MercadoBase[OPÇÃO],$A$57,DADOS_MercadoBase[Subgrupo],$A88,DADOS_MercadoBase[Modalidade],$B88,DADOS_MercadoBase[Classe],$D88,DADOS_MercadoBase[Subclasse],$E88,DADOS_MercadoBase[Detalhe],$F88,DADOS_MercadoBase[Posto],$G88)),2),0) -> 0 | M88: =IFERROR(ROUND((AVERAGEIFS(DADOS_MercadoBase[TE],DADOS_MercadoBase[TipoMercado],$A$3,DADOS_MercadoBase[OPÇÃO],$A$57,DADOS_MercadoBase[Subgrupo],$A88,DADOS_MercadoBase[Modalidade],$B88,DADOS_MercadoBase[Classe],$D88,DADOS_MercadoBase[Subclasse],$E88,DADOS_MercadoBase[Detalhe],$F88,DADOS_MercadoBase[Posto],$G88)),2),0) -> 0 | P88: Verde APE | Q88: Não se aplica | R88: NA | S88: 38.63 | T88: 0 | U88: 0 | V88: 40.69 | W88: 0 | X88: 0
A89: A2 | B89: Azul | C89: Azul | D89: Não se aplica | E89: Não se aplica | F89: Não se aplica | G89: Não se aplica | H89: =IFERROR(ROUND((AVERAGEIFS(DADOS_MercadoBase[Tar_PTUSD],DADOS_MercadoBase[TipoMercado],$A$3,DADOS_MercadoBase[OPÇÃO],$A$57,DADOS_MercadoBase[Subgrupo],$A89,DADOS_MercadoBase[Modalidade],$B89,DADOS_MercadoBase[Classe],$D89,DADOS_MercadoBase[Subclasse],$E89,DADOS_MercadoBase[Detalhe],$F89,DADOS_MercadoBase[Posto],$G89)),2),0) -> 0 | I89: =IFERROR(ROUND((AVERAGEIFS(DADOS_MercadoBase[Tar_ETUSD],DADOS_MercadoBase[TipoMercado],$A$3,DADOS_MercadoBase[OPÇÃO],$A$57,DADOS_MercadoBase[Subgrupo],$A89,DADOS_MercadoBase[Modalidade],$B89,DADOS_MercadoBase[Classe],$D89,DADOS_MercadoBase[Subclasse],$E89,DADOS_MercadoBase[Detalhe],$F89,DADOS_MercadoBase[Posto],$G89)),2),0) -> 0 | J89: =IFERROR(ROUND((AVERAGEIFS(DADOS_MercadoBase[Tar_ETE],DADOS_MercadoBase[TipoMercado],$A$3,DADOS_MercadoBase[OPÇÃO],$A$57,DADOS_MercadoBase[Subgrupo],$A89,DADOS_MercadoBase[Modalidade],$B89,DADOS_MercadoBase[Classe],$D89,DADOS_MercadoBase[Subclasse],$E89,DADOS_MercadoBase[Detalhe],$F89,DADOS_MercadoBase[Posto],$G89)),2),0) -> 0 | K89: =IFERROR(ROUND((AVERAGEIFS(DADOS_MercadoBase[TUSD/KW],DADOS_MercadoBase[TipoMercado],$A$3,DADOS_MercadoBase[OPÇÃO],$A$57,DADOS_MercadoBase[Subgrupo],$A89,DADOS_MercadoBase[Modalidade],$B89,DADOS_MercadoBase[Classe],$D89,DADOS_MercadoBase[Subclasse],$E89,DADOS_MercadoBase[Detalhe],$F89,DADOS_MercadoBase[Posto],$G89)),2),0) -> 0 | L89: =IFERROR(ROUND((AVERAGEIFS(DADOS_MercadoBase[TUSD/MWh],DADOS_MercadoBase[TipoMercado],$A$3,DADOS_MercadoBase[OPÇÃO],$A$57,DADOS_MercadoBase[Subgrupo],$A89,DADOS_MercadoBase[Modalidade],$B89,DADOS_MercadoBase[Classe],$D89,DADOS_MercadoBase[Subclasse],$E89,DADOS_MercadoBase[Detalhe],$F89,DADOS_MercadoBase[Posto],$G89)),2),0) -> 0 | M89: =IFERROR(ROUND((AVERAGEIFS(DADOS_MercadoBase[TE],DADOS_MercadoBase[TipoMercado],$A$3,DADOS_MercadoBase[OPÇÃO],$A$57,DADOS_MercadoBase[Subgrupo],$A89,DADOS_MercadoBase[Modalidade],$B89,DADOS_MercadoBase[Classe],$D89,DADOS_MercadoBase[Subclasse],$E89,DADOS_MercadoBase[Detalhe],$F89,DADOS_MercadoBase[Posto],$G89)),2),0) -> 0 | R89: P | S89: 0 | T89: 1850.53 | U89: 0 | V89: 0 | W89: 1983.11 | X89: 0
A90: A2 | B90: Azul | D90: Não se aplica | E90: Não se aplica | F90: APE | G90: Ponta | H90: =IFERROR(ROUND((AVERAGEIFS(DADOS_MercadoBase[Tar_PTUSD],DADOS_MercadoBase[TipoMercado],$A$3,DADOS_MercadoBase[OPÇÃO],$A$57,DADOS_MercadoBase[Subgrupo],$A90,DADOS_MercadoBase[Modalidade],$B90,DADOS_MercadoBase[Classe],$D90,DADOS_MercadoBase[Subclasse],$E90,DADOS_MercadoBase[Detalhe],$F90,DADOS_MercadoBase[Posto],$G90)),2),0) -> 0 | I90: =IFERROR(ROUND((AVERAGEIFS(DADOS_MercadoBase[Tar_ETUSD],DADOS_MercadoBase[TipoMercado],$A$3,DADOS_MercadoBase[OPÇÃO],$A$57,DADOS_MercadoBase[Subgrupo],$A90,DADOS_MercadoBase[Modalidade],$B90,DADOS_MercadoBase[Classe],$D90,DADOS_MercadoBase[Subclasse],$E90,DADOS_MercadoBase[Detalhe],$F90,DADOS_MercadoBase[Posto],$G90)),2),0) -> 0 | J90: =IFERROR(ROUND((AVERAGEIFS(DADOS_MercadoBase[Tar_ETE],DADOS_MercadoBase[TipoMercado],$A$3,DADOS_MercadoBase[OPÇÃO],$A$57,DADOS_MercadoBase[Subgrupo],$A90,DADOS_MercadoBase[Modalidade],$B90,DADOS_MercadoBase[Classe],$D90,DADOS_MercadoBase[Subclasse],$E90,DADOS_MercadoBase[Detalhe],$F90,DADOS_MercadoBase[Posto],$G90)),2),0) -> 0 | K90: =IFERROR(ROUND((AVERAGEIFS(DADOS_MercadoBase[TUSD/KW],DADOS_MercadoBase[TipoMercado],$A$3,DADOS_MercadoBase[OPÇÃO],$A$57,DADOS_MercadoBase[Subgrupo],$A90,DADOS_MercadoBase[Modalidade],$B90,DADOS_MercadoBase[Classe],$D90,DADOS_MercadoBase[Subclasse],$E90,DADOS_MercadoBase[Detalhe],$F90,DADOS_MercadoBase[Posto],$G90)),2),0) -> 0 | L90: =IFERROR(ROUND((AVERAGEIFS(DADOS_MercadoBase[TUSD/MWh],DADOS_MercadoBase[TipoMercado],$A$3,DADOS_MercadoBase[OPÇÃO],$A$57,DADOS_MercadoBase[Subgrupo],$A90,DADOS_MercadoBase[Modalidade],$B90,DADOS_MercadoBase[Classe],$D90,DADOS_MercadoBase[Subclasse],$E90,DADOS_MercadoBase[Detalhe],$F90,DADOS_MercadoBase[Posto],$G90)),2),0) -> 0 | M90: =IFERROR(ROUND((AVERAGEIFS(DADOS_MercadoBase[TE],DADOS_MercadoBase[TipoMercado],$A$3,DADOS_MercadoBase[OPÇÃO],$A$57,DADOS_MercadoBase[Subgrupo],$A90,DADOS_MercadoBase[Modalidade],$B90,DADOS_MercadoBase[Classe],$D90,DADOS_MercadoBase[Subclasse],$E90,DADOS_MercadoBase[Detalhe],$F90,DADOS_MercadoBase[Posto],$G90)),2),0) -> 0 | R90: FP | S90: 0 | T90: 29.59 | U90: 0 | V90: 0 | W90: 30.29 | X90: 0
A91: A2 | B91: Azul | D91: Não se aplica | E91: Não se aplica | F91: APE | G91: Fora ponta | H91: =IFERROR(ROUND((AVERAGEIFS(DADOS_MercadoBase[Tar_PTUSD],DADOS_MercadoBase[TipoMercado],$A$3,DADOS_MercadoBase[OPÇÃO],$A$57,DADOS_MercadoBase[Subgrupo],$A91,DADOS_MercadoBase[Modalidade],$B91,DADOS_MercadoBase[Classe],$D91,DADOS_MercadoBase[Subclasse],$E91,DADOS_MercadoBase[Detalhe],$F91,DADOS_MercadoBase[Posto],$G91)),2),0) -> 0 | I91: =IFERROR(ROUND((AVERAGEIFS(DADOS_MercadoBase[Tar_ETUSD],DADOS_MercadoBase[TipoMercado],$A$3,DADOS_MercadoBase[OPÇÃO],$A$57,DADOS_MercadoBase[Subgrupo],$A91,DADOS_MercadoBase[Modalidade],$B91,DADOS_MercadoBase[Classe],$D91,DADOS_MercadoBase[Subclasse],$E91,DADOS_MercadoBase[Detalhe],$F91,DADOS_MercadoBase[Posto],$G91)),2),0) -> 0 | J91: =IFERROR(ROUND((AVERAGEIFS(DADOS_MercadoBase[Tar_ETE],DADOS_MercadoBase[TipoMercado],$A$3,DADOS_MercadoBase[OPÇÃO],$A$57,DADOS_MercadoBase[Subgrupo],$A91,DADOS_MercadoBase[Modalidade],$B91,DADOS_MercadoBase[Classe],$D91,DADOS_MercadoBase[Subclasse],$E91,DADOS_MercadoBase[Detalhe],$F91,DADOS_MercadoBase[Posto],$G91)),2),0) -> 0 | K91: =IFERROR(ROUND((AVERAGEIFS(DADOS_MercadoBase[TUSD/KW],DADOS_MercadoBase[TipoMercado],$A$3,DADOS_MercadoBase[OPÇÃO],$A$57,DADOS_MercadoBase[Subgrupo],$A91,DADOS_MercadoBase[Modalidade],$B91,DADOS_MercadoBase[Classe],$D91,DADOS_MercadoBase[Subclasse],$E91,DADOS_MercadoBase[Detalhe],$F91,DADOS_MercadoBase[Posto],$G91)),2),0) -> 0 | L91: =IFERROR(ROUND((AVERAGEIFS(DADOS_MercadoBase[TUSD/MWh],DADOS_MercadoBase[TipoMercado],$A$3,DADOS_MercadoBase[OPÇÃO],$A$57,DADOS_MercadoBase[Subgrupo],$A91,DADOS_MercadoBase[Modalidade],$B91,DADOS_MercadoBase[Classe],$D91,DADOS_MercadoBase[Subclasse],$E91,DADOS_MercadoBase[Detalhe],$F91,DADOS_MercadoBase[Posto],$G91)),2),0) -> 0 | M91: =IFERROR(ROUND((AVERAGEIFS(DADOS_MercadoBase[TE],DADOS_MercadoBase[TipoMercado],$A$3,DADOS_MercadoBase[OPÇÃO],$A$57,DADOS_MercadoBase[Subgrupo],$A91,DADOS_MercadoBase[Modalidade],$B91,DADOS_MercadoBase[Classe],$D91,DADOS_MercadoBase[Subclasse],$E91,DADOS_MercadoBase[Detalhe],$F91,DADOS_MercadoBase[Posto],$G91)),2),0) -> 0 | P91: Geração | Q91: Não se aplica | R91: NA | S91: 22.86 | T91: 0 | U91: 0 | V91: 24.98 | W91: 0 | X91: 0
A92: A2 | B92: Azul | D92: Não se aplica | E92: Não se aplica | F92: APE | G92: Não se aplica | H92: =IFERROR(ROUND((AVERAGEIFS(DADOS_MercadoBase[Tar_PTUSD],DADOS_MercadoBase[TipoMercado],$A$3,DADOS_MercadoBase[OPÇÃO],$A$57,DADOS_MercadoBase[Subgrupo],$A92,DADOS_MercadoBase[Modalidade],$B92,DADOS_MercadoBase[Classe],$D92,DADOS_MercadoBase[Subclasse],$E92,DADOS_MercadoBase[Detalhe],$F92,DADOS_MercadoBase[Posto],$G92)),2),0) -> 0 | I92: =IFERROR(ROUND((AVERAGEIFS(DADOS_MercadoBase[Tar_ETUSD],DADOS_MercadoBase[TipoMercado],$A$3,DADOS_MercadoBase[OPÇÃO],$A$57,DADOS_MercadoBase[Subgrupo],$A92,DADOS_MercadoBase[Modalidade],$B92,DADOS_MercadoBase[Classe],$D92,DADOS_MercadoBase[Subclasse],$E92,DADOS_MercadoBase[Detalhe],$F92,DADOS_MercadoBase[Posto],$G92)),2),0) -> 0 | J92: =IFERROR(ROUND((AVERAGEIFS(DADOS_MercadoBase[Tar_ETE],DADOS_MercadoBase[TipoMercado],$A$3,DADOS_MercadoBase[OPÇÃO],$A$57,DADOS_MercadoBase[Subgrupo],$A92,DADOS_MercadoBase[Modalidade],$B92,DADOS_MercadoBase[Classe],$D92,DADOS_MercadoBase[Subclasse],$E92,DADOS_MercadoBase[Detalhe],$F92,DADOS_MercadoBase[Posto],$G92)),2),0) -> 0 | K92: =IFERROR(ROUND((AVERAGEIFS(DADOS_MercadoBase[TUSD/KW],DADOS_MercadoBase[TipoMercado],$A$3,DADOS_MercadoBase[OPÇÃO],$A$57,DADOS_MercadoBase[Subgrupo],$A92,DADOS_MercadoBase[Modalidade],$B92,DADOS_MercadoBase[Classe],$D92,DADOS_MercadoBase[Subclasse],$E92,DADOS_MercadoBase[Detalhe],$F92,DADOS_MercadoBase[Posto],$G92)),2),0) -> 0 | L92: =IFERROR(ROUND((AVERAGEIFS(DADOS_MercadoBase[TUSD/MWh],DADOS_MercadoBase[TipoMercado],$A$3,DADOS_MercadoBase[OPÇÃO],$A$57,DADOS_MercadoBase[Subgrupo],$A92,DADOS_MercadoBase[Modalidade],$B92,DADOS_MercadoBase[Classe],$D92,DADOS_MercadoBase[Subclasse],$E92,DADOS_MercadoBase[Detalhe],$F92,DADOS_MercadoBase[Posto],$G92)),2),0) -> 0 | M92: =IFERROR(ROUND((AVERAGEIFS(DADOS_MercadoBase[TE],DADOS_MercadoBase[TipoMercado],$A$3,DADOS_MercadoBase[OPÇÃO],$A$57,DADOS_MercadoBase[Subgrupo],$A92,DADOS_MercadoBase[Modalidade],$B92,DADOS_MercadoBase[Classe],$D92,DADOS_MercadoBase[Subclasse],$E92,DADOS_MercadoBase[Detalhe],$F92,DADOS_MercadoBase[Posto],$G92)),2),0) -> 0 | O92: AS | P92: Azul | Q92: Não se aplica | R92: P
A93: A3 | B93: Azul | C93: Azul | D93: Não se aplica | E93: Não se aplica | F93: Não se aplica | G93: Ponta | H93: =IFERROR(ROUND((AVERAGEIFS(DADOS_MercadoBase[Tar_PTUSD],DADOS_MercadoBase[TipoMercado],$A$3,DADOS_MercadoBase[OPÇÃO],$A$57,DADOS_MercadoBase[Subgrupo],$A93,DADOS_MercadoBase[Modalidade],$B93,DADOS_MercadoBase[Classe],$D93,DADOS_MercadoBase[Subclasse],$E93,DADOS_MercadoBase[Detalhe],$F93,DADOS_MercadoBase[Posto],$G93)),2),0) -> 0 | I93: =IFERROR(ROUND((AVERAGEIFS(DADOS_MercadoBase[Tar_ETUSD],DADOS_MercadoBase[TipoMercado],$A$3,DADOS_MercadoBase[OPÇÃO],$A$57,DADOS_MercadoBase[Subgrupo],$A93,DADOS_MercadoBase[Modalidade],$B93,DADOS_MercadoBase[Classe],$D93,DADOS_MercadoBase[Subclasse],$E93,DADOS_MercadoBase[Detalhe],$F93,DADOS_MercadoBase[Posto],$G93)),2),0) -> 0 | J93: =IFERROR(ROUND((AVERAGEIFS(DADOS_MercadoBase[Tar_ETE],DADOS_MercadoBase[TipoMercado],$A$3,DADOS_MercadoBase[OPÇÃO],$A$57,DADOS_MercadoBase[Subgrupo],$A93,DADOS_MercadoBase[Modalidade],$B93,DADOS_MercadoBase[Classe],$D93,DADOS_MercadoBase[Subclasse],$E93,DADOS_MercadoBase[Detalhe],$F93,DADOS_MercadoBase[Posto],$G93)),2),0) -> 0 | K93: =IFERROR(ROUND((AVERAGEIFS(DADOS_MercadoBase[TUSD/KW],DADOS_MercadoBase[TipoMercado],$A$3,DADOS_MercadoBase[OPÇÃO],$A$57,DADOS_MercadoBase[Subgrupo],$A93,DADOS_MercadoBase[Modalidade],$B93,DADOS_MercadoBase[Classe],$D93,DADOS_MercadoBase[Subclasse],$E93,DADOS_MercadoBase[Detalhe],$F93,DADOS_MercadoBase[Posto],$G93)),2),0) -> 0 | L93: =IFERROR(ROUND((AVERAGEIFS(DADOS_MercadoBase[TUSD/MWh],DADOS_MercadoBase[TipoMercado],$A$3,DADOS_MercadoBase[OPÇÃO],$A$57,DADOS_MercadoBase[Subgrupo],$A93,DADOS_MercadoBase[Modalidade],$B93,DADOS_MercadoBase[Classe],$D93,DADOS_MercadoBase[Subclasse],$E93,DADOS_MercadoBase[Detalhe],$F93,DADOS_MercadoBase[Posto],$G93)),2),0) -> 0 | M93: =IFERROR(ROUND((AVERAGEIFS(DADOS_MercadoBase[TE],DADOS_MercadoBase[TipoMercado],$A$3,DADOS_MercadoBase[OPÇÃO],$A$57,DADOS_MercadoBase[Subgrupo],$A93,DADOS_MercadoBase[Modalidade],$B93,DADOS_MercadoBase[Classe],$D93,DADOS_MercadoBase[Subclasse],$E93,DADOS_MercadoBase[Detalhe],$F93,DADOS_MercadoBase[Posto],$G93)),2),0) -> 0 | R93: FP
A94: A3 | B94: Azul | C94: Azul | D94: Não se aplica | E94: Não se aplica | F94: Não se aplica | G94: Fora ponta | H94: =IFERROR(ROUND((AVERAGEIFS(DADOS_MercadoBase[Tar_PTUSD],DADOS_MercadoBase[TipoMercado],$A$3,DADOS_MercadoBase[OPÇÃO],$A$57,DADOS_MercadoBase[Subgrupo],$A94,DADOS_MercadoBase[Modalidade],$B94,DADOS_MercadoBase[Classe],$D94,DADOS_MercadoBase[Subclasse],$E94,DADOS_MercadoBase[Detalhe],$F94,DADOS_MercadoBase[Posto],$G94)),2),0) -> 0 | I94: =IFERROR(ROUND((AVERAGEIFS(DADOS_MercadoBase[Tar_ETUSD],DADOS_MercadoBase[TipoMercado],$A$3,DADOS_MercadoBase[OPÇÃO],$A$57,DADOS_MercadoBase[Subgrupo],$A94,DADOS_MercadoBase[Modalidade],$B94,DADOS_MercadoBase[Classe],$D94,DADOS_MercadoBase[Subclasse],$E94,DADOS_MercadoBase[Detalhe],$F94,DADOS_MercadoBase[Posto],$G94)),2),0) -> 0 | J94: =IFERROR(ROUND((AVERAGEIFS(DADOS_MercadoBase[Tar_ETE],DADOS_MercadoBase[TipoMercado],$A$3,DADOS_MercadoBase[OPÇÃO],$A$57,DADOS_MercadoBase[Subgrupo],$A94,DADOS_MercadoBase[Modalidade],$B94,DADOS_MercadoBase[Classe],$D94,DADOS_MercadoBase[Subclasse],$E94,DADOS_MercadoBase[Detalhe],$F94,DADOS_MercadoBase[Posto],$G94)),2),0) -> 0 | K94: =IFERROR(ROUND((AVERAGEIFS(DADOS_MercadoBase[TUSD/KW],DADOS_MercadoBase[TipoMercado],$A$3,DADOS_MercadoBase[OPÇÃO],$A$57,DADOS_MercadoBase[Subgrupo],$A94,DADOS_MercadoBase[Modalidade],$B94,DADOS_MercadoBase[Classe],$D94,DADOS_MercadoBase[Subclasse],$E94,DADOS_MercadoBase[Detalhe],$F94,DADOS_MercadoBase[Posto],$G94)),2),0) -> 0 | L94: =IFERROR(ROUND((AVERAGEIFS(DADOS_MercadoBase[TUSD/MWh],DADOS_MercadoBase[TipoMercado],$A$3,DADOS_MercadoBase[OPÇÃO],$A$57,DADOS_MercadoBase[Subgrupo],$A94,DADOS_MercadoBase[Modalidade],$B94,DADOS_MercadoBase[Classe],$D94,DADOS_MercadoBase[Subclasse],$E94,DADOS_MercadoBase[Detalhe],$F94,DADOS_MercadoBase[Posto],$G94)),2),0) -> 0 | M94: =IFERROR(ROUND((AVERAGEIFS(DADOS_MercadoBase[TE],DADOS_MercadoBase[TipoMercado],$A$3,DADOS_MercadoBase[OPÇÃO],$A$57,DADOS_MercadoBase[Subgrupo],$A94,DADOS_MercadoBase[Modalidade],$B94,DADOS_MercadoBase[Classe],$D94,DADOS_MercadoBase[Subclasse],$E94,DADOS_MercadoBase[Detalhe],$F94,DADOS_MercadoBase[Posto],$G94)),2),0) -> 0 | P94: Azul APE | Q94: Não se aplica | R94: P
A95: A3 | B95: Azul | C95: Azul | D95: Não se aplica | E95: Não se aplica | F95: Não se aplica | G95: Não se aplica | H95: =IFERROR(ROUND((AVERAGEIFS(DADOS_MercadoBase[Tar_PTUSD],DADOS_MercadoBase[TipoMercado],$A$3,DADOS_MercadoBase[OPÇÃO],$A$57,DADOS_MercadoBase[Subgrupo],$A95,DADOS_MercadoBase[Modalidade],$B95,DADOS_MercadoBase[Classe],$D95,DADOS_MercadoBase[Subclasse],$E95,DADOS_MercadoBase[Detalhe],$F95,DADOS_MercadoBase[Posto],$G95)),2),0) -> 0 | I95: =IFERROR(ROUND((AVERAGEIFS(DADOS_MercadoBase[Tar_ETUSD],DADOS_MercadoBase[TipoMercado],$A$3,DADOS_MercadoBase[OPÇÃO],$A$57,DADOS_MercadoBase[Subgrupo],$A95,DADOS_MercadoBase[Modalidade],$B95,DADOS_MercadoBase[Classe],$D95,DADOS_MercadoBase[Subclasse],$E95,DADOS_MercadoBase[Detalhe],$F95,DADOS_MercadoBase[Posto],$G95)),2),0) -> 0 | J95: =IFERROR(ROUND((AVERAGEIFS(DADOS_MercadoBase[Tar_ETE],DADOS_MercadoBase[TipoMercado],$A$3,DADOS_MercadoBase[OPÇÃO],$A$57,DADOS_MercadoBase[Subgrupo],$A95,DADOS_MercadoBase[Modalidade],$B95,DADOS_MercadoBase[Classe],$D95,DADOS_MercadoBase[Subclasse],$E95,DADOS_MercadoBase[Detalhe],$F95,DADOS_MercadoBase[Posto],$G95)),2),0) -> 0 | K95: =IFERROR(ROUND((AVERAGEIFS(DADOS_MercadoBase[TUSD/KW],DADOS_MercadoBase[TipoMercado],$A$3,DADOS_MercadoBase[OPÇÃO],$A$57,DADOS_MercadoBase[Subgrupo],$A95,DADOS_MercadoBase[Modalidade],$B95,DADOS_MercadoBase[Classe],$D95,DADOS_MercadoBase[Subclasse],$E95,DADOS_MercadoBase[Detalhe],$F95,DADOS_MercadoBase[Posto],$G95)),2),0) -> 0 | L95: =IFERROR(ROUND((AVERAGEIFS(DADOS_MercadoBase[TUSD/MWh],DADOS_MercadoBase[TipoMercado],$A$3,DADOS_MercadoBase[OPÇÃO],$A$57,DADOS_MercadoBase[Subgrupo],$A95,DADOS_MercadoBase[Modalidade],$B95,DADOS_MercadoBase[Classe],$D95,DADOS_MercadoBase[Subclasse],$E95,DADOS_MercadoBase[Detalhe],$F95,DADOS_MercadoBase[Posto],$G95)),2),0) -> 0 | M95: =IFERROR(ROUND((AVERAGEIFS(DADOS_MercadoBase[TE],DADOS_MercadoBase[TipoMercado],$A$3,DADOS_MercadoBase[OPÇÃO],$A$57,DADOS_MercadoBase[Subgrupo],$A95,DADOS_MercadoBase[Modalidade],$B95,DADOS_MercadoBase[Classe],$D95,DADOS_MercadoBase[Subclasse],$E95,DADOS_MercadoBase[Detalhe],$F95,DADOS_MercadoBase[Posto],$G95)),2),0) -> 0 | R95: FP
A96: A3 | B96: Azul | C96: Azul | D96: Industrial | E96: Não se aplica | F96: Não se aplica | G96: Ponta | H96: =IFERROR(ROUND((AVERAGEIFS(DADOS_MercadoBase[Tar_PTUSD],DADOS_MercadoBase[TipoMercado],$A$3,DADOS_MercadoBase[OPÇÃO],$A$57,DADOS_MercadoBase[Subgrupo],$A96,DADOS_MercadoBase[Modalidade],$B96,DADOS_MercadoBase[Classe],$D96,DADOS_MercadoBase[Subclasse],$E96,DADOS_MercadoBase[Detalhe],$F96,DADOS_MercadoBase[Posto],$G96)),2),0) -> 0 | I96: =IFERROR(ROUND((AVERAGEIFS(DADOS_MercadoBase[Tar_ETUSD],DADOS_MercadoBase[TipoMercado],$A$3,DADOS_MercadoBase[OPÇÃO],$A$57,DADOS_MercadoBase[Subgrupo],$A96,DADOS_MercadoBase[Modalidade],$B96,DADOS_MercadoBase[Classe],$D96,DADOS_MercadoBase[Subclasse],$E96,DADOS_MercadoBase[Detalhe],$F96,DADOS_MercadoBase[Posto],$G96)),2),0) -> 0 | J96: =IFERROR(ROUND((AVERAGEIFS(DADOS_MercadoBase[Tar_ETE],DADOS_MercadoBase[TipoMercado],$A$3,DADOS_MercadoBase[OPÇÃO],$A$57,DADOS_MercadoBase[Subgrupo],$A96,DADOS_MercadoBase[Modalidade],$B96,DADOS_MercadoBase[Classe],$D96,DADOS_MercadoBase[Subclasse],$E96,DADOS_MercadoBase[Detalhe],$F96,DADOS_MercadoBase[Posto],$G96)),2),0) -> 0 | K96: =IFERROR(ROUND((AVERAGEIFS(DADOS_MercadoBase[TUSD/KW],DADOS_MercadoBase[TipoMercado],$A$3,DADOS_MercadoBase[OPÇÃO],$A$57,DADOS_MercadoBase[Subgrupo],$A96,DADOS_MercadoBase[Modalidade],$B96,DADOS_MercadoBase[Classe],$D96,DADOS_MercadoBase[Subclasse],$E96,DADOS_MercadoBase[Detalhe],$F96,DADOS_MercadoBase[Posto],$G96)),2),0) -> 0 | L96: =IFERROR(ROUND((AVERAGEIFS(DADOS_MercadoBase[TUSD/MWh],DADOS_MercadoBase[TipoMercado],$A$3,DADOS_MercadoBase[OPÇÃO],$A$57,DADOS_MercadoBase[Subgrupo],$A96,DADOS_MercadoBase[Modalidade],$B96,DADOS_MercadoBase[Classe],$D96,DADOS_MercadoBase[Subclasse],$E96,DADOS_MercadoBase[Detalhe],$F96,DADOS_MercadoBase[Posto],$G96)),2),0) -> 0 | M96: =IFERROR(ROUND((AVERAGEIFS(DADOS_MercadoBase[TE],DADOS_MercadoBase[TipoMercado],$A$3,DADOS_MercadoBase[OPÇÃO],$A$57,DADOS_MercadoBase[Subgrupo],$A96,DADOS_MercadoBase[Modalidade],$B96,DADOS_MercadoBase[Classe],$D96,DADOS_MercadoBase[Subclasse],$E96,DADOS_MercadoBase[Detalhe],$F96,DADOS_MercadoBase[Posto],$G96)),2),0) -> 0 | P96: Verde | Q96: Não se aplica | R96: NA
A97: A3 | B97: Azul | C97: Azul | D97: Industrial | E97: Não se aplica | F97: Não se aplica | G97: Fora ponta | H97: =IFERROR(ROUND((AVERAGEIFS(DADOS_MercadoBase[Tar_PTUSD],DADOS_MercadoBase[TipoMercado],$A$3,DADOS_MercadoBase[OPÇÃO],$A$57,DADOS_MercadoBase[Subgrupo],$A97,DADOS_MercadoBase[Modalidade],$B97,DADOS_MercadoBase[Classe],$D97,DADOS_MercadoBase[Subclasse],$E97,DADOS_MercadoBase[Detalhe],$F97,DADOS_MercadoBase[Posto],$G97)),2),0) -> 0 | I97: =IFERROR(ROUND((AVERAGEIFS(DADOS_MercadoBase[Tar_ETUSD],DADOS_MercadoBase[TipoMercado],$A$3,DADOS_MercadoBase[OPÇÃO],$A$57,DADOS_MercadoBase[Subgrupo],$A97,DADOS_MercadoBase[Modalidade],$B97,DADOS_MercadoBase[Classe],$D97,DADOS_MercadoBase[Subclasse],$E97,DADOS_MercadoBase[Detalhe],$F97,DADOS_MercadoBase[Posto],$G97)),2),0) -> 0 | J97: =IFERROR(ROUND((AVERAGEIFS(DADOS_MercadoBase[Tar_ETE],DADOS_MercadoBase[TipoMercado],$A$3,DADOS_MercadoBase[OPÇÃO],$A$57,DADOS_MercadoBase[Subgrupo],$A97,DADOS_MercadoBase[Modalidade],$B97,DADOS_MercadoBase[Classe],$D97,DADOS_MercadoBase[Subclasse],$E97,DADOS_MercadoBase[Detalhe],$F97,DADOS_MercadoBase[Posto],$G97)),2),0) -> 0 | K97: =IFERROR(ROUND((AVERAGEIFS(DADOS_MercadoBase[TUSD/KW],DADOS_MercadoBase[TipoMercado],$A$3,DADOS_MercadoBase[OPÇÃO],$A$57,DADOS_MercadoBase[Subgrupo],$A97,DADOS_MercadoBase[Modalidade],$B97,DADOS_MercadoBase[Classe],$D97,DADOS_MercadoBase[Subclasse],$E97,DADOS_MercadoBase[Detalhe],$F97,DADOS_MercadoBase[Posto],$G97)),2),0) -> 0 | L97: =IFERROR(ROUND((AVERAGEIFS(DADOS_MercadoBase[TUSD/MWh],DADOS_MercadoBase[TipoMercado],$A$3,DADOS_MercadoBase[OPÇÃO],$A$57,DADOS_MercadoBase[Subgrupo],$A97,DADOS_MercadoBase[Modalidade],$B97,DADOS_MercadoBase[Classe],$D97,DADOS_MercadoBase[Subclasse],$E97,DADOS_MercadoBase[Detalhe],$F97,DADOS_MercadoBase[Posto],$G97)),2),0) -> 0 | M97: =IFERROR(ROUND((AVERAGEIFS(DADOS_MercadoBase[TE],DADOS_MercadoBase[TipoMercado],$A$3,DADOS_MercadoBase[OPÇÃO],$A$57,DADOS_MercadoBase[Subgrupo],$A97,DADOS_MercadoBase[Modalidade],$B97,DADOS_MercadoBase[Classe],$D97,DADOS_MercadoBase[Subclasse],$E97,DADOS_MercadoBase[Detalhe],$F97,DADOS_MercadoBase[Posto],$G97)),2),0) -> 0 | R97: P
A98: A3 | B98: Azul | C98: Azul | D98: Industrial | E98: Não se aplica | F98: Não se aplica | G98: Não se aplica | H98: =IFERROR(ROUND((AVERAGEIFS(DADOS_MercadoBase[Tar_PTUSD],DADOS_MercadoBase[TipoMercado],$A$3,DADOS_MercadoBase[OPÇÃO],$A$57,DADOS_MercadoBase[Subgrupo],$A98,DADOS_MercadoBase[Modalidade],$B98,DADOS_MercadoBase[Classe],$D98,DADOS_MercadoBase[Subclasse],$E98,DADOS_MercadoBase[Detalhe],$F98,DADOS_MercadoBase[Posto],$G98)),2),0) -> 0 | I98: =IFERROR(ROUND((AVERAGEIFS(DADOS_MercadoBase[Tar_ETUSD],DADOS_MercadoBase[TipoMercado],$A$3,DADOS_MercadoBase[OPÇÃO],$A$57,DADOS_MercadoBase[Subgrupo],$A98,DADOS_MercadoBase[Modalidade],$B98,DADOS_MercadoBase[Classe],$D98,DADOS_MercadoBase[Subclasse],$E98,DADOS_MercadoBase[Detalhe],$F98,DADOS_MercadoBase[Posto],$G98)),2),0) -> 0 | J98: =IFERROR(ROUND((AVERAGEIFS(DADOS_MercadoBase[Tar_ETE],DADOS_MercadoBase[TipoMercado],$A$3,DADOS_MercadoBase[OPÇÃO],$A$57,DADOS_MercadoBase[Subgrupo],$A98,DADOS_MercadoBase[Modalidade],$B98,DADOS_MercadoBase[Classe],$D98,DADOS_MercadoBase[Subclasse],$E98,DADOS_MercadoBase[Detalhe],$F98,DADOS_MercadoBase[Posto],$G98)),2),0) -> 0 | K98: =IFERROR(ROUND((AVERAGEIFS(DADOS_MercadoBase[TUSD/KW],DADOS_MercadoBase[TipoMercado],$A$3,DADOS_MercadoBase[OPÇÃO],$A$57,DADOS_MercadoBase[Subgrupo],$A98,DADOS_MercadoBase[Modalidade],$B98,DADOS_MercadoBase[Classe],$D98,DADOS_MercadoBase[Subclasse],$E98,DADOS_MercadoBase[Detalhe],$F98,DADOS_MercadoBase[Posto],$G98)),2),0) -> 0 | L98: =IFERROR(ROUND((AVERAGEIFS(DADOS_MercadoBase[TUSD/MWh],DADOS_MercadoBase[TipoMercado],$A$3,DADOS_MercadoBase[OPÇÃO],$A$57,DADOS_MercadoBase[Subgrupo],$A98,DADOS_MercadoBase[Modalidade],$B98,DADOS_MercadoBase[Classe],$D98,DADOS_MercadoBase[Subclasse],$E98,DADOS_MercadoBase[Detalhe],$F98,DADOS_MercadoBase[Posto],$G98)),2),0) -> 0 | M98: =IFERROR(ROUND((AVERAGEIFS(DADOS_MercadoBase[TE],DADOS_MercadoBase[TipoMercado],$A$3,DADOS_MercadoBase[OPÇÃO],$A$57,DADOS_MercadoBase[Subgrupo],$A98,DADOS_MercadoBase[Modalidade],$B98,DADOS_MercadoBase[Classe],$D98,DADOS_MercadoBase[Subclasse],$E98,DADOS_MercadoBase[Detalhe],$F98,DADOS_MercadoBase[Posto],$G98)),2),0) -> 0 | R98: FP
A99: A3 | B99: Azul | C99: Azul APE | D99: Industrial | E99: Não se aplica | F99: APE | G99: Ponta | H99: =IFERROR(ROUND((AVERAGEIFS(DADOS_MercadoBase[Tar_PTUSD],DADOS_MercadoBase[TipoMercado],$A$3,DADOS_MercadoBase[OPÇÃO],$A$57,DADOS_MercadoBase[Subgrupo],$A99,DADOS_MercadoBase[Modalidade],$B99,DADOS_MercadoBase[Classe],$D99,DADOS_MercadoBase[Subclasse],$E99,DADOS_MercadoBase[Detalhe],$F99,DADOS_MercadoBase[Posto],$G99)),2),0) -> 0 | I99: =IFERROR(ROUND((AVERAGEIFS(DADOS_MercadoBase[Tar_ETUSD],DADOS_MercadoBase[TipoMercado],$A$3,DADOS_MercadoBase[OPÇÃO],$A$57,DADOS_MercadoBase[Subgrupo],$A99,DADOS_MercadoBase[Modalidade],$B99,DADOS_MercadoBase[Classe],$D99,DADOS_MercadoBase[Subclasse],$E99,DADOS_MercadoBase[Detalhe],$F99,DADOS_MercadoBase[Posto],$G99)),2),0) -> 0 | J99: =IFERROR(ROUND((AVERAGEIFS(DADOS_MercadoBase[Tar_ETE],DADOS_MercadoBase[TipoMercado],$A$3,DADOS_MercadoBase[OPÇÃO],$A$57,DADOS_MercadoBase[Subgrupo],$A99,DADOS_MercadoBase[Modalidade],$B99,DADOS_MercadoBase[Classe],$D99,DADOS_MercadoBase[Subclasse],$E99,DADOS_MercadoBase[Detalhe],$F99,DADOS_MercadoBase[Posto],$G99)),2),0) -> 0 | K99: =IFERROR(ROUND((AVERAGEIFS(DADOS_MercadoBase[TUSD/KW],DADOS_MercadoBase[TipoMercado],$A$3,DADOS_MercadoBase[OPÇÃO],$A$57,DADOS_MercadoBase[Subgrupo],$A99,DADOS_MercadoBase[Modalidade],$B99,DADOS_MercadoBase[Classe],$D99,DADOS_MercadoBase[Subclasse],$E99,DADOS_MercadoBase[Detalhe],$F99,DADOS_MercadoBase[Posto],$G99)),2),0) -> 0 | L99: =IFERROR(ROUND((AVERAGEIFS(DADOS_MercadoBase[TUSD/MWh],DADOS_MercadoBase[TipoMercado],$A$3,DADOS_MercadoBase[OPÇÃO],$A$57,DADOS_MercadoBase[Subgrupo],$A99,DADOS_MercadoBase[Modalidade],$B99,DADOS_MercadoBase[Classe],$D99,DADOS_MercadoBase[Subclasse],$E99,DADOS_MercadoBase[Detalhe],$F99,DADOS_MercadoBase[Posto],$G99)),2),0) -> 0 | M99: =IFERROR(ROUND((AVERAGEIFS(DADOS_MercadoBase[TE],DADOS_MercadoBase[TipoMercado],$A$3,DADOS_MercadoBase[OPÇÃO],$A$57,DADOS_MercadoBase[Subgrupo],$A99,DADOS_MercadoBase[Modalidade],$B99,DADOS_MercadoBase[Classe],$D99,DADOS_MercadoBase[Subclasse],$E99,DADOS_MercadoBase[Detalhe],$F99,DADOS_MercadoBase[Posto],$G99)),2),0) -> 0 | P99: Verde APE | Q99: Não se aplica | R99: NA
A100: A3 | B100: Azul | C100: Azul APE | D100: Industrial | E100: Não se aplica | F100: APE | G100: Fora ponta | H100: =IFERROR(ROUND((AVERAGEIFS(DADOS_MercadoBase[Tar_PTUSD],DADOS_MercadoBase[TipoMercado],$A$3,DADOS_MercadoBase[OPÇÃO],$A$57,DADOS_MercadoBase[Subgrupo],$A100,DADOS_MercadoBase[Modalidade],$B100,DADOS_MercadoBase[Classe],$D100,DADOS_MercadoBase[Subclasse],$E100,DADOS_MercadoBase[Detalhe],$F100,DADOS_MercadoBase[Posto],$G100)),2),0) -> 0 | I100: =IFERROR(ROUND((AVERAGEIFS(DADOS_MercadoBase[Tar_ETUSD],DADOS_MercadoBase[TipoMercado],$A$3,DADOS_MercadoBase[OPÇÃO],$A$57,DADOS_MercadoBase[Subgrupo],$A100,DADOS_MercadoBase[Modalidade],$B100,DADOS_MercadoBase[Classe],$D100,DADOS_MercadoBase[Subclasse],$E100,DADOS_MercadoBase[Detalhe],$F100,DADOS_MercadoBase[Posto],$G100)),2),0) -> 0 | J100: =IFERROR(ROUND((AVERAGEIFS(DADOS_MercadoBase[Tar_ETE],DADOS_MercadoBase[TipoMercado],$A$3,DADOS_MercadoBase[OPÇÃO],$A$57,DADOS_MercadoBase[Subgrupo],$A100,DADOS_MercadoBase[Modalidade],$B100,DADOS_MercadoBase[Classe],$D100,DADOS_MercadoBase[Subclasse],$E100,DADOS_MercadoBase[Detalhe],$F100,DADOS_MercadoBase[Posto],$G100)),2),0) -> 0 | K100: =IFERROR(ROUND((AVERAGEIFS(DADOS_MercadoBase[TUSD/KW],DADOS_MercadoBase[TipoMercado],$A$3,DADOS_MercadoBase[OPÇÃO],$A$57,DADOS_MercadoBase[Subgrupo],$A100,DADOS_MercadoBase[Modalidade],$B100,DADOS_MercadoBase[Classe],$D100,DADOS_MercadoBase[Subclasse],$E100,DADOS_MercadoBase[Detalhe],$F100,DADOS_MercadoBase[Posto],$G100)),2),0) -> 0 | L100: =IFERROR(ROUND((AVERAGEIFS(DADOS_MercadoBase[TUSD/MWh],DADOS_MercadoBase[TipoMercado],$A$3,DADOS_MercadoBase[OPÇÃO],$A$57,DADOS_MercadoBase[Subgrupo],$A100,DADOS_MercadoBase[Modalidade],$B100,DADOS_MercadoBase[Classe],$D100,DADOS_MercadoBase[Subclasse],$E100,DADOS_MercadoBase[Detalhe],$F100,DADOS_MercadoBase[Posto],$G100)),2),0) -> 0 | M100: =IFERROR(ROUND((AVERAGEIFS(DADOS_MercadoBase[TE],DADOS_MercadoBase[TipoMercado],$A$3,DADOS_MercadoBase[OPÇÃO],$A$57,DADOS_MercadoBase[Subgrupo],$A100,DADOS_MercadoBase[Modalidade],$B100,DADOS_MercadoBase[Classe],$D100,DADOS_MercadoBase[Subclasse],$E100,DADOS_MercadoBase[Detalhe],$F100,DADOS_MercadoBase[Posto],$G100)),2),0) -> 0 | R100: P
A101: A3 | B101: Azul | C101: Azul APE | D101: Industrial | E101: Não se aplica | F101: APE | G101: Não se aplica | H101: =IFERROR(ROUND((AVERAGEIFS(DADOS_MercadoBase[Tar_PTUSD],DADOS_MercadoBase[TipoMercado],$A$3,DADOS_MercadoBase[OPÇÃO],$A$57,DADOS_MercadoBase[Subgrupo],$A101,DADOS_MercadoBase[Modalidade],$B101,DADOS_MercadoBase[Classe],$D101,DADOS_MercadoBase[Subclasse],$E101,DADOS_MercadoBase[Detalhe],$F101,DADOS_MercadoBase[Posto],$G101)),2),0) -> 0 | I101: =IFERROR(ROUND((AVERAGEIFS(DADOS_MercadoBase[Tar_ETUSD],DADOS_MercadoBase[TipoMercado],$A$3,DADOS_MercadoBase[OPÇÃO],$A$57,DADOS_MercadoBase[Subgrupo],$A101,DADOS_MercadoBase[Modalidade],$B101,DADOS_MercadoBase[Classe],$D101,DADOS_MercadoBase[Subclasse],$E101,DADOS_MercadoBase[Detalhe],$F101,DADOS_MercadoBase[Posto],$G101)),2),0) -> 0 | J101: =IFERROR(ROUND((AVERAGEIFS(DADOS_MercadoBase[Tar_ETE],DADOS_MercadoBase[TipoMercado],$A$3,DADOS_MercadoBase[OPÇÃO],$A$57,DADOS_MercadoBase[Subgrupo],$A101,DADOS_MercadoBase[Modalidade],$B101,DADOS_MercadoBase[Classe],$D101,DADOS_MercadoBase[Subclasse],$E101,DADOS_MercadoBase[Detalhe],$F101,DADOS_MercadoBase[Posto],$G101)),2),0) -> 0 | K101: =IFERROR(ROUND((AVERAGEIFS(DADOS_MercadoBase[TUSD/KW],DADOS_MercadoBase[TipoMercado],$A$3,DADOS_MercadoBase[OPÇÃO],$A$57,DADOS_MercadoBase[Subgrupo],$A101,DADOS_MercadoBase[Modalidade],$B101,DADOS_MercadoBase[Classe],$D101,DADOS_MercadoBase[Subclasse],$E101,DADOS_MercadoBase[Detalhe],$F101,DADOS_MercadoBase[Posto],$G101)),2),0) -> 0 | L101: =IFERROR(ROUND((AVERAGEIFS(DADOS_MercadoBase[TUSD/MWh],DADOS_MercadoBase[TipoMercado],$A$3,DADOS_MercadoBase[OPÇÃO],$A$57,DADOS_MercadoBase[Subgrupo],$A101,DADOS_MercadoBase[Modalidade],$B101,DADOS_MercadoBase[Classe],$D101,DADOS_MercadoBase[Subclasse],$E101,DADOS_MercadoBase[Detalhe],$F101,DADOS_MercadoBase[Posto],$G101)),2),0) -> 0 | M101: =IFERROR(ROUND((AVERAGEIFS(DADOS_MercadoBase[TE],DADOS_MercadoBase[TipoMercado],$A$3,DADOS_MercadoBase[OPÇÃO],$A$57,DADOS_MercadoBase[Subgrupo],$A101,DADOS_MercadoBase[Modalidade],$B101,DADOS_MercadoBase[Classe],$D101,DADOS_MercadoBase[Subclasse],$E101,DADOS_MercadoBase[Detalhe],$F101,DADOS_MercadoBase[Posto],$G101)),2),0) -> 0 | R101: FP
A102: A3 | B102: Azul | D102: Industrial | E102: Não se aplica | F102: Fonte incentivada | G102: Ponta | H102: =IFERROR(ROUND((AVERAGEIFS(DADOS_MercadoBase[Tar_PTUSD],DADOS_MercadoBase[TipoMercado],$A$3,DADOS_MercadoBase[OPÇÃO],$A$57,DADOS_MercadoBase[Subgrupo],$A102,DADOS_MercadoBase[Modalidade],$B102,DADOS_MercadoBase[Classe],$D102,DADOS_MercadoBase[Subclasse],$E102,DADOS_MercadoBase[Detalhe],$F102,DADOS_MercadoBase[Posto],$G102)),2),0) -> 0 | I102: =IFERROR(ROUND((AVERAGEIFS(DADOS_MercadoBase[Tar_ETUSD],DADOS_MercadoBase[TipoMercado],$A$3,DADOS_MercadoBase[OPÇÃO],$A$57,DADOS_MercadoBase[Subgrupo],$A102,DADOS_MercadoBase[Modalidade],$B102,DADOS_MercadoBase[Classe],$D102,DADOS_MercadoBase[Subclasse],$E102,DADOS_MercadoBase[Detalhe],$F102,DADOS_MercadoBase[Posto],$G102)),2),0) -> 0 | J102: =IFERROR(ROUND((AVERAGEIFS(DADOS_MercadoBase[Tar_ETE],DADOS_MercadoBase[TipoMercado],$A$3,DADOS_MercadoBase[OPÇÃO],$A$57,DADOS_MercadoBase[Subgrupo],$A102,DADOS_MercadoBase[Modalidade],$B102,DADOS_MercadoBase[Classe],$D102,DADOS_MercadoBase[Subclasse],$E102,DADOS_MercadoBase[Detalhe],$F102,DADOS_MercadoBase[Posto],$G102)),2),0) -> 0 | K102: =IFERROR(ROUND((AVERAGEIFS(DADOS_MercadoBase[TUSD/KW],DADOS_MercadoBase[TipoMercado],$A$3,DADOS_MercadoBase[OPÇÃO],$A$57,DADOS_MercadoBase[Subgrupo],$A102,DADOS_MercadoBase[Modalidade],$B102,DADOS_MercadoBase[Classe],$D102,DADOS_MercadoBase[Subclasse],$E102,DADOS_MercadoBase[Detalhe],$F102,DADOS_MercadoBase[Posto],$G102)),2),0) -> 0 | L102: =IFERROR(ROUND((AVERAGEIFS(DADOS_MercadoBase[TUSD/MWh],DADOS_MercadoBase[TipoMercado],$A$3,DADOS_MercadoBase[OPÇÃO],$A$57,DADOS_MercadoBase[Subgrupo],$A102,DADOS_MercadoBase[Modalidade],$B102,DADOS_MercadoBase[Classe],$D102,DADOS_MercadoBase[Subclasse],$E102,DADOS_MercadoBase[Detalhe],$F102,DADOS_MercadoBase[Posto],$G102)),2),0) -> 0 | M102: =IFERROR(ROUND((AVERAGEIFS(DADOS_MercadoBase[TE],DADOS_MercadoBase[TipoMercado],$A$3,DADOS_MercadoBase[OPÇÃO],$A$57,DADOS_MercadoBase[Subgrupo],$A102,DADOS_MercadoBase[Modalidade],$B102,DADOS_MercadoBase[Classe],$D102,DADOS_MercadoBase[Subclasse],$E102,DADOS_MercadoBase[Detalhe],$F102,DADOS_MercadoBase[Posto],$G102)),2),0) -> 0
A103: A3 | B103: Azul | D103: Industrial | E103: Não se aplica | F103: Fonte incentivada | G103: Fora ponta | H103: =IFERROR(ROUND((AVERAGEIFS(DADOS_MercadoBase[Tar_PTUSD],DADOS_MercadoBase[TipoMercado],$A$3,DADOS_MercadoBase[OPÇÃO],$A$57,DADOS_MercadoBase[Subgrupo],$A103,DADOS_MercadoBase[Modalidade],$B103,DADOS_MercadoBase[Classe],$D103,DADOS_MercadoBase[Subclasse],$E103,DADOS_MercadoBase[Detalhe],$F103,DADOS_MercadoBase[Posto],$G103)),2),0) -> 0 | I103: =IFERROR(ROUND((AVERAGEIFS(DADOS_MercadoBase[Tar_ETUSD],DADOS_MercadoBase[TipoMercado],$A$3,DADOS_MercadoBase[OPÇÃO],$A$57,DADOS_MercadoBase[Subgrupo],$A103,DADOS_MercadoBase[Modalidade],$B103,DADOS_MercadoBase[Classe],$D103,DADOS_MercadoBase[Subclasse],$E103,DADOS_MercadoBase[Detalhe],$F103,DADOS_MercadoBase[Posto],$G103)),2),0) -> 0 | J103: =IFERROR(ROUND((AVERAGEIFS(DADOS_MercadoBase[Tar_ETE],DADOS_MercadoBase[TipoMercado],$A$3,DADOS_MercadoBase[OPÇÃO],$A$57,DADOS_MercadoBase[Subgrupo],$A103,DADOS_MercadoBase[Modalidade],$B103,DADOS_MercadoBase[Classe],$D103,DADOS_MercadoBase[Subclasse],$E103,DADOS_MercadoBase[Detalhe],$F103,DADOS_MercadoBase[Posto],$G103)),2),0) -> 0 | K103: =IFERROR(ROUND((AVERAGEIFS(DADOS_MercadoBase[TUSD/KW],DADOS_MercadoBase[TipoMercado],$A$3,DADOS_MercadoBase[OPÇÃO],$A$57,DADOS_MercadoBase[Subgrupo],$A103,DADOS_MercadoBase[Modalidade],$B103,DADOS_MercadoBase[Classe],$D103,DADOS_MercadoBase[Subclasse],$E103,DADOS_MercadoBase[Detalhe],$F103,DADOS_MercadoBase[Posto],$G103)),2),0) -> 0 | L103: =IFERROR(ROUND((AVERAGEIFS(DADOS_MercadoBase[TUSD/MWh],DADOS_MercadoBase[TipoMercado],$A$3,DADOS_MercadoBase[OPÇÃO],$A$57,DADOS_MercadoBase[Subgrupo],$A103,DADOS_MercadoBase[Modalidade],$B103,DADOS_MercadoBase[Classe],$D103,DADOS_MercadoBase[Subclasse],$E103,DADOS_MercadoBase[Detalhe],$F103,DADOS_MercadoBase[Posto],$G103)),2),0) -> 0 | M103: =IFERROR(ROUND((AVERAGEIFS(DADOS_MercadoBase[TE],DADOS_MercadoBase[TipoMercado],$A$3,DADOS_MercadoBase[OPÇÃO],$A$57,DADOS_MercadoBase[Subgrupo],$A103,DADOS_MercadoBase[Modalidade],$B103,DADOS_MercadoBase[Classe],$D103,DADOS_MercadoBase[Subclasse],$E103,DADOS_MercadoBase[Detalhe],$F103,DADOS_MercadoBase[Posto],$G103)),2),0) -> 0
A104: A3 | B104: Azul | D104: Industrial | E104: Não se aplica | F104: Fonte incentivada | G104: Não se aplica | H104: =IFERROR(ROUND((AVERAGEIFS(DADOS_MercadoBase[Tar_PTUSD],DADOS_MercadoBase[TipoMercado],$A$3,DADOS_MercadoBase[OPÇÃO],$A$57,DADOS_MercadoBase[Subgrupo],$A104,DADOS_MercadoBase[Modalidade],$B104,DADOS_MercadoBase[Classe],$D104,DADOS_MercadoBase[Subclasse],$E104,DADOS_MercadoBase[Detalhe],$F104,DADOS_MercadoBase[Posto],$G104)),2),0) -> 0 | I104: =IFERROR(ROUND((AVERAGEIFS(DADOS_MercadoBase[Tar_ETUSD],DADOS_MercadoBase[TipoMercado],$A$3,DADOS_MercadoBase[OPÇÃO],$A$57,DADOS_MercadoBase[Subgrupo],$A104,DADOS_MercadoBase[Modalidade],$B104,DADOS_MercadoBase[Classe],$D104,DADOS_MercadoBase[Subclasse],$E104,DADOS_MercadoBase[Detalhe],$F104,DADOS_MercadoBase[Posto],$G104)),2),0) -> 0 | J104: =IFERROR(ROUND((AVERAGEIFS(DADOS_MercadoBase[Tar_ETE],DADOS_MercadoBase[TipoMercado],$A$3,DADOS_MercadoBase[OPÇÃO],$A$57,DADOS_MercadoBase[Subgrupo],$A104,DADOS_MercadoBase[Modalidade],$B104,DADOS_MercadoBase[Classe],$D104,DADOS_MercadoBase[Subclasse],$E104,DADOS_MercadoBase[Detalhe],$F104,DADOS_MercadoBase[Posto],$G104)),2),0) -> 0 | K104: =IFERROR(ROUND((AVERAGEIFS(DADOS_MercadoBase[TUSD/KW],DADOS_MercadoBase[TipoMercado],$A$3,DADOS_MercadoBase[OPÇÃO],$A$57,DADOS_MercadoBase[Subgrupo],$A104,DADOS_MercadoBase[Modalidade],$B104,DADOS_MercadoBase[Classe],$D104,DADOS_MercadoBase[Subclasse],$E104,DADOS_MercadoBase[Detalhe],$F104,DADOS_MercadoBase[Posto],$G104)),2),0) -> 0 | L104: =IFERROR(ROUND((AVERAGEIFS(DADOS_MercadoBase[TUSD/MWh],DADOS_MercadoBase[TipoMercado],$A$3,DADOS_MercadoBase[OPÇÃO],$A$57,DADOS_MercadoBase[Subgrupo],$A104,DADOS_MercadoBase[Modalidade],$B104,DADOS_MercadoBase[Classe],$D104,DADOS_MercadoBase[Subclasse],$E104,DADOS_MercadoBase[Detalhe],$F104,DADOS_MercadoBase[Posto],$G104)),2),0) -> 0 | M104: =IFERROR(ROUND((AVERAGEIFS(DADOS_MercadoBase[TE],DADOS_MercadoBase[TipoMercado],$A$3,DADOS_MercadoBase[OPÇÃO],$A$57,DADOS_MercadoBase[Subgrupo],$A104,DADOS_MercadoBase[Modalidade],$B104,DADOS_MercadoBase[Classe],$D104,DADOS_MercadoBase[Subclasse],$E104,DADOS_MercadoBase[Detalhe],$F104,DADOS_MercadoBase[Posto],$G104)),2),0) -> 0
A105: A3 | B105: Azul | C105: Azul | D105: Rural | E105: Agropecuária rural | F105: Não se aplica | G105: Ponta | H105: =IFERROR(ROUND((AVERAGEIFS(DADOS_MercadoBase[Tar_PTUSD],DADOS_MercadoBase[TipoMercado],$A$3,DADOS_MercadoBase[OPÇÃO],$A$57,DADOS_MercadoBase[Subgrupo],$A105,DADOS_MercadoBase[Modalidade],$B105,DADOS_MercadoBase[Classe],$D105,DADOS_MercadoBase[Subclasse],$E105,DADOS_MercadoBase[Detalhe],$F105,DADOS_MercadoBase[Posto],$G105)),2),0) -> 0 | I105: =IFERROR(ROUND((AVERAGEIFS(DADOS_MercadoBase[Tar_ETUSD],DADOS_MercadoBase[TipoMercado],$A$3,DADOS_MercadoBase[OPÇÃO],$A$57,DADOS_MercadoBase[Subgrupo],$A105,DADOS_MercadoBase[Modalidade],$B105,DADOS_MercadoBase[Classe],$D105,DADOS_MercadoBase[Subclasse],$E105,DADOS_MercadoBase[Detalhe],$F105,DADOS_MercadoBase[Posto],$G105)),2),0) -> 0 | J105: =IFERROR(ROUND((AVERAGEIFS(DADOS_MercadoBase[Tar_ETE],DADOS_MercadoBase[TipoMercado],$A$3,DADOS_MercadoBase[OPÇÃO],$A$57,DADOS_MercadoBase[Subgrupo],$A105,DADOS_MercadoBase[Modalidade],$B105,DADOS_MercadoBase[Classe],$D105,DADOS_MercadoBase[Subclasse],$E105,DADOS_MercadoBase[Detalhe],$F105,DADOS_MercadoBase[Posto],$G105)),2),0) -> 0 | K105: =IFERROR(ROUND((AVERAGEIFS(DADOS_MercadoBase[TUSD/KW],DADOS_MercadoBase[TipoMercado],$A$3,DADOS_MercadoBase[OPÇÃO],$A$57,DADOS_MercadoBase[Subgrupo],$A105,DADOS_MercadoBase[Modalidade],$B105,DADOS_MercadoBase[Classe],$D105,DADOS_MercadoBase[Subclasse],$E105,DADOS_MercadoBase[Detalhe],$F105,DADOS_MercadoBase[Posto],$G105)),2),0) -> 0 | L105: =IFERROR(ROUND((AVERAGEIFS(DADOS_MercadoBase[TUSD/MWh],DADOS_MercadoBase[TipoMercado],$A$3,DADOS_MercadoBase[OPÇÃO],$A$57,DADOS_MercadoBase[Subgrupo],$A105,DADOS_MercadoBase[Modalidade],$B105,DADOS_MercadoBase[Classe],$D105,DADOS_MercadoBase[Subclasse],$E105,DADOS_MercadoBase[Detalhe],$F105,DADOS_MercadoBase[Posto],$G105)),2),0) -> 0 | M105: =IFERROR(ROUND((AVERAGEIFS(DADOS_MercadoBase[TE],DADOS_MercadoBase[TipoMercado],$A$3,DADOS_MercadoBase[OPÇÃO],$A$57,DADOS_MercadoBase[Subgrupo],$A105,DADOS_MercadoBase[Modalidade],$B105,DADOS_MercadoBase[Classe],$D105,DADOS_MercadoBase[Subclasse],$E105,DADOS_MercadoBase[Detalhe],$F105,DADOS_MercadoBase[Posto],$G105)),2),0) -> 0
A106: A3 | B106: Azul | C106: Azul | D106: Rural | E106: Agropecuária rural | F106: Não se aplica | G106: Fora ponta | H106: =IFERROR(ROUND((AVERAGEIFS(DADOS_MercadoBase[Tar_PTUSD],DADOS_MercadoBase[TipoMercado],$A$3,DADOS_MercadoBase[OPÇÃO],$A$57,DADOS_MercadoBase[Subgrupo],$A106,DADOS_MercadoBase[Modalidade],$B106,DADOS_MercadoBase[Classe],$D106,DADOS_MercadoBase[Subclasse],$E106,DADOS_MercadoBase[Detalhe],$F106,DADOS_MercadoBase[Posto],$G106)),2),0) -> 0 | I106: =IFERROR(ROUND((AVERAGEIFS(DADOS_MercadoBase[Tar_ETUSD],DADOS_MercadoBase[TipoMercado],$A$3,DADOS_MercadoBase[OPÇÃO],$A$57,DADOS_MercadoBase[Subgrupo],$A106,DADOS_MercadoBase[Modalidade],$B106,DADOS_MercadoBase[Classe],$D106,DADOS_MercadoBase[Subclasse],$E106,DADOS_MercadoBase[Detalhe],$F106,DADOS_MercadoBase[Posto],$G106)),2),0) -> 0 | J106: =IFERROR(ROUND((AVERAGEIFS(DADOS_MercadoBase[Tar_ETE],DADOS_MercadoBase[TipoMercado],$A$3,DADOS_MercadoBase[OPÇÃO],$A$57,DADOS_MercadoBase[Subgrupo],$A106,DADOS_MercadoBase[Modalidade],$B106,DADOS_MercadoBase[Classe],$D106,DADOS_MercadoBase[Subclasse],$E106,DADOS_MercadoBase[Detalhe],$F106,DADOS_MercadoBase[Posto],$G106)),2),0) -> 0 | K106: =IFERROR(ROUND((AVERAGEIFS(DADOS_MercadoBase[TUSD/KW],DADOS_MercadoBase[TipoMercado],$A$3,DADOS_MercadoBase[OPÇÃO],$A$57,DADOS_MercadoBase[Subgrupo],$A106,DADOS_MercadoBase[Modalidade],$B106,DADOS_MercadoBase[Classe],$D106,DADOS_MercadoBase[Subclasse],$E106,DADOS_MercadoBase[Detalhe],$F106,DADOS_MercadoBase[Posto],$G106)),2),0) -> 0 | L106: =IFERROR(ROUND((AVERAGEIFS(DADOS_MercadoBase[TUSD/MWh],DADOS_MercadoBase[TipoMercado],$A$3,DADOS_MercadoBase[OPÇÃO],$A$57,DADOS_MercadoBase[Subgrupo],$A106,DADOS_MercadoBase[Modalidade],$B106,DADOS_MercadoBase[Classe],$D106,DADOS_MercadoBase[Subclasse],$E106,DADOS_MercadoBase[Detalhe],$F106,DADOS_MercadoBase[Posto],$G106)),2),0) -> 0 | M106: =IFERROR(ROUND((AVERAGEIFS(DADOS_MercadoBase[TE],DADOS_MercadoBase[TipoMercado],$A$3,DADOS_MercadoBase[OPÇÃO],$A$57,DADOS_MercadoBase[Subgrupo],$A106,DADOS_MercadoBase[Modalidade],$B106,DADOS_MercadoBase[Classe],$D106,DADOS_MercadoBase[Subclasse],$E106,DADOS_MercadoBase[Detalhe],$F106,DADOS_MercadoBase[Posto],$G106)),2),0) -> 0
A107: A3 | B107: Azul | C107: Azul | D107: Rural | E107: Agropecuária rural | F107: IRRIG./AQUIC. | G107: Não se aplica | H107: =IFERROR(ROUND((AVERAGEIFS(DADOS_MercadoBase[Tar_PTUSD],DADOS_MercadoBase[TipoMercado],$A$3,DADOS_MercadoBase[OPÇÃO],$A$57,DADOS_MercadoBase[Subgrupo],$A107,DADOS_MercadoBase[Modalidade],$B107,DADOS_MercadoBase[Classe],$D107,DADOS_MercadoBase[Subclasse],$E107,DADOS_MercadoBase[Detalhe],$F107,DADOS_MercadoBase[Posto],$G107)),2),0) -> 0 | I107: =IFERROR(ROUND((AVERAGEIFS(DADOS_MercadoBase[Tar_ETUSD],DADOS_MercadoBase[TipoMercado],$A$3,DADOS_MercadoBase[OPÇÃO],$A$57,DADOS_MercadoBase[Subgrupo],$A107,DADOS_MercadoBase[Modalidade],$B107,DADOS_MercadoBase[Classe],$D107,DADOS_MercadoBase[Subclasse],$E107,DADOS_MercadoBase[Detalhe],$F107,DADOS_MercadoBase[Posto],$G107)),2),0) -> 0 | J107: =IFERROR(ROUND((AVERAGEIFS(DADOS_MercadoBase[Tar_ETE],DADOS_MercadoBase[TipoMercado],$A$3,DADOS_MercadoBase[OPÇÃO],$A$57,DADOS_MercadoBase[Subgrupo],$A107,DADOS_MercadoBase[Modalidade],$B107,DADOS_MercadoBase[Classe],$D107,DADOS_MercadoBase[Subclasse],$E107,DADOS_MercadoBase[Detalhe],$F107,DADOS_MercadoBase[Posto],$G107)),2),0) -> 0 | K107: =IFERROR(ROUND((AVERAGEIFS(DADOS_MercadoBase[TUSD/KW],DADOS_MercadoBase[TipoMercado],$A$3,DADOS_MercadoBase[OPÇÃO],$A$57,DADOS_MercadoBase[Subgrupo],$A107,DADOS_MercadoBase[Modalidade],$B107,DADOS_MercadoBase[Classe],$D107,DADOS_MercadoBase[Subclasse],$E107,DADOS_MercadoBase[Detalhe],$F107,DADOS_MercadoBase[Posto],$G107)),2),0) -> 0 | L107: =IFERROR(ROUND((AVERAGEIFS(DADOS_MercadoBase[TUSD/MWh],DADOS_MercadoBase[TipoMercado],$A$3,DADOS_MercadoBase[OPÇÃO],$A$57,DADOS_MercadoBase[Subgrupo],$A107,DADOS_MercadoBase[Modalidade],$B107,DADOS_MercadoBase[Classe],$D107,DADOS_MercadoBase[Subclasse],$E107,DADOS_MercadoBase[Detalhe],$F107,DADOS_MercadoBase[Posto],$G107)),2),0) -> 0 | M107: =IFERROR(ROUND((AVERAGEIFS(DADOS_MercadoBase[TE],DADOS_MercadoBase[TipoMercado],$A$3,DADOS_MercadoBase[OPÇÃO],$A$57,DADOS_MercadoBase[Subgrupo],$A107,DADOS_MercadoBase[Modalidade],$B107,DADOS_MercadoBase[Classe],$D107,DADOS_MercadoBase[Subclasse],$E107,DADOS_MercadoBase[Detalhe],$F107,DADOS_MercadoBase[Posto],$G107)),2),0) -> 0
A108: A3 | B108: Azul | C108: Azul | D108: Rural | E108: Não se aplica | F108: Não se aplica | G108: Ponta | H108: =IFERROR(ROUND((AVERAGEIFS(DADOS_MercadoBase[Tar_PTUSD],DADOS_MercadoBase[TipoMercado],$A$3,DADOS_MercadoBase[OPÇÃO],$A$57,DADOS_MercadoBase[Subgrupo],$A108,DADOS_MercadoBase[Modalidade],$B108,DADOS_MercadoBase[Classe],$D108,DADOS_MercadoBase[Subclasse],$E108,DADOS_MercadoBase[Detalhe],$F108,DADOS_MercadoBase[Posto],$G108)),2),0) -> 0 | I108: =IFERROR(ROUND((AVERAGEIFS(DADOS_MercadoBase[Tar_ETUSD],DADOS_MercadoBase[TipoMercado],$A$3,DADOS_MercadoBase[OPÇÃO],$A$57,DADOS_MercadoBase[Subgrupo],$A108,DADOS_MercadoBase[Modalidade],$B108,DADOS_MercadoBase[Classe],$D108,DADOS_MercadoBase[Subclasse],$E108,DADOS_MercadoBase[Detalhe],$F108,DADOS_MercadoBase[Posto],$G108)),2),0) -> 0 | J108: =IFERROR(ROUND((AVERAGEIFS(DADOS_MercadoBase[Tar_ETE],DADOS_MercadoBase[TipoMercado],$A$3,DADOS_MercadoBase[OPÇÃO],$A$57,DADOS_MercadoBase[Subgrupo],$A108,DADOS_MercadoBase[Modalidade],$B108,DADOS_MercadoBase[Classe],$D108,DADOS_MercadoBase[Subclasse],$E108,DADOS_MercadoBase[Detalhe],$F108,DADOS_MercadoBase[Posto],$G108)),2),0) -> 0 | K108: =IFERROR(ROUND((AVERAGEIFS(DADOS_MercadoBase[TUSD/KW],DADOS_MercadoBase[TipoMercado],$A$3,DADOS_MercadoBase[OPÇÃO],$A$57,DADOS_MercadoBase[Subgrupo],$A108,DADOS_MercadoBase[Modalidade],$B108,DADOS_MercadoBase[Classe],$D108,DADOS_MercadoBase[Subclasse],$E108,DADOS_MercadoBase[Detalhe],$F108,DADOS_MercadoBase[Posto],$G108)),2),0) -> 0 | L108: =IFERROR(ROUND((AVERAGEIFS(DADOS_MercadoBase[TUSD/MWh],DADOS_MercadoBase[TipoMercado],$A$3,DADOS_MercadoBase[OPÇÃO],$A$57,DADOS_MercadoBase[Subgrupo],$A108,DADOS_MercadoBase[Modalidade],$B108,DADOS_MercadoBase[Classe],$D108,DADOS_MercadoBase[Subclasse],$E108,DADOS_MercadoBase[Detalhe],$F108,DADOS_MercadoBase[Posto],$G108)),2),0) -> 0 | M108: =IFERROR(ROUND((AVERAGEIFS(DADOS_MercadoBase[TE],DADOS_MercadoBase[TipoMercado],$A$3,DADOS_MercadoBase[OPÇÃO],$A$57,DADOS_MercadoBase[Subgrupo],$A108,DADOS_MercadoBase[Modalidade],$B108,DADOS_MercadoBase[Classe],$D108,DADOS_MercadoBase[Subclasse],$E108,DADOS_MercadoBase[Detalhe],$F108,DADOS_MercadoBase[Posto],$G108)),2),0) -> 0
A109: A3 | B109: Azul | C109: Azul | D109: Rural | E109: Não se aplica | F109: Não se aplica | G109: Fora ponta | H109: =IFERROR(ROUND((AVERAGEIFS(DADOS_MercadoBase[Tar_PTUSD],DADOS_MercadoBase[TipoMercado],$A$3,DADOS_MercadoBase[OPÇÃO],$A$57,DADOS_MercadoBase[Subgrupo],$A109,DADOS_MercadoBase[Modalidade],$B109,DADOS_MercadoBase[Classe],$D109,DADOS_MercadoBase[Subclasse],$E109,DADOS_MercadoBase[Detalhe],$F109,DADOS_MercadoBase[Posto],$G109)),2),0) -> 0 | I109: =IFERROR(ROUND((AVERAGEIFS(DADOS_MercadoBase[Tar_ETUSD],DADOS_MercadoBase[TipoMercado],$A$3,DADOS_MercadoBase[OPÇÃO],$A$57,DADOS_MercadoBase[Subgrupo],$A109,DADOS_MercadoBase[Modalidade],$B109,DADOS_MercadoBase[Classe],$D109,DADOS_MercadoBase[Subclasse],$E109,DADOS_MercadoBase[Detalhe],$F109,DADOS_MercadoBase[Posto],$G109)),2),0) -> 0 | J109: =IFERROR(ROUND((AVERAGEIFS(DADOS_MercadoBase[Tar_ETE],DADOS_MercadoBase[TipoMercado],$A$3,DADOS_MercadoBase[OPÇÃO],$A$57,DADOS_MercadoBase[Subgrupo],$A109,DADOS_MercadoBase[Modalidade],$B109,DADOS_MercadoBase[Classe],$D109,DADOS_MercadoBase[Subclasse],$E109,DADOS_MercadoBase[Detalhe],$F109,DADOS_MercadoBase[Posto],$G109)),2),0) -> 0 | K109: =IFERROR(ROUND((AVERAGEIFS(DADOS_MercadoBase[TUSD/KW],DADOS_MercadoBase[TipoMercado],$A$3,DADOS_MercadoBase[OPÇÃO],$A$57,DADOS_MercadoBase[Subgrupo],$A109,DADOS_MercadoBase[Modalidade],$B109,DADOS_MercadoBase[Classe],$D109,DADOS_MercadoBase[Subclasse],$E109,DADOS_MercadoBase[Detalhe],$F109,DADOS_MercadoBase[Posto],$G109)),2),0) -> 0 | L109: =IFERROR(ROUND((AVERAGEIFS(DADOS_MercadoBase[TUSD/MWh],DADOS_MercadoBase[TipoMercado],$A$3,DADOS_MercadoBase[OPÇÃO],$A$57,DADOS_MercadoBase[Subgrupo],$A109,DADOS_MercadoBase[Modalidade],$B109,DADOS_MercadoBase[Classe],$D109,DADOS_MercadoBase[Subclasse],$E109,DADOS_MercadoBase[Detalhe],$F109,DADOS_MercadoBase[Posto],$G109)),2),0) -> 0 | M109: =IFERROR(ROUND((AVERAGEIFS(DADOS_MercadoBase[TE],DADOS_MercadoBase[TipoMercado],$A$3,DADOS_MercadoBase[OPÇÃO],$A$57,DADOS_MercadoBase[Subgrupo],$A109,DADOS_MercadoBase[Modalidade],$B109,DADOS_MercadoBase[Classe],$D109,DADOS_MercadoBase[Subclasse],$E109,DADOS_MercadoBase[Detalhe],$F109,DADOS_MercadoBase[Posto],$G109)),2),0) -> 0
A110: A3 | B110: Azul | C110: Azul | D110: Rural | E110: Não se aplica | F110: Não se aplica | G110: Não se aplica | H110: =IFERROR(ROUND((AVERAGEIFS(DADOS_MercadoBase[Tar_PTUSD],DADOS_MercadoBase[TipoMercado],$A$3,DADOS_MercadoBase[OPÇÃO],$A$57,DADOS_MercadoBase[Subgrupo],$A110,DADOS_MercadoBase[Modalidade],$B110,DADOS_MercadoBase[Classe],$D110,DADOS_MercadoBase[Subclasse],$E110,DADOS_MercadoBase[Detalhe],$F110,DADOS_MercadoBase[Posto],$G110)),2),0) -> 0 | I110: =IFERROR(ROUND((AVERAGEIFS(DADOS_MercadoBase[Tar_ETUSD],DADOS_MercadoBase[TipoMercado],$A$3,DADOS_MercadoBase[OPÇÃO],$A$57,DADOS_MercadoBase[Subgrupo],$A110,DADOS_MercadoBase[Modalidade],$B110,DADOS_MercadoBase[Classe],$D110,DADOS_MercadoBase[Subclasse],$E110,DADOS_MercadoBase[Detalhe],$F110,DADOS_MercadoBase[Posto],$G110)),2),0) -> 0 | J110: =IFERROR(ROUND((AVERAGEIFS(DADOS_MercadoBase[Tar_ETE],DADOS_MercadoBase[TipoMercado],$A$3,DADOS_MercadoBase[OPÇÃO],$A$57,DADOS_MercadoBase[Subgrupo],$A110,DADOS_MercadoBase[Modalidade],$B110,DADOS_MercadoBase[Classe],$D110,DADOS_MercadoBase[Subclasse],$E110,DADOS_MercadoBase[Detalhe],$F110,DADOS_MercadoBase[Posto],$G110)),2),0) -> 0 | K110: =IFERROR(ROUND((AVERAGEIFS(DADOS_MercadoBase[TUSD/KW],DADOS_MercadoBase[TipoMercado],$A$3,DADOS_MercadoBase[OPÇÃO],$A$57,DADOS_MercadoBase[Subgrupo],$A110,DADOS_MercadoBase[Modalidade],$B110,DADOS_MercadoBase[Classe],$D110,DADOS_MercadoBase[Subclasse],$E110,DADOS_MercadoBase[Detalhe],$F110,DADOS_MercadoBase[Posto],$G110)),2),0) -> 0 | L110: =IFERROR(ROUND((AVERAGEIFS(DADOS_MercadoBase[TUSD/MWh],DADOS_MercadoBase[TipoMercado],$A$3,DADOS_MercadoBase[OPÇÃO],$A$57,DADOS_MercadoBase[Subgrupo],$A110,DADOS_MercadoBase[Modalidade],$B110,DADOS_MercadoBase[Classe],$D110,DADOS_MercadoBase[Subclasse],$E110,DADOS_MercadoBase[Detalhe],$F110,DADOS_MercadoBase[Posto],$G110)),2),0) -> 0 | M110: =IFERROR(ROUND((AVERAGEIFS(DADOS_MercadoBase[TE],DADOS_MercadoBase[TipoMercado],$A$3,DADOS_MercadoBase[OPÇÃO],$A$57,DADOS_MercadoBase[Subgrupo],$A110,DADOS_MercadoBase[Modalidade],$B110,DADOS_MercadoBase[Classe],$D110,DADOS_MercadoBase[Subclasse],$E110,DADOS_MercadoBase[Detalhe],$F110,DADOS_MercadoBase[Posto],$G110)),2),0) -> 0
A111: A3 | B111: Azul | C111: Azul | D111: Serviço público | E111: Água, esgoto e saneamento | F111: Não se aplica | G111: Ponta | H111: =IFERROR(ROUND((AVERAGEIFS(DADOS_MercadoBase[Tar_PTUSD],DADOS_MercadoBase[TipoMercado],$A$3,DADOS_MercadoBase[OPÇÃO],$A$57,DADOS_MercadoBase[Subgrupo],$A111,DADOS_MercadoBase[Modalidade],$B111,DADOS_MercadoBase[Classe],$D111,DADOS_MercadoBase[Subclasse],$E111,DADOS_MercadoBase[Detalhe],$F111,DADOS_MercadoBase[Posto],$G111)),2),0) -> 0 | I111: =IFERROR(ROUND((AVERAGEIFS(DADOS_MercadoBase[Tar_ETUSD],DADOS_MercadoBase[TipoMercado],$A$3,DADOS_MercadoBase[OPÇÃO],$A$57,DADOS_MercadoBase[Subgrupo],$A111,DADOS_MercadoBase[Modalidade],$B111,DADOS_MercadoBase[Classe],$D111,DADOS_MercadoBase[Subclasse],$E111,DADOS_MercadoBase[Detalhe],$F111,DADOS_MercadoBase[Posto],$G111)),2),0) -> 0 | J111: =IFERROR(ROUND((AVERAGEIFS(DADOS_MercadoBase[Tar_ETE],DADOS_MercadoBase[TipoMercado],$A$3,DADOS_MercadoBase[OPÇÃO],$A$57,DADOS_MercadoBase[Subgrupo],$A111,DADOS_MercadoBase[Modalidade],$B111,DADOS_MercadoBase[Classe],$D111,DADOS_MercadoBase[Subclasse],$E111,DADOS_MercadoBase[Detalhe],$F111,DADOS_MercadoBase[Posto],$G111)),2),0) -> 0 | K111: =IFERROR(ROUND((AVERAGEIFS(DADOS_MercadoBase[TUSD/KW],DADOS_MercadoBase[TipoMercado],$A$3,DADOS_MercadoBase[OPÇÃO],$A$57,DADOS_MercadoBase[Subgrupo],$A111,DADOS_MercadoBase[Modalidade],$B111,DADOS_MercadoBase[Classe],$D111,DADOS_MercadoBase[Subclasse],$E111,DADOS_MercadoBase[Detalhe],$F111,DADOS_MercadoBase[Posto],$G111)),2),0) -> 0 | L111: =IFERROR(ROUND((AVERAGEIFS(DADOS_MercadoBase[TUSD/MWh],DADOS_MercadoBase[TipoMercado],$A$3,DADOS_MercadoBase[OPÇÃO],$A$57,DADOS_MercadoBase[Subgrupo],$A111,DADOS_MercadoBase[Modalidade],$B111,DADOS_MercadoBase[Classe],$D111,DADOS_MercadoBase[Subclasse],$E111,DADOS_MercadoBase[Detalhe],$F111,DADOS_MercadoBase[Posto],$G111)),2),0) -> 0 | M111: =IFERROR(ROUND((AVERAGEIFS(DADOS_MercadoBase[TE],DADOS_MercadoBase[TipoMercado],$A$3,DADOS_MercadoBase[OPÇÃO],$A$57,DADOS_MercadoBase[Subgrupo],$A111,DADOS_MercadoBase[Modalidade],$B111,DADOS_MercadoBase[Classe],$D111,DADOS_MercadoBase[Subclasse],$E111,DADOS_MercadoBase[Detalhe],$F111,DADOS_MercadoBase[Posto],$G111)),2),0) -> 0 | R111: 26.16 | S111: 99.45 | T111: 418.66
A112: A3 | B112: Azul | C112: Azul | D112: Serviço público | E112: Água, esgoto e saneamento | F112: Não se aplica | G112: Fora ponta | H112: =IFERROR(ROUND((AVERAGEIFS(DADOS_MercadoBase[Tar_PTUSD],DADOS_MercadoBase[TipoMercado],$A$3,DADOS_MercadoBase[OPÇÃO],$A$57,DADOS_MercadoBase[Subgrupo],$A112,DADOS_MercadoBase[Modalidade],$B112,DADOS_MercadoBase[Classe],$D112,DADOS_MercadoBase[Subclasse],$E112,DADOS_MercadoBase[Detalhe],$F112,DADOS_MercadoBase[Posto],$G112)),2),0) -> 0 | I112: =IFERROR(ROUND((AVERAGEIFS(DADOS_MercadoBase[Tar_ETUSD],DADOS_MercadoBase[TipoMercado],$A$3,DADOS_MercadoBase[OPÇÃO],$A$57,DADOS_MercadoBase[Subgrupo],$A112,DADOS_MercadoBase[Modalidade],$B112,DADOS_MercadoBase[Classe],$D112,DADOS_MercadoBase[Subclasse],$E112,DADOS_MercadoBase[Detalhe],$F112,DADOS_MercadoBase[Posto],$G112)),2),0) -> 0 | J112: =IFERROR(ROUND((AVERAGEIFS(DADOS_MercadoBase[Tar_ETE],DADOS_MercadoBase[TipoMercado],$A$3,DADOS_MercadoBase[OPÇÃO],$A$57,DADOS_MercadoBase[Subgrupo],$A112,DADOS_MercadoBase[Modalidade],$B112,DADOS_MercadoBase[Classe],$D112,DADOS_MercadoBase[Subclasse],$E112,DADOS_MercadoBase[Detalhe],$F112,DADOS_MercadoBase[Posto],$G112)),2),0) -> 0 | K112: =IFERROR(ROUND((AVERAGEIFS(DADOS_MercadoBase[TUSD/KW],DADOS_MercadoBase[TipoMercado],$A$3,DADOS_MercadoBase[OPÇÃO],$A$57,DADOS_MercadoBase[Subgrupo],$A112,DADOS_MercadoBase[Modalidade],$B112,DADOS_MercadoBase[Classe],$D112,DADOS_MercadoBase[Subclasse],$E112,DADOS_MercadoBase[Detalhe],$F112,DADOS_MercadoBase[Posto],$G112)),2),0) -> 0 | L112: =IFERROR(ROUND((AVERAGEIFS(DADOS_MercadoBase[TUSD/MWh],DADOS_MercadoBase[TipoMercado],$A$3,DADOS_MercadoBase[OPÇÃO],$A$57,DADOS_MercadoBase[Subgrupo],$A112,DADOS_MercadoBase[Modalidade],$B112,DADOS_MercadoBase[Classe],$D112,DADOS_MercadoBase[Subclasse],$E112,DADOS_MercadoBase[Detalhe],$F112,DADOS_MercadoBase[Posto],$G112)),2),0) -> 0 | M112: =IFERROR(ROUND((AVERAGEIFS(DADOS_MercadoBase[TE],DADOS_MercadoBase[TipoMercado],$A$3,DADOS_MercadoBase[OPÇÃO],$A$57,DADOS_MercadoBase[Subgrupo],$A112,DADOS_MercadoBase[Modalidade],$B112,DADOS_MercadoBase[Classe],$D112,DADOS_MercadoBase[Subclasse],$E112,DADOS_MercadoBase[Detalhe],$F112,DADOS_MercadoBase[Posto],$G112)),2),0) -> 0 | R112: 9.12 | S112: 99.45 | T112: 253.54
A113: A3 | B113: Azul | C113: Azul | D113: Serviço público | E113: Água, esgoto e saneamento | F113: Não se aplica | G113: Não se aplica | H113: =IFERROR(ROUND((AVERAGEIFS(DADOS_MercadoBase[Tar_PTUSD],DADOS_MercadoBase[TipoMercado],$A$3,DADOS_MercadoBase[OPÇÃO],$A$57,DADOS_MercadoBase[Subgrupo],$A113,DADOS_MercadoBase[Modalidade],$B113,DADOS_MercadoBase[Classe],$D113,DADOS_MercadoBase[Subclasse],$E113,DADOS_MercadoBase[Detalhe],$F113,DADOS_MercadoBase[Posto],$G113)),2),0) -> 0 | I113: =IFERROR(ROUND((AVERAGEIFS(DADOS_MercadoBase[Tar_ETUSD],DADOS_MercadoBase[TipoMercado],$A$3,DADOS_MercadoBase[OPÇÃO],$A$57,DADOS_MercadoBase[Subgrupo],$A113,DADOS_MercadoBase[Modalidade],$B113,DADOS_MercadoBase[Classe],$D113,DADOS_MercadoBase[Subclasse],$E113,DADOS_MercadoBase[Detalhe],$F113,DADOS_MercadoBase[Posto],$G113)),2),0) -> 0 | J113: =IFERROR(ROUND((AVERAGEIFS(DADOS_MercadoBase[Tar_ETE],DADOS_MercadoBase[TipoMercado],$A$3,DADOS_MercadoBase[OPÇÃO],$A$57,DADOS_MercadoBase[Subgrupo],$A113,DADOS_MercadoBase[Modalidade],$B113,DADOS_MercadoBase[Classe],$D113,DADOS_MercadoBase[Subclasse],$E113,DADOS_MercadoBase[Detalhe],$F113,DADOS_MercadoBase[Posto],$G113)),2),0) -> 0 | K113: =IFERROR(ROUND((AVERAGEIFS(DADOS_MercadoBase[TUSD/KW],DADOS_MercadoBase[TipoMercado],$A$3,DADOS_MercadoBase[OPÇÃO],$A$57,DADOS_MercadoBase[Subgrupo],$A113,DADOS_MercadoBase[Modalidade],$B113,DADOS_MercadoBase[Classe],$D113,DADOS_MercadoBase[Subclasse],$E113,DADOS_MercadoBase[Detalhe],$F113,DADOS_MercadoBase[Posto],$G113)),2),0) -> 0 | L113: =IFERROR(ROUND((AVERAGEIFS(DADOS_MercadoBase[TUSD/MWh],DADOS_MercadoBase[TipoMercado],$A$3,DADOS_MercadoBase[OPÇÃO],$A$57,DADOS_MercadoBase[Subgrupo],$A113,DADOS_MercadoBase[Modalidade],$B113,DADOS_MercadoBase[Classe],$D113,DADOS_MercadoBase[Subclasse],$E113,DADOS_MercadoBase[Detalhe],$F113,DADOS_MercadoBase[Posto],$G113)),2),0) -> 0 | M113: =IFERROR(ROUND((AVERAGEIFS(DADOS_MercadoBase[TE],DADOS_MercadoBase[TipoMercado],$A$3,DADOS_MercadoBase[OPÇÃO],$A$57,DADOS_MercadoBase[Subgrupo],$A113,DADOS_MercadoBase[Modalidade],$B113,DADOS_MercadoBase[Classe],$D113,DADOS_MercadoBase[Subclasse],$E113,DADOS_MercadoBase[Detalhe],$F113,DADOS_MercadoBase[Posto],$G113)),2),0) -> 0
A114: A3a | B114: Azul | D114: Industrial | E114: Não se aplica | F114: Fonte incentivada | G114: Ponta | H114: =IFERROR(ROUND((AVERAGEIFS(DADOS_MercadoBase[Tar_PTUSD],DADOS_MercadoBase[TipoMercado],$A$3,DADOS_MercadoBase[OPÇÃO],$A$57,DADOS_MercadoBase[Subgrupo],$A114,DADOS_MercadoBase[Modalidade],$B114,DADOS_MercadoBase[Classe],$D114,DADOS_MercadoBase[Subclasse],$E114,DADOS_MercadoBase[Detalhe],$F114,DADOS_MercadoBase[Posto],$G114)),2),0) -> 0 | I114: =IFERROR(ROUND((AVERAGEIFS(DADOS_MercadoBase[Tar_ETUSD],DADOS_MercadoBase[TipoMercado],$A$3,DADOS_MercadoBase[OPÇÃO],$A$57,DADOS_MercadoBase[Subgrupo],$A114,DADOS_MercadoBase[Modalidade],$B114,DADOS_MercadoBase[Classe],$D114,DADOS_MercadoBase[Subclasse],$E114,DADOS_MercadoBase[Detalhe],$F114,DADOS_MercadoBase[Posto],$G114)),2),0) -> 0 | J114: =IFERROR(ROUND((AVERAGEIFS(DADOS_MercadoBase[Tar_ETE],DADOS_MercadoBase[TipoMercado],$A$3,DADOS_MercadoBase[OPÇÃO],$A$57,DADOS_MercadoBase[Subgrupo],$A114,DADOS_MercadoBase[Modalidade],$B114,DADOS_MercadoBase[Classe],$D114,DADOS_MercadoBase[Subclasse],$E114,DADOS_MercadoBase[Detalhe],$F114,DADOS_MercadoBase[Posto],$G114)),2),0) -> 0 | K114: =IFERROR(ROUND((AVERAGEIFS(DADOS_MercadoBase[TUSD/KW],DADOS_MercadoBase[TipoMercado],$A$3,DADOS_MercadoBase[OPÇÃO],$A$57,DADOS_MercadoBase[Subgrupo],$A114,DADOS_MercadoBase[Modalidade],$B114,DADOS_MercadoBase[Classe],$D114,DADOS_MercadoBase[Subclasse],$E114,DADOS_MercadoBase[Detalhe],$F114,DADOS_MercadoBase[Posto],$G114)),2),0) -> 0 | L114: =IFERROR(ROUND((AVERAGEIFS(DADOS_MercadoBase[TUSD/MWh],DADOS_MercadoBase[TipoMercado],$A$3,DADOS_MercadoBase[OPÇÃO],$A$57,DADOS_MercadoBase[Subgrupo],$A114,DADOS_MercadoBase[Modalidade],$B114,DADOS_MercadoBase[Classe],$D114,DADOS_MercadoBase[Subclasse],$E114,DADOS_MercadoBase[Detalhe],$F114,DADOS_MercadoBase[Posto],$G114)),2),0) -> 0 | M114: =IFERROR(ROUND((AVERAGEIFS(DADOS_MercadoBase[TE],DADOS_MercadoBase[TipoMercado],$A$3,DADOS_MercadoBase[OPÇÃO],$A$57,DADOS_MercadoBase[Subgrupo],$A114,DADOS_MercadoBase[Modalidade],$B114,DADOS_MercadoBase[Classe],$D114,DADOS_MercadoBase[Subclasse],$E114,DADOS_MercadoBase[Detalhe],$F114,DADOS_MercadoBase[Posto],$G114)),2),0) -> 0
A115: A3a | B115: Azul | D115: Industrial | E115: Não se aplica | F115: Fonte incentivada | G115: Fora ponta | H115: =IFERROR(ROUND((AVERAGEIFS(DADOS_MercadoBase[Tar_PTUSD],DADOS_MercadoBase[TipoMercado],$A$3,DADOS_MercadoBase[OPÇÃO],$A$57,DADOS_MercadoBase[Subgrupo],$A115,DADOS_MercadoBase[Modalidade],$B115,DADOS_MercadoBase[Classe],$D115,DADOS_MercadoBase[Subclasse],$E115,DADOS_MercadoBase[Detalhe],$F115,DADOS_MercadoBase[Posto],$G115)),2),0) -> 0 | I115: =IFERROR(ROUND((AVERAGEIFS(DADOS_MercadoBase[Tar_ETUSD],DADOS_MercadoBase[TipoMercado],$A$3,DADOS_MercadoBase[OPÇÃO],$A$57,DADOS_MercadoBase[Subgrupo],$A115,DADOS_MercadoBase[Modalidade],$B115,DADOS_MercadoBase[Classe],$D115,DADOS_MercadoBase[Subclasse],$E115,DADOS_MercadoBase[Detalhe],$F115,DADOS_MercadoBase[Posto],$G115)),2),0) -> 0 | J115: =IFERROR(ROUND((AVERAGEIFS(DADOS_MercadoBase[Tar_ETE],DADOS_MercadoBase[TipoMercado],$A$3,DADOS_MercadoBase[OPÇÃO],$A$57,DADOS_MercadoBase[Subgrupo],$A115,DADOS_MercadoBase[Modalidade],$B115,DADOS_MercadoBase[Classe],$D115,DADOS_MercadoBase[Subclasse],$E115,DADOS_MercadoBase[Detalhe],$F115,DADOS_MercadoBase[Posto],$G115)),2),0) -> 0 | K115: =IFERROR(ROUND((AVERAGEIFS(DADOS_MercadoBase[TUSD/KW],DADOS_MercadoBase[TipoMercado],$A$3,DADOS_MercadoBase[OPÇÃO],$A$57,DADOS_MercadoBase[Subgrupo],$A115,DADOS_MercadoBase[Modalidade],$B115,DADOS_MercadoBase[Classe],$D115,DADOS_MercadoBase[Subclasse],$E115,DADOS_MercadoBase[Detalhe],$F115,DADOS_MercadoBase[Posto],$G115)),2),0) -> 0 | L115: =IFERROR(ROUND((AVERAGEIFS(DADOS_MercadoBase[TUSD/MWh],DADOS_MercadoBase[TipoMercado],$A$3,DADOS_MercadoBase[OPÇÃO],$A$57,DADOS_MercadoBase[Subgrupo],$A115,DADOS_MercadoBase[Modalidade],$B115,DADOS_MercadoBase[Classe],$D115,DADOS_MercadoBase[Subclasse],$E115,DADOS_MercadoBase[Detalhe],$F115,DADOS_MercadoBase[Posto],$G115)),2),0) -> 0 | M115: =IFERROR(ROUND((AVERAGEIFS(DADOS_MercadoBase[TE],DADOS_MercadoBase[TipoMercado],$A$3,DADOS_MercadoBase[OPÇÃO],$A$57,DADOS_MercadoBase[Subgrupo],$A115,DADOS_MercadoBase[Modalidade],$B115,DADOS_MercadoBase[Classe],$D115,DADOS_MercadoBase[Subclasse],$E115,DADOS_MercadoBase[Detalhe],$F115,DADOS_MercadoBase[Posto],$G115)),2),0) -> 0
A116: A3a | B116: Azul | D116: Industrial | E116: Não se aplica | F116: Fonte incentivada | G116: Não se aplica | H116: =IFERROR(ROUND((AVERAGEIFS(DADOS_MercadoBase[Tar_PTUSD],DADOS_MercadoBase[TipoMercado],$A$3,DADOS_MercadoBase[OPÇÃO],$A$57,DADOS_MercadoBase[Subgrupo],$A116,DADOS_MercadoBase[Modalidade],$B116,DADOS_MercadoBase[Classe],$D116,DADOS_MercadoBase[Subclasse],$E116,DADOS_MercadoBase[Detalhe],$F116,DADOS_MercadoBase[Posto],$G116)),2),0) -> 0 | I116: =IFERROR(ROUND((AVERAGEIFS(DADOS_MercadoBase[Tar_ETUSD],DADOS_MercadoBase[TipoMercado],$A$3,DADOS_MercadoBase[OPÇÃO],$A$57,DADOS_MercadoBase[Subgrupo],$A116,DADOS_MercadoBase[Modalidade],$B116,DADOS_MercadoBase[Classe],$D116,DADOS_MercadoBase[Subclasse],$E116,DADOS_MercadoBase[Detalhe],$F116,DADOS_MercadoBase[Posto],$G116)),2),0) -> 0 | J116: =IFERROR(ROUND((AVERAGEIFS(DADOS_MercadoBase[Tar_ETE],DADOS_MercadoBase[TipoMercado],$A$3,DADOS_MercadoBase[OPÇÃO],$A$57,DADOS_MercadoBase[Subgrupo],$A116,DADOS_MercadoBase[Modalidade],$B116,DADOS_MercadoBase[Classe],$D116,DADOS_MercadoBase[Subclasse],$E116,DADOS_MercadoBase[Detalhe],$F116,DADOS_MercadoBase[Posto],$G116)),2),0) -> 0 | K116: =IFERROR(ROUND((AVERAGEIFS(DADOS_MercadoBase[TUSD/KW],DADOS_MercadoBase[TipoMercado],$A$3,DADOS_MercadoBase[OPÇÃO],$A$57,DADOS_MercadoBase[Subgrupo],$A116,DADOS_MercadoBase[Modalidade],$B116,DADOS_MercadoBase[Classe],$D116,DADOS_MercadoBase[Subclasse],$E116,DADOS_MercadoBase[Detalhe],$F116,DADOS_MercadoBase[Posto],$G116)),2),0) -> 0 | L116: =IFERROR(ROUND((AVERAGEIFS(DADOS_MercadoBase[TUSD/MWh],DADOS_MercadoBase[TipoMercado],$A$3,DADOS_MercadoBase[OPÇÃO],$A$57,DADOS_MercadoBase[Subgrupo],$A116,DADOS_MercadoBase[Modalidade],$B116,DADOS_MercadoBase[Classe],$D116,DADOS_MercadoBase[Subclasse],$E116,DADOS_MercadoBase[Detalhe],$F116,DADOS_MercadoBase[Posto],$G116)),2),0) -> 0 | M116: =IFERROR(ROUND((AVERAGEIFS(DADOS_MercadoBase[TE],DADOS_MercadoBase[TipoMercado],$A$3,DADOS_MercadoBase[OPÇÃO],$A$57,DADOS_MercadoBase[Subgrupo],$A116,DADOS_MercadoBase[Modalidade],$B116,DADOS_MercadoBase[Classe],$D116,DADOS_MercadoBase[Subclasse],$E116,DADOS_MercadoBase[Detalhe],$F116,DADOS_MercadoBase[Posto],$G116)),2),0) -> 0
A117: A3a | B117: Azul | C117: Azul | D117: Industrial | E117: Não se aplica | F117: Não se aplica | G117: Ponta | H117: =IFERROR(ROUND((AVERAGEIFS(DADOS_MercadoBase[Tar_PTUSD],DADOS_MercadoBase[TipoMercado],$A$3,DADOS_MercadoBase[OPÇÃO],$A$57,DADOS_MercadoBase[Subgrupo],$A117,DADOS_MercadoBase[Modalidade],$B117,DADOS_MercadoBase[Classe],$D117,DADOS_MercadoBase[Subclasse],$E117,DADOS_MercadoBase[Detalhe],$F117,DADOS_MercadoBase[Posto],$G117)),2),0) -> 0 | I117: =IFERROR(ROUND((AVERAGEIFS(DADOS_MercadoBase[Tar_ETUSD],DADOS_MercadoBase[TipoMercado],$A$3,DADOS_MercadoBase[OPÇÃO],$A$57,DADOS_MercadoBase[Subgrupo],$A117,DADOS_MercadoBase[Modalidade],$B117,DADOS_MercadoBase[Classe],$D117,DADOS_MercadoBase[Subclasse],$E117,DADOS_MercadoBase[Detalhe],$F117,DADOS_MercadoBase[Posto],$G117)),2),0) -> 0 | J117: =IFERROR(ROUND((AVERAGEIFS(DADOS_MercadoBase[Tar_ETE],DADOS_MercadoBase[TipoMercado],$A$3,DADOS_MercadoBase[OPÇÃO],$A$57,DADOS_MercadoBase[Subgrupo],$A117,DADOS_MercadoBase[Modalidade],$B117,DADOS_MercadoBase[Classe],$D117,DADOS_MercadoBase[Subclasse],$E117,DADOS_MercadoBase[Detalhe],$F117,DADOS_MercadoBase[Posto],$G117)),2),0) -> 0 | K117: =IFERROR(ROUND((AVERAGEIFS(DADOS_MercadoBase[TUSD/KW],DADOS_MercadoBase[TipoMercado],$A$3,DADOS_MercadoBase[OPÇÃO],$A$57,DADOS_MercadoBase[Subgrupo],$A117,DADOS_MercadoBase[Modalidade],$B117,DADOS_MercadoBase[Classe],$D117,DADOS_MercadoBase[Subclasse],$E117,DADOS_MercadoBase[Detalhe],$F117,DADOS_MercadoBase[Posto],$G117)),2),0) -> 0 | L117: =IFERROR(ROUND((AVERAGEIFS(DADOS_MercadoBase[TUSD/MWh],DADOS_MercadoBase[TipoMercado],$A$3,DADOS_MercadoBase[OPÇÃO],$A$57,DADOS_MercadoBase[Subgrupo],$A117,DADOS_MercadoBase[Modalidade],$B117,DADOS_MercadoBase[Classe],$D117,DADOS_MercadoBase[Subclasse],$E117,DADOS_MercadoBase[Detalhe],$F117,DADOS_MercadoBase[Posto],$G117)),2),0) -> 0 | M117: =IFERROR(ROUND((AVERAGEIFS(DADOS_MercadoBase[TE],DADOS_MercadoBase[TipoMercado],$A$3,DADOS_MercadoBase[OPÇÃO],$A$57,DADOS_MercadoBase[Subgrupo],$A117,DADOS_MercadoBase[Modalidade],$B117,DADOS_MercadoBase[Classe],$D117,DADOS_MercadoBase[Subclasse],$E117,DADOS_MercadoBase[Detalhe],$F117,DADOS_MercadoBase[Posto],$G117)),2),0) -> 0
A118: A3a | B118: Azul | C118: Azul | D118: Industrial | E118: Não se aplica | F118: Não se aplica | G118: Fora ponta | H118: =IFERROR(ROUND((AVERAGEIFS(DADOS_MercadoBase[Tar_PTUSD],DADOS_MercadoBase[TipoMercado],$A$3,DADOS_MercadoBase[OPÇÃO],$A$57,DADOS_MercadoBase[Subgrupo],$A118,DADOS_MercadoBase[Modalidade],$B118,DADOS_MercadoBase[Classe],$D118,DADOS_MercadoBase[Subclasse],$E118,DADOS_MercadoBase[Detalhe],$F118,DADOS_MercadoBase[Posto],$G118)),2),0) -> 0 | I118: =IFERROR(ROUND((AVERAGEIFS(DADOS_MercadoBase[Tar_ETUSD],DADOS_MercadoBase[TipoMercado],$A$3,DADOS_MercadoBase[OPÇÃO],$A$57,DADOS_MercadoBase[Subgrupo],$A118,DADOS_MercadoBase[Modalidade],$B118,DADOS_MercadoBase[Classe],$D118,DADOS_MercadoBase[Subclasse],$E118,DADOS_MercadoBase[Detalhe],$F118,DADOS_MercadoBase[Posto],$G118)),2),0) -> 0 | J118: =IFERROR(ROUND((AVERAGEIFS(DADOS_MercadoBase[Tar_ETE],DADOS_MercadoBase[TipoMercado],$A$3,DADOS_MercadoBase[OPÇÃO],$A$57,DADOS_MercadoBase[Subgrupo],$A118,DADOS_MercadoBase[Modalidade],$B118,DADOS_MercadoBase[Classe],$D118,DADOS_MercadoBase[Subclasse],$E118,DADOS_MercadoBase[Detalhe],$F118,DADOS_MercadoBase[Posto],$G118)),2),0) -> 0 | K118: =IFERROR(ROUND((AVERAGEIFS(DADOS_MercadoBase[TUSD/KW],DADOS_MercadoBase[TipoMercado],$A$3,DADOS_MercadoBase[OPÇÃO],$A$57,DADOS_MercadoBase[Subgrupo],$A118,DADOS_MercadoBase[Modalidade],$B118,DADOS_MercadoBase[Classe],$D118,DADOS_MercadoBase[Subclasse],$E118,DADOS_MercadoBase[Detalhe],$F118,DADOS_MercadoBase[Posto],$G118)),2),0) -> 0 | L118: =IFERROR(ROUND((AVERAGEIFS(DADOS_MercadoBase[TUSD/MWh],DADOS_MercadoBase[TipoMercado],$A$3,DADOS_MercadoBase[OPÇÃO],$A$57,DADOS_MercadoBase[Subgrupo],$A118,DADOS_MercadoBase[Modalidade],$B118,DADOS_MercadoBase[Classe],$D118,DADOS_MercadoBase[Subclasse],$E118,DADOS_MercadoBase[Detalhe],$F118,DADOS_MercadoBase[Posto],$G118)),2),0) -> 0 | M118: =IFERROR(ROUND((AVERAGEIFS(DADOS_MercadoBase[TE],DADOS_MercadoBase[TipoMercado],$A$3,DADOS_MercadoBase[OPÇÃO],$A$57,DADOS_MercadoBase[Subgrupo],$A118,DADOS_MercadoBase[Modalidade],$B118,DADOS_MercadoBase[Classe],$D118,DADOS_MercadoBase[Subclasse],$E118,DADOS_MercadoBase[Detalhe],$F118,DADOS_MercadoBase[Posto],$G118)),2),0) -> 0
A119: A3a | B119: Azul | C119: Azul | D119: Industrial | E119: Não se aplica | F119: Não se aplica | G119: Não se aplica | H119: =IFERROR(ROUND((AVERAGEIFS(DADOS_MercadoBase[Tar_PTUSD],DADOS_MercadoBase[TipoMercado],$A$3,DADOS_MercadoBase[OPÇÃO],$A$57,DADOS_MercadoBase[Subgrupo],$A119,DADOS_MercadoBase[Modalidade],$B119,DADOS_MercadoBase[Classe],$D119,DADOS_MercadoBase[Subclasse],$E119,DADOS_MercadoBase[Detalhe],$F119,DADOS_MercadoBase[Posto],$G119)),2),0) -> 0 | I119: =IFERROR(ROUND((AVERAGEIFS(DADOS_MercadoBase[Tar_ETUSD],DADOS_MercadoBase[TipoMercado],$A$3,DADOS_MercadoBase[OPÇÃO],$A$57,DADOS_MercadoBase[Subgrupo],$A119,DADOS_MercadoBase[Modalidade],$B119,DADOS_MercadoBase[Classe],$D119,DADOS_MercadoBase[Subclasse],$E119,DADOS_MercadoBase[Detalhe],$F119,DADOS_MercadoBase[Posto],$G119)),2),0) -> 0 | J119: =IFERROR(ROUND((AVERAGEIFS(DADOS_MercadoBase[Tar_ETE],DADOS_MercadoBase[TipoMercado],$A$3,DADOS_MercadoBase[OPÇÃO],$A$57,DADOS_MercadoBase[Subgrupo],$A119,DADOS_MercadoBase[Modalidade],$B119,DADOS_MercadoBase[Classe],$D119,DADOS_MercadoBase[Subclasse],$E119,DADOS_MercadoBase[Detalhe],$F119,DADOS_MercadoBase[Posto],$G119)),2),0) -> 0 | K119: =IFERROR(ROUND((AVERAGEIFS(DADOS_MercadoBase[TUSD/KW],DADOS_MercadoBase[TipoMercado],$A$3,DADOS_MercadoBase[OPÇÃO],$A$57,DADOS_MercadoBase[Subgrupo],$A119,DADOS_MercadoBase[Modalidade],$B119,DADOS_MercadoBase[Classe],$D119,DADOS_MercadoBase[Subclasse],$E119,DADOS_MercadoBase[Detalhe],$F119,DADOS_MercadoBase[Posto],$G119)),2),0) -> 0 | L119: =IFERROR(ROUND((AVERAGEIFS(DADOS_MercadoBase[TUSD/MWh],DADOS_MercadoBase[TipoMercado],$A$3,DADOS_MercadoBase[OPÇÃO],$A$57,DADOS_MercadoBase[Subgrupo],$A119,DADOS_MercadoBase[Modalidade],$B119,DADOS_MercadoBase[Classe],$D119,DADOS_MercadoBase[Subclasse],$E119,DADOS_MercadoBase[Detalhe],$F119,DADOS_MercadoBase[Posto],$G119)),2),0) -> 0 | M119: =IFERROR(ROUND((AVERAGEIFS(DADOS_MercadoBase[TE],DADOS_MercadoBase[TipoMercado],$A$3,DADOS_MercadoBase[OPÇÃO],$A$57,DADOS_MercadoBase[Subgrupo],$A119,DADOS_MercadoBase[Modalidade],$B119,DADOS_MercadoBase[Classe],$D119,DADOS_MercadoBase[Subclasse],$E119,DADOS_MercadoBase[Detalhe],$F119,DADOS_MercadoBase[Posto],$G119)),2),0) -> 0
A120: A3a | B120: Verde | C120: Verde | D120: Industrial | E120: Não se aplica | F120: Não se aplica | G120: Ponta | H120: =IFERROR(ROUND((AVERAGEIFS(DADOS_MercadoBase[Tar_PTUSD],DADOS_MercadoBase[TipoMercado],$A$3,DADOS_MercadoBase[OPÇÃO],$A$57,DADOS_MercadoBase[Subgrupo],$A120,DADOS_MercadoBase[Modalidade],$B120,DADOS_MercadoBase[Classe],$D120,DADOS_MercadoBase[Subclasse],$E120,DADOS_MercadoBase[Detalhe],$F120,DADOS_MercadoBase[Posto],$G120)),2),0) -> 0 | I120: =IFERROR(ROUND((AVERAGEIFS(DADOS_MercadoBase[Tar_ETUSD],DADOS_MercadoBase[TipoMercado],$A$3,DADOS_MercadoBase[OPÇÃO],$A$57,DADOS_MercadoBase[Subgrupo],$A120,DADOS_MercadoBase[Modalidade],$B120,DADOS_MercadoBase[Classe],$D120,DADOS_MercadoBase[Subclasse],$E120,DADOS_MercadoBase[Detalhe],$F120,DADOS_MercadoBase[Posto],$G120)),2),0) -> 0 | J120: =IFERROR(ROUND((AVERAGEIFS(DADOS_MercadoBase[Tar_ETE],DADOS_MercadoBase[TipoMercado],$A$3,DADOS_MercadoBase[OPÇÃO],$A$57,DADOS_MercadoBase[Subgrupo],$A120,DADOS_MercadoBase[Modalidade],$B120,DADOS_MercadoBase[Classe],$D120,DADOS_MercadoBase[Subclasse],$E120,DADOS_MercadoBase[Detalhe],$F120,DADOS_MercadoBase[Posto],$G120)),2),0) -> 0 | K120: =IFERROR(ROUND((AVERAGEIFS(DADOS_MercadoBase[TUSD/KW],DADOS_MercadoBase[TipoMercado],$A$3,DADOS_MercadoBase[OPÇÃO],$A$57,DADOS_MercadoBase[Subgrupo],$A120,DADOS_MercadoBase[Modalidade],$B120,DADOS_MercadoBase[Classe],$D120,DADOS_MercadoBase[Subclasse],$E120,DADOS_MercadoBase[Detalhe],$F120,DADOS_MercadoBase[Posto],$G120)),2),0) -> 0 | L120: =IFERROR(ROUND((AVERAGEIFS(DADOS_MercadoBase[TUSD/MWh],DADOS_MercadoBase[TipoMercado],$A$3,DADOS_MercadoBase[OPÇÃO],$A$57,DADOS_MercadoBase[Subgrupo],$A120,DADOS_MercadoBase[Modalidade],$B120,DADOS_MercadoBase[Classe],$D120,DADOS_MercadoBase[Subclasse],$E120,DADOS_MercadoBase[Detalhe],$F120,DADOS_MercadoBase[Posto],$G120)),2),0) -> 0 | M120: =IFERROR(ROUND((AVERAGEIFS(DADOS_MercadoBase[TE],DADOS_MercadoBase[TipoMercado],$A$3,DADOS_MercadoBase[OPÇÃO],$A$57,DADOS_MercadoBase[Subgrupo],$A120,DADOS_MercadoBase[Modalidade],$B120,DADOS_MercadoBase[Classe],$D120,DADOS_MercadoBase[Subclasse],$E120,DADOS_MercadoBase[Detalhe],$F120,DADOS_MercadoBase[Posto],$G120)),2),0) -> 0
A121: A3a | B121: Verde | C121: Verde | D121: Industrial | E121: Não se aplica | F121: Não se aplica | G121: Fora ponta | H121: =IFERROR(ROUND((AVERAGEIFS(DADOS_MercadoBase[Tar_PTUSD],DADOS_MercadoBase[TipoMercado],$A$3,DADOS_MercadoBase[OPÇÃO],$A$57,DADOS_MercadoBase[Subgrupo],$A121,DADOS_MercadoBase[Modalidade],$B121,DADOS_MercadoBase[Classe],$D121,DADOS_MercadoBase[Subclasse],$E121,DADOS_MercadoBase[Detalhe],$F121,DADOS_MercadoBase[Posto],$G121)),2),0) -> 0 | I121: =IFERROR(ROUND((AVERAGEIFS(DADOS_MercadoBase[Tar_ETUSD],DADOS_MercadoBase[TipoMercado],$A$3,DADOS_MercadoBase[OPÇÃO],$A$57,DADOS_MercadoBase[Subgrupo],$A121,DADOS_MercadoBase[Modalidade],$B121,DADOS_MercadoBase[Classe],$D121,DADOS_MercadoBase[Subclasse],$E121,DADOS_MercadoBase[Detalhe],$F121,DADOS_MercadoBase[Posto],$G121)),2),0) -> 0 | J121: =IFERROR(ROUND((AVERAGEIFS(DADOS_MercadoBase[Tar_ETE],DADOS_MercadoBase[TipoMercado],$A$3,DADOS_MercadoBase[OPÇÃO],$A$57,DADOS_MercadoBase[Subgrupo],$A121,DADOS_MercadoBase[Modalidade],$B121,DADOS_MercadoBase[Classe],$D121,DADOS_MercadoBase[Subclasse],$E121,DADOS_MercadoBase[Detalhe],$F121,DADOS_MercadoBase[Posto],$G121)),2),0) -> 0 | K121: =IFERROR(ROUND((AVERAGEIFS(DADOS_MercadoBase[TUSD/KW],DADOS_MercadoBase[TipoMercado],$A$3,DADOS_MercadoBase[OPÇÃO],$A$57,DADOS_MercadoBase[Subgrupo],$A121,DADOS_MercadoBase[Modalidade],$B121,DADOS_MercadoBase[Classe],$D121,DADOS_MercadoBase[Subclasse],$E121,DADOS_MercadoBase[Detalhe],$F121,DADOS_MercadoBase[Posto],$G121)),2),0) -> 0 | L121: =IFERROR(ROUND((AVERAGEIFS(DADOS_MercadoBase[TUSD/MWh],DADOS_MercadoBase[TipoMercado],$A$3,DADOS_MercadoBase[OPÇÃO],$A$57,DADOS_MercadoBase[Subgrupo],$A121,DADOS_MercadoBase[Modalidade],$B121,DADOS_MercadoBase[Classe],$D121,DADOS_MercadoBase[Subclasse],$E121,DADOS_MercadoBase[Detalhe],$F121,DADOS_MercadoBase[Posto],$G121)),2),0) -> 0 | M121: =IFERROR(ROUND((AVERAGEIFS(DADOS_MercadoBase[TE],DADOS_MercadoBase[TipoMercado],$A$3,DADOS_MercadoBase[OPÇÃO],$A$57,DADOS_MercadoBase[Subgrupo],$A121,DADOS_MercadoBase[Modalidade],$B121,DADOS_MercadoBase[Classe],$D121,DADOS_MercadoBase[Subclasse],$E121,DADOS_MercadoBase[Detalhe],$F121,DADOS_MercadoBase[Posto],$G121)),2),0) -> 0
A122: A3a | B122: Verde | C122: Verde | D122: Industrial | E122: Não se aplica | F122: Não se aplica | G122: Não se aplica | H122: =IFERROR(ROUND((AVERAGEIFS(DADOS_MercadoBase[Tar_PTUSD],DADOS_MercadoBase[TipoMercado],$A$3,DADOS_MercadoBase[OPÇÃO],$A$57,DADOS_MercadoBase[Subgrupo],$A122,DADOS_MercadoBase[Modalidade],$B122,DADOS_MercadoBase[Classe],$D122,DADOS_MercadoBase[Subclasse],$E122,DADOS_MercadoBase[Detalhe],$F122,DADOS_MercadoBase[Posto],$G122)),2),0) -> 0 | I122: =IFERROR(ROUND((AVERAGEIFS(DADOS_MercadoBase[Tar_ETUSD],DADOS_MercadoBase[TipoMercado],$A$3,DADOS_MercadoBase[OPÇÃO],$A$57,DADOS_MercadoBase[Subgrupo],$A122,DADOS_MercadoBase[Modalidade],$B122,DADOS_MercadoBase[Classe],$D122,DADOS_MercadoBase[Subclasse],$E122,DADOS_MercadoBase[Detalhe],$F122,DADOS_MercadoBase[Posto],$G122)),2),0) -> 0 | J122: =IFERROR(ROUND((AVERAGEIFS(DADOS_MercadoBase[Tar_ETE],DADOS_MercadoBase[TipoMercado],$A$3,DADOS_MercadoBase[OPÇÃO],$A$57,DADOS_MercadoBase[Subgrupo],$A122,DADOS_MercadoBase[Modalidade],$B122,DADOS_MercadoBase[Classe],$D122,DADOS_MercadoBase[Subclasse],$E122,DADOS_MercadoBase[Detalhe],$F122,DADOS_MercadoBase[Posto],$G122)),2),0) -> 0 | K122: =IFERROR(ROUND((AVERAGEIFS(DADOS_MercadoBase[TUSD/KW],DADOS_MercadoBase[TipoMercado],$A$3,DADOS_MercadoBase[OPÇÃO],$A$57,DADOS_MercadoBase[Subgrupo],$A122,DADOS_MercadoBase[Modalidade],$B122,DADOS_MercadoBase[Classe],$D122,DADOS_MercadoBase[Subclasse],$E122,DADOS_MercadoBase[Detalhe],$F122,DADOS_MercadoBase[Posto],$G122)),2),0) -> 0 | L122: =IFERROR(ROUND((AVERAGEIFS(DADOS_MercadoBase[TUSD/MWh],DADOS_MercadoBase[TipoMercado],$A$3,DADOS_MercadoBase[OPÇÃO],$A$57,DADOS_MercadoBase[Subgrupo],$A122,DADOS_MercadoBase[Modalidade],$B122,DADOS_MercadoBase[Classe],$D122,DADOS_MercadoBase[Subclasse],$E122,DADOS_MercadoBase[Detalhe],$F122,DADOS_MercadoBase[Posto],$G122)),2),0) -> 0 | M122: =IFERROR(ROUND((AVERAGEIFS(DADOS_MercadoBase[TE],DADOS_MercadoBase[TipoMercado],$A$3,DADOS_MercadoBase[OPÇÃO],$A$57,DADOS_MercadoBase[Subgrupo],$A122,DADOS_MercadoBase[Modalidade],$B122,DADOS_MercadoBase[Classe],$D122,DADOS_MercadoBase[Subclasse],$E122,DADOS_MercadoBase[Detalhe],$F122,DADOS_MercadoBase[Posto],$G122)),2),0) -> 0
A123: A3a | B123: Verde | C123: Verde | D123: Comercial | E123: Não se aplica | F123: Não se aplica | G123: Ponta | H123: =IFERROR(ROUND((AVERAGEIFS(DADOS_MercadoBase[Tar_PTUSD],DADOS_MercadoBase[TipoMercado],$A$3,DADOS_MercadoBase[OPÇÃO],$A$57,DADOS_MercadoBase[Subgrupo],$A123,DADOS_MercadoBase[Modalidade],$B123,DADOS_MercadoBase[Classe],$D123,DADOS_MercadoBase[Subclasse],$E123,DADOS_MercadoBase[Detalhe],$F123,DADOS_MercadoBase[Posto],$G123)),2),0) -> 0 | I123: =IFERROR(ROUND((AVERAGEIFS(DADOS_MercadoBase[Tar_ETUSD],DADOS_MercadoBase[TipoMercado],$A$3,DADOS_MercadoBase[OPÇÃO],$A$57,DADOS_MercadoBase[Subgrupo],$A123,DADOS_MercadoBase[Modalidade],$B123,DADOS_MercadoBase[Classe],$D123,DADOS_MercadoBase[Subclasse],$E123,DADOS_MercadoBase[Detalhe],$F123,DADOS_MercadoBase[Posto],$G123)),2),0) -> 0 | J123: =IFERROR(ROUND((AVERAGEIFS(DADOS_MercadoBase[Tar_ETE],DADOS_MercadoBase[TipoMercado],$A$3,DADOS_MercadoBase[OPÇÃO],$A$57,DADOS_MercadoBase[Subgrupo],$A123,DADOS_MercadoBase[Modalidade],$B123,DADOS_MercadoBase[Classe],$D123,DADOS_MercadoBase[Subclasse],$E123,DADOS_MercadoBase[Detalhe],$F123,DADOS_MercadoBase[Posto],$G123)),2),0) -> 0 | K123: =IFERROR(ROUND((AVERAGEIFS(DADOS_MercadoBase[TUSD/KW],DADOS_MercadoBase[TipoMercado],$A$3,DADOS_MercadoBase[OPÇÃO],$A$57,DADOS_MercadoBase[Subgrupo],$A123,DADOS_MercadoBase[Modalidade],$B123,DADOS_MercadoBase[Classe],$D123,DADOS_MercadoBase[Subclasse],$E123,DADOS_MercadoBase[Detalhe],$F123,DADOS_MercadoBase[Posto],$G123)),2),0) -> 0 | L123: =IFERROR(ROUND((AVERAGEIFS(DADOS_MercadoBase[TUSD/MWh],DADOS_MercadoBase[TipoMercado],$A$3,DADOS_MercadoBase[OPÇÃO],$A$57,DADOS_MercadoBase[Subgrupo],$A123,DADOS_MercadoBase[Modalidade],$B123,DADOS_MercadoBase[Classe],$D123,DADOS_MercadoBase[Subclasse],$E123,DADOS_MercadoBase[Detalhe],$F123,DADOS_MercadoBase[Posto],$G123)),2),0) -> 0 | M123: =IFERROR(ROUND((AVERAGEIFS(DADOS_MercadoBase[TE],DADOS_MercadoBase[TipoMercado],$A$3,DADOS_MercadoBase[OPÇÃO],$A$57,DADOS_MercadoBase[Subgrupo],$A123,DADOS_MercadoBase[Modalidade],$B123,DADOS_MercadoBase[Classe],$D123,DADOS_MercadoBase[Subclasse],$E123,DADOS_MercadoBase[Detalhe],$F123,DADOS_MercadoBase[Posto],$G123)),2),0) -> 0
A124: A3a | B124: Verde | C124: Verde | D124: Comercial | E124: Não se aplica | F124: Não se aplica | G124: Fora ponta | H124: =IFERROR(ROUND((AVERAGEIFS(DADOS_MercadoBase[Tar_PTUSD],DADOS_MercadoBase[TipoMercado],$A$3,DADOS_MercadoBase[OPÇÃO],$A$57,DADOS_MercadoBase[Subgrupo],$A124,DADOS_MercadoBase[Modalidade],$B124,DADOS_MercadoBase[Classe],$D124,DADOS_MercadoBase[Subclasse],$E124,DADOS_MercadoBase[Detalhe],$F124,DADOS_MercadoBase[Posto],$G124)),2),0) -> 0 | I124: =IFERROR(ROUND((AVERAGEIFS(DADOS_MercadoBase[Tar_ETUSD],DADOS_MercadoBase[TipoMercado],$A$3,DADOS_MercadoBase[OPÇÃO],$A$57,DADOS_MercadoBase[Subgrupo],$A124,DADOS_MercadoBase[Modalidade],$B124,DADOS_MercadoBase[Classe],$D124,DADOS_MercadoBase[Subclasse],$E124,DADOS_MercadoBase[Detalhe],$F124,DADOS_MercadoBase[Posto],$G124)),2),0) -> 0 | J124: =IFERROR(ROUND((AVERAGEIFS(DADOS_MercadoBase[Tar_ETE],DADOS_MercadoBase[TipoMercado],$A$3,DADOS_MercadoBase[OPÇÃO],$A$57,DADOS_MercadoBase[Subgrupo],$A124,DADOS_MercadoBase[Modalidade],$B124,DADOS_MercadoBase[Classe],$D124,DADOS_MercadoBase[Subclasse],$E124,DADOS_MercadoBase[Detalhe],$F124,DADOS_MercadoBase[Posto],$G124)),2),0) -> 0 | K124: =IFERROR(ROUND((AVERAGEIFS(DADOS_MercadoBase[TUSD/KW],DADOS_MercadoBase[TipoMercado],$A$3,DADOS_MercadoBase[OPÇÃO],$A$57,DADOS_MercadoBase[Subgrupo],$A124,DADOS_MercadoBase[Modalidade],$B124,DADOS_MercadoBase[Classe],$D124,DADOS_MercadoBase[Subclasse],$E124,DADOS_MercadoBase[Detalhe],$F124,DADOS_MercadoBase[Posto],$G124)),2),0) -> 0 | L124: =IFERROR(ROUND((AVERAGEIFS(DADOS_MercadoBase[TUSD/MWh],DADOS_MercadoBase[TipoMercado],$A$3,DADOS_MercadoBase[OPÇÃO],$A$57,DADOS_MercadoBase[Subgrupo],$A124,DADOS_MercadoBase[Modalidade],$B124,DADOS_MercadoBase[Classe],$D124,DADOS_MercadoBase[Subclasse],$E124,DADOS_MercadoBase[Detalhe],$F124,DADOS_MercadoBase[Posto],$G124)),2),0) -> 0 | M124: =IFERROR(ROUND((AVERAGEIFS(DADOS_MercadoBase[TE],DADOS_MercadoBase[TipoMercado],$A$3,DADOS_MercadoBase[OPÇÃO],$A$57,DADOS_MercadoBase[Subgrupo],$A124,DADOS_MercadoBase[Modalidade],$B124,DADOS_MercadoBase[Classe],$D124,DADOS_MercadoBase[Subclasse],$E124,DADOS_MercadoBase[Detalhe],$F124,DADOS_MercadoBase[Posto],$G124)),2),0) -> 0
A125: A3a | B125: Verde | C125: Verde | D125: Comercial | E125: Não se aplica | F125: Não se aplica | G125: Não se aplica | H125: =IFERROR(ROUND((AVERAGEIFS(DADOS_MercadoBase[Tar_PTUSD],DADOS_MercadoBase[TipoMercado],$A$3,DADOS_MercadoBase[OPÇÃO],$A$57,DADOS_MercadoBase[Subgrupo],$A125,DADOS_MercadoBase[Modalidade],$B125,DADOS_MercadoBase[Classe],$D125,DADOS_MercadoBase[Subclasse],$E125,DADOS_MercadoBase[Detalhe],$F125,DADOS_MercadoBase[Posto],$G125)),2),0) -> 0 | I125: =IFERROR(ROUND((AVERAGEIFS(DADOS_MercadoBase[Tar_ETUSD],DADOS_MercadoBase[TipoMercado],$A$3,DADOS_MercadoBase[OPÇÃO],$A$57,DADOS_MercadoBase[Subgrupo],$A125,DADOS_MercadoBase[Modalidade],$B125,DADOS_MercadoBase[Classe],$D125,DADOS_MercadoBase[Subclasse],$E125,DADOS_MercadoBase[Detalhe],$F125,DADOS_MercadoBase[Posto],$G125)),2),0) -> 0 | J125: =IFERROR(ROUND((AVERAGEIFS(DADOS_MercadoBase[Tar_ETE],DADOS_MercadoBase[TipoMercado],$A$3,DADOS_MercadoBase[OPÇÃO],$A$57,DADOS_MercadoBase[Subgrupo],$A125,DADOS_MercadoBase[Modalidade],$B125,DADOS_MercadoBase[Classe],$D125,DADOS_MercadoBase[Subclasse],$E125,DADOS_MercadoBase[Detalhe],$F125,DADOS_MercadoBase[Posto],$G125)),2),0) -> 0 | K125: =IFERROR(ROUND((AVERAGEIFS(DADOS_MercadoBase[TUSD/KW],DADOS_MercadoBase[TipoMercado],$A$3,DADOS_MercadoBase[OPÇÃO],$A$57,DADOS_MercadoBase[Subgrupo],$A125,DADOS_MercadoBase[Modalidade],$B125,DADOS_MercadoBase[Classe],$D125,DADOS_MercadoBase[Subclasse],$E125,DADOS_MercadoBase[Detalhe],$F125,DADOS_MercadoBase[Posto],$G125)),2),0) -> 0 | L125: =IFERROR(ROUND((AVERAGEIFS(DADOS_MercadoBase[TUSD/MWh],DADOS_MercadoBase[TipoMercado],$A$3,DADOS_MercadoBase[OPÇÃO],$A$57,DADOS_MercadoBase[Subgrupo],$A125,DADOS_MercadoBase[Modalidade],$B125,DADOS_MercadoBase[Classe],$D125,DADOS_MercadoBase[Subclasse],$E125,DADOS_MercadoBase[Detalhe],$F125,DADOS_MercadoBase[Posto],$G125)),2),0) -> 0 | M125: =IFERROR(ROUND((AVERAGEIFS(DADOS_MercadoBase[TE],DADOS_MercadoBase[TipoMercado],$A$3,DADOS_MercadoBase[OPÇÃO],$A$57,DADOS_MercadoBase[Subgrupo],$A125,DADOS_MercadoBase[Modalidade],$B125,DADOS_MercadoBase[Classe],$D125,DADOS_MercadoBase[Subclasse],$E125,DADOS_MercadoBase[Detalhe],$F125,DADOS_MercadoBase[Posto],$G125)),2),0) -> 0
A126: A3a | B126: Verde | C126: Verde | D126: Rural | E126: Agropecuária rural | F126: IRRIG./AQUIC. PR | G126: Fora ponta | H126: =IFERROR(ROUND((AVERAGEIFS(DADOS_MercadoBase[Tar_PTUSD],DADOS_MercadoBase[TipoMercado],$A$3,DADOS_MercadoBase[OPÇÃO],$A$57,DADOS_MercadoBase[Subgrupo],$A126,DADOS_MercadoBase[Modalidade],$B126,DADOS_MercadoBase[Classe],$D126,DADOS_MercadoBase[Subclasse],$E126,DADOS_MercadoBase[Detalhe],$F126,DADOS_MercadoBase[Posto],$G126)),2),0) -> 0 | I126: =IFERROR(ROUND((AVERAGEIFS(DADOS_MercadoBase[Tar_ETUSD],DADOS_MercadoBase[TipoMercado],$A$3,DADOS_MercadoBase[OPÇÃO],$A$57,DADOS_MercadoBase[Subgrupo],$A126,DADOS_MercadoBase[Modalidade],$B126,DADOS_MercadoBase[Classe],$D126,DADOS_MercadoBase[Subclasse],$E126,DADOS_MercadoBase[Detalhe],$F126,DADOS_MercadoBase[Posto],$G126)),2),0) -> 0 | J126: =IFERROR(ROUND((AVERAGEIFS(DADOS_MercadoBase[Tar_ETE],DADOS_MercadoBase[TipoMercado],$A$3,DADOS_MercadoBase[OPÇÃO],$A$57,DADOS_MercadoBase[Subgrupo],$A126,DADOS_MercadoBase[Modalidade],$B126,DADOS_MercadoBase[Classe],$D126,DADOS_MercadoBase[Subclasse],$E126,DADOS_MercadoBase[Detalhe],$F126,DADOS_MercadoBase[Posto],$G126)),2),0) -> 0 | K126: =IFERROR(ROUND((AVERAGEIFS(DADOS_MercadoBase[TUSD/KW],DADOS_MercadoBase[TipoMercado],$A$3,DADOS_MercadoBase[OPÇÃO],$A$57,DADOS_MercadoBase[Subgrupo],$A126,DADOS_MercadoBase[Modalidade],$B126,DADOS_MercadoBase[Classe],$D126,DADOS_MercadoBase[Subclasse],$E126,DADOS_MercadoBase[Detalhe],$F126,DADOS_MercadoBase[Posto],$G126)),2),0) -> 0 | L126: =IFERROR(ROUND((AVERAGEIFS(DADOS_MercadoBase[TUSD/MWh],DADOS_MercadoBase[TipoMercado],$A$3,DADOS_MercadoBase[OPÇÃO],$A$57,DADOS_MercadoBase[Subgrupo],$A126,DADOS_MercadoBase[Modalidade],$B126,DADOS_MercadoBase[Classe],$D126,DADOS_MercadoBase[Subclasse],$E126,DADOS_MercadoBase[Detalhe],$F126,DADOS_MercadoBase[Posto],$G126)),2),0) -> 0 | M126: =IFERROR(ROUND((AVERAGEIFS(DADOS_MercadoBase[TE],DADOS_MercadoBase[TipoMercado],$A$3,DADOS_MercadoBase[OPÇÃO],$A$57,DADOS_MercadoBase[Subgrupo],$A126,DADOS_MercadoBase[Modalidade],$B126,DADOS_MercadoBase[Classe],$D126,DADOS_MercadoBase[Subclasse],$E126,DADOS_MercadoBase[Detalhe],$F126,DADOS_MercadoBase[Posto],$G126)),2),0) -> 0
A127: A3a | B127: Verde | C127: Verde | D127: Rural | E127: Agropecuária rural | F127: Não se aplica | G127: Ponta | H127: =IFERROR(ROUND((AVERAGEIFS(DADOS_MercadoBase[Tar_PTUSD],DADOS_MercadoBase[TipoMercado],$A$3,DADOS_MercadoBase[OPÇÃO],$A$57,DADOS_MercadoBase[Subgrupo],$A127,DADOS_MercadoBase[Modalidade],$B127,DADOS_MercadoBase[Classe],$D127,DADOS_MercadoBase[Subclasse],$E127,DADOS_MercadoBase[Detalhe],$F127,DADOS_MercadoBase[Posto],$G127)),2),0) -> 0 | I127: =IFERROR(ROUND((AVERAGEIFS(DADOS_MercadoBase[Tar_ETUSD],DADOS_MercadoBase[TipoMercado],$A$3,DADOS_MercadoBase[OPÇÃO],$A$57,DADOS_MercadoBase[Subgrupo],$A127,DADOS_MercadoBase[Modalidade],$B127,DADOS_MercadoBase[Classe],$D127,DADOS_MercadoBase[Subclasse],$E127,DADOS_MercadoBase[Detalhe],$F127,DADOS_MercadoBase[Posto],$G127)),2),0) -> 0 | J127: =IFERROR(ROUND((AVERAGEIFS(DADOS_MercadoBase[Tar_ETE],DADOS_MercadoBase[TipoMercado],$A$3,DADOS_MercadoBase[OPÇÃO],$A$57,DADOS_MercadoBase[Subgrupo],$A127,DADOS_MercadoBase[Modalidade],$B127,DADOS_MercadoBase[Classe],$D127,DADOS_MercadoBase[Subclasse],$E127,DADOS_MercadoBase[Detalhe],$F127,DADOS_MercadoBase[Posto],$G127)),2),0) -> 0 | K127: =IFERROR(ROUND((AVERAGEIFS(DADOS_MercadoBase[TUSD/KW],DADOS_MercadoBase[TipoMercado],$A$3,DADOS_MercadoBase[OPÇÃO],$A$57,DADOS_MercadoBase[Subgrupo],$A127,DADOS_MercadoBase[Modalidade],$B127,DADOS_MercadoBase[Classe],$D127,DADOS_MercadoBase[Subclasse],$E127,DADOS_MercadoBase[Detalhe],$F127,DADOS_MercadoBase[Posto],$G127)),2),0) -> 0 | L127: =IFERROR(ROUND((AVERAGEIFS(DADOS_MercadoBase[TUSD/MWh],DADOS_MercadoBase[TipoMercado],$A$3,DADOS_MercadoBase[OPÇÃO],$A$57,DADOS_MercadoBase[Subgrupo],$A127,DADOS_MercadoBase[Modalidade],$B127,DADOS_MercadoBase[Classe],$D127,DADOS_MercadoBase[Subclasse],$E127,DADOS_MercadoBase[Detalhe],$F127,DADOS_MercadoBase[Posto],$G127)),2),0) -> 0 | M127: =IFERROR(ROUND((AVERAGEIFS(DADOS_MercadoBase[TE],DADOS_MercadoBase[TipoMercado],$A$3,DADOS_MercadoBase[OPÇÃO],$A$57,DADOS_MercadoBase[Subgrupo],$A127,DADOS_MercadoBase[Modalidade],$B127,DADOS_MercadoBase[Classe],$D127,DADOS_MercadoBase[Subclasse],$E127,DADOS_MercadoBase[Detalhe],$F127,DADOS_MercadoBase[Posto],$G127)),2),0) -> 0
A128: A3a | B128: Verde | C128: Verde | D128: Rural | E128: Agropecuária rural | F128: Não se aplica | G128: Fora ponta | H128: =IFERROR(ROUND((AVERAGEIFS(DADOS_MercadoBase[Tar_PTUSD],DADOS_MercadoBase[TipoMercado],$A$3,DADOS_MercadoBase[OPÇÃO],$A$57,DADOS_MercadoBase[Subgrupo],$A128,DADOS_MercadoBase[Modalidade],$B128,DADOS_MercadoBase[Classe],$D128,DADOS_MercadoBase[Subclasse],$E128,DADOS_MercadoBase[Detalhe],$F128,DADOS_MercadoBase[Posto],$G128)),2),0) -> 0 | I128: =IFERROR(ROUND((AVERAGEIFS(DADOS_MercadoBase[Tar_ETUSD],DADOS_MercadoBase[TipoMercado],$A$3,DADOS_MercadoBase[OPÇÃO],$A$57,DADOS_MercadoBase[Subgrupo],$A128,DADOS_MercadoBase[Modalidade],$B128,DADOS_MercadoBase[Classe],$D128,DADOS_MercadoBase[Subclasse],$E128,DADOS_MercadoBase[Detalhe],$F128,DADOS_MercadoBase[Posto],$G128)),2),0) -> 0 | J128: =IFERROR(ROUND((AVERAGEIFS(DADOS_MercadoBase[Tar_ETE],DADOS_MercadoBase[TipoMercado],$A$3,DADOS_MercadoBase[OPÇÃO],$A$57,DADOS_MercadoBase[Subgrupo],$A128,DADOS_MercadoBase[Modalidade],$B128,DADOS_MercadoBase[Classe],$D128,DADOS_MercadoBase[Subclasse],$E128,DADOS_MercadoBase[Detalhe],$F128,DADOS_MercadoBase[Posto],$G128)),2),0) -> 0 | K128: =IFERROR(ROUND((AVERAGEIFS(DADOS_MercadoBase[TUSD/KW],DADOS_MercadoBase[TipoMercado],$A$3,DADOS_MercadoBase[OPÇÃO],$A$57,DADOS_MercadoBase[Subgrupo],$A128,DADOS_MercadoBase[Modalidade],$B128,DADOS_MercadoBase[Classe],$D128,DADOS_MercadoBase[Subclasse],$E128,DADOS_MercadoBase[Detalhe],$F128,DADOS_MercadoBase[Posto],$G128)),2),0) -> 0 | L128: =IFERROR(ROUND((AVERAGEIFS(DADOS_MercadoBase[TUSD/MWh],DADOS_MercadoBase[TipoMercado],$A$3,DADOS_MercadoBase[OPÇÃO],$A$57,DADOS_MercadoBase[Subgrupo],$A128,DADOS_MercadoBase[Modalidade],$B128,DADOS_MercadoBase[Classe],$D128,DADOS_MercadoBase[Subclasse],$E128,DADOS_MercadoBase[Detalhe],$F128,DADOS_MercadoBase[Posto],$G128)),2),0) -> 0 | M128: =IFERROR(ROUND((AVERAGEIFS(DADOS_MercadoBase[TE],DADOS_MercadoBase[TipoMercado],$A$3,DADOS_MercadoBase[OPÇÃO],$A$57,DADOS_MercadoBase[Subgrupo],$A128,DADOS_MercadoBase[Modalidade],$B128,DADOS_MercadoBase[Classe],$D128,DADOS_MercadoBase[Subclasse],$E128,DADOS_MercadoBase[Detalhe],$F128,DADOS_MercadoBase[Posto],$G128)),2),0) -> 0
A129: A3a | B129: Verde | C129: Verde | D129: Rural | E129: Agropecuária rural | F129: Não se aplica | G129: Não se aplica | H129: =IFERROR(ROUND((AVERAGEIFS(DADOS_MercadoBase[Tar_PTUSD],DADOS_MercadoBase[TipoMercado],$A$3,DADOS_MercadoBase[OPÇÃO],$A$57,DADOS_MercadoBase[Subgrupo],$A129,DADOS_MercadoBase[Modalidade],$B129,DADOS_MercadoBase[Classe],$D129,DADOS_MercadoBase[Subclasse],$E129,DADOS_MercadoBase[Detalhe],$F129,DADOS_MercadoBase[Posto],$G129)),2),0) -> 0 | I129: =IFERROR(ROUND((AVERAGEIFS(DADOS_MercadoBase[Tar_ETUSD],DADOS_MercadoBase[TipoMercado],$A$3,DADOS_MercadoBase[OPÇÃO],$A$57,DADOS_MercadoBase[Subgrupo],$A129,DADOS_MercadoBase[Modalidade],$B129,DADOS_MercadoBase[Classe],$D129,DADOS_MercadoBase[Subclasse],$E129,DADOS_MercadoBase[Detalhe],$F129,DADOS_MercadoBase[Posto],$G129)),2),0) -> 0 | J129: =IFERROR(ROUND((AVERAGEIFS(DADOS_MercadoBase[Tar_ETE],DADOS_MercadoBase[TipoMercado],$A$3,DADOS_MercadoBase[OPÇÃO],$A$57,DADOS_MercadoBase[Subgrupo],$A129,DADOS_MercadoBase[Modalidade],$B129,DADOS_MercadoBase[Classe],$D129,DADOS_MercadoBase[Subclasse],$E129,DADOS_MercadoBase[Detalhe],$F129,DADOS_MercadoBase[Posto],$G129)),2),0) -> 0 | K129: =IFERROR(ROUND((AVERAGEIFS(DADOS_MercadoBase[TUSD/KW],DADOS_MercadoBase[TipoMercado],$A$3,DADOS_MercadoBase[OPÇÃO],$A$57,DADOS_MercadoBase[Subgrupo],$A129,DADOS_MercadoBase[Modalidade],$B129,DADOS_MercadoBase[Classe],$D129,DADOS_MercadoBase[Subclasse],$E129,DADOS_MercadoBase[Detalhe],$F129,DADOS_MercadoBase[Posto],$G129)),2),0) -> 0 | L129: =IFERROR(ROUND((AVERAGEIFS(DADOS_MercadoBase[TUSD/MWh],DADOS_MercadoBase[TipoMercado],$A$3,DADOS_MercadoBase[OPÇÃO],$A$57,DADOS_MercadoBase[Subgrupo],$A129,DADOS_MercadoBase[Modalidade],$B129,DADOS_MercadoBase[Classe],$D129,DADOS_MercadoBase[Subclasse],$E129,DADOS_MercadoBase[Detalhe],$F129,DADOS_MercadoBase[Posto],$G129)),2),0) -> 0 | M129: =IFERROR(ROUND((AVERAGEIFS(DADOS_MercadoBase[TE],DADOS_MercadoBase[TipoMercado],$A$3,DADOS_MercadoBase[OPÇÃO],$A$57,DADOS_MercadoBase[Subgrupo],$A129,DADOS_MercadoBase[Modalidade],$B129,DADOS_MercadoBase[Classe],$D129,DADOS_MercadoBase[Subclasse],$E129,DADOS_MercadoBase[Detalhe],$F129,DADOS_MercadoBase[Posto],$G129)),2),0) -> 0
A130: A3a | B130: Verde | C130: Verde | D130: Rural | E130: Não se aplica | F130: Não se aplica | G130: Ponta | H130: =IFERROR(ROUND((AVERAGEIFS(DADOS_MercadoBase[Tar_PTUSD],DADOS_MercadoBase[TipoMercado],$A$3,DADOS_MercadoBase[OPÇÃO],$A$57,DADOS_MercadoBase[Subgrupo],$A130,DADOS_MercadoBase[Modalidade],$B130,DADOS_MercadoBase[Classe],$D130,DADOS_MercadoBase[Subclasse],$E130,DADOS_MercadoBase[Detalhe],$F130,DADOS_MercadoBase[Posto],$G130)),2),0) -> 0 | I130: =IFERROR(ROUND((AVERAGEIFS(DADOS_MercadoBase[Tar_ETUSD],DADOS_MercadoBase[TipoMercado],$A$3,DADOS_MercadoBase[OPÇÃO],$A$57,DADOS_MercadoBase[Subgrupo],$A130,DADOS_MercadoBase[Modalidade],$B130,DADOS_MercadoBase[Classe],$D130,DADOS_MercadoBase[Subclasse],$E130,DADOS_MercadoBase[Detalhe],$F130,DADOS_MercadoBase[Posto],$G130)),2),0) -> 0 | J130: =IFERROR(ROUND((AVERAGEIFS(DADOS_MercadoBase[Tar_ETE],DADOS_MercadoBase[TipoMercado],$A$3,DADOS_MercadoBase[OPÇÃO],$A$57,DADOS_MercadoBase[Subgrupo],$A130,DADOS_MercadoBase[Modalidade],$B130,DADOS_MercadoBase[Classe],$D130,DADOS_MercadoBase[Subclasse],$E130,DADOS_MercadoBase[Detalhe],$F130,DADOS_MercadoBase[Posto],$G130)),2),0) -> 0 | K130: =IFERROR(ROUND((AVERAGEIFS(DADOS_MercadoBase[TUSD/KW],DADOS_MercadoBase[TipoMercado],$A$3,DADOS_MercadoBase[OPÇÃO],$A$57,DADOS_MercadoBase[Subgrupo],$A130,DADOS_MercadoBase[Modalidade],$B130,DADOS_MercadoBase[Classe],$D130,DADOS_MercadoBase[Subclasse],$E130,DADOS_MercadoBase[Detalhe],$F130,DADOS_MercadoBase[Posto],$G130)),2),0) -> 0 | L130: =IFERROR(ROUND((AVERAGEIFS(DADOS_MercadoBase[TUSD/MWh],DADOS_MercadoBase[TipoMercado],$A$3,DADOS_MercadoBase[OPÇÃO],$A$57,DADOS_MercadoBase[Subgrupo],$A130,DADOS_MercadoBase[Modalidade],$B130,DADOS_MercadoBase[Classe],$D130,DADOS_MercadoBase[Subclasse],$E130,DADOS_MercadoBase[Detalhe],$F130,DADOS_MercadoBase[Posto],$G130)),2),0) -> 0 | M130: =IFERROR(ROUND((AVERAGEIFS(DADOS_MercadoBase[TE],DADOS_MercadoBase[TipoMercado],$A$3,DADOS_MercadoBase[OPÇÃO],$A$57,DADOS_MercadoBase[Subgrupo],$A130,DADOS_MercadoBase[Modalidade],$B130,DADOS_MercadoBase[Classe],$D130,DADOS_MercadoBase[Subclasse],$E130,DADOS_MercadoBase[Detalhe],$F130,DADOS_MercadoBase[Posto],$G130)),2),0) -> 0
A131: A3a | B131: Verde | C131: Verde | D131: Rural | E131: Não se aplica | F131: Não se aplica | G131: Fora ponta | H131: =IFERROR(ROUND((AVERAGEIFS(DADOS_MercadoBase[Tar_PTUSD],DADOS_MercadoBase[TipoMercado],$A$3,DADOS_MercadoBase[OPÇÃO],$A$57,DADOS_MercadoBase[Subgrupo],$A131,DADOS_MercadoBase[Modalidade],$B131,DADOS_MercadoBase[Classe],$D131,DADOS_MercadoBase[Subclasse],$E131,DADOS_MercadoBase[Detalhe],$F131,DADOS_MercadoBase[Posto],$G131)),2),0) -> 0 | I131: =IFERROR(ROUND((AVERAGEIFS(DADOS_MercadoBase[Tar_ETUSD],DADOS_MercadoBase[TipoMercado],$A$3,DADOS_MercadoBase[OPÇÃO],$A$57,DADOS_MercadoBase[Subgrupo],$A131,DADOS_MercadoBase[Modalidade],$B131,DADOS_MercadoBase[Classe],$D131,DADOS_MercadoBase[Subclasse],$E131,DADOS_MercadoBase[Detalhe],$F131,DADOS_MercadoBase[Posto],$G131)),2),0) -> 0 | J131: =IFERROR(ROUND((AVERAGEIFS(DADOS_MercadoBase[Tar_ETE],DADOS_MercadoBase[TipoMercado],$A$3,DADOS_MercadoBase[OPÇÃO],$A$57,DADOS_MercadoBase[Subgrupo],$A131,DADOS_MercadoBase[Modalidade],$B131,DADOS_MercadoBase[Classe],$D131,DADOS_MercadoBase[Subclasse],$E131,DADOS_MercadoBase[Detalhe],$F131,DADOS_MercadoBase[Posto],$G131)),2),0) -> 0 | K131: =IFERROR(ROUND((AVERAGEIFS(DADOS_MercadoBase[TUSD/KW],DADOS_MercadoBase[TipoMercado],$A$3,DADOS_MercadoBase[OPÇÃO],$A$57,DADOS_MercadoBase[Subgrupo],$A131,DADOS_MercadoBase[Modalidade],$B131,DADOS_MercadoBase[Classe],$D131,DADOS_MercadoBase[Subclasse],$E131,DADOS_MercadoBase[Detalhe],$F131,DADOS_MercadoBase[Posto],$G131)),2),0) -> 0 | L131: =IFERROR(ROUND((AVERAGEIFS(DADOS_MercadoBase[TUSD/MWh],DADOS_MercadoBase[TipoMercado],$A$3,DADOS_MercadoBase[OPÇÃO],$A$57,DADOS_MercadoBase[Subgrupo],$A131,DADOS_MercadoBase[Modalidade],$B131,DADOS_MercadoBase[Classe],$D131,DADOS_MercadoBase[Subclasse],$E131,DADOS_MercadoBase[Detalhe],$F131,DADOS_MercadoBase[Posto],$G131)),2),0) -> 0 | M131: =IFERROR(ROUND((AVERAGEIFS(DADOS_MercadoBase[TE],DADOS_MercadoBase[TipoMercado],$A$3,DADOS_MercadoBase[OPÇÃO],$A$57,DADOS_MercadoBase[Subgrupo],$A131,DADOS_MercadoBase[Modalidade],$B131,DADOS_MercadoBase[Classe],$D131,DADOS_MercadoBase[Subclasse],$E131,DADOS_MercadoBase[Detalhe],$F131,DADOS_MercadoBase[Posto],$G131)),2),0) -> 0
A132: A3a | B132: Verde | C132: Verde | D132: Rural | E132: Não se aplica | F132: Não se aplica | G132: Não se aplica | H132: =IFERROR(ROUND((AVERAGEIFS(DADOS_MercadoBase[Tar_PTUSD],DADOS_MercadoBase[TipoMercado],$A$3,DADOS_MercadoBase[OPÇÃO],$A$57,DADOS_MercadoBase[Subgrupo],$A132,DADOS_MercadoBase[Modalidade],$B132,DADOS_MercadoBase[Classe],$D132,DADOS_MercadoBase[Subclasse],$E132,DADOS_MercadoBase[Detalhe],$F132,DADOS_MercadoBase[Posto],$G132)),2),0) -> 0 | I132: =IFERROR(ROUND((AVERAGEIFS(DADOS_MercadoBase[Tar_ETUSD],DADOS_MercadoBase[TipoMercado],$A$3,DADOS_MercadoBase[OPÇÃO],$A$57,DADOS_MercadoBase[Subgrupo],$A132,DADOS_MercadoBase[Modalidade],$B132,DADOS_MercadoBase[Classe],$D132,DADOS_MercadoBase[Subclasse],$E132,DADOS_MercadoBase[Detalhe],$F132,DADOS_MercadoBase[Posto],$G132)),2),0) -> 0 | J132: =IFERROR(ROUND((AVERAGEIFS(DADOS_MercadoBase[Tar_ETE],DADOS_MercadoBase[TipoMercado],$A$3,DADOS_MercadoBase[OPÇÃO],$A$57,DADOS_MercadoBase[Subgrupo],$A132,DADOS_MercadoBase[Modalidade],$B132,DADOS_MercadoBase[Classe],$D132,DADOS_MercadoBase[Subclasse],$E132,DADOS_MercadoBase[Detalhe],$F132,DADOS_MercadoBase[Posto],$G132)),2),0) -> 0 | K132: =IFERROR(ROUND((AVERAGEIFS(DADOS_MercadoBase[TUSD/KW],DADOS_MercadoBase[TipoMercado],$A$3,DADOS_MercadoBase[OPÇÃO],$A$57,DADOS_MercadoBase[Subgrupo],$A132,DADOS_MercadoBase[Modalidade],$B132,DADOS_MercadoBase[Classe],$D132,DADOS_MercadoBase[Subclasse],$E132,DADOS_MercadoBase[Detalhe],$F132,DADOS_MercadoBase[Posto],$G132)),2),0) -> 0 | L132: =IFERROR(ROUND((AVERAGEIFS(DADOS_MercadoBase[TUSD/MWh],DADOS_MercadoBase[TipoMercado],$A$3,DADOS_MercadoBase[OPÇÃO],$A$57,DADOS_MercadoBase[Subgrupo],$A132,DADOS_MercadoBase[Modalidade],$B132,DADOS_MercadoBase[Classe],$D132,DADOS_MercadoBase[Subclasse],$E132,DADOS_MercadoBase[Detalhe],$F132,DADOS_MercadoBase[Posto],$G132)),2),0) -> 0 | M132: =IFERROR(ROUND((AVERAGEIFS(DADOS_MercadoBase[TE],DADOS_MercadoBase[TipoMercado],$A$3,DADOS_MercadoBase[OPÇÃO],$A$57,DADOS_MercadoBase[Subgrupo],$A132,DADOS_MercadoBase[Modalidade],$B132,DADOS_MercadoBase[Classe],$D132,DADOS_MercadoBase[Subclasse],$E132,DADOS_MercadoBase[Detalhe],$F132,DADOS_MercadoBase[Posto],$G132)),2),0) -> 0
A133: A4 | B133: Azul | C133: Azul | D133: Comercial | E133: Não se aplica | F133: Não se aplica | G133: Ponta | H133: =IFERROR(ROUND((AVERAGEIFS(DADOS_MercadoBase[Tar_PTUSD],DADOS_MercadoBase[TipoMercado],$A$3,DADOS_MercadoBase[OPÇÃO],$A$57,DADOS_MercadoBase[Subgrupo],$A133,DADOS_MercadoBase[Modalidade],$B133,DADOS_MercadoBase[Classe],$D133,DADOS_MercadoBase[Subclasse],$E133,DADOS_MercadoBase[Detalhe],$F133,DADOS_MercadoBase[Posto],$G133)),2),0) -> 0 | I133: =IFERROR(ROUND((AVERAGEIFS(DADOS_MercadoBase[Tar_ETUSD],DADOS_MercadoBase[TipoMercado],$A$3,DADOS_MercadoBase[OPÇÃO],$A$57,DADOS_MercadoBase[Subgrupo],$A133,DADOS_MercadoBase[Modalidade],$B133,DADOS_MercadoBase[Classe],$D133,DADOS_MercadoBase[Subclasse],$E133,DADOS_MercadoBase[Detalhe],$F133,DADOS_MercadoBase[Posto],$G133)),2),0) -> 0 | J133: =IFERROR(ROUND((AVERAGEIFS(DADOS_MercadoBase[Tar_ETE],DADOS_MercadoBase[TipoMercado],$A$3,DADOS_MercadoBase[OPÇÃO],$A$57,DADOS_MercadoBase[Subgrupo],$A133,DADOS_MercadoBase[Modalidade],$B133,DADOS_MercadoBase[Classe],$D133,DADOS_MercadoBase[Subclasse],$E133,DADOS_MercadoBase[Detalhe],$F133,DADOS_MercadoBase[Posto],$G133)),2),0) -> 0 | K133: =IFERROR(ROUND((AVERAGEIFS(DADOS_MercadoBase[TUSD/KW],DADOS_MercadoBase[TipoMercado],$A$3,DADOS_MercadoBase[OPÇÃO],$A$57,DADOS_MercadoBase[Subgrupo],$A133,DADOS_MercadoBase[Modalidade],$B133,DADOS_MercadoBase[Classe],$D133,DADOS_MercadoBase[Subclasse],$E133,DADOS_MercadoBase[Detalhe],$F133,DADOS_MercadoBase[Posto],$G133)),2),0) -> 0 | L133: =IFERROR(ROUND((AVERAGEIFS(DADOS_MercadoBase[TUSD/MWh],DADOS_MercadoBase[TipoMercado],$A$3,DADOS_MercadoBase[OPÇÃO],$A$57,DADOS_MercadoBase[Subgrupo],$A133,DADOS_MercadoBase[Modalidade],$B133,DADOS_MercadoBase[Classe],$D133,DADOS_MercadoBase[Subclasse],$E133,DADOS_MercadoBase[Detalhe],$F133,DADOS_MercadoBase[Posto],$G133)),2),0) -> 0 | M133: =IFERROR(ROUND((AVERAGEIFS(DADOS_MercadoBase[TE],DADOS_MercadoBase[TipoMercado],$A$3,DADOS_MercadoBase[OPÇÃO],$A$57,DADOS_MercadoBase[Subgrupo],$A133,DADOS_MercadoBase[Modalidade],$B133,DADOS_MercadoBase[Classe],$D133,DADOS_MercadoBase[Subclasse],$E133,DADOS_MercadoBase[Detalhe],$F133,DADOS_MercadoBase[Posto],$G133)),2),0) -> 0
A134: A4 | B134: Azul | C134: Azul | D134: Comercial | E134: Não se aplica | F134: Não se aplica | G134: Fora ponta | H134: =IFERROR(ROUND((AVERAGEIFS(DADOS_MercadoBase[Tar_PTUSD],DADOS_MercadoBase[TipoMercado],$A$3,DADOS_MercadoBase[OPÇÃO],$A$57,DADOS_MercadoBase[Subgrupo],$A134,DADOS_MercadoBase[Modalidade],$B134,DADOS_MercadoBase[Classe],$D134,DADOS_MercadoBase[Subclasse],$E134,DADOS_MercadoBase[Detalhe],$F134,DADOS_MercadoBase[Posto],$G134)),2),0) -> 0 | I134: =IFERROR(ROUND((AVERAGEIFS(DADOS_MercadoBase[Tar_ETUSD],DADOS_MercadoBase[TipoMercado],$A$3,DADOS_MercadoBase[OPÇÃO],$A$57,DADOS_MercadoBase[Subgrupo],$A134,DADOS_MercadoBase[Modalidade],$B134,DADOS_MercadoBase[Classe],$D134,DADOS_MercadoBase[Subclasse],$E134,DADOS_MercadoBase[Detalhe],$F134,DADOS_MercadoBase[Posto],$G134)),2),0) -> 0 | J134: =IFERROR(ROUND((AVERAGEIFS(DADOS_MercadoBase[Tar_ETE],DADOS_MercadoBase[TipoMercado],$A$3,DADOS_MercadoBase[OPÇÃO],$A$57,DADOS_MercadoBase[Subgrupo],$A134,DADOS_MercadoBase[Modalidade],$B134,DADOS_MercadoBase[Classe],$D134,DADOS_MercadoBase[Subclasse],$E134,DADOS_MercadoBase[Detalhe],$F134,DADOS_MercadoBase[Posto],$G134)),2),0) -> 0 | K134: =IFERROR(ROUND((AVERAGEIFS(DADOS_MercadoBase[TUSD/KW],DADOS_MercadoBase[TipoMercado],$A$3,DADOS_MercadoBase[OPÇÃO],$A$57,DADOS_MercadoBase[Subgrupo],$A134,DADOS_MercadoBase[Modalidade],$B134,DADOS_MercadoBase[Classe],$D134,DADOS_MercadoBase[Subclasse],$E134,DADOS_MercadoBase[Detalhe],$F134,DADOS_MercadoBase[Posto],$G134)),2),0) -> 0 | L134: =IFERROR(ROUND((AVERAGEIFS(DADOS_MercadoBase[TUSD/MWh],DADOS_MercadoBase[TipoMercado],$A$3,DADOS_MercadoBase[OPÇÃO],$A$57,DADOS_MercadoBase[Subgrupo],$A134,DADOS_MercadoBase[Modalidade],$B134,DADOS_MercadoBase[Classe],$D134,DADOS_MercadoBase[Subclasse],$E134,DADOS_MercadoBase[Detalhe],$F134,DADOS_MercadoBase[Posto],$G134)),2),0) -> 0 | M134: =IFERROR(ROUND((AVERAGEIFS(DADOS_MercadoBase[TE],DADOS_MercadoBase[TipoMercado],$A$3,DADOS_MercadoBase[OPÇÃO],$A$57,DADOS_MercadoBase[Subgrupo],$A134,DADOS_MercadoBase[Modalidade],$B134,DADOS_MercadoBase[Classe],$D134,DADOS_MercadoBase[Subclasse],$E134,DADOS_MercadoBase[Detalhe],$F134,DADOS_MercadoBase[Posto],$G134)),2),0) -> 0
A135: A4 | B135: Azul | C135: Azul | D135: Comercial | E135: Não se aplica | F135: Não se aplica | G135: Não se aplica | H135: =IFERROR(ROUND((AVERAGEIFS(DADOS_MercadoBase[Tar_PTUSD],DADOS_MercadoBase[TipoMercado],$A$3,DADOS_MercadoBase[OPÇÃO],$A$57,DADOS_MercadoBase[Subgrupo],$A135,DADOS_MercadoBase[Modalidade],$B135,DADOS_MercadoBase[Classe],$D135,DADOS_MercadoBase[Subclasse],$E135,DADOS_MercadoBase[Detalhe],$F135,DADOS_MercadoBase[Posto],$G135)),2),0) -> 0 | I135: =IFERROR(ROUND((AVERAGEIFS(DADOS_MercadoBase[Tar_ETUSD],DADOS_MercadoBase[TipoMercado],$A$3,DADOS_MercadoBase[OPÇÃO],$A$57,DADOS_MercadoBase[Subgrupo],$A135,DADOS_MercadoBase[Modalidade],$B135,DADOS_MercadoBase[Classe],$D135,DADOS_MercadoBase[Subclasse],$E135,DADOS_MercadoBase[Detalhe],$F135,DADOS_MercadoBase[Posto],$G135)),2),0) -> 0 | J135: =IFERROR(ROUND((AVERAGEIFS(DADOS_MercadoBase[Tar_ETE],DADOS_MercadoBase[TipoMercado],$A$3,DADOS_MercadoBase[OPÇÃO],$A$57,DADOS_MercadoBase[Subgrupo],$A135,DADOS_MercadoBase[Modalidade],$B135,DADOS_MercadoBase[Classe],$D135,DADOS_MercadoBase[Subclasse],$E135,DADOS_MercadoBase[Detalhe],$F135,DADOS_MercadoBase[Posto],$G135)),2),0) -> 0 | K135: =IFERROR(ROUND((AVERAGEIFS(DADOS_MercadoBase[TUSD/KW],DADOS_MercadoBase[TipoMercado],$A$3,DADOS_MercadoBase[OPÇÃO],$A$57,DADOS_MercadoBase[Subgrupo],$A135,DADOS_MercadoBase[Modalidade],$B135,DADOS_MercadoBase[Classe],$D135,DADOS_MercadoBase[Subclasse],$E135,DADOS_MercadoBase[Detalhe],$F135,DADOS_MercadoBase[Posto],$G135)),2),0) -> 0 | L135: =IFERROR(ROUND((AVERAGEIFS(DADOS_MercadoBase[TUSD/MWh],DADOS_MercadoBase[TipoMercado],$A$3,DADOS_MercadoBase[OPÇÃO],$A$57,DADOS_MercadoBase[Subgrupo],$A135,DADOS_MercadoBase[Modalidade],$B135,DADOS_MercadoBase[Classe],$D135,DADOS_MercadoBase[Subclasse],$E135,DADOS_MercadoBase[Detalhe],$F135,DADOS_MercadoBase[Posto],$G135)),2),0) -> 0 | M135: =IFERROR(ROUND((AVERAGEIFS(DADOS_MercadoBase[TE],DADOS_MercadoBase[TipoMercado],$A$3,DADOS_MercadoBase[OPÇÃO],$A$57,DADOS_MercadoBase[Subgrupo],$A135,DADOS_MercadoBase[Modalidade],$B135,DADOS_MercadoBase[Classe],$D135,DADOS_MercadoBase[Subclasse],$E135,DADOS_MercadoBase[Detalhe],$F135,DADOS_MercadoBase[Posto],$G135)),2),0) -> 0
A136: A4 | B136: Azul | C136: Azul | D136: Consumo próprio | E136: Não se aplica | F136: Não se aplica | G136: Ponta | H136: =IFERROR(ROUND((AVERAGEIFS(DADOS_MercadoBase[Tar_PTUSD],DADOS_MercadoBase[TipoMercado],$A$3,DADOS_MercadoBase[OPÇÃO],$A$57,DADOS_MercadoBase[Subgrupo],$A136,DADOS_MercadoBase[Modalidade],$B136,DADOS_MercadoBase[Classe],$D136,DADOS_MercadoBase[Subclasse],$E136,DADOS_MercadoBase[Detalhe],$F136,DADOS_MercadoBase[Posto],$G136)),2),0) -> 0 | I136: =IFERROR(ROUND((AVERAGEIFS(DADOS_MercadoBase[Tar_ETUSD],DADOS_MercadoBase[TipoMercado],$A$3,DADOS_MercadoBase[OPÇÃO],$A$57,DADOS_MercadoBase[Subgrupo],$A136,DADOS_MercadoBase[Modalidade],$B136,DADOS_MercadoBase[Classe],$D136,DADOS_MercadoBase[Subclasse],$E136,DADOS_MercadoBase[Detalhe],$F136,DADOS_MercadoBase[Posto],$G136)),2),0) -> 0 | J136: =IFERROR(ROUND((AVERAGEIFS(DADOS_MercadoBase[Tar_ETE],DADOS_MercadoBase[TipoMercado],$A$3,DADOS_MercadoBase[OPÇÃO],$A$57,DADOS_MercadoBase[Subgrupo],$A136,DADOS_MercadoBase[Modalidade],$B136,DADOS_MercadoBase[Classe],$D136,DADOS_MercadoBase[Subclasse],$E136,DADOS_MercadoBase[Detalhe],$F136,DADOS_MercadoBase[Posto],$G136)),2),0) -> 0 | K136: =IFERROR(ROUND((AVERAGEIFS(DADOS_MercadoBase[TUSD/KW],DADOS_MercadoBase[TipoMercado],$A$3,DADOS_MercadoBase[OPÇÃO],$A$57,DADOS_MercadoBase[Subgrupo],$A136,DADOS_MercadoBase[Modalidade],$B136,DADOS_MercadoBase[Classe],$D136,DADOS_MercadoBase[Subclasse],$E136,DADOS_MercadoBase[Detalhe],$F136,DADOS_MercadoBase[Posto],$G136)),2),0) -> 0 | L136: =IFERROR(ROUND((AVERAGEIFS(DADOS_MercadoBase[TUSD/MWh],DADOS_MercadoBase[TipoMercado],$A$3,DADOS_MercadoBase[OPÇÃO],$A$57,DADOS_MercadoBase[Subgrupo],$A136,DADOS_MercadoBase[Modalidade],$B136,DADOS_MercadoBase[Classe],$D136,DADOS_MercadoBase[Subclasse],$E136,DADOS_MercadoBase[Detalhe],$F136,DADOS_MercadoBase[Posto],$G136)),2),0) -> 0 | M136: =IFERROR(ROUND((AVERAGEIFS(DADOS_MercadoBase[TE],DADOS_MercadoBase[TipoMercado],$A$3,DADOS_MercadoBase[OPÇÃO],$A$57,DADOS_MercadoBase[Subgrupo],$A136,DADOS_MercadoBase[Modalidade],$B136,DADOS_MercadoBase[Classe],$D136,DADOS_MercadoBase[Subclasse],$E136,DADOS_MercadoBase[Detalhe],$F136,DADOS_MercadoBase[Posto],$G136)),2),0) -> 0
A137: A4 | B137: Azul | C137: Azul | D137: Consumo próprio | E137: Não se aplica | F137: Não se aplica | G137: Fora ponta | H137: =IFERROR(ROUND((AVERAGEIFS(DADOS_MercadoBase[Tar_PTUSD],DADOS_MercadoBase[TipoMercado],$A$3,DADOS_MercadoBase[OPÇÃO],$A$57,DADOS_MercadoBase[Subgrupo],$A137,DADOS_MercadoBase[Modalidade],$B137,DADOS_MercadoBase[Classe],$D137,DADOS_MercadoBase[Subclasse],$E137,DADOS_MercadoBase[Detalhe],$F137,DADOS_MercadoBase[Posto],$G137)),2),0) -> 0 | I137: =IFERROR(ROUND((AVERAGEIFS(DADOS_MercadoBase[Tar_ETUSD],DADOS_MercadoBase[TipoMercado],$A$3,DADOS_MercadoBase[OPÇÃO],$A$57,DADOS_MercadoBase[Subgrupo],$A137,DADOS_MercadoBase[Modalidade],$B137,DADOS_MercadoBase[Classe],$D137,DADOS_MercadoBase[Subclasse],$E137,DADOS_MercadoBase[Detalhe],$F137,DADOS_MercadoBase[Posto],$G137)),2),0) -> 0 | J137: =IFERROR(ROUND((AVERAGEIFS(DADOS_MercadoBase[Tar_ETE],DADOS_MercadoBase[TipoMercado],$A$3,DADOS_MercadoBase[OPÇÃO],$A$57,DADOS_MercadoBase[Subgrupo],$A137,DADOS_MercadoBase[Modalidade],$B137,DADOS_MercadoBase[Classe],$D137,DADOS_MercadoBase[Subclasse],$E137,DADOS_MercadoBase[Detalhe],$F137,DADOS_MercadoBase[Posto],$G137)),2),0) -> 0 | K137: =IFERROR(ROUND((AVERAGEIFS(DADOS_MercadoBase[TUSD/KW],DADOS_MercadoBase[TipoMercado],$A$3,DADOS_MercadoBase[OPÇÃO],$A$57,DADOS_MercadoBase[Subgrupo],$A137,DADOS_MercadoBase[Modalidade],$B137,DADOS_MercadoBase[Classe],$D137,DADOS_MercadoBase[Subclasse],$E137,DADOS_MercadoBase[Detalhe],$F137,DADOS_MercadoBase[Posto],$G137)),2),0) -> 0 | L137: =IFERROR(ROUND((AVERAGEIFS(DADOS_MercadoBase[TUSD/MWh],DADOS_MercadoBase[TipoMercado],$A$3,DADOS_MercadoBase[OPÇÃO],$A$57,DADOS_MercadoBase[Subgrupo],$A137,DADOS_MercadoBase[Modalidade],$B137,DADOS_MercadoBase[Classe],$D137,DADOS_MercadoBase[Subclasse],$E137,DADOS_MercadoBase[Detalhe],$F137,DADOS_MercadoBase[Posto],$G137)),2),0) -> 0 | M137: =IFERROR(ROUND((AVERAGEIFS(DADOS_MercadoBase[TE],DADOS_MercadoBase[TipoMercado],$A$3,DADOS_MercadoBase[OPÇÃO],$A$57,DADOS_MercadoBase[Subgrupo],$A137,DADOS_MercadoBase[Modalidade],$B137,DADOS_MercadoBase[Classe],$D137,DADOS_MercadoBase[Subclasse],$E137,DADOS_MercadoBase[Detalhe],$F137,DADOS_MercadoBase[Posto],$G137)),2),0) -> 0
A138: A4 | B138: Azul | C138: Azul | D138: Consumo próprio | E138: Não se aplica | F138: Não se aplica | G138: Não se aplica | H138: =IFERROR(ROUND((AVERAGEIFS(DADOS_MercadoBase[Tar_PTUSD],DADOS_MercadoBase[TipoMercado],$A$3,DADOS_MercadoBase[OPÇÃO],$A$57,DADOS_MercadoBase[Subgrupo],$A138,DADOS_MercadoBase[Modalidade],$B138,DADOS_MercadoBase[Classe],$D138,DADOS_MercadoBase[Subclasse],$E138,DADOS_MercadoBase[Detalhe],$F138,DADOS_MercadoBase[Posto],$G138)),2),0) -> 0 | I138: =IFERROR(ROUND((AVERAGEIFS(DADOS_MercadoBase[Tar_ETUSD],DADOS_MercadoBase[TipoMercado],$A$3,DADOS_MercadoBase[OPÇÃO],$A$57,DADOS_MercadoBase[Subgrupo],$A138,DADOS_MercadoBase[Modalidade],$B138,DADOS_MercadoBase[Classe],$D138,DADOS_MercadoBase[Subclasse],$E138,DADOS_MercadoBase[Detalhe],$F138,DADOS_MercadoBase[Posto],$G138)),2),0) -> 0 | J138: =IFERROR(ROUND((AVERAGEIFS(DADOS_MercadoBase[Tar_ETE],DADOS_MercadoBase[TipoMercado],$A$3,DADOS_MercadoBase[OPÇÃO],$A$57,DADOS_MercadoBase[Subgrupo],$A138,DADOS_MercadoBase[Modalidade],$B138,DADOS_MercadoBase[Classe],$D138,DADOS_MercadoBase[Subclasse],$E138,DADOS_MercadoBase[Detalhe],$F138,DADOS_MercadoBase[Posto],$G138)),2),0) -> 0 | K138: =IFERROR(ROUND((AVERAGEIFS(DADOS_MercadoBase[TUSD/KW],DADOS_MercadoBase[TipoMercado],$A$3,DADOS_MercadoBase[OPÇÃO],$A$57,DADOS_MercadoBase[Subgrupo],$A138,DADOS_MercadoBase[Modalidade],$B138,DADOS_MercadoBase[Classe],$D138,DADOS_MercadoBase[Subclasse],$E138,DADOS_MercadoBase[Detalhe],$F138,DADOS_MercadoBase[Posto],$G138)),2),0) -> 0 | L138: =IFERROR(ROUND((AVERAGEIFS(DADOS_MercadoBase[TUSD/MWh],DADOS_MercadoBase[TipoMercado],$A$3,DADOS_MercadoBase[OPÇÃO],$A$57,DADOS_MercadoBase[Subgrupo],$A138,DADOS_MercadoBase[Modalidade],$B138,DADOS_MercadoBase[Classe],$D138,DADOS_MercadoBase[Subclasse],$E138,DADOS_MercadoBase[Detalhe],$F138,DADOS_MercadoBase[Posto],$G138)),2),0) -> 0 | M138: =IFERROR(ROUND((AVERAGEIFS(DADOS_MercadoBase[TE],DADOS_MercadoBase[TipoMercado],$A$3,DADOS_MercadoBase[OPÇÃO],$A$57,DADOS_MercadoBase[Subgrupo],$A138,DADOS_MercadoBase[Modalidade],$B138,DADOS_MercadoBase[Classe],$D138,DADOS_MercadoBase[Subclasse],$E138,DADOS_MercadoBase[Detalhe],$F138,DADOS_MercadoBase[Posto],$G138)),2),0) -> 0
A139: A4 | B139: Azul | C139: Azul APE | D139: Industrial | E139: Não se aplica | F139: APE | G139: Ponta | H139: =IFERROR(ROUND((AVERAGEIFS(DADOS_MercadoBase[Tar_PTUSD],DADOS_MercadoBase[TipoMercado],$A$3,DADOS_MercadoBase[OPÇÃO],$A$57,DADOS_MercadoBase[Subgrupo],$A139,DADOS_MercadoBase[Modalidade],$B139,DADOS_MercadoBase[Classe],$D139,DADOS_MercadoBase[Subclasse],$E139,DADOS_MercadoBase[Detalhe],$F139,DADOS_MercadoBase[Posto],$G139)),2),0) -> 0 | I139: =IFERROR(ROUND((AVERAGEIFS(DADOS_MercadoBase[Tar_ETUSD],DADOS_MercadoBase[TipoMercado],$A$3,DADOS_MercadoBase[OPÇÃO],$A$57,DADOS_MercadoBase[Subgrupo],$A139,DADOS_MercadoBase[Modalidade],$B139,DADOS_MercadoBase[Classe],$D139,DADOS_MercadoBase[Subclasse],$E139,DADOS_MercadoBase[Detalhe],$F139,DADOS_MercadoBase[Posto],$G139)),2),0) -> 0 | J139: =IFERROR(ROUND((AVERAGEIFS(DADOS_MercadoBase[Tar_ETE],DADOS_MercadoBase[TipoMercado],$A$3,DADOS_MercadoBase[OPÇÃO],$A$57,DADOS_MercadoBase[Subgrupo],$A139,DADOS_MercadoBase[Modalidade],$B139,DADOS_MercadoBase[Classe],$D139,DADOS_MercadoBase[Subclasse],$E139,DADOS_MercadoBase[Detalhe],$F139,DADOS_MercadoBase[Posto],$G139)),2),0) -> 0 | K139: =IFERROR(ROUND((AVERAGEIFS(DADOS_MercadoBase[TUSD/KW],DADOS_MercadoBase[TipoMercado],$A$3,DADOS_MercadoBase[OPÇÃO],$A$57,DADOS_MercadoBase[Subgrupo],$A139,DADOS_MercadoBase[Modalidade],$B139,DADOS_MercadoBase[Classe],$D139,DADOS_MercadoBase[Subclasse],$E139,DADOS_MercadoBase[Detalhe],$F139,DADOS_MercadoBase[Posto],$G139)),2),0) -> 0 | L139: =IFERROR(ROUND((AVERAGEIFS(DADOS_MercadoBase[TUSD/MWh],DADOS_MercadoBase[TipoMercado],$A$3,DADOS_MercadoBase[OPÇÃO],$A$57,DADOS_MercadoBase[Subgrupo],$A139,DADOS_MercadoBase[Modalidade],$B139,DADOS_MercadoBase[Classe],$D139,DADOS_MercadoBase[Subclasse],$E139,DADOS_MercadoBase[Detalhe],$F139,DADOS_MercadoBase[Posto],$G139)),2),0) -> 0 | M139: =IFERROR(ROUND((AVERAGEIFS(DADOS_MercadoBase[TE],DADOS_MercadoBase[TipoMercado],$A$3,DADOS_MercadoBase[OPÇÃO],$A$57,DADOS_MercadoBase[Subgrupo],$A139,DADOS_MercadoBase[Modalidade],$B139,DADOS_MercadoBase[Classe],$D139,DADOS_MercadoBase[Subclasse],$E139,DADOS_MercadoBase[Detalhe],$F139,DADOS_MercadoBase[Posto],$G139)),2),0) -> 0
A140: A4 | B140: Azul | C140: Azul APE | D140: Industrial | E140: Não se aplica | F140: APE | G140: Fora ponta | H140: =IFERROR(ROUND((AVERAGEIFS(DADOS_MercadoBase[Tar_PTUSD],DADOS_MercadoBase[TipoMercado],$A$3,DADOS_MercadoBase[OPÇÃO],$A$57,DADOS_MercadoBase[Subgrupo],$A140,DADOS_MercadoBase[Modalidade],$B140,DADOS_MercadoBase[Classe],$D140,DADOS_MercadoBase[Subclasse],$E140,DADOS_MercadoBase[Detalhe],$F140,DADOS_MercadoBase[Posto],$G140)),2),0) -> 0 | I140: =IFERROR(ROUND((AVERAGEIFS(DADOS_MercadoBase[Tar_ETUSD],DADOS_MercadoBase[TipoMercado],$A$3,DADOS_MercadoBase[OPÇÃO],$A$57,DADOS_MercadoBase[Subgrupo],$A140,DADOS_MercadoBase[Modalidade],$B140,DADOS_MercadoBase[Classe],$D140,DADOS_MercadoBase[Subclasse],$E140,DADOS_MercadoBase[Detalhe],$F140,DADOS_MercadoBase[Posto],$G140)),2),0) -> 0 | J140: =IFERROR(ROUND((AVERAGEIFS(DADOS_MercadoBase[Tar_ETE],DADOS_MercadoBase[TipoMercado],$A$3,DADOS_MercadoBase[OPÇÃO],$A$57,DADOS_MercadoBase[Subgrupo],$A140,DADOS_MercadoBase[Modalidade],$B140,DADOS_MercadoBase[Classe],$D140,DADOS_MercadoBase[Subclasse],$E140,DADOS_MercadoBase[Detalhe],$F140,DADOS_MercadoBase[Posto],$G140)),2),0) -> 0 | K140: =IFERROR(ROUND((AVERAGEIFS(DADOS_MercadoBase[TUSD/KW],DADOS_MercadoBase[TipoMercado],$A$3,DADOS_MercadoBase[OPÇÃO],$A$57,DADOS_MercadoBase[Subgrupo],$A140,DADOS_MercadoBase[Modalidade],$B140,DADOS_MercadoBase[Classe],$D140,DADOS_MercadoBase[Subclasse],$E140,DADOS_MercadoBase[Detalhe],$F140,DADOS_MercadoBase[Posto],$G140)),2),0) -> 0 | L140: =IFERROR(ROUND((AVERAGEIFS(DADOS_MercadoBase[TUSD/MWh],DADOS_MercadoBase[TipoMercado],$A$3,DADOS_MercadoBase[OPÇÃO],$A$57,DADOS_MercadoBase[Subgrupo],$A140,DADOS_MercadoBase[Modalidade],$B140,DADOS_MercadoBase[Classe],$D140,DADOS_MercadoBase[Subclasse],$E140,DADOS_MercadoBase[Detalhe],$F140,DADOS_MercadoBase[Posto],$G140)),2),0) -> 0 | M140: =IFERROR(ROUND((AVERAGEIFS(DADOS_MercadoBase[TE],DADOS_MercadoBase[TipoMercado],$A$3,DADOS_MercadoBase[OPÇÃO],$A$57,DADOS_MercadoBase[Subgrupo],$A140,DADOS_MercadoBase[Modalidade],$B140,DADOS_MercadoBase[Classe],$D140,DADOS_MercadoBase[Subclasse],$E140,DADOS_MercadoBase[Detalhe],$F140,DADOS_MercadoBase[Posto],$G140)),2),0) -> 0
A141: A4 | B141: Azul | C141: Azul APE | D141: Industrial | E141: Não se aplica | F141: APE | G141: Não se aplica | H141: =IFERROR(ROUND((AVERAGEIFS(DADOS_MercadoBase[Tar_PTUSD],DADOS_MercadoBase[TipoMercado],$A$3,DADOS_MercadoBase[OPÇÃO],$A$57,DADOS_MercadoBase[Subgrupo],$A141,DADOS_MercadoBase[Modalidade],$B141,DADOS_MercadoBase[Classe],$D141,DADOS_MercadoBase[Subclasse],$E141,DADOS_MercadoBase[Detalhe],$F141,DADOS_MercadoBase[Posto],$G141)),2),0) -> 0 | I141: =IFERROR(ROUND((AVERAGEIFS(DADOS_MercadoBase[Tar_ETUSD],DADOS_MercadoBase[TipoMercado],$A$3,DADOS_MercadoBase[OPÇÃO],$A$57,DADOS_MercadoBase[Subgrupo],$A141,DADOS_MercadoBase[Modalidade],$B141,DADOS_MercadoBase[Classe],$D141,DADOS_MercadoBase[Subclasse],$E141,DADOS_MercadoBase[Detalhe],$F141,DADOS_MercadoBase[Posto],$G141)),2),0) -> 0 | J141: =IFERROR(ROUND((AVERAGEIFS(DADOS_MercadoBase[Tar_ETE],DADOS_MercadoBase[TipoMercado],$A$3,DADOS_MercadoBase[OPÇÃO],$A$57,DADOS_MercadoBase[Subgrupo],$A141,DADOS_MercadoBase[Modalidade],$B141,DADOS_MercadoBase[Classe],$D141,DADOS_MercadoBase[Subclasse],$E141,DADOS_MercadoBase[Detalhe],$F141,DADOS_MercadoBase[Posto],$G141)),2),0) -> 0 | K141: =IFERROR(ROUND((AVERAGEIFS(DADOS_MercadoBase[TUSD/KW],DADOS_MercadoBase[TipoMercado],$A$3,DADOS_MercadoBase[OPÇÃO],$A$57,DADOS_MercadoBase[Subgrupo],$A141,DADOS_MercadoBase[Modalidade],$B141,DADOS_MercadoBase[Classe],$D141,DADOS_MercadoBase[Subclasse],$E141,DADOS_MercadoBase[Detalhe],$F141,DADOS_MercadoBase[Posto],$G141)),2),0) -> 0 | L141: =IFERROR(ROUND((AVERAGEIFS(DADOS_MercadoBase[TUSD/MWh],DADOS_MercadoBase[TipoMercado],$A$3,DADOS_MercadoBase[OPÇÃO],$A$57,DADOS_MercadoBase[Subgrupo],$A141,DADOS_MercadoBase[Modalidade],$B141,DADOS_MercadoBase[Classe],$D141,DADOS_MercadoBase[Subclasse],$E141,DADOS_MercadoBase[Detalhe],$F141,DADOS_MercadoBase[Posto],$G141)),2),0) -> 0 | M141: =IFERROR(ROUND((AVERAGEIFS(DADOS_MercadoBase[TE],DADOS_MercadoBase[TipoMercado],$A$3,DADOS_MercadoBase[OPÇÃO],$A$57,DADOS_MercadoBase[Subgrupo],$A141,DADOS_MercadoBase[Modalidade],$B141,DADOS_MercadoBase[Classe],$D141,DADOS_MercadoBase[Subclasse],$E141,DADOS_MercadoBase[Detalhe],$F141,DADOS_MercadoBase[Posto],$G141)),2),0) -> 0
A142: A4 | B142: Azul | D142: Industrial | E142: Não se aplica | F142: Fonte incentivada | G142: Ponta | H142: =IFERROR(ROUND((AVERAGEIFS(DADOS_MercadoBase[Tar_PTUSD],DADOS_MercadoBase[TipoMercado],$A$3,DADOS_MercadoBase[OPÇÃO],$A$57,DADOS_MercadoBase[Subgrupo],$A142,DADOS_MercadoBase[Modalidade],$B142,DADOS_MercadoBase[Classe],$D142,DADOS_MercadoBase[Subclasse],$E142,DADOS_MercadoBase[Detalhe],$F142,DADOS_MercadoBase[Posto],$G142)),2),0) -> 0 | I142: =IFERROR(ROUND((AVERAGEIFS(DADOS_MercadoBase[Tar_ETUSD],DADOS_MercadoBase[TipoMercado],$A$3,DADOS_MercadoBase[OPÇÃO],$A$57,DADOS_MercadoBase[Subgrupo],$A142,DADOS_MercadoBase[Modalidade],$B142,DADOS_MercadoBase[Classe],$D142,DADOS_MercadoBase[Subclasse],$E142,DADOS_MercadoBase[Detalhe],$F142,DADOS_MercadoBase[Posto],$G142)),2),0) -> 0 | J142: =IFERROR(ROUND((AVERAGEIFS(DADOS_MercadoBase[Tar_ETE],DADOS_MercadoBase[TipoMercado],$A$3,DADOS_MercadoBase[OPÇÃO],$A$57,DADOS_MercadoBase[Subgrupo],$A142,DADOS_MercadoBase[Modalidade],$B142,DADOS_MercadoBase[Classe],$D142,DADOS_MercadoBase[Subclasse],$E142,DADOS_MercadoBase[Detalhe],$F142,DADOS_MercadoBase[Posto],$G142)),2),0) -> 0 | K142: =IFERROR(ROUND((AVERAGEIFS(DADOS_MercadoBase[TUSD/KW],DADOS_MercadoBase[TipoMercado],$A$3,DADOS_MercadoBase[OPÇÃO],$A$57,DADOS_MercadoBase[Subgrupo],$A142,DADOS_MercadoBase[Modalidade],$B142,DADOS_MercadoBase[Classe],$D142,DADOS_MercadoBase[Subclasse],$E142,DADOS_MercadoBase[Detalhe],$F142,DADOS_MercadoBase[Posto],$G142)),2),0) -> 0 | L142: =IFERROR(ROUND((AVERAGEIFS(DADOS_MercadoBase[TUSD/MWh],DADOS_MercadoBase[TipoMercado],$A$3,DADOS_MercadoBase[OPÇÃO],$A$57,DADOS_MercadoBase[Subgrupo],$A142,DADOS_MercadoBase[Modalidade],$B142,DADOS_MercadoBase[Classe],$D142,DADOS_MercadoBase[Subclasse],$E142,DADOS_MercadoBase[Detalhe],$F142,DADOS_MercadoBase[Posto],$G142)),2),0) -> 0 | M142: =IFERROR(ROUND((AVERAGEIFS(DADOS_MercadoBase[TE],DADOS_MercadoBase[TipoMercado],$A$3,DADOS_MercadoBase[OPÇÃO],$A$57,DADOS_MercadoBase[Subgrupo],$A142,DADOS_MercadoBase[Modalidade],$B142,DADOS_MercadoBase[Classe],$D142,DADOS_MercadoBase[Subclasse],$E142,DADOS_MercadoBase[Detalhe],$F142,DADOS_MercadoBase[Posto],$G142)),2),0) -> 0
A143: A4 | B143: Azul | D143: Industrial | E143: Não se aplica | F143: Fonte incentivada | G143: Fora ponta | H143: =IFERROR(ROUND((AVERAGEIFS(DADOS_MercadoBase[Tar_PTUSD],DADOS_MercadoBase[TipoMercado],$A$3,DADOS_MercadoBase[OPÇÃO],$A$57,DADOS_MercadoBase[Subgrupo],$A143,DADOS_MercadoBase[Modalidade],$B143,DADOS_MercadoBase[Classe],$D143,DADOS_MercadoBase[Subclasse],$E143,DADOS_MercadoBase[Detalhe],$F143,DADOS_MercadoBase[Posto],$G143)),2),0) -> 0 | I143: =IFERROR(ROUND((AVERAGEIFS(DADOS_MercadoBase[Tar_ETUSD],DADOS_MercadoBase[TipoMercado],$A$3,DADOS_MercadoBase[OPÇÃO],$A$57,DADOS_MercadoBase[Subgrupo],$A143,DADOS_MercadoBase[Modalidade],$B143,DADOS_MercadoBase[Classe],$D143,DADOS_MercadoBase[Subclasse],$E143,DADOS_MercadoBase[Detalhe],$F143,DADOS_MercadoBase[Posto],$G143)),2),0) -> 0 | J143: =IFERROR(ROUND((AVERAGEIFS(DADOS_MercadoBase[Tar_ETE],DADOS_MercadoBase[TipoMercado],$A$3,DADOS_MercadoBase[OPÇÃO],$A$57,DADOS_MercadoBase[Subgrupo],$A143,DADOS_MercadoBase[Modalidade],$B143,DADOS_MercadoBase[Classe],$D143,DADOS_MercadoBase[Subclasse],$E143,DADOS_MercadoBase[Detalhe],$F143,DADOS_MercadoBase[Posto],$G143)),2),0) -> 0 | K143: =IFERROR(ROUND((AVERAGEIFS(DADOS_MercadoBase[TUSD/KW],DADOS_MercadoBase[TipoMercado],$A$3,DADOS_MercadoBase[OPÇÃO],$A$57,DADOS_MercadoBase[Subgrupo],$A143,DADOS_MercadoBase[Modalidade],$B143,DADOS_MercadoBase[Classe],$D143,DADOS_MercadoBase[Subclasse],$E143,DADOS_MercadoBase[Detalhe],$F143,DADOS_MercadoBase[Posto],$G143)),2),0) -> 0 | L143: =IFERROR(ROUND((AVERAGEIFS(DADOS_MercadoBase[TUSD/MWh],DADOS_MercadoBase[TipoMercado],$A$3,DADOS_MercadoBase[OPÇÃO],$A$57,DADOS_MercadoBase[Subgrupo],$A143,DADOS_MercadoBase[Modalidade],$B143,DADOS_MercadoBase[Classe],$D143,DADOS_MercadoBase[Subclasse],$E143,DADOS_MercadoBase[Detalhe],$F143,DADOS_MercadoBase[Posto],$G143)),2),0) -> 0 | M143: =IFERROR(ROUND((AVERAGEIFS(DADOS_MercadoBase[TE],DADOS_MercadoBase[TipoMercado],$A$3,DADOS_MercadoBase[OPÇÃO],$A$57,DADOS_MercadoBase[Subgrupo],$A143,DADOS_MercadoBase[Modalidade],$B143,DADOS_MercadoBase[Classe],$D143,DADOS_MercadoBase[Subclasse],$E143,DADOS_MercadoBase[Detalhe],$F143,DADOS_MercadoBase[Posto],$G143)),2),0) -> 0
A144: A4 | B144: Azul | D144: Industrial | E144: Não se aplica | F144: Fonte incentivada | G144: Não se aplica | H144: =IFERROR(ROUND((AVERAGEIFS(DADOS_MercadoBase[Tar_PTUSD],DADOS_MercadoBase[TipoMercado],$A$3,DADOS_MercadoBase[OPÇÃO],$A$57,DADOS_MercadoBase[Subgrupo],$A144,DADOS_MercadoBase[Modalidade],$B144,DADOS_MercadoBase[Classe],$D144,DADOS_MercadoBase[Subclasse],$E144,DADOS_MercadoBase[Detalhe],$F144,DADOS_MercadoBase[Posto],$G144)),2),0) -> 0 | I144: =IFERROR(ROUND((AVERAGEIFS(DADOS_MercadoBase[Tar_ETUSD],DADOS_MercadoBase[TipoMercado],$A$3,DADOS_MercadoBase[OPÇÃO],$A$57,DADOS_MercadoBase[Subgrupo],$A144,DADOS_MercadoBase[Modalidade],$B144,DADOS_MercadoBase[Classe],$D144,DADOS_MercadoBase[Subclasse],$E144,DADOS_MercadoBase[Detalhe],$F144,DADOS_MercadoBase[Posto],$G144)),2),0) -> 0 | J144: =IFERROR(ROUND((AVERAGEIFS(DADOS_MercadoBase[Tar_ETE],DADOS_MercadoBase[TipoMercado],$A$3,DADOS_MercadoBase[OPÇÃO],$A$57,DADOS_MercadoBase[Subgrupo],$A144,DADOS_MercadoBase[Modalidade],$B144,DADOS_MercadoBase[Classe],$D144,DADOS_MercadoBase[Subclasse],$E144,DADOS_MercadoBase[Detalhe],$F144,DADOS_MercadoBase[Posto],$G144)),2),0) -> 0 | K144: =IFERROR(ROUND((AVERAGEIFS(DADOS_MercadoBase[TUSD/KW],DADOS_MercadoBase[TipoMercado],$A$3,DADOS_MercadoBase[OPÇÃO],$A$57,DADOS_MercadoBase[Subgrupo],$A144,DADOS_MercadoBase[Modalidade],$B144,DADOS_MercadoBase[Classe],$D144,DADOS_MercadoBase[Subclasse],$E144,DADOS_MercadoBase[Detalhe],$F144,DADOS_MercadoBase[Posto],$G144)),2),0) -> 0 | L144: =IFERROR(ROUND((AVERAGEIFS(DADOS_MercadoBase[TUSD/MWh],DADOS_MercadoBase[TipoMercado],$A$3,DADOS_MercadoBase[OPÇÃO],$A$57,DADOS_MercadoBase[Subgrupo],$A144,DADOS_MercadoBase[Modalidade],$B144,DADOS_MercadoBase[Classe],$D144,DADOS_MercadoBase[Subclasse],$E144,DADOS_MercadoBase[Detalhe],$F144,DADOS_MercadoBase[Posto],$G144)),2),0) -> 0 | M144: =IFERROR(ROUND((AVERAGEIFS(DADOS_MercadoBase[TE],DADOS_MercadoBase[TipoMercado],$A$3,DADOS_MercadoBase[OPÇÃO],$A$57,DADOS_MercadoBase[Subgrupo],$A144,DADOS_MercadoBase[Modalidade],$B144,DADOS_MercadoBase[Classe],$D144,DADOS_MercadoBase[Subclasse],$E144,DADOS_MercadoBase[Detalhe],$F144,DADOS_MercadoBase[Posto],$G144)),2),0) -> 0
A145: A4 | B145: Azul | C145: Azul | D145: Industrial | E145: Não se aplica | F145: Não se aplica | G145: Ponta | H145: =IFERROR(ROUND((AVERAGEIFS(DADOS_MercadoBase[Tar_PTUSD],DADOS_MercadoBase[TipoMercado],$A$3,DADOS_MercadoBase[OPÇÃO],$A$57,DADOS_MercadoBase[Subgrupo],$A145,DADOS_MercadoBase[Modalidade],$B145,DADOS_MercadoBase[Classe],$D145,DADOS_MercadoBase[Subclasse],$E145,DADOS_MercadoBase[Detalhe],$F145,DADOS_MercadoBase[Posto],$G145)),2),0) -> 0 | I145: =IFERROR(ROUND((AVERAGEIFS(DADOS_MercadoBase[Tar_ETUSD],DADOS_MercadoBase[TipoMercado],$A$3,DADOS_MercadoBase[OPÇÃO],$A$57,DADOS_MercadoBase[Subgrupo],$A145,DADOS_MercadoBase[Modalidade],$B145,DADOS_MercadoBase[Classe],$D145,DADOS_MercadoBase[Subclasse],$E145,DADOS_MercadoBase[Detalhe],$F145,DADOS_MercadoBase[Posto],$G145)),2),0) -> 0 | J145: =IFERROR(ROUND((AVERAGEIFS(DADOS_MercadoBase[Tar_ETE],DADOS_MercadoBase[TipoMercado],$A$3,DADOS_MercadoBase[OPÇÃO],$A$57,DADOS_MercadoBase[Subgrupo],$A145,DADOS_MercadoBase[Modalidade],$B145,DADOS_MercadoBase[Classe],$D145,DADOS_MercadoBase[Subclasse],$E145,DADOS_MercadoBase[Detalhe],$F145,DADOS_MercadoBase[Posto],$G145)),2),0) -> 0 | K145: =IFERROR(ROUND((AVERAGEIFS(DADOS_MercadoBase[TUSD/KW],DADOS_MercadoBase[TipoMercado],$A$3,DADOS_MercadoBase[OPÇÃO],$A$57,DADOS_MercadoBase[Subgrupo],$A145,DADOS_MercadoBase[Modalidade],$B145,DADOS_MercadoBase[Classe],$D145,DADOS_MercadoBase[Subclasse],$E145,DADOS_MercadoBase[Detalhe],$F145,DADOS_MercadoBase[Posto],$G145)),2),0) -> 0 | L145: =IFERROR(ROUND((AVERAGEIFS(DADOS_MercadoBase[TUSD/MWh],DADOS_MercadoBase[TipoMercado],$A$3,DADOS_MercadoBase[OPÇÃO],$A$57,DADOS_MercadoBase[Subgrupo],$A145,DADOS_MercadoBase[Modalidade],$B145,DADOS_MercadoBase[Classe],$D145,DADOS_MercadoBase[Subclasse],$E145,DADOS_MercadoBase[Detalhe],$F145,DADOS_MercadoBase[Posto],$G145)),2),0) -> 0 | M145: =IFERROR(ROUND((AVERAGEIFS(DADOS_MercadoBase[TE],DADOS_MercadoBase[TipoMercado],$A$3,DADOS_MercadoBase[OPÇÃO],$A$57,DADOS_MercadoBase[Subgrupo],$A145,DADOS_MercadoBase[Modalidade],$B145,DADOS_MercadoBase[Classe],$D145,DADOS_MercadoBase[Subclasse],$E145,DADOS_MercadoBase[Detalhe],$F145,DADOS_MercadoBase[Posto],$G145)),2),0) -> 0
A146: A4 | B146: Azul | C146: Azul | D146: Industrial | E146: Não se aplica | F146: Não se aplica | G146: Fora ponta | H146: =IFERROR(ROUND((AVERAGEIFS(DADOS_MercadoBase[Tar_PTUSD],DADOS_MercadoBase[TipoMercado],$A$3,DADOS_MercadoBase[OPÇÃO],$A$57,DADOS_MercadoBase[Subgrupo],$A146,DADOS_MercadoBase[Modalidade],$B146,DADOS_MercadoBase[Classe],$D146,DADOS_MercadoBase[Subclasse],$E146,DADOS_MercadoBase[Detalhe],$F146,DADOS_MercadoBase[Posto],$G146)),2),0) -> 0 | I146: =IFERROR(ROUND((AVERAGEIFS(DADOS_MercadoBase[Tar_ETUSD],DADOS_MercadoBase[TipoMercado],$A$3,DADOS_MercadoBase[OPÇÃO],$A$57,DADOS_MercadoBase[Subgrupo],$A146,DADOS_MercadoBase[Modalidade],$B146,DADOS_MercadoBase[Classe],$D146,DADOS_MercadoBase[Subclasse],$E146,DADOS_MercadoBase[Detalhe],$F146,DADOS_MercadoBase[Posto],$G146)),2),0) -> 0 | J146: =IFERROR(ROUND((AVERAGEIFS(DADOS_MercadoBase[Tar_ETE],DADOS_MercadoBase[TipoMercado],$A$3,DADOS_MercadoBase[OPÇÃO],$A$57,DADOS_MercadoBase[Subgrupo],$A146,DADOS_MercadoBase[Modalidade],$B146,DADOS_MercadoBase[Classe],$D146,DADOS_MercadoBase[Subclasse],$E146,DADOS_MercadoBase[Detalhe],$F146,DADOS_MercadoBase[Posto],$G146)),2),0) -> 0 | K146: =IFERROR(ROUND((AVERAGEIFS(DADOS_MercadoBase[TUSD/KW],DADOS_MercadoBase[TipoMercado],$A$3,DADOS_MercadoBase[OPÇÃO],$A$57,DADOS_MercadoBase[Subgrupo],$A146,DADOS_MercadoBase[Modalidade],$B146,DADOS_MercadoBase[Classe],$D146,DADOS_MercadoBase[Subclasse],$E146,DADOS_MercadoBase[Detalhe],$F146,DADOS_MercadoBase[Posto],$G146)),2),0) -> 0 | L146: =IFERROR(ROUND((AVERAGEIFS(DADOS_MercadoBase[TUSD/MWh],DADOS_MercadoBase[TipoMercado],$A$3,DADOS_MercadoBase[OPÇÃO],$A$57,DADOS_MercadoBase[Subgrupo],$A146,DADOS_MercadoBase[Modalidade],$B146,DADOS_MercadoBase[Classe],$D146,DADOS_MercadoBase[Subclasse],$E146,DADOS_MercadoBase[Detalhe],$F146,DADOS_MercadoBase[Posto],$G146)),2),0) -> 0 | M146: =IFERROR(ROUND((AVERAGEIFS(DADOS_MercadoBase[TE],DADOS_MercadoBase[TipoMercado],$A$3,DADOS_MercadoBase[OPÇÃO],$A$57,DADOS_MercadoBase[Subgrupo],$A146,DADOS_MercadoBase[Modalidade],$B146,DADOS_MercadoBase[Classe],$D146,DADOS_MercadoBase[Subclasse],$E146,DADOS_MercadoBase[Detalhe],$F146,DADOS_MercadoBase[Posto],$G146)),2),0) -> 0
A147: A4 | B147: Azul | C147: Azul | D147: Industrial | E147: Não se aplica | F147: Não se aplica | G147: Não se aplica | H147: =IFERROR(ROUND((AVERAGEIFS(DADOS_MercadoBase[Tar_PTUSD],DADOS_MercadoBase[TipoMercado],$A$3,DADOS_MercadoBase[OPÇÃO],$A$57,DADOS_MercadoBase[Subgrupo],$A147,DADOS_MercadoBase[Modalidade],$B147,DADOS_MercadoBase[Classe],$D147,DADOS_MercadoBase[Subclasse],$E147,DADOS_MercadoBase[Detalhe],$F147,DADOS_MercadoBase[Posto],$G147)),2),0) -> 0 | I147: =IFERROR(ROUND((AVERAGEIFS(DADOS_MercadoBase[Tar_ETUSD],DADOS_MercadoBase[TipoMercado],$A$3,DADOS_MercadoBase[OPÇÃO],$A$57,DADOS_MercadoBase[Subgrupo],$A147,DADOS_MercadoBase[Modalidade],$B147,DADOS_MercadoBase[Classe],$D147,DADOS_MercadoBase[Subclasse],$E147,DADOS_MercadoBase[Detalhe],$F147,DADOS_MercadoBase[Posto],$G147)),2),0) -> 0 | J147: =IFERROR(ROUND((AVERAGEIFS(DADOS_MercadoBase[Tar_ETE],DADOS_MercadoBase[TipoMercado],$A$3,DADOS_MercadoBase[OPÇÃO],$A$57,DADOS_MercadoBase[Subgrupo],$A147,DADOS_MercadoBase[Modalidade],$B147,DADOS_MercadoBase[Classe],$D147,DADOS_MercadoBase[Subclasse],$E147,DADOS_MercadoBase[Detalhe],$F147,DADOS_MercadoBase[Posto],$G147)),2),0) -> 0 | K147: =IFERROR(ROUND((AVERAGEIFS(DADOS_MercadoBase[TUSD/KW],DADOS_MercadoBase[TipoMercado],$A$3,DADOS_MercadoBase[OPÇÃO],$A$57,DADOS_MercadoBase[Subgrupo],$A147,DADOS_MercadoBase[Modalidade],$B147,DADOS_MercadoBase[Classe],$D147,DADOS_MercadoBase[Subclasse],$E147,DADOS_MercadoBase[Detalhe],$F147,DADOS_MercadoBase[Posto],$G147)),2),0) -> 0 | L147: =IFERROR(ROUND((AVERAGEIFS(DADOS_MercadoBase[TUSD/MWh],DADOS_MercadoBase[TipoMercado],$A$3,DADOS_MercadoBase[OPÇÃO],$A$57,DADOS_MercadoBase[Subgrupo],$A147,DADOS_MercadoBase[Modalidade],$B147,DADOS_MercadoBase[Classe],$D147,DADOS_MercadoBase[Subclasse],$E147,DADOS_MercadoBase[Detalhe],$F147,DADOS_MercadoBase[Posto],$G147)),2),0) -> 0 | M147: =IFERROR(ROUND((AVERAGEIFS(DADOS_MercadoBase[TE],DADOS_MercadoBase[TipoMercado],$A$3,DADOS_MercadoBase[OPÇÃO],$A$57,DADOS_MercadoBase[Subgrupo],$A147,DADOS_MercadoBase[Modalidade],$B147,DADOS_MercadoBase[Classe],$D147,DADOS_MercadoBase[Subclasse],$E147,DADOS_MercadoBase[Detalhe],$F147,DADOS_MercadoBase[Posto],$G147)),2),0) -> 0
A148: A4 | B148: Azul | C148: Azul | D148: Poder público | E148: Não se aplica | F148: Não se aplica | G148: Ponta | H148: =IFERROR(ROUND((AVERAGEIFS(DADOS_MercadoBase[Tar_PTUSD],DADOS_MercadoBase[TipoMercado],$A$3,DADOS_MercadoBase[OPÇÃO],$A$57,DADOS_MercadoBase[Subgrupo],$A148,DADOS_MercadoBase[Modalidade],$B148,DADOS_MercadoBase[Classe],$D148,DADOS_MercadoBase[Subclasse],$E148,DADOS_MercadoBase[Detalhe],$F148,DADOS_MercadoBase[Posto],$G148)),2),0) -> 0 | I148: =IFERROR(ROUND((AVERAGEIFS(DADOS_MercadoBase[Tar_ETUSD],DADOS_MercadoBase[TipoMercado],$A$3,DADOS_MercadoBase[OPÇÃO],$A$57,DADOS_MercadoBase[Subgrupo],$A148,DADOS_MercadoBase[Modalidade],$B148,DADOS_MercadoBase[Classe],$D148,DADOS_MercadoBase[Subclasse],$E148,DADOS_MercadoBase[Detalhe],$F148,DADOS_MercadoBase[Posto],$G148)),2),0) -> 0 | J148: =IFERROR(ROUND((AVERAGEIFS(DADOS_MercadoBase[Tar_ETE],DADOS_MercadoBase[TipoMercado],$A$3,DADOS_MercadoBase[OPÇÃO],$A$57,DADOS_MercadoBase[Subgrupo],$A148,DADOS_MercadoBase[Modalidade],$B148,DADOS_MercadoBase[Classe],$D148,DADOS_MercadoBase[Subclasse],$E148,DADOS_MercadoBase[Detalhe],$F148,DADOS_MercadoBase[Posto],$G148)),2),0) -> 0 | K148: =IFERROR(ROUND((AVERAGEIFS(DADOS_MercadoBase[TUSD/KW],DADOS_MercadoBase[TipoMercado],$A$3,DADOS_MercadoBase[OPÇÃO],$A$57,DADOS_MercadoBase[Subgrupo],$A148,DADOS_MercadoBase[Modalidade],$B148,DADOS_MercadoBase[Classe],$D148,DADOS_MercadoBase[Subclasse],$E148,DADOS_MercadoBase[Detalhe],$F148,DADOS_MercadoBase[Posto],$G148)),2),0) -> 0 | L148: =IFERROR(ROUND((AVERAGEIFS(DADOS_MercadoBase[TUSD/MWh],DADOS_MercadoBase[TipoMercado],$A$3,DADOS_MercadoBase[OPÇÃO],$A$57,DADOS_MercadoBase[Subgrupo],$A148,DADOS_MercadoBase[Modalidade],$B148,DADOS_MercadoBase[Classe],$D148,DADOS_MercadoBase[Subclasse],$E148,DADOS_MercadoBase[Detalhe],$F148,DADOS_MercadoBase[Posto],$G148)),2),0) -> 0 | M148: =IFERROR(ROUND((AVERAGEIFS(DADOS_MercadoBase[TE],DADOS_MercadoBase[TipoMercado],$A$3,DADOS_MercadoBase[OPÇÃO],$A$57,DADOS_MercadoBase[Subgrupo],$A148,DADOS_MercadoBase[Modalidade],$B148,DADOS_MercadoBase[Classe],$D148,DADOS_MercadoBase[Subclasse],$E148,DADOS_MercadoBase[Detalhe],$F148,DADOS_MercadoBase[Posto],$G148)),2),0) -> 0
A149: A4 | B149: Azul | C149: Azul | D149: Poder público | E149: Não se aplica | F149: Não se aplica | G149: Fora ponta | H149: =IFERROR(ROUND((AVERAGEIFS(DADOS_MercadoBase[Tar_PTUSD],DADOS_MercadoBase[TipoMercado],$A$3,DADOS_MercadoBase[OPÇÃO],$A$57,DADOS_MercadoBase[Subgrupo],$A149,DADOS_MercadoBase[Modalidade],$B149,DADOS_MercadoBase[Classe],$D149,DADOS_MercadoBase[Subclasse],$E149,DADOS_MercadoBase[Detalhe],$F149,DADOS_MercadoBase[Posto],$G149)),2),0) -> 0 | I149: =IFERROR(ROUND((AVERAGEIFS(DADOS_MercadoBase[Tar_ETUSD],DADOS_MercadoBase[TipoMercado],$A$3,DADOS_MercadoBase[OPÇÃO],$A$57,DADOS_MercadoBase[Subgrupo],$A149,DADOS_MercadoBase[Modalidade],$B149,DADOS_MercadoBase[Classe],$D149,DADOS_MercadoBase[Subclasse],$E149,DADOS_MercadoBase[Detalhe],$F149,DADOS_MercadoBase[Posto],$G149)),2),0) -> 0 | J149: =IFERROR(ROUND((AVERAGEIFS(DADOS_MercadoBase[Tar_ETE],DADOS_MercadoBase[TipoMercado],$A$3,DADOS_MercadoBase[OPÇÃO],$A$57,DADOS_MercadoBase[Subgrupo],$A149,DADOS_MercadoBase[Modalidade],$B149,DADOS_MercadoBase[Classe],$D149,DADOS_MercadoBase[Subclasse],$E149,DADOS_MercadoBase[Detalhe],$F149,DADOS_MercadoBase[Posto],$G149)),2),0) -> 0 | K149: =IFERROR(ROUND((AVERAGEIFS(DADOS_MercadoBase[TUSD/KW],DADOS_MercadoBase[TipoMercado],$A$3,DADOS_MercadoBase[OPÇÃO],$A$57,DADOS_MercadoBase[Subgrupo],$A149,DADOS_MercadoBase[Modalidade],$B149,DADOS_MercadoBase[Classe],$D149,DADOS_MercadoBase[Subclasse],$E149,DADOS_MercadoBase[Detalhe],$F149,DADOS_MercadoBase[Posto],$G149)),2),0) -> 0 | L149: =IFERROR(ROUND((AVERAGEIFS(DADOS_MercadoBase[TUSD/MWh],DADOS_MercadoBase[TipoMercado],$A$3,DADOS_MercadoBase[OPÇÃO],$A$57,DADOS_MercadoBase[Subgrupo],$A149,DADOS_MercadoBase[Modalidade],$B149,DADOS_MercadoBase[Classe],$D149,DADOS_MercadoBase[Subclasse],$E149,DADOS_MercadoBase[Detalhe],$F149,DADOS_MercadoBase[Posto],$G149)),2),0) -> 0 | M149: =IFERROR(ROUND((AVERAGEIFS(DADOS_MercadoBase[TE],DADOS_MercadoBase[TipoMercado],$A$3,DADOS_MercadoBase[OPÇÃO],$A$57,DADOS_MercadoBase[Subgrupo],$A149,DADOS_MercadoBase[Modalidade],$B149,DADOS_MercadoBase[Classe],$D149,DADOS_MercadoBase[Subclasse],$E149,DADOS_MercadoBase[Detalhe],$F149,DADOS_MercadoBase[Posto],$G149)),2),0) -> 0
A150: A4 | B150: Azul | C150: Azul | D150: Poder público | E150: Não se aplica | F150: Não se aplica | G150: Não se aplica | H150: =IFERROR(ROUND((AVERAGEIFS(DADOS_MercadoBase[Tar_PTUSD],DADOS_MercadoBase[TipoMercado],$A$3,DADOS_MercadoBase[OPÇÃO],$A$57,DADOS_MercadoBase[Subgrupo],$A150,DADOS_MercadoBase[Modalidade],$B150,DADOS_MercadoBase[Classe],$D150,DADOS_MercadoBase[Subclasse],$E150,DADOS_MercadoBase[Detalhe],$F150,DADOS_MercadoBase[Posto],$G150)),2),0) -> 0 | I150: =IFERROR(ROUND((AVERAGEIFS(DADOS_MercadoBase[Tar_ETUSD],DADOS_MercadoBase[TipoMercado],$A$3,DADOS_MercadoBase[OPÇÃO],$A$57,DADOS_MercadoBase[Subgrupo],$A150,DADOS_MercadoBase[Modalidade],$B150,DADOS_MercadoBase[Classe],$D150,DADOS_MercadoBase[Subclasse],$E150,DADOS_MercadoBase[Detalhe],$F150,DADOS_MercadoBase[Posto],$G150)),2),0) -> 0 | J150: =IFERROR(ROUND((AVERAGEIFS(DADOS_MercadoBase[Tar_ETE],DADOS_MercadoBase[TipoMercado],$A$3,DADOS_MercadoBase[OPÇÃO],$A$57,DADOS_MercadoBase[Subgrupo],$A150,DADOS_MercadoBase[Modalidade],$B150,DADOS_MercadoBase[Classe],$D150,DADOS_MercadoBase[Subclasse],$E150,DADOS_MercadoBase[Detalhe],$F150,DADOS_MercadoBase[Posto],$G150)),2),0) -> 0 | K150: =IFERROR(ROUND((AVERAGEIFS(DADOS_MercadoBase[TUSD/KW],DADOS_MercadoBase[TipoMercado],$A$3,DADOS_MercadoBase[OPÇÃO],$A$57,DADOS_MercadoBase[Subgrupo],$A150,DADOS_MercadoBase[Modalidade],$B150,DADOS_MercadoBase[Classe],$D150,DADOS_MercadoBase[Subclasse],$E150,DADOS_MercadoBase[Detalhe],$F150,DADOS_MercadoBase[Posto],$G150)),2),0) -> 0 | L150: =IFERROR(ROUND((AVERAGEIFS(DADOS_MercadoBase[TUSD/MWh],DADOS_MercadoBase[TipoMercado],$A$3,DADOS_MercadoBase[OPÇÃO],$A$57,DADOS_MercadoBase[Subgrupo],$A150,DADOS_MercadoBase[Modalidade],$B150,DADOS_MercadoBase[Classe],$D150,DADOS_MercadoBase[Subclasse],$E150,DADOS_MercadoBase[Detalhe],$F150,DADOS_MercadoBase[Posto],$G150)),2),0) -> 0 | M150: =IFERROR(ROUND((AVERAGEIFS(DADOS_MercadoBase[TE],DADOS_MercadoBase[TipoMercado],$A$3,DADOS_MercadoBase[OPÇÃO],$A$57,DADOS_MercadoBase[Subgrupo],$A150,DADOS_MercadoBase[Modalidade],$B150,DADOS_MercadoBase[Classe],$D150,DADOS_MercadoBase[Subclasse],$E150,DADOS_MercadoBase[Detalhe],$F150,DADOS_MercadoBase[Posto],$G150)),2),0) -> 0
A151: A4 | B151: Azul | C151: Azul | D151: Rural | E151: Agropecuária rural | F151: IRRIG./AQUIC. PR | G151: Fora ponta | H151: =IFERROR(ROUND((AVERAGEIFS(DADOS_MercadoBase[Tar_PTUSD],DADOS_MercadoBase[TipoMercado],$A$3,DADOS_MercadoBase[OPÇÃO],$A$57,DADOS_MercadoBase[Subgrupo],$A151,DADOS_MercadoBase[Modalidade],$B151,DADOS_MercadoBase[Classe],$D151,DADOS_MercadoBase[Subclasse],$E151,DADOS_MercadoBase[Detalhe],$F151,DADOS_MercadoBase[Posto],$G151)),2),0) -> 0 | I151: =IFERROR(ROUND((AVERAGEIFS(DADOS_MercadoBase[Tar_ETUSD],DADOS_MercadoBase[TipoMercado],$A$3,DADOS_MercadoBase[OPÇÃO],$A$57,DADOS_MercadoBase[Subgrupo],$A151,DADOS_MercadoBase[Modalidade],$B151,DADOS_MercadoBase[Classe],$D151,DADOS_MercadoBase[Subclasse],$E151,DADOS_MercadoBase[Detalhe],$F151,DADOS_MercadoBase[Posto],$G151)),2),0) -> 0 | J151: =IFERROR(ROUND((AVERAGEIFS(DADOS_MercadoBase[Tar_ETE],DADOS_MercadoBase[TipoMercado],$A$3,DADOS_MercadoBase[OPÇÃO],$A$57,DADOS_MercadoBase[Subgrupo],$A151,DADOS_MercadoBase[Modalidade],$B151,DADOS_MercadoBase[Classe],$D151,DADOS_MercadoBase[Subclasse],$E151,DADOS_MercadoBase[Detalhe],$F151,DADOS_MercadoBase[Posto],$G151)),2),0) -> 0 | K151: =IFERROR(ROUND((AVERAGEIFS(DADOS_MercadoBase[TUSD/KW],DADOS_MercadoBase[TipoMercado],$A$3,DADOS_MercadoBase[OPÇÃO],$A$57,DADOS_MercadoBase[Subgrupo],$A151,DADOS_MercadoBase[Modalidade],$B151,DADOS_MercadoBase[Classe],$D151,DADOS_MercadoBase[Subclasse],$E151,DADOS_MercadoBase[Detalhe],$F151,DADOS_MercadoBase[Posto],$G151)),2),0) -> 0 | L151: =IFERROR(ROUND((AVERAGEIFS(DADOS_MercadoBase[TUSD/MWh],DADOS_MercadoBase[TipoMercado],$A$3,DADOS_MercadoBase[OPÇÃO],$A$57,DADOS_MercadoBase[Subgrupo],$A151,DADOS_MercadoBase[Modalidade],$B151,DADOS_MercadoBase[Classe],$D151,DADOS_MercadoBase[Subclasse],$E151,DADOS_MercadoBase[Detalhe],$F151,DADOS_MercadoBase[Posto],$G151)),2),0) -> 0 | M151: =IFERROR(ROUND((AVERAGEIFS(DADOS_MercadoBase[TE],DADOS_MercadoBase[TipoMercado],$A$3,DADOS_MercadoBase[OPÇÃO],$A$57,DADOS_MercadoBase[Subgrupo],$A151,DADOS_MercadoBase[Modalidade],$B151,DADOS_MercadoBase[Classe],$D151,DADOS_MercadoBase[Subclasse],$E151,DADOS_MercadoBase[Detalhe],$F151,DADOS_MercadoBase[Posto],$G151)),2),0) -> 0
